Workbook

Sheet 1_Indholdsfortegnelse
A1: INDHOLDSFORTEGNELSE FOR DEN FÆLLES FODERMIDDELTABEL, udgivet af Videncenter for Svineproduktion, SEGES
A2: Fane i regnearket | C2: Link | D2: Indhold
A4: 2 | B4: Version xx.xx.xxxx | C4: (link) | D4: Oversigt vedr. seneste versioner med en kort beskrivelse af ændringer pr. version
A5: 3 | B5: Et fodermiddel pr. side | C5: (link) | D5: Her kan de enkelte fodermidlers indhold og beskrivelser vises for ét fodermiddel ad gangen. De nummererede referencer, der er henvist til i Beskrivelsesafsnittet, kan man finde ved at klikke på nedenstående link ud for [Liste over referencer]
A6: 4 | B6: BLANDINGs-beregning,I-faktor mv | C6: (link) | D6: Her kan man beregne forventet I-faktor og fordøjeligt indhold af centrale næringsstoffer, når man kender fodermiddelsammensætningen af en foderblanding
A7: 5 | B7: FExx-beregning ud fra analyser | C7: (link) | D7: Kan bruges, hvis man har et analyseresultat, hvorpå der ønskes beregnet foderenhedsindhold ud fra enten målt EFOSi eller ud fra I-faktor (som anvendes ved kontrol af energiindhold i Foderstofkontrollen
A8: 6 | B8: Beregning af analyseusikkerhed | C8: (link) | D8: Kan bruges, hvis man har et analyseresultat som fx et gns. af to analyser: Til at vurdere hvor stor usikkerhed (konfidensinterval), der er på det fundne gennemsnit og: Er det fx sikkert forskelligt fra garantiværdien? Man kan også bruge beregne, hvor mange prøver der skal sendes til analyse for at komme ned på en ønsket analyseusikkerhed.
A9: 7 | B9: Tabel m flere fodermidler | C9: (link) | D9: Her kan seks fodermidlers indhold vises i kolonner ved siden af hinanden
A10: 8 | B10: Liste over referencer | C10: (link) | D10: Her fås en liste over de referencer, der er henvist til i Beskrivelsesafsnittet i fanen [Et fodermiddel pr. side]
A11: 9 | B11: Baggrundsnotater for ændringer | C11: (link) | D11: Her fås en liste over de publikationer, der ligger til baggrund, når fodermidlernes tabelværdier ændres
A12: 10 | B12: VSP_Fodermiddeltabel | C12: (link) | D12: Her ses alle fodermidlerne og deres tabelværdier, der er medtaget i nærværende fodermiddeltabel
A13: 11 | B13: Normprofiler | C13: (link) | D13: Her ses en delvis kopi af Normer for Næringsstoffer. Værdierne anvendes som sammenligningsgrundlag i fanen [BLANDINGs-beregning,I-faktor mv]
A14: App1 | B14: Vinterbyg (fra årets kornanalyser) | C14: (link) | D14: Her ses tabeller over dette års, sidste års og gennemsnit af de seneste tre års kornanalyser (for byg og hvede) samt dette års kornanalyser og flerårigt gennemsnit for rug, havre og triticale.
A15: App2 | B15: Vårbyg (fra årets kornanalyser) | C15: (link)
A16: App3 | B16: Hvede (fra årets kornanalyser) | C16: (link)
A17: App4 | B17: Rug (fra årets kornanalyser) | C17: (link)
A18: App5 | B18: Havre (fra årets kornanalyser) | C18: (link)
A19: App6 | B19: Triticale (fra årets kornanalyser) | C19: (link)

Sheet 2_Version 06.11.2015
B1: (Link: Retur til Indholdsfortegnelsen)
B2: VERSIONSOVERSIGT FOR DEN FÆLLES FODERMIDDELTABEL
A3: Versionsdato | B3: Resumé af de væsentligste ændringer
A4: 2013-08-25 | B4: Forskellige fodermidler ajourført i samarbejde med DAKOFO EU-fodermiddelnumre indført i denne fodermiddeltabel
A5: 2013-10-28 | B5: Nye analyser på korn og foderkridt
A6: 2014-01-31 | B6: Ændringer af proteinfordøjelighedskoefficenter på soja- og rapsprodukter på baggrund af Meddelelse nr. 993, Videncenter for Svineproduktion: Fordøjelighed af soja- og rapsprodukter hos smågrise. Ajourføring af data for hestbønner på baggrund af analyser fra en næsten afsluttet afprøvning
A7: 2014-02-28 | B7: Standard-foderblandinger ajourført (færdigfoder, tilskudsfoder, mineralske foderblandinger og "0,2 %'s" vitamin- og mineralforblandinger.
A8: 2014-03-12 | B8: Tastefejl (fra august 2013) på calciumkoncentrationen i hvedeklid er nu rettet
A9: 2014-04-24 | B9: Standarddosis for fytaseproduktserien Ronozyme HiPhos (GT, M og L (henholdsvis til pelleteret- mineral- og vådfoder)) er anført på fodermiddeludskriften. Tastefejl fra 14.8.2013 på calciumkoncentrationen i Calciumformiat er rettet fra 3,08 til 30,8 % calcium i tørstof (støkiometrisk beregnet ud fra den kemiske formel for Calciumformiat Ca(HCO2)2 )
A10: 2014-05-05 | B10: Der er foretaget tilretninger på fanen [I-Faktor Blandingsberegning].
A11: 2014-05-14 | B11: Farven på visse celler i fanen [I-Faktor Blandingsberegning] er nedtonet af hensyn til læsbarheden af udskrifter
A12: 2014-05-23 | B12: Tilretning af links til Fødevarestyrelsens meddelelser samt forskellige småjusteringer/tilføjelser i fanen [I-Faktor Blandingsberegning]
A13: 2014-06-24 | B13: Fodermidler, hvor summen af stivelse og sukker oversteg LFK (LetFordøjelige Kulhydrater) med mere end tre procent er blevet blankstillet mht. sukker og stivelse. LFK beregnes ud fra formlerne i fodervurderingssystemet (se rapport nr. 30 fra VSP [der er et link i fanen Liste over reference ved nr. 176]). Tallene for stivelse og sukker i denne fodermiddeltabel er fra før 1997. Derfor kan der ved væsentlige ændringer i kemisk sammensætning (som følge af fremavl, gødskning, eller produktionsmetoder) ske misforhold mellem LFK og de gamle tabelværdier for stivelse og sukker. Indtil videre er løsningen med blankstilling valgt, hvor der er misforhold mellem de gamle tabelværdier og mere aktuelle analyser.
A14: 2014-10-02 | B14: Nye analyser på korn
A15: 2015-06-08 | B15: Ny fane "5_FExx-beregn. ud fra analyser" (Foderenhedsindhold kan beregnes ud fra I-faktor (som i Foderstofkontrollen) og ud fra analyseret EFOSi) Ny fane "6_Beregn analyseusikkerhed". Her kan analyseusikkerheden i forhold til antallet af indsendte foderprøver vurderes.
A16: 2015-11-06 | B16: Nye analyser på korn fra høst 2015. Nye gennemsnitsværdier for hestebønner for høst 2014 og samlet for høst 2012 og 2014. Nyt lysinsulfat-produkt "LYSIN,L(sulfat)70%"

Sheet 3_Et fodermiddel pr. side
E1: (Link: Retur til Indholdsfortegnelsen)
D2: FODERMIDDELTABEL | U2: FODERMIDDELTABEL
J4: Bemærk! Du vælger fodermiddel på pilen herunder
A6: Vælg fodermiddel: | E6: HVEDE, 2015
A7: Fodermiddelnr. i EU-forordning: | E7: =IFERROR(IF(VLOOKUP($K$7,'10_VSP_Fodermiddeltabel'!$A$4:$HZ$489,127,)>0,VLOOKUP($K$7,'10_VSP_Fodermiddeltabel'!$A$4:$HZ$489,127,),CHAR(32)),"") -> 1.11.1 | G7: VSPs fodermiddeltabelkode: | K7: =VLOOKUP(E6,BM11:BN322,2,FALSE) -> 51000 | Q7: Beskrivelse af: | T7: =IF($K$7>0,VLOOKUP($K$7,'10_VSP_Fodermiddeltabel'!$A$4:$CP$489,4,),CHAR(32)) -> HVEDE, 2015
A8: Senest revideret | E8: =IF($K$7>0,VLOOKUP($K$7,'10_VSP_Fodermiddeltabel'!$A$4:$CP$489,5,),CHAR(32)) -> 2015-10-27
Q9: Generelt
A10: Tabelværdi for | C10: =IF($K$7>0,VLOOKUP($K$7,'10_VSP_Fodermiddeltabel'!$A$4:$CP$489,4,),CHAR(32)) -> HVEDE, 2015 | Q10: =IF(VLOOKUP($K$7,'10_VSP_Fodermiddeltabel'!$A$4:$HZ$489,231,)>0,VLOOKUP($K$7,'10_VSP_Fodermiddeltabel'!$A$4:$HZ$489,231,),CHAR(32)) -> Hvede, som dyrkes i stor udstrækning i Danmark, er frø fra dyrkede sorter af hvedeplanter (Triticum aestivum og Triticum durum). Hvede kan indgå i et foder til grise som eneste kornart. Er der før høst brugt stråforkortningsmidler, bør hvede i foder til søer maksimalt udgøre 30 pct. af FEso. En igangværende undersøgelse tyder på, at der er forskel i foderværdien (indhold af FEsv) mellem forskellige sorter. Der er ud fra de foreløbige tal et potentiale på 3,5 FEsv pr. 100 kg i vinterhvede, men flere analyser skal vise, om der i fremtiden skal vælges sort efter FEsv pr. ha. Hvede har et lavt indhold af fibre. Ud fra forsøg og generel erfaring vurderes, at hvede kan bruges i henhold til følgende kilder: [1], [3], [5], [6], [9], [11], [12], [14], [15]. [17], [18], [19], [20], | BM10: Fodermiddel | BN10: Fodermid-delkode
BM11: =IF(+'10_VSP_Fodermiddeltabel'!D4>0,+'10_VSP_Fodermiddeltabel'!D4,"") -> BENZOESYRE (1% vand) | BN11: =IF(+'10_VSP_Fodermiddeltabel'!A4>0,+'10_VSP_Fodermiddeltabel'!A4,"") -> 94800
A12: Kemisk indhold | J12: Fordøjeligheder | BM12: =IF(+'10_VSP_Fodermiddeltabel'!D5>0,+'10_VSP_Fodermiddeltabel'!D5,"") -> BIOLYSIN 65 % | BN12: =IF(+'10_VSP_Fodermiddeltabel'!A5>0,+'10_VSP_Fodermiddeltabel'!A5,"") -> 99565
D13: Pct. af varen | E13: Pct. af tørstof | F13: Analyser bag tallene | BM13: =IF(+'10_VSP_Fodermiddeltabel'!D6>0,+'10_VSP_Fodermiddeltabel'!D6,"") -> BIOLYSIN65% Vådf , FK=75% | BN13: =IF(+'10_VSP_Fodermiddeltabel'!A6>0,+'10_VSP_Fodermiddeltabel'!A6,"") -> 99566
F14: Antal | G14: Std.afv. | H14: Rev.år | O14: FK | BM14: =IF(+'10_VSP_Fodermiddeltabel'!D7>0,+'10_VSP_Fodermiddeltabel'!D7,"") -> BLODPLASMA, Daka Sprayt 2500 | BN14: =IF(+'10_VSP_Fodermiddeltabel'!A7>0,+'10_VSP_Fodermiddeltabel'!A7,"") -> 80500
A15: Tørstof | D15: =IF($K$7>0,VLOOKUP($K$7,'10_VSP_Fodermiddeltabel'!$A$4:$CP$489,12,),CHAR(32)) -> 85 | F15: =IF(VLOOKUP($K$7,'10_VSP_Fodermiddeltabel'!$A$4:$HZ$489,+Tælleark!F14,)>0,VLOOKUP($K$7,'10_VSP_Fodermiddeltabel'!$A$4:$HZ$489,+Tælleark!F14,),CHAR(32)) ->  | G15: =IF(VLOOKUP($K$7,'10_VSP_Fodermiddeltabel'!$A$4:$HZ$489,+Tælleark!G14,)>0,VLOOKUP($K$7,'10_VSP_Fodermiddeltabel'!$A$4:$HZ$489,+Tælleark!G14,),CHAR(32)) ->  | H15: =IF(VLOOKUP($K$7,'10_VSP_Fodermiddeltabel'!$A$4:$HZ$489,+Tælleark!H14,)>0,VLOOKUP($K$7,'10_VSP_Fodermiddeltabel'!$A$4:$HZ$489,+Tælleark!H14,),CHAR(32)) ->  | J15: Råprotein (standardiseret) | O15: =IF($K$7>0,VLOOKUP($K$7,'10_VSP_Fodermiddeltabel'!$A$4:$CP$489,18,),CHAR(32)) -> 82.39866777 | BM15: =IF(+'10_VSP_Fodermiddeltabel'!D8>0,+'10_VSP_Fodermiddeltabel'!D8,"") -> BLODPRODUKT (HÆMOGLOBINMEL, Daka) | BN15: =IF(+'10_VSP_Fodermiddeltabel'!A8>0,+'10_VSP_Fodermiddeltabel'!A8,"") -> 80600
A16: Råprotein | D16: =IF($K$7>0,VLOOKUP($K$7,'10_VSP_Fodermiddeltabel'!$A$4:$CP$489,13,),CHAR(32)) -> 8.6 | E16: =IF($K$7>0,VLOOKUP($K$7,'10_VSP_Fodermiddeltabel'!$A$4:$CP$489,63,),CHAR(32)) -> 10.11764706 | F16: =IF(VLOOKUP($K$7,'10_VSP_Fodermiddeltabel'!$A$4:$HZ$489,+Tælleark!F15,)>0,VLOOKUP($K$7,'10_VSP_Fodermiddeltabel'!$A$4:$HZ$489,+Tælleark!F15,),CHAR(32)) -> 31 | G16: =IF(VLOOKUP($K$7,'10_VSP_Fodermiddeltabel'!$A$4:$HZ$489,+Tælleark!G15,)>0,VLOOKUP($K$7,'10_VSP_Fodermiddeltabel'!$A$4:$HZ$489,+Tælleark!G15,),CHAR(32)) -> 0.6 | H16: =IF(VLOOKUP($K$7,'10_VSP_Fodermiddeltabel'!$A$4:$HZ$489,+Tælleark!H15,)>0,VLOOKUP($K$7,'10_VSP_Fodermiddeltabel'!$A$4:$HZ$489,+Tælleark!H15,),CHAR(32)) -> 2015 | J16: Råfedt (reelt fordøjet) | O16: 90 | BM16: =IF(+'10_VSP_Fodermiddeltabel'!D9>0,+'10_VSP_Fodermiddeltabel'!D9,"") -> BOLIFOR 18 (MCP 21/18) | BN16: =IF(+'10_VSP_Fodermiddeltabel'!A9>0,+'10_VSP_Fodermiddeltabel'!A9,"") -> 46202
A17: Råfedt | D17: =IF($K$7>0,VLOOKUP($K$7,'10_VSP_Fodermiddeltabel'!$A$4:$CP$489,14,),CHAR(32)) -> 2.1 | E17: =IF($K$7>0,VLOOKUP($K$7,'10_VSP_Fodermiddeltabel'!$A$4:$CP$489,64,),CHAR(32)) -> 2.470588235 | F17: =IF(VLOOKUP($K$7,'10_VSP_Fodermiddeltabel'!$A$4:$HZ$489,+Tælleark!F16,)>0,VLOOKUP($K$7,'10_VSP_Fodermiddeltabel'!$A$4:$HZ$489,+Tælleark!F16,),CHAR(32)) -> 15 | G17: =IF(VLOOKUP($K$7,'10_VSP_Fodermiddeltabel'!$A$4:$HZ$489,+Tælleark!G16,)>0,VLOOKUP($K$7,'10_VSP_Fodermiddeltabel'!$A$4:$HZ$489,+Tælleark!G16,),CHAR(32)) -> 0.3 | H17: =IF(VLOOKUP($K$7,'10_VSP_Fodermiddeltabel'!$A$4:$HZ$489,+Tælleark!H16,)>0,VLOOKUP($K$7,'10_VSP_Fodermiddeltabel'!$A$4:$HZ$489,+Tælleark!H16,),CHAR(32)) -> 2015 | J17: Fosfor, 0 enheder fytase tilsat | O17: =IF($K$7>0,VLOOKUP($K$7,'10_VSP_Fodermiddeltabel'!$A$4:$CP$489,19,),CHAR(32)) -> 50 | BM17: =IF(+'10_VSP_Fodermiddeltabel'!D10>0,+'10_VSP_Fodermiddeltabel'!D10,"") -> BOLIFOR MCP-F (16/22,7) | BN17: =IF(+'10_VSP_Fodermiddeltabel'!A10>0,+'10_VSP_Fodermiddeltabel'!A10,"") -> 46203
A18: Råaske | D18: =IF($K$7>0,VLOOKUP($K$7,'10_VSP_Fodermiddeltabel'!$A$4:$CP$489,15,),CHAR(32)) -> 1.5 | E18: =IF($K$7>0,VLOOKUP($K$7,'10_VSP_Fodermiddeltabel'!$A$4:$CP$489,65,),CHAR(32)) -> 1.764705882 | F18: =IF(VLOOKUP($K$7,'10_VSP_Fodermiddeltabel'!$A$4:$HZ$489,+Tælleark!F17,)>0,VLOOKUP($K$7,'10_VSP_Fodermiddeltabel'!$A$4:$HZ$489,+Tælleark!F17,),CHAR(32)) -> 15 | G18: =IF(VLOOKUP($K$7,'10_VSP_Fodermiddeltabel'!$A$4:$HZ$489,+Tælleark!G17,)>0,VLOOKUP($K$7,'10_VSP_Fodermiddeltabel'!$A$4:$HZ$489,+Tælleark!G17,),CHAR(32)) -> 0.1 | H18: =IF(VLOOKUP($K$7,'10_VSP_Fodermiddeltabel'!$A$4:$HZ$489,+Tælleark!H17,)>0,VLOOKUP($K$7,'10_VSP_Fodermiddeltabel'!$A$4:$HZ$489,+Tælleark!H17,),CHAR(32)) -> 2015 | J18: Fosfor, 60% standarddosis** fytase1) | O18: =IF($K$7>0,VLOOKUP($K$7,'10_VSP_Fodermiddeltabel'!$A$4:$CP$489,20,),CHAR(32)) -> 54 | BM18: =IF(+'10_VSP_Fodermiddeltabel'!D11>0,+'10_VSP_Fodermiddeltabel'!D11,"") -> BYG, vinter, 2015 | BN18: =IF(+'10_VSP_Fodermiddeltabel'!A11>0,+'10_VSP_Fodermiddeltabel'!A11,"") -> 50300
A19: Træstof | D19: =IF($K$7>0,VLOOKUP($K$7,'10_VSP_Fodermiddeltabel'!$A$4:$CP$489,16,),CHAR(32)) -> 2.7 | E19: =IF($K$7>0,VLOOKUP($K$7,'10_VSP_Fodermiddeltabel'!$A$4:$CP$489,66,),CHAR(32)) -> 3.176470588 | F19: =IF(VLOOKUP($K$7,'10_VSP_Fodermiddeltabel'!$A$4:$HZ$489,+Tælleark!F18,)>0,VLOOKUP($K$7,'10_VSP_Fodermiddeltabel'!$A$4:$HZ$489,+Tælleark!F18,),CHAR(32)) ->  | G19: =IF(VLOOKUP($K$7,'10_VSP_Fodermiddeltabel'!$A$4:$HZ$489,+Tælleark!G18,)>0,VLOOKUP($K$7,'10_VSP_Fodermiddeltabel'!$A$4:$HZ$489,+Tælleark!G18,),CHAR(32)) ->  | H19: =IF(VLOOKUP($K$7,'10_VSP_Fodermiddeltabel'!$A$4:$HZ$489,+Tælleark!H18,)>0,VLOOKUP($K$7,'10_VSP_Fodermiddeltabel'!$A$4:$HZ$489,+Tælleark!H18,),CHAR(32)) ->  | J19: Fosfor, 100% standarddosis** fytase | O19: =IF($K$7>0,VLOOKUP($K$7,'10_VSP_Fodermiddeltabel'!$A$4:$CP$489,21,),CHAR(32)) -> 56 | BM19: =IF(+'10_VSP_Fodermiddeltabel'!D12>0,+'10_VSP_Fodermiddeltabel'!D12,"") -> BYG, vinter, 2015 + xylanase | BN19: =IF(+'10_VSP_Fodermiddeltabel'!A12>0,+'10_VSP_Fodermiddeltabel'!A12,"") -> 50301
A20: Jodtal | E20: =IF($K$7>0,VLOOKUP($K$7,'10_VSP_Fodermiddeltabel'!$A$4:$CP$489,68,),CHAR(32)) -> 105 | J20: Fosfor, 150% standarddosis** fytase | O20: =IF($K$7>0,VLOOKUP($K$7,'10_VSP_Fodermiddeltabel'!$A$4:$CP$489,22,),CHAR(32)) -> 57 | BM20: =IF(+'10_VSP_Fodermiddeltabel'!D13>0,+'10_VSP_Fodermiddeltabel'!D13,"") -> BYG, vinter, 2015, varmebehandlet | BN20: =IF(+'10_VSP_Fodermiddeltabel'!A13>0,+'10_VSP_Fodermiddeltabel'!A13,"") -> 50310
J21: Fosfor, 200% standarddosis** fytase | O21: =IF($K$7>0,VLOOKUP($K$7,'10_VSP_Fodermiddeltabel'!$A$4:$CP$489,23,),CHAR(32)) -> 58 | BM21: =IF(+'10_VSP_Fodermiddeltabel'!D14>0,+'10_VSP_Fodermiddeltabel'!D14,"") -> BYG, vinter, 2015, varmebehandlet + xylanase | BN21: =IF(+'10_VSP_Fodermiddeltabel'!A14>0,+'10_VSP_Fodermiddeltabel'!A14,"") -> 50311
BM22: =IF(+'10_VSP_Fodermiddeltabel'!D15>0,+'10_VSP_Fodermiddeltabel'!D15,"") -> BYG, vinter, gns. 2013-2015 | BN22: =IF(+'10_VSP_Fodermiddeltabel'!A15>0,+'10_VSP_Fodermiddeltabel'!A15,"") -> 50500
A23: Energi | J23: Kulhydrater | BM23: =IF(+'10_VSP_Fodermiddeltabel'!D16>0,+'10_VSP_Fodermiddeltabel'!D16,"") -> BYG, vinter, gns. 2013-2015 + xylanase | BN23: =IF(+'10_VSP_Fodermiddeltabel'!A16>0,+'10_VSP_Fodermiddeltabel'!A16,"") -> 50501
A24: EFOS | E24: =IF($K$7>0,VLOOKUP($K$7,'10_VSP_Fodermiddeltabel'!$A$4:$CP$489,8,),CHAR(32)) -> 91.6 | F24: =IF(VLOOKUP($K$7,'10_VSP_Fodermiddeltabel'!$A$4:$HZ$489,+Tælleark!F23,)>0,VLOOKUP($K$7,'10_VSP_Fodermiddeltabel'!$A$4:$HZ$489,+Tælleark!F23,),CHAR(32)) -> 15 | G24: =IF(VLOOKUP($K$7,'10_VSP_Fodermiddeltabel'!$A$4:$HZ$489,+Tælleark!G23,)>0,VLOOKUP($K$7,'10_VSP_Fodermiddeltabel'!$A$4:$HZ$489,+Tælleark!G23,),CHAR(32)) -> 0.9 | H24: =IF(VLOOKUP($K$7,'10_VSP_Fodermiddeltabel'!$A$4:$HZ$489,+Tælleark!H23,)>0,VLOOKUP($K$7,'10_VSP_Fodermiddeltabel'!$A$4:$HZ$489,+Tælleark!H23,),CHAR(32)) -> 2015 | O24: g/kg tørstof | BM24: =IF(+'10_VSP_Fodermiddeltabel'!D17>0,+'10_VSP_Fodermiddeltabel'!D17,"") -> BYG, vinter, gns. 2013-2015, varmebehandlet | BN24: =IF(+'10_VSP_Fodermiddeltabel'!A17>0,+'10_VSP_Fodermiddeltabel'!A17,"") -> 50510
A25: EFOSi | E25: =IF($K$7>0,VLOOKUP($K$7,'10_VSP_Fodermiddeltabel'!$A$4:$CP$489,9,),CHAR(32)) -> 86.3999596 | F25: =IF(VLOOKUP($K$7,'10_VSP_Fodermiddeltabel'!$A$4:$HZ$489,+Tælleark!F24,)>0,VLOOKUP($K$7,'10_VSP_Fodermiddeltabel'!$A$4:$HZ$489,+Tælleark!F24,),CHAR(32)) -> 15 | G25: =IF(VLOOKUP($K$7,'10_VSP_Fodermiddeltabel'!$A$4:$HZ$489,+Tælleark!G24,)>0,VLOOKUP($K$7,'10_VSP_Fodermiddeltabel'!$A$4:$HZ$489,+Tælleark!G24,),CHAR(32)) -> 1.1 | H25: =IF(VLOOKUP($K$7,'10_VSP_Fodermiddeltabel'!$A$4:$HZ$489,+Tælleark!H24,)>0,VLOOKUP($K$7,'10_VSP_Fodermiddeltabel'!$A$4:$HZ$489,+Tælleark!H24,),CHAR(32)) -> 2015 | J25: Organisk stof | O25: =IF($K$7>0,VLOOKUP($K$7,'10_VSP_Fodermiddeltabel'!$A$4:$CP$489,73,),CHAR(32)) -> 982.3529412 | BM25: =IF(+'10_VSP_Fodermiddeltabel'!D18>0,+'10_VSP_Fodermiddeltabel'!D18,"") -> BYG, vinter, gns. 2013-2015, varmebehandlet + xylanas | BN25: =IF(+'10_VSP_Fodermiddeltabel'!A18>0,+'10_VSP_Fodermiddeltabel'!A18,"") -> 50511
A26: EFNi, pct. | E26: =IF($K$7>0,VLOOKUP($K$7,'10_VSP_Fodermiddeltabel'!$A$4:$CP$489,10,),CHAR(32)) -> 93 | J26: Letfordøjelige kulhydrater | O26: =IF($K$7>0,VLOOKUP($K$7,'10_VSP_Fodermiddeltabel'!$A$4:$CP$489,74,),CHAR(32)) -> 710.8252101 | BM26: =IF(+'10_VSP_Fodermiddeltabel'!D19>0,+'10_VSP_Fodermiddeltabel'!D19,"") -> BYG, vinter, 2014 | BN26: =IF(+'10_VSP_Fodermiddeltabel'!A19>0,+'10_VSP_Fodermiddeltabel'!A19,"") -> 50400
A27: I-faktor 2) | E27: =IFERROR(IF(E24<>0,+E25*100/E24,""),"") -> 94.3231 | J27: Fermenterbare kulhydrater | O27: =IF($K$7>0,VLOOKUP($K$7,'10_VSP_Fodermiddeltabel'!$A$4:$CP$489,75,),CHAR(32)) -> 72.97535687 | BM27: =IF(+'10_VSP_Fodermiddeltabel'!D20>0,+'10_VSP_Fodermiddeltabel'!D20,"") -> BYG, vinter, 2014 + xylanase | BN27: =IF(+'10_VSP_Fodermiddeltabel'!A20>0,+'10_VSP_Fodermiddeltabel'!A20,"") -> 50401
A28: FE-korrektionsfaktor 3) | E28: =IF($K$7>0,VLOOKUP($K$7,'10_VSP_Fodermiddeltabel'!$A$4:$CP$489,11,),CHAR(32)) -> 1 | J28: Stivelse | O28: =IF($K$7>0,VLOOKUP($K$7,'10_VSP_Fodermiddeltabel'!$A$4:$CP$489,76,),CHAR(32)) -> 670 | BM28: =IF(+'10_VSP_Fodermiddeltabel'!D21>0,+'10_VSP_Fodermiddeltabel'!D21,"") -> BYG, vinter, 2014, varmebehandlet | BN28: =IF(+'10_VSP_Fodermiddeltabel'!A21>0,+'10_VSP_Fodermiddeltabel'!A21,"") -> 50410
D29: i varen | E29: i tørstof | J29: Sukker | O29: =IF($K$7>0,VLOOKUP($K$7,'10_VSP_Fodermiddeltabel'!$A$4:$CP$489,77,),CHAR(32)) -> 19 | BM29: =IF(+'10_VSP_Fodermiddeltabel'!D22>0,+'10_VSP_Fodermiddeltabel'!D22,"") -> BYG, vinter, 2014, varmebehandlet + xylanase | BN29: =IF(+'10_VSP_Fodermiddeltabel'!A22>0,+'10_VSP_Fodermiddeltabel'!A22,"") -> 50411
A30: FEsv, pr. 100 kg | D30: =IFERROR(IF($K$7>0,VLOOKUP($K$7,'10_VSP_Fodermiddeltabel'!$A$4:$CP$489,6,)*100,CHAR(32)),"") -> 115.0482211 | E30: =IFERROR(IF($K$7>0,VLOOKUP($K$7,'10_VSP_Fodermiddeltabel'!$A$4:$CP$489,70,)*100,CHAR(32)),"") -> 135.3508483 | F30: =IF(VLOOKUP($K$7,'10_VSP_Fodermiddeltabel'!$A$4:$HZ$489,+Tælleark!F29,)>0,VLOOKUP($K$7,'10_VSP_Fodermiddeltabel'!$A$4:$HZ$489,+Tælleark!F29,),CHAR(32)) -> 15 | G30: =IF(VLOOKUP($K$7,'10_VSP_Fodermiddeltabel'!$A$4:$HZ$489,+Tælleark!G29,)>0,VLOOKUP($K$7,'10_VSP_Fodermiddeltabel'!$A$4:$HZ$489,+Tælleark!G29,),CHAR(32)) -> 1.9 | H30: =IF(VLOOKUP($K$7,'10_VSP_Fodermiddeltabel'!$A$4:$HZ$489,+Tælleark!H29,)>0,VLOOKUP($K$7,'10_VSP_Fodermiddeltabel'!$A$4:$HZ$489,+Tælleark!H29,),CHAR(32)) -> 2015 | J30: Opløselige fibre | O30: =IF($K$7>0,VLOOKUP($K$7,'10_VSP_Fodermiddeltabel'!$A$4:$CP$489,78,),CHAR(32)) -> 25 | Q30: Hvis der er en anbefaling om maksimal iblandingsprocent af dette fodermiddel i en foderblanding, ses det i oversigten her: | BM30: =IF(+'10_VSP_Fodermiddeltabel'!D23>0,+'10_VSP_Fodermiddeltabel'!D23,"") -> BYG, vår, 2015 | BN30: =IF(+'10_VSP_Fodermiddeltabel'!A23>0,+'10_VSP_Fodermiddeltabel'!A23,"") -> 50000
A31: FEso, pr. 100 kg | D31: =IFERROR(IF($K$7>0,VLOOKUP($K$7,'10_VSP_Fodermiddeltabel'!$A$4:$CP$489,7,)*100,CHAR(32)),"") -> 113.3538007 | E31: =IFERROR(IF($K$7>0,VLOOKUP($K$7,'10_VSP_Fodermiddeltabel'!$A$4:$CP$489,71,)*100,CHAR(32)),"") -> 133.3574126 | F31: =IF(VLOOKUP($K$7,'10_VSP_Fodermiddeltabel'!$A$4:$HZ$489,+Tælleark!F30,)>0,VLOOKUP($K$7,'10_VSP_Fodermiddeltabel'!$A$4:$HZ$489,+Tælleark!F30,),CHAR(32)) -> 15 | G31: =IF(VLOOKUP($K$7,'10_VSP_Fodermiddeltabel'!$A$4:$HZ$489,+Tælleark!G30,)>0,VLOOKUP($K$7,'10_VSP_Fodermiddeltabel'!$A$4:$HZ$489,+Tælleark!G30,),CHAR(32)) -> 1.6 | H31: =IF(VLOOKUP($K$7,'10_VSP_Fodermiddeltabel'!$A$4:$HZ$489,+Tælleark!H30,)>0,VLOOKUP($K$7,'10_VSP_Fodermiddeltabel'!$A$4:$HZ$489,+Tælleark!H30,),CHAR(32)) -> 2015 | J31: Uopløselige fibre | O31: =IF($K$7>0,VLOOKUP($K$7,'10_VSP_Fodermiddeltabel'!$A$4:$CP$489,79,),CHAR(32)) -> 113 | Q31: Maksimalt indhold af råvarer i foder | BM31: =IF(+'10_VSP_Fodermiddeltabel'!D24>0,+'10_VSP_Fodermiddeltabel'!D24,"") -> BYG, vår, 2015 + xylanase | BN31: =IF(+'10_VSP_Fodermiddeltabel'!A24>0,+'10_VSP_Fodermiddeltabel'!A24,"") -> 50001
BM32: =IF(+'10_VSP_Fodermiddeltabel'!D25>0,+'10_VSP_Fodermiddeltabel'!D25,"") -> BYG, vår, 2015, varmebehandlet | BN32: =IF(+'10_VSP_Fodermiddeltabel'!A25>0,+'10_VSP_Fodermiddeltabel'!A25,"") -> 50010
A33: Aminosyrer | J33: Mineraler | Q33: Vær opmærksom på | BM33: =IF(+'10_VSP_Fodermiddeltabel'!D26>0,+'10_VSP_Fodermiddeltabel'!D26,"") -> BYG, vår, 2015, varmebehandlet + xylanase | BN33: =IF(+'10_VSP_Fodermiddeltabel'!A26>0,+'10_VSP_Fodermiddeltabel'!A26,"") -> 50011
B34: Pct. af råprotein | C34: Faktor* | D34: g pr. kg vare | E34: St. ford., g pr. kg vare | F34: Analyser bag tallene | K34: Pr. kg vare | L34: Pr. kg tørstof | M34: Analyser bag tallene | Q34: =IF(VLOOKUP($K$7,'10_VSP_Fodermiddeltabel'!$A$4:$HZ$489,232,)>0,VLOOKUP($K$7,'10_VSP_Fodermiddeltabel'!$A$4:$HZ$489,232,),CHAR(32)) -> En høj andel af hvede eller hvede som eneste kornart øger risikoen for mave-tarm-problemer, som fx Salmonella og mavesår. Det anbefales i sådanne tilfælde at anvende en grovere formaling. Man bør dog være opmærksom på, at grovere formaling forringer foderudnyttelsen, og ændringen bør derfor altid ske udfra en ordentlig diagnose. Læs mere i afsnittet Formaling og foderstruktur. Hvede kan være inficeret med hvede stinkbrand og kan indeholde Fusarium-toksiner. Årsagen til problemer med mave- og fordøjelsesforstyrrelser samt svineri i stierne kan skyldes manglende struktur i foderet som følge af det lave indhold af fibre i hvede. Manglende struktur i foderet giver risiko for dannelse af maveforandringer og -sår i den hvide del af maven. En grov formaling eller valsning af hvede afhjælper i mange tilfælde problemet med manglende struktur i foderet og dermed risiko for mavesår, men øger samtidig risikoen for en væsentlig forringelse af foderudnyttelsen. | BM34: =IF(+'10_VSP_Fodermiddeltabel'!D27>0,+'10_VSP_Fodermiddeltabel'!D27,"") -> BYG, vår, gns. 2013-2015 | BN34: =IF(+'10_VSP_Fodermiddeltabel'!A27>0,+'10_VSP_Fodermiddeltabel'!A27,"") -> 50200
F35: Antal | G35: Std.afv. | H35: Rev.år | M35: Antal | N35: Std.afv. | O35: Rev.år | BM35: =IF(+'10_VSP_Fodermiddeltabel'!D28>0,+'10_VSP_Fodermiddeltabel'!D28,"") -> BYG, vår, gns. 2013-2015 + xylanase | BN35: =IF(+'10_VSP_Fodermiddeltabel'!A28>0,+'10_VSP_Fodermiddeltabel'!A28,"") -> 50201
A36: Lysin | B36: =IF($K$7>0,VLOOKUP($K$7,'10_VSP_Fodermiddeltabel'!$A$4:$CP$489,39,),CHAR(32)) -> 3.136588824 | C36: =IFERROR(IF($K$7>0,VLOOKUP($K$7,'10_VSP_Fodermiddeltabel'!$A$4:$CP$489,51,),CHAR(32)),"") -> 0.92 | D36: =IFERROR(IF($B36>0,+$D$16*B36/10,""),"") -> 2.697466388 | E36: =IFERROR(IF($B36>0,+($D$16/10*B36)*($O$15/100*C36),CHAR(32)),"") -> 2.044862258 | F36: =IF(VLOOKUP($K$7,'10_VSP_Fodermiddeltabel'!$A$4:$HZ$489,+Tælleark!F35,)>0,VLOOKUP($K$7,'10_VSP_Fodermiddeltabel'!$A$4:$HZ$489,+Tælleark!F35,),CHAR(32)) ->  | G36: =IF(VLOOKUP($K$7,'10_VSP_Fodermiddeltabel'!$A$4:$HZ$489,+Tælleark!G35,)>0,VLOOKUP($K$7,'10_VSP_Fodermiddeltabel'!$A$4:$HZ$489,+Tælleark!G35,),CHAR(32)) ->  | H36: =IF(VLOOKUP($K$7,'10_VSP_Fodermiddeltabel'!$A$4:$HZ$489,+Tælleark!H35,)>0,VLOOKUP($K$7,'10_VSP_Fodermiddeltabel'!$A$4:$HZ$489,+Tælleark!H35,),CHAR(32)) ->  | J36: Calcium, g | K36: =IF($K$7>0,VLOOKUP($K$7,'10_VSP_Fodermiddeltabel'!$A$4:$CP$489,81,),CHAR(32)) -> 0.36 | L36: =IF($K$7>0,VLOOKUP($K$7,'10_VSP_Fodermiddeltabel'!$A$4:$CP$489,25,),CHAR(32)) -> 0.4235294118 | M36: =IF(VLOOKUP($K$7,'10_VSP_Fodermiddeltabel'!$A$4:$HZ$489,+Tælleark!M35,)>0,VLOOKUP($K$7,'10_VSP_Fodermiddeltabel'!$A$4:$HZ$489,+Tælleark!M35,),CHAR(32)) -> 15 | N36: =IF(VLOOKUP($K$7,'10_VSP_Fodermiddeltabel'!$A$4:$HZ$489,+Tælleark!N35,)>0,VLOOKUP($K$7,'10_VSP_Fodermiddeltabel'!$A$4:$HZ$489,+Tælleark!N35,),CHAR(32)) -> 0.1 | O36: =IF(VLOOKUP($K$7,'10_VSP_Fodermiddeltabel'!$A$4:$HZ$489,+Tælleark!O35,)>0,VLOOKUP($K$7,'10_VSP_Fodermiddeltabel'!$A$4:$HZ$489,+Tælleark!O35,),CHAR(32)) -> 2015 | BM36: =IF(+'10_VSP_Fodermiddeltabel'!D29>0,+'10_VSP_Fodermiddeltabel'!D29,"") -> BYG, vår, gns. 2013-2015, varmebehandlet | BN36: =IF(+'10_VSP_Fodermiddeltabel'!A29>0,+'10_VSP_Fodermiddeltabel'!A29,"") -> 50210
A37: Methionin | B37: =IF($K$7>0,VLOOKUP($K$7,'10_VSP_Fodermiddeltabel'!$A$4:$CP$489,40,),CHAR(32)) -> 1.588998824 | C37: =IFERROR(IF($K$7>0,VLOOKUP($K$7,'10_VSP_Fodermiddeltabel'!$A$4:$CP$489,52,),CHAR(32)),"") -> 1 | D37: =IFERROR(IF($B37>0,+$D$16*B37/10,""),"") -> 1.366538988 | E37: =IFERROR(IF($B37>0,+($D$16/10*B37)*($O$15/100*C37),CHAR(32)),"") -> 1.126009921 | F37: =IF(VLOOKUP($K$7,'10_VSP_Fodermiddeltabel'!$A$4:$HZ$489,+Tælleark!F36,)>0,VLOOKUP($K$7,'10_VSP_Fodermiddeltabel'!$A$4:$HZ$489,+Tælleark!F36,),CHAR(32)) ->  | G37: =IF(VLOOKUP($K$7,'10_VSP_Fodermiddeltabel'!$A$4:$HZ$489,+Tælleark!G36,)>0,VLOOKUP($K$7,'10_VSP_Fodermiddeltabel'!$A$4:$HZ$489,+Tælleark!G36,),CHAR(32)) ->  | H37: =IF(VLOOKUP($K$7,'10_VSP_Fodermiddeltabel'!$A$4:$HZ$489,+Tælleark!H36,)>0,VLOOKUP($K$7,'10_VSP_Fodermiddeltabel'!$A$4:$HZ$489,+Tælleark!H36,),CHAR(32)) ->  | J37: Fosfor, g | K37: =IF($K$7>0,VLOOKUP($K$7,'10_VSP_Fodermiddeltabel'!$A$4:$CP$489,82,),CHAR(32)) -> 2.6 | L37: =IF($K$7>0,VLOOKUP($K$7,'10_VSP_Fodermiddeltabel'!$A$4:$CP$489,26,),CHAR(32)) -> 3.058823529 | M37: =IF(VLOOKUP($K$7,'10_VSP_Fodermiddeltabel'!$A$4:$HZ$489,+Tælleark!M36,)>0,VLOOKUP($K$7,'10_VSP_Fodermiddeltabel'!$A$4:$HZ$489,+Tælleark!M36,),CHAR(32)) -> 31 | N37: =IF(VLOOKUP($K$7,'10_VSP_Fodermiddeltabel'!$A$4:$HZ$489,+Tælleark!N36,)>0,VLOOKUP($K$7,'10_VSP_Fodermiddeltabel'!$A$4:$HZ$489,+Tælleark!N36,),CHAR(32)) -> 0.3 | O37: =IF(VLOOKUP($K$7,'10_VSP_Fodermiddeltabel'!$A$4:$HZ$489,+Tælleark!O36,)>0,VLOOKUP($K$7,'10_VSP_Fodermiddeltabel'!$A$4:$HZ$489,+Tælleark!O36,),CHAR(32)) -> 2015 | BM37: =IF(+'10_VSP_Fodermiddeltabel'!D30>0,+'10_VSP_Fodermiddeltabel'!D30,"") -> BYG, vår, gns. 2013-2015, varmebehandlet + xylanase | BN37: =IF(+'10_VSP_Fodermiddeltabel'!A30>0,+'10_VSP_Fodermiddeltabel'!A30,"") -> 50211
A38: Cystin | B38: =IF($K$7>0,VLOOKUP($K$7,'10_VSP_Fodermiddeltabel'!$A$4:$CP$489,41,),CHAR(32)) -> 2.392801765 | C38: =IFERROR(IF($K$7>0,VLOOKUP($K$7,'10_VSP_Fodermiddeltabel'!$A$4:$CP$489,53,),CHAR(32)),"") -> 0.98 | D38: 2.057809518 | E38: 1.661695475 | F38: =IF(VLOOKUP($K$7,'10_VSP_Fodermiddeltabel'!$A$4:$HZ$489,+Tælleark!F37,)>0,VLOOKUP($K$7,'10_VSP_Fodermiddeltabel'!$A$4:$HZ$489,+Tælleark!F37,),CHAR(32)) ->  | G38: =IF(VLOOKUP($K$7,'10_VSP_Fodermiddeltabel'!$A$4:$HZ$489,+Tælleark!G37,)>0,VLOOKUP($K$7,'10_VSP_Fodermiddeltabel'!$A$4:$HZ$489,+Tælleark!G37,),CHAR(32)) ->  | H38: =IF(VLOOKUP($K$7,'10_VSP_Fodermiddeltabel'!$A$4:$HZ$489,+Tælleark!H37,)>0,VLOOKUP($K$7,'10_VSP_Fodermiddeltabel'!$A$4:$HZ$489,+Tælleark!H37,),CHAR(32)) ->  | J38: Natrium, g | K38: =IF($K$7>0,VLOOKUP($K$7,'10_VSP_Fodermiddeltabel'!$A$4:$CP$489,83,),CHAR(32)) -> 0.085 | L38: =IF($K$7>0,VLOOKUP($K$7,'10_VSP_Fodermiddeltabel'!$A$4:$CP$489,27,),CHAR(32)) -> 0.1 | M38: =IF(VLOOKUP($K$7,'10_VSP_Fodermiddeltabel'!$A$4:$HZ$489,+Tælleark!M37,)>0,VLOOKUP($K$7,'10_VSP_Fodermiddeltabel'!$A$4:$HZ$489,+Tælleark!M37,),CHAR(32)) ->  | N38: =IF(VLOOKUP($K$7,'10_VSP_Fodermiddeltabel'!$A$4:$HZ$489,+Tælleark!N37,)>0,VLOOKUP($K$7,'10_VSP_Fodermiddeltabel'!$A$4:$HZ$489,+Tælleark!N37,),CHAR(32)) ->  | O38: =IF(VLOOKUP($K$7,'10_VSP_Fodermiddeltabel'!$A$4:$HZ$489,+Tælleark!O37,)>0,VLOOKUP($K$7,'10_VSP_Fodermiddeltabel'!$A$4:$HZ$489,+Tælleark!O37,),CHAR(32)) ->  | BM38: =IF(+'10_VSP_Fodermiddeltabel'!D31>0,+'10_VSP_Fodermiddeltabel'!D31,"") -> BYG, vår, 2014 | BN38: =IF(+'10_VSP_Fodermiddeltabel'!A31>0,+'10_VSP_Fodermiddeltabel'!A31,"") -> 50100
A39: Treonin | B39: =IF($K$7>0,VLOOKUP($K$7,'10_VSP_Fodermiddeltabel'!$A$4:$CP$489,42,),CHAR(32)) -> 3.006449412 | C39: =IFERROR(IF($K$7>0,VLOOKUP($K$7,'10_VSP_Fodermiddeltabel'!$A$4:$CP$489,54,),CHAR(32)),"") -> 0.93 | D39: 2.585546494 | E39: 1.981323955 | F39: =IF(VLOOKUP($K$7,'10_VSP_Fodermiddeltabel'!$A$4:$HZ$489,+Tælleark!F38,)>0,VLOOKUP($K$7,'10_VSP_Fodermiddeltabel'!$A$4:$HZ$489,+Tælleark!F38,),CHAR(32)) ->  | G39: =IF(VLOOKUP($K$7,'10_VSP_Fodermiddeltabel'!$A$4:$HZ$489,+Tælleark!G38,)>0,VLOOKUP($K$7,'10_VSP_Fodermiddeltabel'!$A$4:$HZ$489,+Tælleark!G38,),CHAR(32)) ->  | H39: =IF(VLOOKUP($K$7,'10_VSP_Fodermiddeltabel'!$A$4:$HZ$489,+Tælleark!H38,)>0,VLOOKUP($K$7,'10_VSP_Fodermiddeltabel'!$A$4:$HZ$489,+Tælleark!H38,),CHAR(32)) ->  | J39: Klorid, g | K39: =IF($K$7>0,VLOOKUP($K$7,'10_VSP_Fodermiddeltabel'!$A$4:$CP$489,84,),CHAR(32)) -> 0.85 | L39: =IF($K$7>0,VLOOKUP($K$7,'10_VSP_Fodermiddeltabel'!$A$4:$CP$489,28,),CHAR(32)) -> 1 | M39: =IF(VLOOKUP($K$7,'10_VSP_Fodermiddeltabel'!$A$4:$HZ$489,+Tælleark!M38,)>0,VLOOKUP($K$7,'10_VSP_Fodermiddeltabel'!$A$4:$HZ$489,+Tælleark!M38,),CHAR(32)) ->  | N39: =IF(VLOOKUP($K$7,'10_VSP_Fodermiddeltabel'!$A$4:$HZ$489,+Tælleark!N38,)>0,VLOOKUP($K$7,'10_VSP_Fodermiddeltabel'!$A$4:$HZ$489,+Tælleark!N38,),CHAR(32)) ->  | O39: =IF(VLOOKUP($K$7,'10_VSP_Fodermiddeltabel'!$A$4:$HZ$489,+Tælleark!O38,)>0,VLOOKUP($K$7,'10_VSP_Fodermiddeltabel'!$A$4:$HZ$489,+Tælleark!O38,),CHAR(32)) ->  | BM39: =IF(+'10_VSP_Fodermiddeltabel'!D32>0,+'10_VSP_Fodermiddeltabel'!D32,"") -> BYG, vår, 2014 + xylanase | BN39: =IF(+'10_VSP_Fodermiddeltabel'!A32>0,+'10_VSP_Fodermiddeltabel'!A32,"") -> 50101
A40: Tryptofan | B40: =IF($K$7>0,VLOOKUP($K$7,'10_VSP_Fodermiddeltabel'!$A$4:$CP$489,43,),CHAR(32)) -> 1.401977059 | C40: =IFERROR(IF($K$7>0,VLOOKUP($K$7,'10_VSP_Fodermiddeltabel'!$A$4:$CP$489,55,),CHAR(32)),"") -> 0.99 | D40: 1.205700271 | E40: 0.9835461507 | F40: =IF(VLOOKUP($K$7,'10_VSP_Fodermiddeltabel'!$A$4:$HZ$489,+Tælleark!F39,)>0,VLOOKUP($K$7,'10_VSP_Fodermiddeltabel'!$A$4:$HZ$489,+Tælleark!F39,),CHAR(32)) ->  | G40: =IF(VLOOKUP($K$7,'10_VSP_Fodermiddeltabel'!$A$4:$HZ$489,+Tælleark!G39,)>0,VLOOKUP($K$7,'10_VSP_Fodermiddeltabel'!$A$4:$HZ$489,+Tælleark!G39,),CHAR(32)) ->  | H40: =IF(VLOOKUP($K$7,'10_VSP_Fodermiddeltabel'!$A$4:$HZ$489,+Tælleark!H39,)>0,VLOOKUP($K$7,'10_VSP_Fodermiddeltabel'!$A$4:$HZ$489,+Tælleark!H39,),CHAR(32)) ->  | J40: Kalium, g | K40: =IF($K$7>0,VLOOKUP($K$7,'10_VSP_Fodermiddeltabel'!$A$4:$CP$489,85,),CHAR(32)) -> 4.93 | L40: =IF($K$7>0,VLOOKUP($K$7,'10_VSP_Fodermiddeltabel'!$A$4:$CP$489,29,),CHAR(32)) -> 5.8 | M40: =IF(VLOOKUP($K$7,'10_VSP_Fodermiddeltabel'!$A$4:$HZ$489,+Tælleark!M39,)>0,VLOOKUP($K$7,'10_VSP_Fodermiddeltabel'!$A$4:$HZ$489,+Tælleark!M39,),CHAR(32)) ->  | N40: =IF(VLOOKUP($K$7,'10_VSP_Fodermiddeltabel'!$A$4:$HZ$489,+Tælleark!N39,)>0,VLOOKUP($K$7,'10_VSP_Fodermiddeltabel'!$A$4:$HZ$489,+Tælleark!N39,),CHAR(32)) ->  | O40: =IF(VLOOKUP($K$7,'10_VSP_Fodermiddeltabel'!$A$4:$HZ$489,+Tælleark!O39,)>0,VLOOKUP($K$7,'10_VSP_Fodermiddeltabel'!$A$4:$HZ$489,+Tælleark!O39,),CHAR(32)) ->  | BM40: =IF(+'10_VSP_Fodermiddeltabel'!D33>0,+'10_VSP_Fodermiddeltabel'!D33,"") -> BYG, vår, 2014, varmebehandlet | BN40: =IF(+'10_VSP_Fodermiddeltabel'!A33>0,+'10_VSP_Fodermiddeltabel'!A33,"") -> 50110
A41: Isoleucin | B41: =IF($K$7>0,VLOOKUP($K$7,'10_VSP_Fodermiddeltabel'!$A$4:$CP$489,44,),CHAR(32)) -> 3.342785882 | C41: =IFERROR(IF($K$7>0,VLOOKUP($K$7,'10_VSP_Fodermiddeltabel'!$A$4:$CP$489,56,),CHAR(32)),"") -> 0.99 | D41: 2.874795859 | E41: 2.345105554 | F41: =IF(VLOOKUP($K$7,'10_VSP_Fodermiddeltabel'!$A$4:$HZ$489,+Tælleark!F40,)>0,VLOOKUP($K$7,'10_VSP_Fodermiddeltabel'!$A$4:$HZ$489,+Tælleark!F40,),CHAR(32)) ->  | G41: =IF(VLOOKUP($K$7,'10_VSP_Fodermiddeltabel'!$A$4:$HZ$489,+Tælleark!G40,)>0,VLOOKUP($K$7,'10_VSP_Fodermiddeltabel'!$A$4:$HZ$489,+Tælleark!G40,),CHAR(32)) ->  | H41: =IF(VLOOKUP($K$7,'10_VSP_Fodermiddeltabel'!$A$4:$HZ$489,+Tælleark!H40,)>0,VLOOKUP($K$7,'10_VSP_Fodermiddeltabel'!$A$4:$HZ$489,+Tælleark!H40,),CHAR(32)) ->  | J41: Magnesium, g | K41: =IF($K$7>0,VLOOKUP($K$7,'10_VSP_Fodermiddeltabel'!$A$4:$CP$489,86,),CHAR(32)) -> 1.02 | L41: =IF($K$7>0,VLOOKUP($K$7,'10_VSP_Fodermiddeltabel'!$A$4:$CP$489,30,),CHAR(32)) -> 1.2 | M41: =IF(VLOOKUP($K$7,'10_VSP_Fodermiddeltabel'!$A$4:$HZ$489,+Tælleark!M40,)>0,VLOOKUP($K$7,'10_VSP_Fodermiddeltabel'!$A$4:$HZ$489,+Tælleark!M40,),CHAR(32)) ->  | N41: =IF(VLOOKUP($K$7,'10_VSP_Fodermiddeltabel'!$A$4:$HZ$489,+Tælleark!N40,)>0,VLOOKUP($K$7,'10_VSP_Fodermiddeltabel'!$A$4:$HZ$489,+Tælleark!N40,),CHAR(32)) ->  | O41: =IF(VLOOKUP($K$7,'10_VSP_Fodermiddeltabel'!$A$4:$HZ$489,+Tælleark!O40,)>0,VLOOKUP($K$7,'10_VSP_Fodermiddeltabel'!$A$4:$HZ$489,+Tælleark!O40,),CHAR(32)) ->  | BM41: =IF(+'10_VSP_Fodermiddeltabel'!D34>0,+'10_VSP_Fodermiddeltabel'!D34,"") -> BYG, vår, 2014, varmebehandlet + xylanase | BN41: =IF(+'10_VSP_Fodermiddeltabel'!A34>0,+'10_VSP_Fodermiddeltabel'!A34,"") -> 50111
A42: Leucin | B42: =IF($K$7>0,VLOOKUP($K$7,'10_VSP_Fodermiddeltabel'!$A$4:$CP$489,45,),CHAR(32)) -> 6.739708824 | C42: =IFERROR(IF($K$7>0,VLOOKUP($K$7,'10_VSP_Fodermiddeltabel'!$A$4:$CP$489,57,),CHAR(32)),"") -> 1 | D42: 5.796149588 | E42: 4.775950043 | F42: =IF(VLOOKUP($K$7,'10_VSP_Fodermiddeltabel'!$A$4:$HZ$489,+Tælleark!F41,)>0,VLOOKUP($K$7,'10_VSP_Fodermiddeltabel'!$A$4:$HZ$489,+Tælleark!F41,),CHAR(32)) ->  | G42: =IF(VLOOKUP($K$7,'10_VSP_Fodermiddeltabel'!$A$4:$HZ$489,+Tælleark!G41,)>0,VLOOKUP($K$7,'10_VSP_Fodermiddeltabel'!$A$4:$HZ$489,+Tælleark!G41,),CHAR(32)) ->  | H42: =IF(VLOOKUP($K$7,'10_VSP_Fodermiddeltabel'!$A$4:$HZ$489,+Tælleark!H41,)>0,VLOOKUP($K$7,'10_VSP_Fodermiddeltabel'!$A$4:$HZ$489,+Tælleark!H41,),CHAR(32)) ->  | J42: Svovl, g | K42: =IF($K$7>0,VLOOKUP($K$7,'10_VSP_Fodermiddeltabel'!$A$4:$CP$489,87,),CHAR(32)) -> 1.105 | L42: =IF($K$7>0,VLOOKUP($K$7,'10_VSP_Fodermiddeltabel'!$A$4:$CP$489,31,),CHAR(32)) -> 1.3 | M42: =IF(VLOOKUP($K$7,'10_VSP_Fodermiddeltabel'!$A$4:$HZ$489,+Tælleark!M41,)>0,VLOOKUP($K$7,'10_VSP_Fodermiddeltabel'!$A$4:$HZ$489,+Tælleark!M41,),CHAR(32)) ->  | N42: =IF(VLOOKUP($K$7,'10_VSP_Fodermiddeltabel'!$A$4:$HZ$489,+Tælleark!N41,)>0,VLOOKUP($K$7,'10_VSP_Fodermiddeltabel'!$A$4:$HZ$489,+Tælleark!N41,),CHAR(32)) ->  | O42: =IF(VLOOKUP($K$7,'10_VSP_Fodermiddeltabel'!$A$4:$HZ$489,+Tælleark!O41,)>0,VLOOKUP($K$7,'10_VSP_Fodermiddeltabel'!$A$4:$HZ$489,+Tælleark!O41,),CHAR(32)) ->  | BM42: =IF(+'10_VSP_Fodermiddeltabel'!D35>0,+'10_VSP_Fodermiddeltabel'!D35,"") -> BYG, 10,0 % råprotein, varmebehandlet + xylanase | BN42: =IF(+'10_VSP_Fodermiddeltabel'!A35>0,+'10_VSP_Fodermiddeltabel'!A35,"") -> 50611
A43: Histidin | B43: =IF($K$7>0,VLOOKUP($K$7,'10_VSP_Fodermiddeltabel'!$A$4:$CP$489,46,),CHAR(32)) -> 2.305446471 | C43: =IFERROR(IF($K$7>0,VLOOKUP($K$7,'10_VSP_Fodermiddeltabel'!$A$4:$CP$489,58,),CHAR(32)),"") -> 0.99 | D43: 1.982683965 | E43: 1.617368121 | F43: =IF(VLOOKUP($K$7,'10_VSP_Fodermiddeltabel'!$A$4:$HZ$489,+Tælleark!F42,)>0,VLOOKUP($K$7,'10_VSP_Fodermiddeltabel'!$A$4:$HZ$489,+Tælleark!F42,),CHAR(32)) ->  | G43: =IF(VLOOKUP($K$7,'10_VSP_Fodermiddeltabel'!$A$4:$HZ$489,+Tælleark!G42,)>0,VLOOKUP($K$7,'10_VSP_Fodermiddeltabel'!$A$4:$HZ$489,+Tælleark!G42,),CHAR(32)) ->  | H43: =IF(VLOOKUP($K$7,'10_VSP_Fodermiddeltabel'!$A$4:$HZ$489,+Tælleark!H42,)>0,VLOOKUP($K$7,'10_VSP_Fodermiddeltabel'!$A$4:$HZ$489,+Tælleark!H42,),CHAR(32)) ->  | J43: Jern, mg | K43: =IF($K$7>0,VLOOKUP($K$7,'10_VSP_Fodermiddeltabel'!$A$4:$CP$489,89,),CHAR(32)) -> 27.2 | L43: =IF($K$7>0,VLOOKUP($K$7,'10_VSP_Fodermiddeltabel'!$A$4:$CP$489,32,),CHAR(32)) -> 32 | M43: =IF(VLOOKUP($K$7,'10_VSP_Fodermiddeltabel'!$A$4:$HZ$489,+Tælleark!M42,)>0,VLOOKUP($K$7,'10_VSP_Fodermiddeltabel'!$A$4:$HZ$489,+Tælleark!M42,),CHAR(32)) ->  | N43: =IF(VLOOKUP($K$7,'10_VSP_Fodermiddeltabel'!$A$4:$HZ$489,+Tælleark!N42,)>0,VLOOKUP($K$7,'10_VSP_Fodermiddeltabel'!$A$4:$HZ$489,+Tælleark!N42,),CHAR(32)) ->  | O43: =IF(VLOOKUP($K$7,'10_VSP_Fodermiddeltabel'!$A$4:$HZ$489,+Tælleark!O42,)>0,VLOOKUP($K$7,'10_VSP_Fodermiddeltabel'!$A$4:$HZ$489,+Tælleark!O42,),CHAR(32)) ->  | BM43: =IF(+'10_VSP_Fodermiddeltabel'!D36>0,+'10_VSP_Fodermiddeltabel'!D36,"") -> BYG, 11,5 % råprotein, varmebehandlet + xylanase | BN43: =IF(+'10_VSP_Fodermiddeltabel'!A36>0,+'10_VSP_Fodermiddeltabel'!A36,"") -> 50661
A44: Fenylalanin | B44: =IF($K$7>0,VLOOKUP($K$7,'10_VSP_Fodermiddeltabel'!$A$4:$CP$489,47,),CHAR(32)) -> 4.341393529 | C44: =IFERROR(IF($K$7>0,VLOOKUP($K$7,'10_VSP_Fodermiddeltabel'!$A$4:$CP$489,59,),CHAR(32)),"") -> 1.02 | D44: 3.733598435 | E44: 3.137964078 | F44: =IF(VLOOKUP($K$7,'10_VSP_Fodermiddeltabel'!$A$4:$HZ$489,+Tælleark!F43,)>0,VLOOKUP($K$7,'10_VSP_Fodermiddeltabel'!$A$4:$HZ$489,+Tælleark!F43,),CHAR(32)) ->  | G44: =IF(VLOOKUP($K$7,'10_VSP_Fodermiddeltabel'!$A$4:$HZ$489,+Tælleark!G43,)>0,VLOOKUP($K$7,'10_VSP_Fodermiddeltabel'!$A$4:$HZ$489,+Tælleark!G43,),CHAR(32)) ->  | H44: =IF(VLOOKUP($K$7,'10_VSP_Fodermiddeltabel'!$A$4:$HZ$489,+Tælleark!H43,)>0,VLOOKUP($K$7,'10_VSP_Fodermiddeltabel'!$A$4:$HZ$489,+Tælleark!H43,),CHAR(32)) ->  | J44: Kobber, mg | K44: =IF($K$7>0,VLOOKUP($K$7,'10_VSP_Fodermiddeltabel'!$A$4:$CP$489,90,),CHAR(32)) -> 2.72 | L44: =IF($K$7>0,VLOOKUP($K$7,'10_VSP_Fodermiddeltabel'!$A$4:$CP$489,33,),CHAR(32)) -> 3.2 | M44: =IF(VLOOKUP($K$7,'10_VSP_Fodermiddeltabel'!$A$4:$HZ$489,+Tælleark!M43,)>0,VLOOKUP($K$7,'10_VSP_Fodermiddeltabel'!$A$4:$HZ$489,+Tælleark!M43,),CHAR(32)) ->  | N44: =IF(VLOOKUP($K$7,'10_VSP_Fodermiddeltabel'!$A$4:$HZ$489,+Tælleark!N43,)>0,VLOOKUP($K$7,'10_VSP_Fodermiddeltabel'!$A$4:$HZ$489,+Tælleark!N43,),CHAR(32)) ->  | O44: =IF(VLOOKUP($K$7,'10_VSP_Fodermiddeltabel'!$A$4:$HZ$489,+Tælleark!O43,)>0,VLOOKUP($K$7,'10_VSP_Fodermiddeltabel'!$A$4:$HZ$489,+Tælleark!O43,),CHAR(32)) ->  | BM44: =IF(+'10_VSP_Fodermiddeltabel'!D37>0,+'10_VSP_Fodermiddeltabel'!D37,"") -> BYG, vår 10% råprotein | BN44: =IF(+'10_VSP_Fodermiddeltabel'!A37>0,+'10_VSP_Fodermiddeltabel'!A37,"") -> 50600
A45: Tyrosin | B45: =IF($K$7>0,VLOOKUP($K$7,'10_VSP_Fodermiddeltabel'!$A$4:$CP$489,48,),CHAR(32)) -> 2.74396 | C45: =IFERROR(IF($K$7>0,VLOOKUP($K$7,'10_VSP_Fodermiddeltabel'!$A$4:$CP$489,60,),CHAR(32)),"") -> 1 | D45: 2.3598056 | E45: 1.944448376 | F45: =IF(VLOOKUP($K$7,'10_VSP_Fodermiddeltabel'!$A$4:$HZ$489,+Tælleark!F44,)>0,VLOOKUP($K$7,'10_VSP_Fodermiddeltabel'!$A$4:$HZ$489,+Tælleark!F44,),CHAR(32)) ->  | G45: =IF(VLOOKUP($K$7,'10_VSP_Fodermiddeltabel'!$A$4:$HZ$489,+Tælleark!G44,)>0,VLOOKUP($K$7,'10_VSP_Fodermiddeltabel'!$A$4:$HZ$489,+Tælleark!G44,),CHAR(32)) ->  | H45: =IF(VLOOKUP($K$7,'10_VSP_Fodermiddeltabel'!$A$4:$HZ$489,+Tælleark!H44,)>0,VLOOKUP($K$7,'10_VSP_Fodermiddeltabel'!$A$4:$HZ$489,+Tælleark!H44,),CHAR(32)) ->  | J45: Mangan, mg | K45: =IF($K$7>0,VLOOKUP($K$7,'10_VSP_Fodermiddeltabel'!$A$4:$CP$489,91,),CHAR(32)) -> 24.65 | L45: =IF($K$7>0,VLOOKUP($K$7,'10_VSP_Fodermiddeltabel'!$A$4:$CP$489,34,),CHAR(32)) -> 29 | M45: =IF(VLOOKUP($K$7,'10_VSP_Fodermiddeltabel'!$A$4:$HZ$489,+Tælleark!M44,)>0,VLOOKUP($K$7,'10_VSP_Fodermiddeltabel'!$A$4:$HZ$489,+Tælleark!M44,),CHAR(32)) ->  | N45: =IF(VLOOKUP($K$7,'10_VSP_Fodermiddeltabel'!$A$4:$HZ$489,+Tælleark!N44,)>0,VLOOKUP($K$7,'10_VSP_Fodermiddeltabel'!$A$4:$HZ$489,+Tælleark!N44,),CHAR(32)) ->  | O45: =IF(VLOOKUP($K$7,'10_VSP_Fodermiddeltabel'!$A$4:$HZ$489,+Tælleark!O44,)>0,VLOOKUP($K$7,'10_VSP_Fodermiddeltabel'!$A$4:$HZ$489,+Tælleark!O44,),CHAR(32)) ->  | BM45: =IF(+'10_VSP_Fodermiddeltabel'!D38>0,+'10_VSP_Fodermiddeltabel'!D38,"") -> CALCIUMFORMIAT | BN45: =IF(+'10_VSP_Fodermiddeltabel'!A38>0,+'10_VSP_Fodermiddeltabel'!A38,"") -> 48900
A46: Valin | B46: =IF($K$7>0,VLOOKUP($K$7,'10_VSP_Fodermiddeltabel'!$A$4:$CP$489,49,),CHAR(32)) -> 4.343891765 | C46: =IFERROR(IF($K$7>0,VLOOKUP($K$7,'10_VSP_Fodermiddeltabel'!$A$4:$CP$489,61,),CHAR(32)),"") -> 0.96 | D46: 3.735746918 | E46: 2.955077464 | F46: =IF(VLOOKUP($K$7,'10_VSP_Fodermiddeltabel'!$A$4:$HZ$489,+Tælleark!F45,)>0,VLOOKUP($K$7,'10_VSP_Fodermiddeltabel'!$A$4:$HZ$489,+Tælleark!F45,),CHAR(32)) ->  | G46: =IF(VLOOKUP($K$7,'10_VSP_Fodermiddeltabel'!$A$4:$HZ$489,+Tælleark!G45,)>0,VLOOKUP($K$7,'10_VSP_Fodermiddeltabel'!$A$4:$HZ$489,+Tælleark!G45,),CHAR(32)) ->  | H46: =IF(VLOOKUP($K$7,'10_VSP_Fodermiddeltabel'!$A$4:$HZ$489,+Tælleark!H45,)>0,VLOOKUP($K$7,'10_VSP_Fodermiddeltabel'!$A$4:$HZ$489,+Tælleark!H45,),CHAR(32)) ->  | J46: Zink, mg | K46: =IF($K$7>0,VLOOKUP($K$7,'10_VSP_Fodermiddeltabel'!$A$4:$CP$489,92,),CHAR(32)) -> 34 | L46: =IF($K$7>0,VLOOKUP($K$7,'10_VSP_Fodermiddeltabel'!$A$4:$CP$489,35,),CHAR(32)) -> 40 | M46: =IF(VLOOKUP($K$7,'10_VSP_Fodermiddeltabel'!$A$4:$HZ$489,+Tælleark!M45,)>0,VLOOKUP($K$7,'10_VSP_Fodermiddeltabel'!$A$4:$HZ$489,+Tælleark!M45,),CHAR(32)) ->  | N46: =IF(VLOOKUP($K$7,'10_VSP_Fodermiddeltabel'!$A$4:$HZ$489,+Tælleark!N45,)>0,VLOOKUP($K$7,'10_VSP_Fodermiddeltabel'!$A$4:$HZ$489,+Tælleark!N45,),CHAR(32)) ->  | O46: =IF(VLOOKUP($K$7,'10_VSP_Fodermiddeltabel'!$A$4:$HZ$489,+Tælleark!O45,)>0,VLOOKUP($K$7,'10_VSP_Fodermiddeltabel'!$A$4:$HZ$489,+Tælleark!O45,),CHAR(32)) ->  | Q46: Håndtering og transport | BM46: =IF(+'10_VSP_Fodermiddeltabel'!D39>0,+'10_VSP_Fodermiddeltabel'!D39,"") -> CALCIUMJODAT 1%-opløsning | BN46: =IF(+'10_VSP_Fodermiddeltabel'!A39>0,+'10_VSP_Fodermiddeltabel'!A39,"") -> 48400
J47: Jod, mg | K47: =IF($K$7>0,VLOOKUP($K$7,'10_VSP_Fodermiddeltabel'!$A$4:$CP$489,93,),CHAR(32)) -> 0 | L47: =IF($K$7>0,VLOOKUP($K$7,'10_VSP_Fodermiddeltabel'!$A$4:$CP$489,36,),CHAR(32)) -> 0 | M47: =IF(VLOOKUP($K$7,'10_VSP_Fodermiddeltabel'!$A$4:$HZ$489,+Tælleark!M46,)>0,VLOOKUP($K$7,'10_VSP_Fodermiddeltabel'!$A$4:$HZ$489,+Tælleark!M46,),CHAR(32)) ->  | N47: =IF(VLOOKUP($K$7,'10_VSP_Fodermiddeltabel'!$A$4:$HZ$489,+Tælleark!N46,)>0,VLOOKUP($K$7,'10_VSP_Fodermiddeltabel'!$A$4:$HZ$489,+Tælleark!N46,),CHAR(32)) ->  | O47: =IF(VLOOKUP($K$7,'10_VSP_Fodermiddeltabel'!$A$4:$HZ$489,+Tælleark!O46,)>0,VLOOKUP($K$7,'10_VSP_Fodermiddeltabel'!$A$4:$HZ$489,+Tælleark!O46,),CHAR(32)) ->  | Q47: =IF(VLOOKUP($K$7,'10_VSP_Fodermiddeltabel'!$A$4:$HZ$489,233,)>0,VLOOKUP($K$7,'10_VSP_Fodermiddeltabel'!$A$4:$HZ$489,233,),CHAR(32)) -> Hvede opbevares tørt og er lagerfast ved 86 pct. tørstof. Ellers ingen specielle forhold. Ved transport af fugtige partier med et vandindhold på 20 pct. eller derover, bør transport fra korngrav foretages med kæderedler frem for med sidesnegl eller sneglerende. | BM47: =IF(+'10_VSP_Fodermiddeltabel'!D40>0,+'10_VSP_Fodermiddeltabel'!D40,"") -> CIKORIE: PULVER AF CIKORIERØDDER | BN47: =IF(+'10_VSP_Fodermiddeltabel'!A40>0,+'10_VSP_Fodermiddeltabel'!A40,"") -> 67900
J48: Selen, mg | K48: =IF($K$7>0,VLOOKUP($K$7,'10_VSP_Fodermiddeltabel'!$A$4:$CP$489,94,),CHAR(32)) -> 0.051 | L48: =IF($K$7>0,VLOOKUP($K$7,'10_VSP_Fodermiddeltabel'!$A$4:$CP$489,37,),CHAR(32)) -> 0.06 | M48: =IF(VLOOKUP($K$7,'10_VSP_Fodermiddeltabel'!$A$4:$HZ$489,+Tælleark!M47,)>0,VLOOKUP($K$7,'10_VSP_Fodermiddeltabel'!$A$4:$HZ$489,+Tælleark!M47,),CHAR(32)) ->  | N48: =IF(VLOOKUP($K$7,'10_VSP_Fodermiddeltabel'!$A$4:$HZ$489,+Tælleark!N47,)>0,VLOOKUP($K$7,'10_VSP_Fodermiddeltabel'!$A$4:$HZ$489,+Tælleark!N47,),CHAR(32)) ->  | O48: =IF(VLOOKUP($K$7,'10_VSP_Fodermiddeltabel'!$A$4:$HZ$489,+Tælleark!O47,)>0,VLOOKUP($K$7,'10_VSP_Fodermiddeltabel'!$A$4:$HZ$489,+Tælleark!O47,),CHAR(32)) ->  | BM48: =IF(+'10_VSP_Fodermiddeltabel'!D41>0,+'10_VSP_Fodermiddeltabel'!D41,"") -> CITRONSYRE (1% vand) | BN48: =IF(+'10_VSP_Fodermiddeltabel'!A41>0,+'10_VSP_Fodermiddeltabel'!A41,"") -> 94700
A49: DLBR SvineIT, kode-parti: | D49: =IF($K$7>0,VLOOKUP($K$7,'10_VSP_Fodermiddeltabel'!$A$4:$CP$489,2,),CHAR(32))&" - "&IF($K$7>0,VLOOKUP($K$7,'10_VSP_Fodermiddeltabel'!$A$4:$CP$489,3,),CHAR(32)) -> 510 - 0 | BM49: =IF(+'10_VSP_Fodermiddeltabel'!D42>0,+'10_VSP_Fodermiddeltabel'!D42,"") -> CITRUSKVAS TØR (Obs.: Gamle data) | BN49: =IF(+'10_VSP_Fodermiddeltabel'!A42>0,+'10_VSP_Fodermiddeltabel'!A42,"") -> 71000
BM50: =IF(+'10_VSP_Fodermiddeltabel'!D43>0,+'10_VSP_Fodermiddeltabel'!D43,"") -> CYSTIN,L98,5 | BN50: =IF(+'10_VSP_Fodermiddeltabel'!A43>0,+'10_VSP_Fodermiddeltabel'!A43,"") -> 99940
A51: *: | B51: Aminosyrefordøjelighed i forhold til proteinfordøjelighed | BM51: =IF(+'10_VSP_Fodermiddeltabel'!D44>0,+'10_VSP_Fodermiddeltabel'!D44,"") -> Ca-Na-FOSFAT | BN51: =IF(+'10_VSP_Fodermiddeltabel'!A44>0,+'10_VSP_Fodermiddeltabel'!A44,"") -> 47100
A52: **: | B52: Standarddosis fytase kan være en af flg. fytaser: | BM52: =IF(+'10_VSP_Fodermiddeltabel'!D45>0,+'10_VSP_Fodermiddeltabel'!D45,"") -> Ca-Na-FOSFAT Nagel | BN52: =IF(+'10_VSP_Fodermiddeltabel'!A45>0,+'10_VSP_Fodermiddeltabel'!A45,"") -> 47101
C53: Ronozyme HiPhos: | F53: 500 (men laveste godkendte dosis til søer er 1000) FYT tilsat pr. kg foder | BM53: =IF(+'10_VSP_Fodermiddeltabel'!D46>0,+'10_VSP_Fodermiddeltabel'!D46,"") -> Ca-Na-FOSFAT+ P-syre | BN53: =IF(+'10_VSP_Fodermiddeltabel'!A46>0,+'10_VSP_Fodermiddeltabel'!A46,"") -> 47300
C54: Ronozyme NP: | F54: 1250 (men laveste godkendte dosis er 1500) FYT tilsat pr. kg foder | BM54: =IF(+'10_VSP_Fodermiddeltabel'!D47>0,+'10_VSP_Fodermiddeltabel'!D47,"") -> Ca-Na-FOSFAT+ P-syre, Nagel | BN54: =IF(+'10_VSP_Fodermiddeltabel'!A47>0,+'10_VSP_Fodermiddeltabel'!A47,"") -> 47301
C55: Natuphos: | F55: 500 FTU tilsat pr. kg foder | BM55: =IF(+'10_VSP_Fodermiddeltabel'!D48>0,+'10_VSP_Fodermiddeltabel'!D48,"") -> DCP dihydrat | BN55: =IF(+'10_VSP_Fodermiddeltabel'!A48>0,+'10_VSP_Fodermiddeltabel'!A48,"") -> 46102
C56: Phyzyme XP: | F56: 500 PPU tilsat pr. kg foder | BM56: =IF(+'10_VSP_Fodermiddeltabel'!D49>0,+'10_VSP_Fodermiddeltabel'!D49,"") -> DICALCIUMFOSFAT | BN56: =IF(+'10_VSP_Fodermiddeltabel'!A49>0,+'10_VSP_Fodermiddeltabel'!A49,"") -> 46100
A57: 1) | B57: Vær opmærksom på at 60 procent standarddosis ikke er godkendt for alle kombinationer af dyregrupper og fytasetyper - jf. beskrivelse i Notat nr. 0511, Videncenter for Svineproduktion | BM57: =IF(+'10_VSP_Fodermiddeltabel'!D50>0,+'10_VSP_Fodermiddeltabel'!D50,"") -> E-10 VIT TILSKUD (kun E-vit ) | BN57: =IF(+'10_VSP_Fodermiddeltabel'!A50>0,+'10_VSP_Fodermiddeltabel'!A50,"") -> 39012
A58: 2) | B58: I-faktor beregnes på fodermidler som EFOSi * 100 / EFOS: | I58: Link | BM58: =IF(+'10_VSP_Fodermiddeltabel'!D51>0,+'10_VSP_Fodermiddeltabel'!D51,"") -> E-25 VIT TILSKUD (kun E-vit ) | BN58: =IF(+'10_VSP_Fodermiddeltabel'!A51>0,+'10_VSP_Fodermiddeltabel'!A51,"") -> 39013
A59: 3) | B59: Læs evt. vedr. FE-korrektionsfaktor i rapport nr. 30, side 12: | I59: http://vsp.lf.dk/Publikationer/Kilder/lu_rapp/30.aspx | BM59: =IF(+'10_VSP_Fodermiddeltabel'!D52>0,+'10_VSP_Fodermiddeltabel'!D52,"") -> EP 100 fermenteret tilskudsfoder | BN59: =IF(+'10_VSP_Fodermiddeltabel'!A52>0,+'10_VSP_Fodermiddeltabel'!A52,"") -> 58600
A60: Link til: EU-KOMMISSIONENS FORORDNING Nr. 68/2013 (fortegnelsen over fodermidler) | BM60: =IF(+'10_VSP_Fodermiddeltabel'!D53>0,+'10_VSP_Fodermiddeltabel'!D53,"") -> FENYLALANIN,L98,5 | BN60: =IF(+'10_VSP_Fodermiddeltabel'!A53>0,+'10_VSP_Fodermiddeltabel'!A53,"") -> 99920
BM61: =IF(+'10_VSP_Fodermiddeltabel'!D54>0,+'10_VSP_Fodermiddeltabel'!D54,"") -> FISKEMEL | BN61: =IF(+'10_VSP_Fodermiddeltabel'!A54>0,+'10_VSP_Fodermiddeltabel'!A54,"") -> 83000
BM62: =IF(+'10_VSP_Fodermiddeltabel'!D55>0,+'10_VSP_Fodermiddeltabel'!D55,"") -> FISKEMEL, LT | BN62: =IF(+'10_VSP_Fodermiddeltabel'!A55>0,+'10_VSP_Fodermiddeltabel'!A55,"") -> 83300
J63: (link: Retur til Indholdfortegnelse) | BM63: =IF(+'10_VSP_Fodermiddeltabel'!D56>0,+'10_VSP_Fodermiddeltabel'!D56,"") -> FISKEMEL, ISLAND (Obs.: Gamle data) | BN63: =IF(+'10_VSP_Fodermiddeltabel'!A56>0,+'10_VSP_Fodermiddeltabel'!A56,"") -> 83500
A64: Fodermidlet skal angives med 2 decimaler på FK-råprotein: | J64: =IF(K7<50000,0,IF(K7>53999,0,IF(K7>52500,1,IF(K7<52000,1,0)))) -> 1 | BM64: =IF(+'10_VSP_Fodermiddeltabel'!D57>0,+'10_VSP_Fodermiddeltabel'!D57,"") -> FISKEPROTEIN, hydrolyseret, H-35 Lakseproteinkoncentrat | BN64: =IF(+'10_VSP_Fodermiddeltabel'!A57>0,+'10_VSP_Fodermiddeltabel'!A57,"") -> 83600
A65: eller hvis der er tale om triticale | J65: =IF(K7>55900,IF(K7<56600,1,0)) -> FALSE | BM65: =IF(+'10_VSP_Fodermiddeltabel'!D58>0,+'10_VSP_Fodermiddeltabel'!D58,"") -> FISKEPROTEIN, hydrolyseret, H-PRO Lakseproteinkoncentrat | BN65: =IF(+'10_VSP_Fodermiddeltabel'!A58>0,+'10_VSP_Fodermiddeltabel'!A58,"") -> 83900
BM66: =IF(+'10_VSP_Fodermiddeltabel'!D59>0,+'10_VSP_Fodermiddeltabel'!D59,"") -> FODERKRIDT, 36 % calcium | BN66: =IF(+'10_VSP_Fodermiddeltabel'!A59>0,+'10_VSP_Fodermiddeltabel'!A59,"") -> 46000
BM67: =IF(+'10_VSP_Fodermiddeltabel'!D60>0,+'10_VSP_Fodermiddeltabel'!D60,"") -> FODERRIS (formalet) | BN67: =IF(+'10_VSP_Fodermiddeltabel'!A60>0,+'10_VSP_Fodermiddeltabel'!A60,"") -> 55900
BM68: =IF(+'10_VSP_Fodermiddeltabel'!D61>0,+'10_VSP_Fodermiddeltabel'!D61,"") -> FODERSUKKER (Obs.: Gamle data) | BN68: =IF(+'10_VSP_Fodermiddeltabel'!A61>0,+'10_VSP_Fodermiddeltabel'!A61,"") -> 67600
BM69: =IF(+'10_VSP_Fodermiddeltabel'!D62>0,+'10_VSP_Fodermiddeltabel'!D62,"") -> FORBL 300 E-10 (kun E-vit ) | BN69: =IF(+'10_VSP_Fodermiddeltabel'!A62>0,+'10_VSP_Fodermiddeltabel'!A62,"") -> 39004
BM70: =IF(+'10_VSP_Fodermiddeltabel'!D63>0,+'10_VSP_Fodermiddeltabel'!D63,"") -> FORBL 301 E-25 (kun E-vit ) | BN70: =IF(+'10_VSP_Fodermiddeltabel'!A63>0,+'10_VSP_Fodermiddeltabel'!A63,"") -> 39005
BM71: =IF(+'10_VSP_Fodermiddeltabel'!D64>0,+'10_VSP_Fodermiddeltabel'!D64,"") -> FOSFORSYRE 75% | BN71: =IF(+'10_VSP_Fodermiddeltabel'!A64>0,+'10_VSP_Fodermiddeltabel'!A64,"") -> 47400
BM72: =IF(+'10_VSP_Fodermiddeltabel'!D65>0,+'10_VSP_Fodermiddeltabel'!D65,"") -> Fedtsyredestillater fra fysisk raffinering, palme (PFAD) | BN72: =IF(+'10_VSP_Fodermiddeltabel'!A65>0,+'10_VSP_Fodermiddeltabel'!A65,"") -> 88900
BM73: =IF(+'10_VSP_Fodermiddeltabel'!D66>0,+'10_VSP_Fodermiddeltabel'!D66,"") -> Foderblanding af olie og fedtstoffer (Blandingsfedt) (Obs.: Gl. data) | BN73: =IF(+'10_VSP_Fodermiddeltabel'!A66>0,+'10_VSP_Fodermiddeltabel'!A66,"") -> 88400
BM74: =IF(+'10_VSP_Fodermiddeltabel'!D67>0,+'10_VSP_Fodermiddeltabel'!D67,"") -> GLYCEROL, CONCERINE CD80 FEED | BN74: =IF(+'10_VSP_Fodermiddeltabel'!A67>0,+'10_VSP_Fodermiddeltabel'!A67,"") -> 72600
BM75: =IF(+'10_VSP_Fodermiddeltabel'!D68>0,+'10_VSP_Fodermiddeltabel'!D68,"") -> GRÆSENSILAGE 1. SLÆT | BN75: =IF(+'10_VSP_Fodermiddeltabel'!A68>0,+'10_VSP_Fodermiddeltabel'!A68,"") -> 74000
BM76: =IF(+'10_VSP_Fodermiddeltabel'!D69>0,+'10_VSP_Fodermiddeltabel'!D69,"") -> GRÆSENSILAGE 2. SLÆT | BN76: =IF(+'10_VSP_Fodermiddeltabel'!A69>0,+'10_VSP_Fodermiddeltabel'!A69,"") -> 74100
BM77: =IF(+'10_VSP_Fodermiddeltabel'!D70>0,+'10_VSP_Fodermiddeltabel'!D70,"") -> GRÆSGRØNMEL (grønpiller) | BN77: =IF(+'10_VSP_Fodermiddeltabel'!A70>0,+'10_VSP_Fodermiddeltabel'!A70,"") -> 71600
BM78: =IF(+'10_VSP_Fodermiddeltabel'!D71>0,+'10_VSP_Fodermiddeltabel'!D71,"") -> GÆRFLØDE, SPRIT | BN78: =IF(+'10_VSP_Fodermiddeltabel'!A71>0,+'10_VSP_Fodermiddeltabel'!A71,"") -> 93600
BM79: =IF(+'10_VSP_Fodermiddeltabel'!D72>0,+'10_VSP_Fodermiddeltabel'!D72,"") -> GÆRFLØDE, ØL | BN79: =IF(+'10_VSP_Fodermiddeltabel'!A72>0,+'10_VSP_Fodermiddeltabel'!A72,"") -> 93100
BM80: =IF(+'10_VSP_Fodermiddeltabel'!D73>0,+'10_VSP_Fodermiddeltabel'!D73,"") -> HAVRE, flerårigt gns, varmebehandlet | BN80: =IF(+'10_VSP_Fodermiddeltabel'!A73>0,+'10_VSP_Fodermiddeltabel'!A73,"") -> 53010
BM81: =IF(+'10_VSP_Fodermiddeltabel'!D74>0,+'10_VSP_Fodermiddeltabel'!D74,"") -> HAVRE, flerårigt gns. | BN81: =IF(+'10_VSP_Fodermiddeltabel'!A74>0,+'10_VSP_Fodermiddeltabel'!A74,"") -> 53000
BM82: =IF(+'10_VSP_Fodermiddeltabel'!D75>0,+'10_VSP_Fodermiddeltabel'!D75,"") -> HAVRE, 2015 | BN82: =IF(+'10_VSP_Fodermiddeltabel'!A75>0,+'10_VSP_Fodermiddeltabel'!A75,"") -> 53100
BM83: =IF(+'10_VSP_Fodermiddeltabel'!D76>0,+'10_VSP_Fodermiddeltabel'!D76,"") -> HAVRE, 2015, varmebehandlet | BN83: =IF(+'10_VSP_Fodermiddeltabel'!A76>0,+'10_VSP_Fodermiddeltabel'!A76,"") -> 53110
BM84: =IF(+'10_VSP_Fodermiddeltabel'!D77>0,+'10_VSP_Fodermiddeltabel'!D77,"") -> HAVRE, 10,0 % råprotein, varmebehandlet | BN84: =IF(+'10_VSP_Fodermiddeltabel'!A77>0,+'10_VSP_Fodermiddeltabel'!A77,"") -> 53310
BM85: =IF(+'10_VSP_Fodermiddeltabel'!D78>0,+'10_VSP_Fodermiddeltabel'!D78,"") -> HAVRE, 11,5 % råprotein, varmebehandlet | BN85: =IF(+'10_VSP_Fodermiddeltabel'!A78>0,+'10_VSP_Fodermiddeltabel'!A78,"") -> 53360
BM86: =IF(+'10_VSP_Fodermiddeltabel'!D79>0,+'10_VSP_Fodermiddeltabel'!D79,"") -> HAVRE, Nøgen | BN86: =IF(+'10_VSP_Fodermiddeltabel'!A79>0,+'10_VSP_Fodermiddeltabel'!A79,"") -> 53500
BM87: =IF(+'10_VSP_Fodermiddeltabel'!D80>0,+'10_VSP_Fodermiddeltabel'!D80,"") -> HAVRESKALMEL | BN87: =IF(+'10_VSP_Fodermiddeltabel'!A80>0,+'10_VSP_Fodermiddeltabel'!A80,"") -> 53700
BM88: =IF(+'10_VSP_Fodermiddeltabel'!D81>0,+'10_VSP_Fodermiddeltabel'!D81,"") -> HESTEBØNNER, gennemsnit af høst 2012 og høst 2014 | BN88: =IF(+'10_VSP_Fodermiddeltabel'!A81>0,+'10_VSP_Fodermiddeltabel'!A81,"") -> 65200
BM89: =IF(+'10_VSP_Fodermiddeltabel'!D82>0,+'10_VSP_Fodermiddeltabel'!D82,"") -> HESTEBØNNER, gennemsnit af høst 2012 | BN89: =IF(+'10_VSP_Fodermiddeltabel'!A82>0,+'10_VSP_Fodermiddeltabel'!A82,"") -> 65201
BM90: =IF(+'10_VSP_Fodermiddeltabel'!D83>0,+'10_VSP_Fodermiddeltabel'!D83,"") -> HESTEBØNNER, gennemsnit af høst 2014 | BN90: =IF(+'10_VSP_Fodermiddeltabel'!A83>0,+'10_VSP_Fodermiddeltabel'!A83,"") -> 65202
BM91: =IF(+'10_VSP_Fodermiddeltabel'!D84>0,+'10_VSP_Fodermiddeltabel'!D84,"") -> HESTEBØNNER, høst 2012, Columbo | BN91: =IF(+'10_VSP_Fodermiddeltabel'!A84>0,+'10_VSP_Fodermiddeltabel'!A84,"") -> 65210
BM92: =IF(+'10_VSP_Fodermiddeltabel'!D85>0,+'10_VSP_Fodermiddeltabel'!D85,"") -> HESTEBØNNER, høst 2012, Espresso | BN92: =IF(+'10_VSP_Fodermiddeltabel'!A85>0,+'10_VSP_Fodermiddeltabel'!A85,"") -> 65230
BM93: =IF(+'10_VSP_Fodermiddeltabel'!D86>0,+'10_VSP_Fodermiddeltabel'!D86,"") -> HESTEBØNNER, høst 2012, Fuego | BN93: =IF(+'10_VSP_Fodermiddeltabel'!A86>0,+'10_VSP_Fodermiddeltabel'!A86,"") -> 65220
BM94: =IF(+'10_VSP_Fodermiddeltabel'!D87>0,+'10_VSP_Fodermiddeltabel'!D87,"") -> HISTIDIN,L98,5 | BN94: =IF(+'10_VSP_Fodermiddeltabel'!A87>0,+'10_VSP_Fodermiddeltabel'!A87,"") -> 99910
BM95: =IF(+'10_VSP_Fodermiddeltabel'!D88>0,+'10_VSP_Fodermiddeltabel'!D88,"") -> HVEDE, 2015 | BN95: =IF(+'10_VSP_Fodermiddeltabel'!A88>0,+'10_VSP_Fodermiddeltabel'!A88,"") -> 51000
BM96: =IF(+'10_VSP_Fodermiddeltabel'!D89>0,+'10_VSP_Fodermiddeltabel'!D89,"") -> HVEDE, 2015 + xylanase | BN96: =IF(+'10_VSP_Fodermiddeltabel'!A89>0,+'10_VSP_Fodermiddeltabel'!A89,"") -> 51001
BM97: =IF(+'10_VSP_Fodermiddeltabel'!D90>0,+'10_VSP_Fodermiddeltabel'!D90,"") -> HVEDE, 2015, varmebehandlet | BN97: =IF(+'10_VSP_Fodermiddeltabel'!A90>0,+'10_VSP_Fodermiddeltabel'!A90,"") -> 51010
BM98: =IF(+'10_VSP_Fodermiddeltabel'!D91>0,+'10_VSP_Fodermiddeltabel'!D91,"") -> HVEDE, 2015, varmebehandlet + xylanase | BN98: =IF(+'10_VSP_Fodermiddeltabel'!A91>0,+'10_VSP_Fodermiddeltabel'!A91,"") -> 51011
BM99: =IF(+'10_VSP_Fodermiddeltabel'!D92>0,+'10_VSP_Fodermiddeltabel'!D92,"") -> HVEDE, gns. 2013-2015 | BN99: =IF(+'10_VSP_Fodermiddeltabel'!A92>0,+'10_VSP_Fodermiddeltabel'!A92,"") -> 51200
BM100: =IF(+'10_VSP_Fodermiddeltabel'!D93>0,+'10_VSP_Fodermiddeltabel'!D93,"") -> HVEDE, gns. 2013-2015 + xylanase | BN100: =IF(+'10_VSP_Fodermiddeltabel'!A93>0,+'10_VSP_Fodermiddeltabel'!A93,"") -> 51201
BM101: =IF(+'10_VSP_Fodermiddeltabel'!D94>0,+'10_VSP_Fodermiddeltabel'!D94,"") -> HVEDE, gns. 2013-2015, varmebehandlet | BN101: =IF(+'10_VSP_Fodermiddeltabel'!A94>0,+'10_VSP_Fodermiddeltabel'!A94,"") -> 51210
BM102: =IF(+'10_VSP_Fodermiddeltabel'!D95>0,+'10_VSP_Fodermiddeltabel'!D95,"") -> HVEDE, gns. 2013-2015, varmebehandlet + xylanase | BN102: =IF(+'10_VSP_Fodermiddeltabel'!A95>0,+'10_VSP_Fodermiddeltabel'!A95,"") -> 51211
BM103: =IF(+'10_VSP_Fodermiddeltabel'!D96>0,+'10_VSP_Fodermiddeltabel'!D96,"") -> HVEDE, 10% råprotein | BN103: =IF(+'10_VSP_Fodermiddeltabel'!A96>0,+'10_VSP_Fodermiddeltabel'!A96,"") -> 51300
BM104: =IF(+'10_VSP_Fodermiddeltabel'!D97>0,+'10_VSP_Fodermiddeltabel'!D97,"") -> HVEDE, 10,0 % råprotein, varmebehandlet + xylanase | BN104: =IF(+'10_VSP_Fodermiddeltabel'!A97>0,+'10_VSP_Fodermiddeltabel'!A97,"") -> 51311
BM105: =IF(+'10_VSP_Fodermiddeltabel'!D98>0,+'10_VSP_Fodermiddeltabel'!D98,"") -> HVEDE, 11,5 % råprotein, varmebehandlet + xylanase | BN105: =IF(+'10_VSP_Fodermiddeltabel'!A98>0,+'10_VSP_Fodermiddeltabel'!A98,"") -> 51361
BM106: =IF(+'10_VSP_Fodermiddeltabel'!D99>0,+'10_VSP_Fodermiddeltabel'!D99,"") -> HVEDE, 2014 | BN106: =IF(+'10_VSP_Fodermiddeltabel'!A99>0,+'10_VSP_Fodermiddeltabel'!A99,"") -> 51100
BM107: =IF(+'10_VSP_Fodermiddeltabel'!D100>0,+'10_VSP_Fodermiddeltabel'!D100,"") -> HVEDE, 2014 + xylanase | BN107: =IF(+'10_VSP_Fodermiddeltabel'!A100>0,+'10_VSP_Fodermiddeltabel'!A100,"") -> 51101
BM108: =IF(+'10_VSP_Fodermiddeltabel'!D101>0,+'10_VSP_Fodermiddeltabel'!D101,"") -> HVEDE, 2014, varmebehandlet | BN108: =IF(+'10_VSP_Fodermiddeltabel'!A101>0,+'10_VSP_Fodermiddeltabel'!A101,"") -> 51110
BM109: =IF(+'10_VSP_Fodermiddeltabel'!D102>0,+'10_VSP_Fodermiddeltabel'!D102,"") -> HVEDE, 2014, varmebehandlet + xylanase | BN109: =IF(+'10_VSP_Fodermiddeltabel'!A102>0,+'10_VSP_Fodermiddeltabel'!A102,"") -> 51111
BM110: =IF(+'10_VSP_Fodermiddeltabel'!D103>0,+'10_VSP_Fodermiddeltabel'!D103,"") -> HVEDEGLUTEN 80% protein (Obs.: Gamle data) | BN110: =IF(+'10_VSP_Fodermiddeltabel'!A103>0,+'10_VSP_Fodermiddeltabel'!A103,"") -> 51400
BM111: =IF(+'10_VSP_Fodermiddeltabel'!D104>0,+'10_VSP_Fodermiddeltabel'!D104,"") -> HVEDEGLUTENFODER | BN111: =IF(+'10_VSP_Fodermiddeltabel'!A104>0,+'10_VSP_Fodermiddeltabel'!A104,"") -> 51500
BM112: =IF(+'10_VSP_Fodermiddeltabel'!D105>0,+'10_VSP_Fodermiddeltabel'!D105,"") -> HVEDEKLID | BN112: =IF(+'10_VSP_Fodermiddeltabel'!A105>0,+'10_VSP_Fodermiddeltabel'!A105,"") -> 51800
BM113: =IF(+'10_VSP_Fodermiddeltabel'!D106>0,+'10_VSP_Fodermiddeltabel'!D106,"") -> HVEDEKLID +xylanase | BN113: =IF(+'10_VSP_Fodermiddeltabel'!A106>0,+'10_VSP_Fodermiddeltabel'!A106,"") -> 51801
BM114: =IF(+'10_VSP_Fodermiddeltabel'!D107>0,+'10_VSP_Fodermiddeltabel'!D107,"") -> HVEDESTRØMEL | BN114: =IF(+'10_VSP_Fodermiddeltabel'!A107>0,+'10_VSP_Fodermiddeltabel'!A107,"") -> 51700
BM115: =IF(+'10_VSP_Fodermiddeltabel'!D108>0,+'10_VSP_Fodermiddeltabel'!D108,"") -> HØRFRØ (Obs.: Gamle data) | BN115: =IF(+'10_VSP_Fodermiddeltabel'!A108>0,+'10_VSP_Fodermiddeltabel'!A108,"") -> 62500
BM116: =IF(+'10_VSP_Fodermiddeltabel'!D109>0,+'10_VSP_Fodermiddeltabel'!D109,"") -> ISOLEUCIN,L98,5 | BN116: =IF(+'10_VSP_Fodermiddeltabel'!A109>0,+'10_VSP_Fodermiddeltabel'!A109,"") -> 99800
BM117: =IF(+'10_VSP_Fodermiddeltabel'!D110>0,+'10_VSP_Fodermiddeltabel'!D110,"") -> JERNSULFAT,HEPT 1%-opløsning | BN117: =IF(+'10_VSP_Fodermiddeltabel'!A110>0,+'10_VSP_Fodermiddeltabel'!A110,"") -> 46900
BM118: =IF(+'10_VSP_Fodermiddeltabel'!D111>0,+'10_VSP_Fodermiddeltabel'!D111,"") -> KALIUMJODID 1%-opløsning | BN118: =IF(+'10_VSP_Fodermiddeltabel'!A111>0,+'10_VSP_Fodermiddeltabel'!A111,"") -> 48500
BM119: =IF(+'10_VSP_Fodermiddeltabel'!D112>0,+'10_VSP_Fodermiddeltabel'!D112,"") -> KALIUMKLORID | BN119: =IF(+'10_VSP_Fodermiddeltabel'!A112>0,+'10_VSP_Fodermiddeltabel'!A112,"") -> 48600
BM120: =IF(+'10_VSP_Fodermiddeltabel'!D113>0,+'10_VSP_Fodermiddeltabel'!D113,"") -> KARTOFFELPROTEIN | BN120: =IF(+'10_VSP_Fodermiddeltabel'!A113>0,+'10_VSP_Fodermiddeltabel'!A113,"") -> 69100
BM121: =IF(+'10_VSP_Fodermiddeltabel'!D114>0,+'10_VSP_Fodermiddeltabel'!D114,"") -> KARTOFFELPROTEIN, PROTASTAR | BN121: =IF(+'10_VSP_Fodermiddeltabel'!A114>0,+'10_VSP_Fodermiddeltabel'!A114,"") -> 69200
BM122: =IF(+'10_VSP_Fodermiddeltabel'!D115>0,+'10_VSP_Fodermiddeltabel'!D115,"") -> KOBBEROXID 100%-opløsning | BN122: =IF(+'10_VSP_Fodermiddeltabel'!A115>0,+'10_VSP_Fodermiddeltabel'!A115,"") -> 46700
BM123: =IF(+'10_VSP_Fodermiddeltabel'!D116>0,+'10_VSP_Fodermiddeltabel'!D116,"") -> KOBBERSULFAT 100%-opløsning | BN123: =IF(+'10_VSP_Fodermiddeltabel'!A116>0,+'10_VSP_Fodermiddeltabel'!A116,"") -> 46800
BM124: =IF(+'10_VSP_Fodermiddeltabel'!D117>0,+'10_VSP_Fodermiddeltabel'!D117,"") -> KOKOSKAGE, FEDTRIG | BN124: =IF(+'10_VSP_Fodermiddeltabel'!A117>0,+'10_VSP_Fodermiddeltabel'!A117,"") -> 59000
BM125: =IF(+'10_VSP_Fodermiddeltabel'!D118>0,+'10_VSP_Fodermiddeltabel'!D118,"") -> KOLBEMAJS | BN125: =IF(+'10_VSP_Fodermiddeltabel'!A118>0,+'10_VSP_Fodermiddeltabel'!A118,"") -> 72000
BM126: =IF(+'10_VSP_Fodermiddeltabel'!D119>0,+'10_VSP_Fodermiddeltabel'!D119,"") -> KORNBÆRME, tørret (DDGS) | BN126: =IF(+'10_VSP_Fodermiddeltabel'!A119>0,+'10_VSP_Fodermiddeltabel'!A119,"") -> 57000
BM127: =IF(+'10_VSP_Fodermiddeltabel'!D120>0,+'10_VSP_Fodermiddeltabel'!D120,"") -> KORNHALM, Byg | BN127: =IF(+'10_VSP_Fodermiddeltabel'!A120>0,+'10_VSP_Fodermiddeltabel'!A120,"") -> 74500
BM128: =IF(+'10_VSP_Fodermiddeltabel'!D121>0,+'10_VSP_Fodermiddeltabel'!D121,"") -> KORNHALM, Hvede | BN128: =IF(+'10_VSP_Fodermiddeltabel'!A121>0,+'10_VSP_Fodermiddeltabel'!A121,"") -> 74600
BM129: =IF(+'10_VSP_Fodermiddeltabel'!D122>0,+'10_VSP_Fodermiddeltabel'!D122,"") -> KORNPLANTER, Helsæd af Byg, gns. | BN129: =IF(+'10_VSP_Fodermiddeltabel'!A122>0,+'10_VSP_Fodermiddeltabel'!A122,"") -> 73200
BM130: =IF(+'10_VSP_Fodermiddeltabel'!D123>0,+'10_VSP_Fodermiddeltabel'!D123,"") -> KORNPLANTER, Helsæd af Byg-Ært, gns. | BN130: =IF(+'10_VSP_Fodermiddeltabel'!A123>0,+'10_VSP_Fodermiddeltabel'!A123,"") -> 73000
BM131: =IF(+'10_VSP_Fodermiddeltabel'!D124>0,+'10_VSP_Fodermiddeltabel'!D124,"") -> KORNPLANTER, Helsæd af Hvede, gns. | BN131: =IF(+'10_VSP_Fodermiddeltabel'!A124>0,+'10_VSP_Fodermiddeltabel'!A124,"") -> 73300
BM132: =IF(+'10_VSP_Fodermiddeltabel'!D125>0,+'10_VSP_Fodermiddeltabel'!D125,"") -> KORNPLANTER, Helsæd af Hvede-Ært, gns. | BN132: =IF(+'10_VSP_Fodermiddeltabel'!A125>0,+'10_VSP_Fodermiddeltabel'!A125,"") -> 73100
BM133: =IF(+'10_VSP_Fodermiddeltabel'!D126>0,+'10_VSP_Fodermiddeltabel'!D126,"") -> KORNPLANTER, Helsæd af Ært, gns. | BN133: =IF(+'10_VSP_Fodermiddeltabel'!A126>0,+'10_VSP_Fodermiddeltabel'!A126,"") -> 73400
BM134: =IF(+'10_VSP_Fodermiddeltabel'!D127>0,+'10_VSP_Fodermiddeltabel'!D127,"") -> KÆRNEMÆLKSPULVER | BN134: =IF(+'10_VSP_Fodermiddeltabel'!A127>0,+'10_VSP_Fodermiddeltabel'!A127,"") -> 76500
BM135: =IF(+'10_VSP_Fodermiddeltabel'!D128>0,+'10_VSP_Fodermiddeltabel'!D128,"") -> KÆRNEMÆLKSPULVER, Type B | BN135: =IF(+'10_VSP_Fodermiddeltabel'!A128>0,+'10_VSP_Fodermiddeltabel'!A128,"") -> 76600
BM136: =IF(+'10_VSP_Fodermiddeltabel'!D129>0,+'10_VSP_Fodermiddeltabel'!D129,"") -> LEUCIN,L98,5 | BN136: =IF(+'10_VSP_Fodermiddeltabel'!A129>0,+'10_VSP_Fodermiddeltabel'!A129,"") -> 99900
BM137: =IF(+'10_VSP_Fodermiddeltabel'!D130>0,+'10_VSP_Fodermiddeltabel'!D130,"") -> LUCERNEGRØNMEL (lucernepiller) | BN137: =IF(+'10_VSP_Fodermiddeltabel'!A130>0,+'10_VSP_Fodermiddeltabel'!A130,"") -> 71300
BM138: =IF(+'10_VSP_Fodermiddeltabel'!D131>0,+'10_VSP_Fodermiddeltabel'!D131,"") -> LUPIN, blå, | BN138: =IF(+'10_VSP_Fodermiddeltabel'!A131>0,+'10_VSP_Fodermiddeltabel'!A131,"") -> 64900
BM139: =IF(+'10_VSP_Fodermiddeltabel'!D132>0,+'10_VSP_Fodermiddeltabel'!D132,"") -> LUPIN, gul (Obs.: Gamle data) | BN139: =IF(+'10_VSP_Fodermiddeltabel'!A132>0,+'10_VSP_Fodermiddeltabel'!A132,"") -> 65000
BM140: =IF(+'10_VSP_Fodermiddeltabel'!D133>0,+'10_VSP_Fodermiddeltabel'!D133,"") -> LYSIN 30% (70%hv strømel) | BN140: =IF(+'10_VSP_Fodermiddeltabel'!A133>0,+'10_VSP_Fodermiddeltabel'!A133,"") -> 39001
BM141: =IF(+'10_VSP_Fodermiddeltabel'!D134>0,+'10_VSP_Fodermiddeltabel'!D134,"") -> LYSIN 40% (60%hv klid) | BN141: =IF(+'10_VSP_Fodermiddeltabel'!A134>0,+'10_VSP_Fodermiddeltabel'!A134,"") -> 39102
BM142: =IF(+'10_VSP_Fodermiddeltabel'!D135>0,+'10_VSP_Fodermiddeltabel'!D135,"") -> LYSIN 40% (60%kridt) | BN142: =IF(+'10_VSP_Fodermiddeltabel'!A135>0,+'10_VSP_Fodermiddeltabel'!A135,"") -> 39103
BM143: =IF(+'10_VSP_Fodermiddeltabel'!D136>0,+'10_VSP_Fodermiddeltabel'!D136,"") -> LYSIN,L Vådfoder FK=75% | BN143: =IF(+'10_VSP_Fodermiddeltabel'!A136>0,+'10_VSP_Fodermiddeltabel'!A136,"") -> 99501
BM144: =IF(+'10_VSP_Fodermiddeltabel'!D137>0,+'10_VSP_Fodermiddeltabel'!D137,"") -> LYSIN,L(HCl)98,5% | BN144: =IF(+'10_VSP_Fodermiddeltabel'!A137>0,+'10_VSP_Fodermiddeltabel'!A137,"") -> 99500
BM145: =IF(+'10_VSP_Fodermiddeltabel'!D138>0,+'10_VSP_Fodermiddeltabel'!D138,"") -> LYSIN,L(sulfat) Vådfod FK=75% | BN145: =IF(+'10_VSP_Fodermiddeltabel'!A138>0,+'10_VSP_Fodermiddeltabel'!A138,"") -> 99511
BM146: =IF(+'10_VSP_Fodermiddeltabel'!D139>0,+'10_VSP_Fodermiddeltabel'!D139,"") -> LYSIN,L(sulfat)70% | BN146: =IF(+'10_VSP_Fodermiddeltabel'!A139>0,+'10_VSP_Fodermiddeltabel'!A139,"") -> 99510
BM147: =IF(+'10_VSP_Fodermiddeltabel'!D140>0,+'10_VSP_Fodermiddeltabel'!D140,"") -> LYSIN,LLB50 flydende | BN147: =IF(+'10_VSP_Fodermiddeltabel'!A140>0,+'10_VSP_Fodermiddeltabel'!A140,"") -> 99550
BM148: =IF(+'10_VSP_Fodermiddeltabel'!D141>0,+'10_VSP_Fodermiddeltabel'!D141,"") -> LYSIN,LLB50 i vådfoder FK=75% | BN148: =IF(+'10_VSP_Fodermiddeltabel'!A141>0,+'10_VSP_Fodermiddeltabel'!A141,"") -> 99551
BM149: =IF(+'10_VSP_Fodermiddeltabel'!D142>0,+'10_VSP_Fodermiddeltabel'!D142,"") -> Laktoseprodukt, VarioLac 960 | BN149: =IF(+'10_VSP_Fodermiddeltabel'!A142>0,+'10_VSP_Fodermiddeltabel'!A142,"") -> 78300
BM150: =IF(+'10_VSP_Fodermiddeltabel'!D143>0,+'10_VSP_Fodermiddeltabel'!D143,"") -> Leci E (Lecitin med E-vit ) | BN150: =IF(+'10_VSP_Fodermiddeltabel'!A143>0,+'10_VSP_Fodermiddeltabel'!A143,"") -> 89100
BM151: =IF(+'10_VSP_Fodermiddeltabel'!D144>0,+'10_VSP_Fodermiddeltabel'!D144,"") -> MAGNESIUMKARBON | BN151: =IF(+'10_VSP_Fodermiddeltabel'!A144>0,+'10_VSP_Fodermiddeltabel'!A144,"") -> 48000
BM152: =IF(+'10_VSP_Fodermiddeltabel'!D145>0,+'10_VSP_Fodermiddeltabel'!D145,"") -> MAGNESIUMOXID | BN152: =IF(+'10_VSP_Fodermiddeltabel'!A145>0,+'10_VSP_Fodermiddeltabel'!A145,"") -> 46400
BM153: =IF(+'10_VSP_Fodermiddeltabel'!D146>0,+'10_VSP_Fodermiddeltabel'!D146,"") -> MAJS (Obs.: Gamle data) | BN153: =IF(+'10_VSP_Fodermiddeltabel'!A146>0,+'10_VSP_Fodermiddeltabel'!A146,"") -> 54000
BM154: =IF(+'10_VSP_Fodermiddeltabel'!D147>0,+'10_VSP_Fodermiddeltabel'!D147,"") -> MAJS, Varmebehandlet | BN154: =IF(+'10_VSP_Fodermiddeltabel'!A147>0,+'10_VSP_Fodermiddeltabel'!A147,"") -> 54010
BM155: =IF(+'10_VSP_Fodermiddeltabel'!D148>0,+'10_VSP_Fodermiddeltabel'!D148,"") -> MAJS, Vådkonserveret | BN155: =IF(+'10_VSP_Fodermiddeltabel'!A148>0,+'10_VSP_Fodermiddeltabel'!A148,"") -> 54020
BM156: =IF(+'10_VSP_Fodermiddeltabel'!D149>0,+'10_VSP_Fodermiddeltabel'!D149,"") -> MAJSENSILAGE, Gns. 2003-2007 | BN156: =IF(+'10_VSP_Fodermiddeltabel'!A149>0,+'10_VSP_Fodermiddeltabel'!A149,"") -> 73500
BM157: =IF(+'10_VSP_Fodermiddeltabel'!D150>0,+'10_VSP_Fodermiddeltabel'!D150,"") -> MAJSENSILAGE, Let fordøjelig | BN157: =IF(+'10_VSP_Fodermiddeltabel'!A150>0,+'10_VSP_Fodermiddeltabel'!A150,"") -> 73510
BM158: =IF(+'10_VSP_Fodermiddeltabel'!D151>0,+'10_VSP_Fodermiddeltabel'!D151,"") -> MAJSENSILAGE, Tungt fordøjelig | BN158: =IF(+'10_VSP_Fodermiddeltabel'!A151>0,+'10_VSP_Fodermiddeltabel'!A151,"") -> 73520
BM159: =IF(+'10_VSP_Fodermiddeltabel'!D152>0,+'10_VSP_Fodermiddeltabel'!D152,"") -> MAJSFODERMEL | BN159: =IF(+'10_VSP_Fodermiddeltabel'!A152>0,+'10_VSP_Fodermiddeltabel'!A152,"") -> 54100
BM160: =IF(+'10_VSP_Fodermiddeltabel'!D153>0,+'10_VSP_Fodermiddeltabel'!D153,"") -> MAJSGLUTEN 60% råprotein | BN160: =IF(+'10_VSP_Fodermiddeltabel'!A153>0,+'10_VSP_Fodermiddeltabel'!A153,"") -> 54400
BM161: =IF(+'10_VSP_Fodermiddeltabel'!D154>0,+'10_VSP_Fodermiddeltabel'!D154,"") -> MAJSGLUTENFODER | BN161: =IF(+'10_VSP_Fodermiddeltabel'!A154>0,+'10_VSP_Fodermiddeltabel'!A154,"") -> 54300
BM162: =IF(+'10_VSP_Fodermiddeltabel'!D155>0,+'10_VSP_Fodermiddeltabel'!D155,"") -> MAJSKIM (Obs.: Gamle data) | BN162: =IF(+'10_VSP_Fodermiddeltabel'!A155>0,+'10_VSP_Fodermiddeltabel'!A155,"") -> 54200
BM163: =IF(+'10_VSP_Fodermiddeltabel'!D156>0,+'10_VSP_Fodermiddeltabel'!D156,"") -> MANGANDIOXID 1%-opløsning | BN163: =IF(+'10_VSP_Fodermiddeltabel'!A156>0,+'10_VSP_Fodermiddeltabel'!A156,"") -> 48100
BM164: =IF(+'10_VSP_Fodermiddeltabel'!D157>0,+'10_VSP_Fodermiddeltabel'!D157,"") -> MANGANOXID 1%-opløsning | BN164: =IF(+'10_VSP_Fodermiddeltabel'!A157>0,+'10_VSP_Fodermiddeltabel'!A157,"") -> 48200
BM165: =IF(+'10_VSP_Fodermiddeltabel'!D158>0,+'10_VSP_Fodermiddeltabel'!D158,"") -> MANGANSULF,MONO 1%-opløsning | BN165: =IF(+'10_VSP_Fodermiddeltabel'!A158>0,+'10_VSP_Fodermiddeltabel'!A158,"") -> 48800
BM166: =IF(+'10_VSP_Fodermiddeltabel'!D159>0,+'10_VSP_Fodermiddeltabel'!D159,"") -> MANGANSULF,TETR 1%-opløsning | BN166: =IF(+'10_VSP_Fodermiddeltabel'!A159>0,+'10_VSP_Fodermiddeltabel'!A159,"") -> 48300
BM167: =IF(+'10_VSP_Fodermiddeltabel'!D160>0,+'10_VSP_Fodermiddeltabel'!D160,"") -> MASK, frisk | BN167: =IF(+'10_VSP_Fodermiddeltabel'!A160>0,+'10_VSP_Fodermiddeltabel'!A160,"") -> 72900
BM168: =IF(+'10_VSP_Fodermiddeltabel'!D161>0,+'10_VSP_Fodermiddeltabel'!D161,"") -> MASK, tørret | BN168: =IF(+'10_VSP_Fodermiddeltabel'!A161>0,+'10_VSP_Fodermiddeltabel'!A161,"") -> 72800
BM169: =IF(+'10_VSP_Fodermiddeltabel'!D162>0,+'10_VSP_Fodermiddeltabel'!D162,"") -> METHIONIN 30% (70%hv strømel) | BN169: =IF(+'10_VSP_Fodermiddeltabel'!A162>0,+'10_VSP_Fodermiddeltabel'!A162,"") -> 39002
BM170: =IF(+'10_VSP_Fodermiddeltabel'!D163>0,+'10_VSP_Fodermiddeltabel'!D163,"") -> METHIONIN 40% (60%hv strømel) | BN170: =IF(+'10_VSP_Fodermiddeltabel'!A163>0,+'10_VSP_Fodermiddeltabel'!A163,"") -> 39101
BM171: =IF(+'10_VSP_Fodermiddeltabel'!D164>0,+'10_VSP_Fodermiddeltabel'!D164,"") -> METHIONIN,DL 99 | BN171: =IF(+'10_VSP_Fodermiddeltabel'!A164>0,+'10_VSP_Fodermiddeltabel'!A164,"") -> 99400
BM172: =IF(+'10_VSP_Fodermiddeltabel'!D165>0,+'10_VSP_Fodermiddeltabel'!D165,"") -> MILOKORN, lavt tanninindhold | BN172: =IF(+'10_VSP_Fodermiddeltabel'!A165>0,+'10_VSP_Fodermiddeltabel'!A165,"") -> 55000
BM173: =IF(+'10_VSP_Fodermiddeltabel'!D166>0,+'10_VSP_Fodermiddeltabel'!D166,"") -> MONOCALCIUMFOS (16/22,7) | BN173: =IF(+'10_VSP_Fodermiddeltabel'!A166>0,+'10_VSP_Fodermiddeltabel'!A166,"") -> 46200
BM174: =IF(+'10_VSP_Fodermiddeltabel'!D167>0,+'10_VSP_Fodermiddeltabel'!D167,"") -> MONODICALC FOSF | BN174: =IF(+'10_VSP_Fodermiddeltabel'!A167>0,+'10_VSP_Fodermiddeltabel'!A167,"") -> 47200
BM175: =IF(+'10_VSP_Fodermiddeltabel'!D168>0,+'10_VSP_Fodermiddeltabel'!D168,"") -> MONONATRIUMFOS | BN175: =IF(+'10_VSP_Fodermiddeltabel'!A168>0,+'10_VSP_Fodermiddeltabel'!A168,"") -> 46300
BM176: =IF(+'10_VSP_Fodermiddeltabel'!D169>0,+'10_VSP_Fodermiddeltabel'!D169,"") -> MYRESYRE (25% vand) | BN176: =IF(+'10_VSP_Fodermiddeltabel'!A169>0,+'10_VSP_Fodermiddeltabel'!A169,"") -> 94600
BM177: =IF(+'10_VSP_Fodermiddeltabel'!D170>0,+'10_VSP_Fodermiddeltabel'!D170,"") -> Meth analog Alimet 72% | BN177: =IF(+'10_VSP_Fodermiddeltabel'!A170>0,+'10_VSP_Fodermiddeltabel'!A170,"") -> 99472
BM178: =IF(+'10_VSP_Fodermiddeltabel'!D171>0,+'10_VSP_Fodermiddeltabel'!D171,"") -> MÆLKEPROTEINPULVER | BN178: =IF(+'10_VSP_Fodermiddeltabel'!A171>0,+'10_VSP_Fodermiddeltabel'!A171,"") -> 76000
BM179: =IF(+'10_VSP_Fodermiddeltabel'!D172>0,+'10_VSP_Fodermiddeltabel'!D172,"") -> MÆLKESYRE (20% vand) | BN179: =IF(+'10_VSP_Fodermiddeltabel'!A172>0,+'10_VSP_Fodermiddeltabel'!A172,"") -> 94500
BM180: =IF(+'10_VSP_Fodermiddeltabel'!D173>0,+'10_VSP_Fodermiddeltabel'!D173,"") -> NATRIUMBICARBON | BN180: =IF(+'10_VSP_Fodermiddeltabel'!A173>0,+'10_VSP_Fodermiddeltabel'!A173,"") -> 46600
BM181: =IF(+'10_VSP_Fodermiddeltabel'!D174>0,+'10_VSP_Fodermiddeltabel'!D174,"") -> NATRIUMCLORID | BN181: =IF(+'10_VSP_Fodermiddeltabel'!A174>0,+'10_VSP_Fodermiddeltabel'!A174,"") -> 46500
BM182: =IF(+'10_VSP_Fodermiddeltabel'!D175>0,+'10_VSP_Fodermiddeltabel'!D175,"") -> NATRIUMSELENIT 1%-opløsning | BN182: =IF(+'10_VSP_Fodermiddeltabel'!A175>0,+'10_VSP_Fodermiddeltabel'!A175,"") -> 48700
BM183: =IF(+'10_VSP_Fodermiddeltabel'!D176>0,+'10_VSP_Fodermiddeltabel'!D176,"") -> Natuphos flydende, Std. dosis: 500 FTU | BN183: =IF(+'10_VSP_Fodermiddeltabel'!A176>0,+'10_VSP_Fodermiddeltabel'!A176,"") -> 95010
BM184: =IF(+'10_VSP_Fodermiddeltabel'!D177>0,+'10_VSP_Fodermiddeltabel'!D177,"") -> Natuphos tør, Std. dosis: 500 FTU | BN184: =IF(+'10_VSP_Fodermiddeltabel'!A177>0,+'10_VSP_Fodermiddeltabel'!A177,"") -> 95000
BM185: =IF(+'10_VSP_Fodermiddeltabel'!D178>0,+'10_VSP_Fodermiddeltabel'!D178,"") -> PALMEKAGE | BN185: =IF(+'10_VSP_Fodermiddeltabel'!A178>0,+'10_VSP_Fodermiddeltabel'!A178,"") -> 60000
BM186: =IF(+'10_VSP_Fodermiddeltabel'!D179>0,+'10_VSP_Fodermiddeltabel'!D179,"") -> PEKTINFODER | BN186: =IF(+'10_VSP_Fodermiddeltabel'!A179>0,+'10_VSP_Fodermiddeltabel'!A179,"") -> 71100
BM187: =IF(+'10_VSP_Fodermiddeltabel'!D180>0,+'10_VSP_Fodermiddeltabel'!D180,"") -> Phyzyme XP flydende, Std. dosis: 500 FTU | BN187: =IF(+'10_VSP_Fodermiddeltabel'!A180>0,+'10_VSP_Fodermiddeltabel'!A180,"") -> 95210
BM188: =IF(+'10_VSP_Fodermiddeltabel'!D181>0,+'10_VSP_Fodermiddeltabel'!D181,"") -> Phyzyme XP tør, Std. dosis: 500 FTU | BN188: =IF(+'10_VSP_Fodermiddeltabel'!A181>0,+'10_VSP_Fodermiddeltabel'!A181,"") -> 95200
BM189: =IF(+'10_VSP_Fodermiddeltabel'!D182>0,+'10_VSP_Fodermiddeltabel'!D182,"") -> RAPSFRØ DL (=(Dobbelt) Lavt glukosinolatindhold) | BN189: =IF(+'10_VSP_Fodermiddeltabel'!A182>0,+'10_VSP_Fodermiddeltabel'!A182,"") -> 58000
BM190: =IF(+'10_VSP_Fodermiddeltabel'!D183>0,+'10_VSP_Fodermiddeltabel'!D183,"") -> RAPSKAGEFODER, lavt glukosinolatindhold | BN190: =IF(+'10_VSP_Fodermiddeltabel'!A183>0,+'10_VSP_Fodermiddeltabel'!A183,"") -> 58400
BM191: =IF(+'10_VSP_Fodermiddeltabel'!D184>0,+'10_VSP_Fodermiddeltabel'!D184,"") -> RAPSKAGEFODER, 5 % fedt, lavt glukosinolatindhold (Obs.: Gamle data) | BN191: =IF(+'10_VSP_Fodermiddeltabel'!A184>0,+'10_VSP_Fodermiddeltabel'!A184,"") -> 58200
BM192: =IF(+'10_VSP_Fodermiddeltabel'!D185>0,+'10_VSP_Fodermiddeltabel'!D185,"") -> RAPSKAGEFODER, 9 % fedt, lavt glukosinolatindhold (Obs.: Gamle data) | BN192: =IF(+'10_VSP_Fodermiddeltabel'!A185>0,+'10_VSP_Fodermiddeltabel'!A185,"") -> 58300
BM193: =IF(+'10_VSP_Fodermiddeltabel'!D186>0,+'10_VSP_Fodermiddeltabel'!D186,"") -> RAPSSKRÅFODER, lavt glukosinolatindhold | BN193: =IF(+'10_VSP_Fodermiddeltabel'!A186>0,+'10_VSP_Fodermiddeltabel'!A186,"") -> 58100
BM194: =IF(+'10_VSP_Fodermiddeltabel'!D187>0,+'10_VSP_Fodermiddeltabel'!D187,"") -> RISFODERMEL,HVIDT (Obs.: Gamle data) | BN194: =IF(+'10_VSP_Fodermiddeltabel'!A187>0,+'10_VSP_Fodermiddeltabel'!A187,"") -> 55800
BM195: =IF(+'10_VSP_Fodermiddeltabel'!D188>0,+'10_VSP_Fodermiddeltabel'!D188,"") -> RUG, flerårigt gns | BN195: =IF(+'10_VSP_Fodermiddeltabel'!A188>0,+'10_VSP_Fodermiddeltabel'!A188,"") -> 52000
BM196: =IF(+'10_VSP_Fodermiddeltabel'!D189>0,+'10_VSP_Fodermiddeltabel'!D189,"") -> RUG, flerårigt gns + xylanase | BN196: =IF(+'10_VSP_Fodermiddeltabel'!A189>0,+'10_VSP_Fodermiddeltabel'!A189,"") -> 52001
BM197: =IF(+'10_VSP_Fodermiddeltabel'!D190>0,+'10_VSP_Fodermiddeltabel'!D190,"") -> RUG, flerårigt gns, varmebehandlet | BN197: =IF(+'10_VSP_Fodermiddeltabel'!A190>0,+'10_VSP_Fodermiddeltabel'!A190,"") -> 52010
BM198: =IF(+'10_VSP_Fodermiddeltabel'!D191>0,+'10_VSP_Fodermiddeltabel'!D191,"") -> RUG, flerårigt gns, varmebehandlet + xylanase | BN198: =IF(+'10_VSP_Fodermiddeltabel'!A191>0,+'10_VSP_Fodermiddeltabel'!A191,"") -> 52011
BM199: =IF(+'10_VSP_Fodermiddeltabel'!D192>0,+'10_VSP_Fodermiddeltabel'!D192,"") -> RUG, 2015 | BN199: =IF(+'10_VSP_Fodermiddeltabel'!A192>0,+'10_VSP_Fodermiddeltabel'!A192,"") -> 52100
BM200: =IF(+'10_VSP_Fodermiddeltabel'!D193>0,+'10_VSP_Fodermiddeltabel'!D193,"") -> RUG, 2015 + xylanase | BN200: =IF(+'10_VSP_Fodermiddeltabel'!A193>0,+'10_VSP_Fodermiddeltabel'!A193,"") -> 52101
BM201: =IF(+'10_VSP_Fodermiddeltabel'!D194>0,+'10_VSP_Fodermiddeltabel'!D194,"") -> RUG, 2015, varmebehandlet | BN201: =IF(+'10_VSP_Fodermiddeltabel'!A194>0,+'10_VSP_Fodermiddeltabel'!A194,"") -> 52110
BM202: =IF(+'10_VSP_Fodermiddeltabel'!D195>0,+'10_VSP_Fodermiddeltabel'!D195,"") -> RUG, 2015, varmebehandlet + xylanase | BN202: =IF(+'10_VSP_Fodermiddeltabel'!A195>0,+'10_VSP_Fodermiddeltabel'!A195,"") -> 52111
... 128 more rows

Sheet 4_BLANDINGs-beregning,I-faktor
F1: (link: Retur til Indholdsfortegnelsen) | BM1: 1 | BN1: =+BM1+1 -> 2 | BO1: =+BN1+1 -> 3 | BP1: 4 | BQ1: 5 | BR1: 6 | BS1: 7 | BT1: 8 | BU1: 9 | BV1: 10 | BW1: 11 | BX1: 12 | BY1: 13 | BZ1: 14 | CA1: 15 | CB1: 16 | CC1: 17 | CD1: 18 | CE1: 19 | CF1: 20 | CG1: 21 | CH1: 22 | CI1: 23 | CJ1: 24 | CK1: 25 | CL1: 26 | CM1: 27 | CN1: 28 | DX1: 7 | DY1: =+DX1+1 -> 8 | DZ1: 9 | EA1: 10 | EB1: 11 | EC1: 12 | ED1: 13 | EE1: 14 | EF1: 15 | EG1: 16 | EH1: 17
A2: FODERBLANDINGS-BEREGNING, hvor bl.a. EFOS, EFOSi og I-Faktor* og fordøjeligt indhold beregnes | R2: Vælg energienhed herunder til næringsstofsammenligningen med norm. FEso: Skriv 1, FEsv: Skriv 2 | U2: *) Ved at taste lysinniveau i celle U14, vælger du det normsæt, blandingsberegningens resultater sammenlignes med herunder | BG2: =+BD7/BM7*1000 -> 940.183158 | BM2: Tør-stof | BN2: Rå-prot | BO2: Rå-fedt | BP2: Rå-aske | BQ2: Træ-stof | BR2: St.f. Råprot | BS2: Lys | BT2: Met | BU2: Met+ Cys | BV2: Tre | BW2: Try | BX2: Iso | BY2: Leu | BZ2: His | CA2: Fen | CB2: Fen+ Tyr | CC2: Val | CD2: Ca | CE2: P | CF2: Na | CG2: Vit A | CH2: FYT | CI2: FTU | CJ2: Fosfor, 0% fytase | CK2: Fosfor, 60 % fytase | CL2: Fosfor, 100 % fytase | CM2: Fosfor, 150 % fytase | CN2: Fosfor, 200 % fytase | CU2: Tør-stof | CV2: Rå-prot | CW2: Rå-fedt | CX2: Rå-aske | CY2: Træ-stof | CZ2: St.f. Råprot | DA2: Lys | DB2: Met | DC2: Cys | DD2: Tre | DE2: Try | DF2: Iso | DG2: Leu | DH2: His | DI2: Fen | DJ2: Tyr | DK2: Val | DL2: Ca | DM2: P | DN2: Na | DO2: Vit A | DP2: FYT | DQ2: FTU | DR2: Fosfor, 0% fytase | DS2: Fosfor, 60 % fytase | DT2: Fosfor, 100 % fytase | DU2: Fosfor, 150 % fytase | DV2: Fosfor, 200 % fytase | DX2: Lys | DY2: Met | DZ2: Cys | EA2: Tre | EB2: Try | EC2: Iso | ED2: Leu | EE2: His | EF2: Fen | EG2: Tyr | EH2: Val
A3: * I-Faktor indgår i stedet for analyse af EFOSi til kontrol af energiindhold i foderblandinger, se meddelelse fra Fødevarestyrelsen af 25.5.2010, 28.10.2011 og 3.5.2012: | R3: Skriv 1 eller 2 her -> | S3: 2 | T3: Valgt: | U3: =IF(+S3=1,"FEso","FEsv") -> FEsv | V3: Afvigelser, der kræver opmærksomhed: | Z3: 2 | AA3: % | BM3: g/FExx | BN3: g/FExx | BO3: g/FExx | BP3: g/FExx | BQ3: g/FExx | BR3: g/FExx | BS3: g/FExx | BT3: g/FExx | BU3: g/FExx | BV3: g/FExx | BW3: g/FExx | BX3: g/FExx | BY3: g/FExx | BZ3: g/FExx | CA3: g/FExx | CB3: g/FExx | CC3: g/FExx | CD3: g/FExx | CE3: g/FExx | CF3: g/FExx | CG3: g/FExx | CH3: g/FExx | CI3: g/FExx | CJ3: g/FExx | CK3: g/FExx | CL3: g/FExx | CM3: g/FExx | CN3: g/FExx | CU3: g/FExx | CV3: g/FExx | CW3: g/FExx | CX3: g/FExx | CY3: g/FExx | CZ3: g/FExx | DA3: g/FExx | DB3: g/FExx | DC3: g/FExx | DD3: g/FExx | DE3: g/FExx | DF3: g/FExx | DG3: g/FExx | DH3: g/FExx | DI3: g/FExx | DJ3: g/FExx | DK3: g/FExx | DL3: g/FExx | DM3: g/FExx | DN3: g/FExx | DO3: g/FExx | DP3: g/FExx | DQ3: g/FExx | DR3: g/FExx | DS3: g/FExx | DT3: g/FExx | DU3: g/FExx | DV3: g/FExx | DX3: g/FExx | DY3: g/FExx | DZ3: g/FExx | EA3: g/FExx | EB3: g/FExx | EC3: g/FExx | ED3: g/FExx | EE3: g/FExx | EF3: g/FExx | EG3: g/FExx | EH3: g/FExx
A4: Fødevarestyrelsen 25.5.2010 | C4: Fødevarestyrelsen 28.10.2011 | H4: Fødevarestyrelsen 3.5.2012 | V4: Afvigelser, der kræver handling: | Z4: 5 | AA4: % | BM4: =IF(+$S3=1,+BM7/$BL7,+BM7/$BK7) -> 829.1925867 | BN4: 152.1646859 | BO4: 59.16065271 | BP4: 49.59968196 | BQ4: 57.21395032 | BR4: 121.4397289 | BS4: 7.620785458 | BT4: 2.358608791 | BU4: =IF(+$S3=1,+(BT7+BU7)/$BL7,+(BT7+BU7)/$BK7) -> 4.843459374 | BV4: =IF(+$S3=1,+BV7/$BL7,+BV7/$BK7) -> 5.025088428 | BW4: 1.511472972 | BX4: 4.623484761 | BY4: 8.222040409 | BZ4: 3.0469352 | CA4: 5.471564229 | CB4: =IF(+$S3=1,+(CA7+CB7)/$BL7,+(CA7+CB7)/$BK7) -> 9.021721645 | CC4: =IF(+$S3=1,+CC7/$BL7,+CC7/$BK7) -> 5.719707938 | CD4: 6.516880102 | CE4: 4.761875506 | CF4: 1.497483644 | CG4: 3.994874718 | CH4: 475.3539646 | CI4: 0 | CJ4: 1.404001554 | CK4: 1.950417654 | CL4: 2.158428178 | CM4: 2.35941548 | CN4: 2.482833761 | CU4: =+BM4 -> 829.1925867 | CV4: =+BN4 -> 152.1646859 | CW4: 59.16065271 | CX4: 49.59968196 | CY4: 57.21395032 | CZ4: 121.4397289 | DA4: 7.620785458 | DB4: 2.358608791 | DC4: 4.843459374 | DD4: 5.025088428 | DE4: 1.511472972 | DF4: 4.623484761 | DG4: 8.222040409 | DH4: 3.0469352 | DI4: 5.471564229 | DJ4: 9.021721645 | DK4: 5.719707938 | DL4: 6.516880102 | DM4: 4.761875506 | DN4: 1.497483644 | DO4: 3.994874718 | DP4: 475.3539646 | DQ4: 0 | DR4: 1.404001554 | DS4: 1.950417654 | DT4: 2.158428178 | DU4: 2.35941548 | DV4: 2.482833761 | DX4: =IF(+$S$3=1,+DX7/$BL7,+DX7/$BK7) -> 9.808712622 | DY4: =IF(+$S$3=1,+DY7/$BL7,+DY7/$BK7) -> 2.743357868 | DZ4: 3.078664183 | EA4: 6.491265573 | EB4: 1.883393722 | EC4: 5.71162574 | ED4: 10.06594481 | EE4: 3.671480897 | EF4: 6.577158057 | EG4: 4.395454863 | EH4: 7.256923775
A5: (Skriv evt. navn på foderblandingen her) | R5: I-Faktor | T5: =IF(T6>0,+T7*100/T6,CHAR(32)) -> 90.45061245 | U5: %, (EFOSi sat i forhold til EFOS) | Y5: Tørstof, %: | Z5: =+BM7/10 -> 87.218436 | AE5: % | AF5: %-forhold | AG5: g/kg | AI5: FEsv Lab | AJ5: FEso Lab | AK5: FEsvKorr. | AL5: FEsoKorr. | AM5: aske | AN5: råprot | AO5: Råfedt | AP5: EFOS | AQ5: EFOSi | AR5: Ny utsi | AS5: Org.stof | AT5: Ny LFK | AU5: Ny FMK | AV5: FMKso | AW5: kontrol | AX5: Fesv | AY5: kontrol | AZ5: Feso | BD5: g/kg | BE5: g/kg | BF5: g/kg | BN5: Pct. af st. ford. lysin | BS5: =+BS4*100/$BS4 -> 100 | BT5: =+BT4*100/$BS4 -> 30.94968103 | BU5: =+BU4*100/$BS4 -> 63.55590773 | BV5: 65.93924545 | BW5: 19.8335589 | BX5: 60.66939932 | BY5: 107.8896717 | BZ5: 39.98190497 | CA5: 71.79790402 | CB5: 118.3830944 | CC5: 75.0540475 | CS5: /kg | CT5: /kg | CU5: /kg | CV5: /kg | CW5: /kg | CX5: /kg | CY5: /kg | CZ5: /kg | DA5: /kg | DB5: /kg | DC5: /kg | DD5: /kg | DE5: /kg | DF5: /kg | DG5: /kg | DH5: /kg | DI5: /kg | DJ5: /kg | DK5: /kg | DL5: /kg | DM5: /kg | DN5: /kg | DO5: /kg | DP5: /kg | DQ5: /kg | DR5: /kg | DS5: /kg | DT5: /kg | DU5: /kg | DV5: /kg | DX5: =+DX4*100/$DX4 -> 100 | DY5: =+DY4*100/$DX4 -> 27.96858236 | DZ5: 31.38703622 | EA5: 66.17856821 | EB5: 19.20123256 | EC5: 58.23012622 | ED5: 102.6224867 | EE5: 37.43081318 | EF5: 67.05424362 | EG5: 44.81174066 | EH5: 73.98446723
C6: % i blan-dingen | R6: EFOS | T6: =IF($BD7>0,+BE7/$BD7*100,CHAR(32)) -> 84.2236861 | U6: % | Y6: FEsv/hkg ts: | Z6: =+S10*100/Z5 -> 120.5992451 | AE6: EFOS minus EFOSi | AF6: I-Faktor EFOSi: EFOS | AI6: i foreliggende vare | AM6: % i ts | AN6: % i ts | AO6: % i ts | AP6: % | AQ6: % | AR6: % i ts | AS6: % i ts | AT6: % i ts | AU6: % i ts | AV6: % i ts | AW6: i tørstof | AX6: i ts | AY6: i ts | AZ6: i ts | BD6: Org. stof | BE6: Fæcesford. org. stof | BF6: Ileumford. org. stof | BI6: FE-korr.-faktor | BJ6: FEsv lab | BK6: FEsv | BL6: FEso | BM6: Tør-stof | BN6: Rå-prot | BO6: Rå-fedt | BP6: Rå-aske | BQ6: Træ-stof | BR6: St.f. Råprot | BS6: St.ford. | BT6: St.ford. | BU6: St.ford. | BV6: St.ford. | BW6: St.ford. | BX6: St.ford. | BY6: St.ford. | BZ6: St.ford. | CA6: St.ford. | CB6: St.ford. | CC6: St.ford. | CD6: Total-indhold | CE6: Total-indhold | CF6: Total-indhold | CG6: Total-indhold | CH6: Fytase-aktivitet, FYT | CI6: Fytase-aktivitet, FTU | CJ6: Ford. | CK6: Ford. | CL6: Ford. | CM6: Ford. | CN6: Ford. | CS6: FEsv | CT6: FEso | CU6: Tør-stof | CV6: Rå-prot | CW6: Rå-fedt | CX6: Rå-aske | CY6: Træ-stof | CZ6: St.f. Råprot | DA6: St. ford. | DB6: St. ford. | DC6: St. ford. | DD6: St. ford. | DE6: St. ford. | DF6: St. ford. | DG6: St. ford. | DH6: St. ford. | DI6: St. ford. | DJ6: St. ford. | DK6: St. ford. | DL6: Total-ind-hold | DM6: Total-ind-hold | DN6: Total-ind-hold | DO6: Total-ind-hold | DP6: Fytase-aktivitet, FYT | DQ6: Fytase-aktivitet, FTU | DR6: Ford. | DS6: Ford. | DT6: Ford. | DU6: Ford. | DV6: Ford. | DX6: Total | DY6: Total | DZ6: Total | EA6: Total | EB6: Total | EC6: Total | ED6: Total | EE6: Total | EF6: Total | EG6: Total | EH6: Total
C7: =SUM(C13:C53) -> 100.001 | R7: EFOSi | T7: =IF($BD7>0,+BF7/$BD7*100,CHAR(32)) -> 76.1808399 | U7: % | Y7: FEso/hkg ts: | Z7: =+Y10*100/Z5 -> 121.5138021 | AE7: =IF(T6*T7>0,+T6-T7,CHAR(32)) -> 8.042846192 | AF7: =IF(T6>0,+T7*100/T6,CHAR(32)) -> 90.45061245 | BD7: =SUM(BD13:BD53) -> 820.0130459 | BE7: =SUM(BE13:BE53) -> 690.6452138 | BF7: =SUM(BF13:BF53) -> 624.6928257 | BI7: =IF(BJ7>0,+BK7/BJ7,CHAR(32)) -> 1 | BJ7: =SUM(BJ13:BJ53) -> 1.051847754 | BK7: 1.051847754 | BL7: 1.059824378 | BM7: 872.18436 | BN7: 160.0540831 | BO7: 62.22799968 | BP7: 52.17131407 | BQ7: 60.18036514 | BR7: =SUM(BR13:BR53) -> 127.7361061 | BS7: =SUM(BS13:BS53) -> 8.015906068 | BT7: =SUM(BT13:BT53) -> 2.480897359 | BU7: =SUM(BU13:BU53) -> 2.613684505 | BV7: 5.285627977 | BW7: 1.589839451 | BX7: 4.863202061 | BY7: 8.648334737 | BZ7: 3.204911947 | CA7: 5.755252545 | CB7: 3.734225104 | CC7: 6.016261948 | CD7: =SUM(CD13:CD53) -> 6.854765698 | CE7: 5.008768056 | CF7: 1.575124807 | CG7: 4.202 | CH7: =SUM(CH13:CH53) -> 500 | CI7: =SUM(CI13:CI53) -> 0 | CJ7: 1.476795882 | CK7: 2.051542428 | CL7: 2.270337831 | CM7: 2.481745873 | CN7: 2.611563115 | DX7: =SUM(DX13:DX53) -> 10.31727234 | DY7: =SUM(DY13:DY53) -> 2.885594812 | DZ7: 3.238286006 | EA7: 6.827823114 | EB7: 1.981043456 | EC7: 6.007760706 | ED7: 10.58784144 | EE7: 3.861838935 | EF7: 6.91816893 | EG7: 4.623349325 | EH7: 7.633178974
A8: Test af, hvor mange decimaler, der er nødvendigt at medtage på de to udtryk | K8: 1 | L8: decimal(er): | AE8: =ROUND(+W45,K8) -> 108 | AF8: =ROUND(+AF7,$K8) -> 90.5 | AG8: Med ....
A9: FEsv/hkg ud fra "beregnet EFOSi" | L9: =+T6*AF8/100 -> 76.22243592 | M9: =+AI9*BI7 -> 115.9235458 | AG9: Beregnet EFOSi: | AI9: =+AW9/100*(100-F7) -> 115.9235458 | AJ9: =+AY9/100*(100-F7) -> 117.3940404 | AL9: =+AJ9*BI7 -> 117.3940404 | AM9: =+I7*100/(100-$F7) -> 0 | AN9: =+G7*100/(100-$F7) -> 0 | AO9: =+H7*100/(100-$F7) -> 0 | AP9: =+T6 -> 84.2236861 | AQ9: =+L9 -> 76.22243592 | AR9: =AS9*(100-AP9)/100+AU9+AM9*0.3+0.07*AO9 -> 27.2066713 | AS9: =100 - AM9 -> 100 | AT9: =AS9*AP9/100-AN9*0.91-AO9*0.97-AU9 -> 72.7933287 | AU9: =AS9*(AP9-AQ9)/70 -> 11.4303574 | AV9: =AU9+0.18*AS9*(100-AP9)/100 -> 14.2700939 | AW9: =(AN9*0.91*9.9+AO9*0.9*31.7+AT9*11.7+AU9*7-AR9*2.8)/7.38 -> 115.9235458 | AX9: =AW9*BI7 -> 115.9235458 | AY9: =(AN9*0.91*9.9+AO9*0.9*31.7+AT9*11.7+AV9*9-AR9*2.8)/7.7 -> 117.3940404 | AZ9: =AY9*BI7 -> 117.3940404
C10: Tast: Pct. i blan-dingen | D10: Foder-midlets redig. dato | R10: FEsv /hkg | S10: =+BK7*100 -> 105.1847754 | W10: FEso/ hkg | Y10: =+BL7*100 -> 105.9824378 | BM10: g/kg | BN10: g/kg | BO10: g/kg | BP10: g/kg | BQ10: g/kg | BR10: g/kg | BS10: g/kg | BT10: g/kg | BU10: g/kg | BV10: g/kg | BW10: g/kg | BX10: g/kg | BY10: g/kg | BZ10: g/kg | CA10: g/kg | CB10: g/kg | CC10: g/kg | CD10: g/kg | CE10: g/kg | CF10: g/kg | CG10: g/kg | CH10: /kg | CI10: /kg | CJ10: g/kg | CK10: g/kg | CL10: g/kg | CM10: g/kg | CN10: g/kg | DX10: g/kg | DY10: g/kg | DZ10: g/kg | EA10: g/kg | EB10: g/kg | EC10: g/kg | ED10: g/kg | EE10: g/kg | EF10: g/kg | EG10: g/kg | EH10: g/kg
A11: Vælg fodermiddel i "rullegardin" ved at trykke på gult felt | E11: % | F11: % | G11: % | H11: % | I11: % | J11: % | K11: % | L11: % | S11: St.fordøjeligt indhold | Y11: Totalindhold | AA11: Ford.- | AE11: % | AF11: %-forhold | AG11: g/kg | BA11: g/kg | BB11: g/kg | BD11: g/kg | BE11: g/kg | BF11: g/kg | BJ11: Bidrag | BK11: Bidrag | BL11: Bidrag | BM11: Bidrag | BN11: Bidrag | BO11: Bidrag | BP11: Bidrag | BQ11: Bidrag | BR11: Bidrag | BS11: Bidrag | BT11: Bidrag | BU11: Bidrag | BV11: Bidrag | BW11: Bidrag | BX11: Bidrag | BY11: Bidrag | BZ11: Bidrag | CA11: Bidrag | CB11: Bidrag | CC11: Bidrag | CD11: Bidrag | CE11: Bidrag | CF11: Bidrag | CG11: Bidrag | CH11: Bidrag | CI11: Bidrag | CJ11: Bidrag | CK11: Bidrag | CL11: Bidrag | CM11: Bidrag | CN11: Bidrag | CS11: Andel | CT11: Andel | CU11: Andel | CV11: Andel | CW11: Andel | CX11: Andel | CY11: Andel | CZ11: Andel | DA11: Andel | DB11: Andel | DC11: Andel | DD11: Andel | DE11: Andel | DF11: Andel | DG11: Andel | DH11: Andel | DI11: Andel | DJ11: Andel | DK11: Andel | DL11: Andel | DM11: Andel | DN11: Andel | DO11: Andel | DP11: Andel | DQ11: Andel | DR11: Andel | DS11: Andel | DT11: Andel | DU11: Andel | DV11: Andel | DX11: Bidrag | DY11: Bidrag | DZ11: Bidrag | EA11: Bidrag | EB11: Bidrag | EC11: Bidrag | ED11: Bidrag | EE11: Bidrag | EF11: Bidrag | EG11: Bidrag | EH11: Bidrag
B12: Foder-kode | E12: Tør-stof | F12: Vand | G12: Rå-prot | H12: Rå-fedt | I12: Rå-aske | J12: Træ-stof | K12: EFOS | L12: EFOSi | M12: FEsv | N12: FEso | S12: =IF(+S3=1,"g/FEso","g/FEsv") -> g/FEsv | T12: Pct. af st. ford. lysin | U12: Norm *) | V12: Pct. af Norm | W12: g/Kg | Y12: g/Kg | Z12: g/Kg TS | AA12: koeffi-cienter | AE12: EFOS minus EFOSi | AF12: I-Faktor EFOSi: EFOS | AG12: Org. stof i varen | BA12: Fæcesford. org. stof | BB12: Ileumford. org. stof | BD12: Bidrag, Org. stof | BE12: Bidrag, Fæcesford. org. stof | BF12: Bidrag, Ileumford. org. stof | BJ12: FEsv lab | BK12: FEsv | BL12: FEso | BM12: Tør-stof | BN12: Rå-prot | BO12: Rå-fedt | BP12: Rå-aske | BQ12: Træ-stof | BR12: St.f. Råprot | BS12: Lys | BT12: Met | BU12: Cys | BV12: Tre | BW12: Try | BX12: Iso | BY12: Leu | BZ12: His | CA12: Fen | CB12: Tyr | CC12: Val | CD12: Ca | CE12: P | CF12: Na | CG12: Vit A | CH12: FYT | CI12: FTU | CJ12: Fosfor, ingen fytase tilsat | CK12: Fosfor, 60 % standard-dosis fytase tilsat | CL12: Fosfor, 100 % standard-dosis fytase tilsat | CM12: Fosfor, 150 % standard-dosis fytase tilsat | CN12: Fosfor, 200 % standard-dosis fytase tilsat | CO12: EFNi | CP12: FEkorrFaktor | CQ12: FKraafNy | CS12: FEsv | CT12: FEso | CU12: Tør-stof | CV12: Rå-prot | CW12: Rå-fedt | CX12: Rå-aske | CY12: Træ-stof | CZ12: St.f. Råprot | DA12: St.f. Lys | DB12: St.f. Met | DC12: St.f. Cys | DD12: St.f. Tre | DE12: St.f. Try | DF12: St.f. Iso | DG12: St.f. Leu | DH12: St.f. His | DI12: St.f. Fen | DJ12: St.f. Tyr | DK12: St.f. Val | DL12: Ca | DM12: P | DN12: Na | DO12: Vit A | DP12: FYT | DQ12: FTU | DR12: Fosfor, ingen fytase tilsat | DS12: Fosfor, 60 % standard-dosis fytase tilsat | DT12: Fosfor, 100 % standard-dosis fytase tilsat | DU12: Fosfor, 150 % standard-dosis fytase tilsat | DV12: Fosfor, 200 % standard-dosis fytase tilsat | DX12: Lys | DY12: Met | DZ12: Cys | EA12: Tre | EB12: Try | EC12: Iso | ED12: Leu | EE12: His | EF12: Fen | EG12: Tyr | EH12: Val | EL12: St. FK råprotein | EM12: LysRaap | EN12: MetRaap | EO12: CysRaap | EP12: TreRaap | EQ12: TryRaap | ER12: IsoRaap | ES12: LeuRaap | ET12: HisRaap | EU12: FenRaap | EV12: TyrRaap | EW12: ValRaap | EX12: FKlysForh | EY12: FKmetForh | EZ12: FKcysForh | FA12: FKtreForh | FB12: FKtryForh | FC12: FKisoForh | FD12: FKleuForh | FE12: FKhisForh | FF12: FKfenForh | FG12: FKtyrForh | FH12: FKvalForh | FI12: Kode | FJ12: Parti | FK12: Prot_ts | FL12: Fedt_ts | FM12: Aske_ts | FN12: Trae_ts | FO12: Jodtal | FP12: Jodtprod_kgTS | FQ12: FEsv_ts | FR12: FEso_ts | FS12: Fosfor, ingen fytase tilsat | FT12: Fosfor, 60% std.dosis fytase tilsat | FU12: Fosfor, 100% std.dosis fytase tilsat | FV12: Fosfor, 150% std.dosis fytase tilsat | FW12: Fosfor, 200% std.dosis fytase tilsat | FX12: Ca_TS | FY12: P_TS | FZ12: Na_TS | GA12: Cl_TS | GB12: K_TS | GC12: Mg_TS | GD12: S_TS | GE12: Jern_TS | GF12: Cu_TS | GG12: Mn_TS | GH12: Z_TS | GI12: Jod_TS | GJ12: Se_TS | GL12: LFK_TS | GM12: FMK_TS | GN12: Stiv_TS | GO12: Suk_TS | GP12: Opl_Fib_TS | GQ12: Uopl_Fib_TS | GR12: Foder-middel-kode
A13: BYG, vinter, 2015, varmebehandlet + xylanase | B13: =VLOOKUP(A13,$GU$13:$GV$331,2,FALSE) -> 50311 | C13: 30 | D13: =IFERROR(IF($B13>0,VLOOKUP($B13,'10_VSP_Fodermiddeltabel'!$A$4:$CP$489,5,),CHAR(32)),"") -> 2015-10-27 | E13: =IFERROR(IF($B13>0,VLOOKUP($B13,'10_VSP_Fodermiddeltabel'!$A$4:$CP$489,12,),CHAR(32)),"") -> 85 | F13: =IFERROR(IF(B13>0,100-E13,CHAR(32)),"") -> 15 | G13: =IFERROR(IF($B13>0,VLOOKUP($B13,'10_VSP_Fodermiddeltabel'!$A$4:$CP$489,13,),CHAR(32)),"") -> 8.4 | H13: =IFERROR(IF($B13>0,VLOOKUP($B13,'10_VSP_Fodermiddeltabel'!$A$4:$CP$489,14,),CHAR(32)),"") -> 2.7 | I13: =IFERROR(IF($B13>0,VLOOKUP($B13,'10_VSP_Fodermiddeltabel'!$A$4:$CP$489,15,),CHAR(32)),"") -> 1.9 | J13: =IFERROR(IF($B13>0,VLOOKUP($B13,'10_VSP_Fodermiddeltabel'!$A$4:$CP$489,16,),CHAR(32)),"") -> 4.6 | K13: =IFERROR(IF($B13>0,VLOOKUP($B13,'10_VSP_Fodermiddeltabel'!$A$4:$CP$489,8,),CHAR(32)),"") -> 83.2 | L13: =IFERROR(IF($B13>0,VLOOKUP($B13,'10_VSP_Fodermiddeltabel'!$A$4:$CP$489,9,),CHAR(32)),"") -> 77.200032 | M13: =IFERROR(IF(B13>0,+AI13*$CP13/100,CHAR(32)),"") -> 1.01208883 | N13: =IFERROR(IF(B13>0,+AJ13*$CP13/100,CHAR(32)),"") -> 1.017900897 | Q13: 6 | R13: Råprotein | S13: =HLOOKUP($Q13,$BM$1:$CN$7,4) -> 121.4397289 | U13: =IF(U$14<8.8,IF(U$14<6.51,IF(U$14<6,"Drægt","Dieg."),"Slsv"),"Smgr") -> Slsv | W13: =HLOOKUP($Q13,$BM$1:$CN$7,7) -> 127.7361061 | X13: Råp. | Y13: =HLOOKUP($Q41,$BM$1:$CN$7,7) -> 160.0540831 | Z13: =+Y13/$W$40*1000 -> 183.5094624 | AA13: =IF(Y13>0,+W13/Y13,"") -> 0.7980808965 | AE13: =IF($C13>0,+K13-L13,CHAR(32)) -> 5.999968 | AF13: =IF($C13>0,+L13*100/K13,CHAR(32)) -> 92.7885 | AG13: =IFERROR(+(E13-I13)*10,"") -> 831 | AI13: =+AW13/100*(100-F13) -> 101.208883 | AJ13: =+AY13/100*(100-F13) -> 101.7900897 | AL13: =+AJ13*BI13 -> 0 | AM13: =+I13*100/(100-$F13) -> 2.235294118 | AN13: =+G13*100/(100-$F13) -> 9.882352941 | AO13: =+H13*100/(100-$F13) -> 3.176470588 | AP13: =+K13 -> 83.2 | AQ13: =+L13 -> 77.200032 | AR13: =AS13*(100-AP13)/100+AU13+AM13*0.3+0.07*AO13 -> 25.69719901 | AS13: =100 - AM13 -> 97.76470588 | AT13: =AS13*AP13/100-AN13*0.91-AO13*0.97-AU13 -> 60.88633041 | AU13: =AS13*(AP13-AQ13)/70 -> 8.37978724 | AV13: =AU13+0.18*AS13*(100-AP13)/100 -> 11.33619195 | AW13: =(AN13*0.91*9.9+AO13*0.9*31.7+AT13*11.7+AU13*7-AR13*2.8)/7.38 -> 119.0692741 | AX13: =AW13*BI13 -> 0 | AY13: =(AN13*0.91*9.9+AO13*0.9*31.7+AT13*11.7+AV13*9-AR13*2.8)/7.7 -> 119.7530467 | AZ13: =AY13*BI13 -> 0 | BA13: =IF($C13,+AG13*K13/100,CHAR(32)) -> 691.392 | BB13: =IF($C13,+AG13*L13/100,CHAR(32)) -> 641.5322659 | BD13: =IF($C13>0,+AG13*$C13/100,CHAR(32)) -> 249.3 | BE13: =IF($C13>0,+BA13*$C13/100,CHAR(32)) -> 207.4176 | BF13: =IF($C13>0,+BB13*$C13/100,CHAR(32)) -> 192.4596798 | BJ13: =IF($C13>0,+BK13/CP13,CHAR(32)) -> 0.3036266489 | BK13: =IF($C13>0,+M13*$C13/100,CHAR(32)) -> 0.3036266489 | BL13: =IF($C13>0,+N13*$C13/100,CHAR(32)) -> 0.3053702691 | BM13: =IF($C13>0,+E13*$C13/10,CHAR(32)) -> 255 | BN13: =IF($C13>0,+G13*$C13/10,CHAR(32)) -> 25.2 | BO13: =IF($C13>0,+H13*$C13/10,CHAR(32)) -> 8.1 | BP13: =IF($C13>0,+I13*$C13/10,CHAR(32)) -> 5.7 | BQ13: =IF($C13>0,+J13*$C13/10,CHAR(32)) -> 13.8 | BR13: =IF($C13>0,IF(EL13>0,+$BN13*$EL13/100,0),CHAR(32)) -> 18.35515389 | BS13: =IF($C13>0,IF(EM13>0,+$BN13*EM13/100*EX13*$EL13/100,0),CHAR(32)) -> 0.6806743209 | BT13: =IF($C13>0,IF(EN13>0,+$BN13*EN13/100*EY13*$EL13/100,0),CHAR(32)) -> 0.3478219603 | BU13: =IF($C13>0,IF(EO13>0,+$BN13*EO13/100*EZ13*$EL13/100,0),CHAR(32)) -> 0.4665731117 | BV13: =IF($C13>0,IF(EP13>0,+$BN13*EP13/100*FA13*$EL13/100,0),CHAR(32)) -> 0.6170581648 | BW13: =IF($C13>0,IF(EQ13>0,+$BN13*EQ13/100*FB13*$EL13/100,0),CHAR(32)) -> 0.2421740134 | BX13: =IF($C13>0,IF(ER13>0,+$BN13*ER13/100*FC13*$EL13/100,0),CHAR(32)) -> 0.6684299216 | BY13: =IF($C13>0,IF(ES13>0,+$BN13*ES13/100*FD13*$EL13/100,0),CHAR(32)) -> 1.281569801 | BZ13: =IF($C13>0,IF(ET13>0,+$BN13*ET13/100*FE13*$EL13/100,0),CHAR(32)) -> 0.4264658048 | CA13: =IF($C13>0,IF(EU13>0,+$BN13*EU13/100*FF13*$EL13/100,0),CHAR(32)) -> 0.8927307659 | CB13: =IF($C13>0,IF(EV13>0,+$BN13*EV13/100*FG13*$EL13/100,0),CHAR(32)) -> 0.5675445973 | CC13: =IF($C13>0,IF(EW13>0,+$BN13*EW13/100*FH13*$EL13/100,0),CHAR(32)) -> 0.9157710188 | CD13: =IF($C13>0,IF(FX13>0,+$E13*FX13/100*$C13/100,0),CHAR(32)) -> 0.183 | CE13: =IF($C13>0,IF(FY13>0,+$E13*FY13/100*$C13/100,0),CHAR(32)) -> 0.87 | CF13: =IF($C13>0,IF(FZ13>0,+$E13*FZ13/100*$C13/100,0),CHAR(32)) -> 0.051 | CG13: =IF($C13>0,IF(VLOOKUP($B13,'10_VSP_Fodermiddeltabel'!$A$4:$DV$489,113,)>0,VLOOKUP($B13,'10_VSP_Fodermiddeltabel'!$A$4:$DV$489,113,)*$C13/100,0),CHAR(32)) -> 0 | CH13: =IF($C13>0,IF(VLOOKUP($B13,'10_VSP_Fodermiddeltabel'!$A$4:$DV$489,110,)>0,VLOOKUP($B13,'10_VSP_Fodermiddeltabel'!$A$4:$DV$489,110,)*$C13/100,0),CHAR(32)) -> 0 | CI13: =IF($C13>0,IF(VLOOKUP($B13,'10_VSP_Fodermiddeltabel'!$A$4:$DV$489,111,)>0,VLOOKUP($B13,'10_VSP_Fodermiddeltabel'!$A$4:$DV$489,111,)*$C13/100,0),CHAR(32)) -> 0 | CJ13: =IF($C13>0,IF($FY13>0,+$E13*$FY13/100*FS13/100*$C13/100,0),CHAR(32)) -> 0.261 | CK13: =IF($C13>0,IF($FY13>0,+$E13*$FY13/100*FT13/100*$C13/100,0),CHAR(32)) -> 0.3654 | CL13: =IF($C13>0,IF($FY13>0,+$E13*$FY13/100*FU13/100*$C13/100,0),CHAR(32)) -> 0.4002 | CM13: =IF($C13>0,IF($FY13>0,+$E13*$FY13/100*FV13/100*$C13/100,0),CHAR(32)) -> 0.435 | CN13: =IF($C13>0,IF($FY13>0,+$E13*$FY13/100*FW13/100*$C13/100,0),CHAR(32)) -> 0.4611 | CO13: =IF($B13>0,VLOOKUP($B13,'10_VSP_Fodermiddeltabel'!$A$4:$CP$489,10,),CHAR(32)) -> 90 | CP13: =IF($B13>0,VLOOKUP($B13,'10_VSP_Fodermiddeltabel'!$A$4:$CP$489,11,),CHAR(32)) -> 1 | CQ13: 90 | CS13: =IF($C13>0,IF(BK$7>0,+BK13/BK$7,0),CHAR(32)) -> 0.2886602626 | CT13: =IF($C13>0,IF(BL$7>0,+BL13/BL$7,0),CHAR(32)) -> 0.2881328978 | CU13: =IF($C13>0,IF(BM$7>0,+BM13/BM$7,0),CHAR(32)) -> 0.2923693793 | CV13: =IF($C13>0,IF(BN$7>0,+BN13/BN$7,0),CHAR(32)) -> 0.15744678 | CW13: =IF($C13>0,IF(BO$7>0,+BO13/BO$7,0),CHAR(32)) -> 0.1301664852 | CX13: =IF($C13>0,IF(BP$7>0,+BP13/BP$7,0),CHAR(32)) -> 0.1092554424 | CY13: =IF($C13>0,IF(BQ$7>0,+BQ13/BQ$7,0),CHAR(32)) -> 0.2293106725 | CZ13: =IF($C13>0,IF(BR$7>0,+BR13/BR$7,0),CHAR(32)) -> 0.1436958934 | DA13: =IF($C13>0,IF(BS$7>0,+BS13/BS$7,0),CHAR(32)) -> 0.08491545623 | DB13: =IF($C13>0,IF(BT$7>0,+BT13/BT$7,0),CHAR(32)) -> 0.1402000607 | DC13: =IF($C13>0,IF(BU$7>0,+BU13/BU$7,0),CHAR(32)) -> 0.1785116416 | DD13: =IF($C13>0,IF(BV$7>0,+BV13/BV$7,0),CHAR(32)) -> 0.1167426401 | DE13: =IF($C13>0,IF(BW$7>0,+BW13/BW$7,0),CHAR(32)) -> 0.1523260812 | DF13: =IF($C13>0,IF(BX$7>0,+BX13/BX$7,0),CHAR(32)) -> 0.1374464629 | DG13: =IF($C13>0,IF(BY$7>0,+BY13/BY$7,0),CHAR(32)) -> 0.1481868868 | DH13: =IF($C13>0,IF(BZ$7>0,+BZ13/BZ$7,0),CHAR(32)) -> 0.1330663094 | DI13: =IF($C13>0,IF(CA$7>0,+CA13/CA$7,0),CHAR(32)) -> 0.1551158283 | DJ13: =IF($C13>0,IF(CB$7>0,+CB13/CB$7,0),CHAR(32)) -> 0.1519845702 | DK13: =IF($C13>0,IF(CC$7>0,+CC13/CC$7,0),CHAR(32)) -> 0.1522159485 | DL13: =IF($C13>0,IF(CD$7>0,+CD13/CD$7,0),CHAR(32)) -> 0.02669675494 | DM13: =IF($C13>0,IF(CE$7>0,+CE13/CE$7,0),CHAR(32)) -> 0.1736954058 | DN13: =IF($C13>0,IF(CF$7>0,+CF13/CF$7,0),CHAR(32)) -> 0.03237838663 | DO13: =IF($C13>0,IF(CG$7>0,+CG13/CG$7,0),CHAR(32)) -> 0 | DP13: =IF($C13>0,IF(CH$7>0,+CH13/CH$7,0),CHAR(32)) -> 0 | DQ13: =IF($C13>0,IF(CI$7>0,+CI13/CI$7,0),CHAR(32)) -> 0 | DR13: =IF($C13>0,IF(CJ$7>0,+CJ13/CJ$7,0),CHAR(32)) -> 0.1767339706 | DS13: =IF($C13>0,IF(CK$7>0,+CK13/CK$7,0),CHAR(32)) -> 0.1781098918 | DT13: =IF($C13>0,IF(CL$7>0,+CL13/CL$7,0),CHAR(32)) -> 0.1762733257 | DU13: =IF($C13>0,IF(CM$7>0,+CM13/CM$7,0),CHAR(32)) -> 0.1752798321 | DV13: =IF($C13>0,IF(CN$7>0,+CN13/CN$7,0),CHAR(32)) -> 0.1765609253 | DX13: =IF($C13>0,IF(EM13>0,+$BN13*EM13/100,0),CHAR(32)) -> 0.9941548235 | DY13: 0.4421562353 | DZ13: 0.6219063529 | EA13: 0.8917538824 | EB13: 0.3463369412 | EC13: 0.9176950588 | ED13: 1.742061176 | EE13: 0.5854997647 | EF13: 1.178500235 | EG13: 0.8032870588 | EH13: 1.309658824 | EL13: =IF($B13>0,VLOOKUP($B13,'10_VSP_Fodermiddeltabel'!$A$4:$CP$489,18,),CHAR(32)) -> 72.83791224 | EM13: =IF($B13>0,VLOOKUP($B13,'10_VSP_Fodermiddeltabel'!$A$4:$CP$489,39,),CHAR(32)) -> 3.945058824 | EN13: =IF($B13>0,VLOOKUP($B13,'10_VSP_Fodermiddeltabel'!$A$4:$CP$489,40,),CHAR(32)) -> 1.754588235 | EO13: =IF($B13>0,VLOOKUP($B13,'10_VSP_Fodermiddeltabel'!$A$4:$CP$489,41,),CHAR(32)) -> 2.467882353 | EP13: =IF($B13>0,VLOOKUP($B13,'10_VSP_Fodermiddeltabel'!$A$4:$CP$489,42,),CHAR(32)) -> 3.538705882 | EQ13: =IF($B13>0,VLOOKUP($B13,'10_VSP_Fodermiddeltabel'!$A$4:$CP$489,43,),CHAR(32)) -> 1.374352941 | ER13: =IF($B13>0,VLOOKUP($B13,'10_VSP_Fodermiddeltabel'!$A$4:$CP$489,44,),CHAR(32)) -> 3.641647059 | ES13: =IF($B13>0,VLOOKUP($B13,'10_VSP_Fodermiddeltabel'!$A$4:$CP$489,45,),CHAR(32)) -> 6.912941176 | ET13: =IF($B13>0,VLOOKUP($B13,'10_VSP_Fodermiddeltabel'!$A$4:$CP$489,46,),CHAR(32)) -> 2.323411765 | EU13: =IF($B13>0,VLOOKUP($B13,'10_VSP_Fodermiddeltabel'!$A$4:$CP$489,47,),CHAR(32)) -> 4.676588235 | EV13: =IF($B13>0,VLOOKUP($B13,'10_VSP_Fodermiddeltabel'!$A$4:$CP$489,48,),CHAR(32)) -> 3.187647059 | EW13: =IF($B13>0,VLOOKUP($B13,'10_VSP_Fodermiddeltabel'!$A$4:$CP$489,49,),CHAR(32)) -> 5.197058824 | EX13: =IF($B13>0,VLOOKUP($B13,'10_VSP_Fodermiddeltabel'!$A$4:$CP$489,51,),CHAR(32)) -> 0.94 | EY13: =IF($B13>0,VLOOKUP($B13,'10_VSP_Fodermiddeltabel'!$A$4:$CP$489,52,),CHAR(32)) -> 1.08 | EZ13: =IF($B13>0,VLOOKUP($B13,'10_VSP_Fodermiddeltabel'!$A$4:$CP$489,53,),CHAR(32)) -> 1.03 | FA13: =IF($B13>0,VLOOKUP($B13,'10_VSP_Fodermiddeltabel'!$A$4:$CP$489,54,),CHAR(32)) -> 0.95 | FB13: =IF($B13>0,VLOOKUP($B13,'10_VSP_Fodermiddeltabel'!$A$4:$CP$489,55,),CHAR(32)) -> 0.96 | FC13: =IF($B13>0,VLOOKUP($B13,'10_VSP_Fodermiddeltabel'!$A$4:$CP$489,56,),CHAR(32)) -> 1 | FD13: =IF($B13>0,VLOOKUP($B13,'10_VSP_Fodermiddeltabel'!$A$4:$CP$489,57,),CHAR(32)) -> 1.01 | FE13: =IF($B13>0,VLOOKUP($B13,'10_VSP_Fodermiddeltabel'!$A$4:$CP$489,58,),CHAR(32)) -> 1 | FF13: =IF($B13>0,VLOOKUP($B13,'10_VSP_Fodermiddeltabel'!$A$4:$CP$489,59,),CHAR(32)) -> 1.04 | FG13: =IF($B13>0,VLOOKUP($B13,'10_VSP_Fodermiddeltabel'!$A$4:$CP$489,60,),CHAR(32)) -> 0.97 | FH13: =IF($B13>0,VLOOKUP($B13,'10_VSP_Fodermiddeltabel'!$A$4:$CP$489,61,),CHAR(32)) -> 0.96 | FI13: =IF($B13>0,VLOOKUP($B13,'10_VSP_Fodermiddeltabel'!$A$4:$CP$489,2,),CHAR(32)) -> 503 | FJ13: =IF($B13>0,VLOOKUP($B13,'10_VSP_Fodermiddeltabel'!$A$4:$CP$489,3,),CHAR(32)) -> 11 | FK13: =IF($B13>0,VLOOKUP($B13,'10_VSP_Fodermiddeltabel'!$A$4:$CP$489,63,),CHAR(32)) -> 9.882352941 | FL13: =IF($B13>0,VLOOKUP($B13,'10_VSP_Fodermiddeltabel'!$A$4:$CP$489,64,),CHAR(32)) -> 3.176470588 | FM13: =IF($B13>0,VLOOKUP($B13,'10_VSP_Fodermiddeltabel'!$A$4:$CP$489,65,),CHAR(32)) -> 2.235294118 | FN13: =IF($B13>0,VLOOKUP($B13,'10_VSP_Fodermiddeltabel'!$A$4:$CP$489,66,),CHAR(32)) -> 5.411764706 | FO13: =IF($B13>0,VLOOKUP($B13,'10_VSP_Fodermiddeltabel'!$A$4:$CP$489,68,),CHAR(32)) -> 120 | FP13: =IF($B13>0,VLOOKUP($B13,'10_VSP_Fodermiddeltabel'!$A$4:$CP$489,69,),CHAR(32)) -> 38.11764706 | FQ13: =IF($B13>0,VLOOKUP($B13,'10_VSP_Fodermiddeltabel'!$A$4:$CP$489,70,),CHAR(32)) -> 1.190705677 | FR13: =IF($B13>0,VLOOKUP($B13,'10_VSP_Fodermiddeltabel'!$A$4:$CP$489,71,),CHAR(32)) -> 1.197542982 | FS13: =IF($B13>0,VLOOKUP($B13,'10_VSP_Fodermiddeltabel'!$A$4:$CP$489,19,),CHAR(32)) -> 30 | FT13: =IF($B13>0,VLOOKUP($B13,'10_VSP_Fodermiddeltabel'!$A$4:$CP$489,20,),CHAR(32)) -> 42 | FU13: =IF($B13>0,VLOOKUP($B13,'10_VSP_Fodermiddeltabel'!$A$4:$CP$489,21,),CHAR(32)) -> 46 | FV13: =IF($B13>0,VLOOKUP($B13,'10_VSP_Fodermiddeltabel'!$A$4:$CP$489,22,),CHAR(32)) -> 50 | FW13: =IF($B13>0,VLOOKUP($B13,'10_VSP_Fodermiddeltabel'!$A$4:$CP$489,23,),CHAR(32)) -> 53 | FX13: =IF($B13>0,VLOOKUP($B13,'10_VSP_Fodermiddeltabel'!$A$4:$CP$489,25,),CHAR(32)) -> 0.7176470588 | FY13: =IF($B13>0,VLOOKUP($B13,'10_VSP_Fodermiddeltabel'!$A$4:$CP$489,26,),CHAR(32)) -> 3.411764706 | FZ13: =IF($B13>0,VLOOKUP($B13,'10_VSP_Fodermiddeltabel'!$A$4:$CP$489,27,),CHAR(32)) -> 0.2 | GA13: =IF($B13>0,VLOOKUP($B13,'10_VSP_Fodermiddeltabel'!$A$4:$CP$489,28,),CHAR(32)) -> 1.5 | GB13: =IF($B13>0,VLOOKUP($B13,'10_VSP_Fodermiddeltabel'!$A$4:$CP$489,29,),CHAR(32)) -> 5.9 | GC13: =IF($B13>0,VLOOKUP($B13,'10_VSP_Fodermiddeltabel'!$A$4:$CP$489,30,),CHAR(32)) -> 1.1 | GD13: =IF($B13>0,VLOOKUP($B13,'10_VSP_Fodermiddeltabel'!$A$4:$CP$489,31,),CHAR(32)) -> 1.3 | GE13: =IF($B13>0,VLOOKUP($B13,'10_VSP_Fodermiddeltabel'!$A$4:$CP$489,32,),CHAR(32)) -> 50 | GF13: =IF($B13>0,VLOOKUP($B13,'10_VSP_Fodermiddeltabel'!$A$4:$CP$489,33,),CHAR(32)) -> 3.4 | GG13: =IF($B13>0,VLOOKUP($B13,'10_VSP_Fodermiddeltabel'!$A$4:$CP$489,34,),CHAR(32)) -> 15 | GH13: =IF($B13>0,VLOOKUP($B13,'10_VSP_Fodermiddeltabel'!$A$4:$CP$489,35,),CHAR(32)) -> 29 | GI13: =IF($B13>0,VLOOKUP($B13,'10_VSP_Fodermiddeltabel'!$A$4:$CP$489,36,),CHAR(32)) -> 0 | GJ13: =IF($B13>0,VLOOKUP($B13,'10_VSP_Fodermiddeltabel'!$A$4:$CP$489,37,),CHAR(32)) -> 0.04 | GL13: =IF($B13>0,VLOOKUP($B13,'10_VSP_Fodermiddeltabel'!$A$4:$CP$489,74,),CHAR(32)) -> 608.8628571 | GM13: =IF($B13>0,VLOOKUP($B13,'10_VSP_Fodermiddeltabel'!$A$4:$CP$489,75,),CHAR(32)) -> 83.7978724 | GN13: =IF($B13>0,VLOOKUP($B13,'10_VSP_Fodermiddeltabel'!$A$4:$CP$489,76,),CHAR(32)) -> 604 | GO13: =IF($B13>0,VLOOKUP($B13,'10_VSP_Fodermiddeltabel'!$A$4:$CP$489,77,),CHAR(32)) -> 21 | GP13: =IF($B13>0,VLOOKUP($B13,'10_VSP_Fodermiddeltabel'!$A$4:$CP$489,78,),CHAR(32)) -> 56 | GQ13: =IF($B13>0,VLOOKUP($B13,'10_VSP_Fodermiddeltabel'!$A$4:$CP$489,79,),CHAR(32)) -> 165 | GR13: =IF($B13>0,VLOOKUP($B13,'10_VSP_Fodermiddeltabel'!$A$4:$CP$489,1,),CHAR(32)) -> 50311 | GU13: =+'10_VSP_Fodermiddeltabel'!D4 -> BENZOESYRE (1% vand) | GV13: =+'10_VSP_Fodermiddeltabel'!A4 -> 94800
A14: HVEDE, 2015, varmebehandlet + xylanase | B14: 51011 | C14: 13.561 | D14: =IFERROR(IF($B14>0,VLOOKUP($B14,'10_VSP_Fodermiddeltabel'!$A$4:$CP$489,5,),CHAR(32)),"") -> 2015-10-27 | E14: =IFERROR(IF($B14>0,VLOOKUP($B14,'10_VSP_Fodermiddeltabel'!$A$4:$CP$489,12,),CHAR(32)),"") -> 85 | F14: 15 | G14: =IFERROR(IF($B14>0,VLOOKUP($B14,'10_VSP_Fodermiddeltabel'!$A$4:$CP$489,13,),CHAR(32)),"") -> 8.6 | H14: =IFERROR(IF($B14>0,VLOOKUP($B14,'10_VSP_Fodermiddeltabel'!$A$4:$CP$489,14,),CHAR(32)),"") -> 2.1 | I14: =IFERROR(IF($B14>0,VLOOKUP($B14,'10_VSP_Fodermiddeltabel'!$A$4:$CP$489,15,),CHAR(32)),"") -> 1.5 | J14: =IFERROR(IF($B14>0,VLOOKUP($B14,'10_VSP_Fodermiddeltabel'!$A$4:$CP$489,16,),CHAR(32)),"") -> 2.7 | K14: =IFERROR(IF($B14>0,VLOOKUP($B14,'10_VSP_Fodermiddeltabel'!$A$4:$CP$489,8,),CHAR(32)),"") -> 91.6 | L14: =IFERROR(IF($B14>0,VLOOKUP($B14,'10_VSP_Fodermiddeltabel'!$A$4:$CP$489,9,),CHAR(32)),"") -> 87.199994 | M14: 1.16016851 | N14: 1.140343114 | Q14: 7 | R14: Lysin | S14: =HLOOKUP($Q14,$BM$1:$CN$7,4) -> 7.620785458 | T14: =+S14*100/S$14 -> 100 | U14: 7.7 | V14: =+S14*100/U14 -> 98.97123972 | W14: =HLOOKUP($Q14,$BM$1:$CN$7,7) -> 8.015906068 | X14: Lys | Y14: =HLOOKUP($Q14,$DX$1:$EH$7,7) -> 10.31727234 | Z14: =+Y14/$W$40*1000 -> 11.82923338 | AA14: =IF(Y14>0,+W14/Y14,"") -> 0.7769404357 | AE14: 4.400006 | AF14: 95.1965 | AG14: 835 | AI14: 116.016851 | AJ14: 114.0343114 | AL14: 0 | AM14: 1.764705882 | AN14: 10.11764706 | AO14: 2.470588235 | AP14: 91.6 | AQ14: 87.199994 | AR14: 15.12891598 | AS14: 98.23529412 | AT14: 72.20520166 | AU14: 6.174798336 | AV14: 7.660115983 | AW14: 136.490413 | AX14: 0 | AY14: 134.1580134 | AZ14: 0 | BA14: 764.86 | BB14: 728.1199499 | BD14: 113.23435 | BE14: =IF($C14>0,+BA14*$C14/100,CHAR(32)) -> 103.7226646 | BF14: =IF($C14>0,+BB14*$C14/100,CHAR(32)) -> 98.74034641 | BJ14: 0.1573304517 | BK14: 0.1573304517 | BL14: 0.1546419297 | BM14: 115.2685 | BN14: 11.66246 | BO14: 2.84781 | BP14: 2.03415 | BQ14: 3.66147 | BR14: 9.695122722 | BS14: 0.2797684449 | BT14: 0.154055386 | BU14: 0.2273453662 | BV14: 0.2710754328 | BW14: 0.1345641624 | BX14: 0.3208463217 | BY14: 0.6534230416 | BZ14: 0.221280706 | CA14: 0.4293214991 | CB14: 0.2660302894 | CC14: 0.404299812 | CD14: 0.0488196 | CE14: 0.352586 | CF14: 0.01152685 | CG14: =IF($C14>0,IF(VLOOKUP($B14,'10_VSP_Fodermiddeltabel'!$A$4:$DV$489,113,)>0,VLOOKUP($B14,'10_VSP_Fodermiddeltabel'!$A$4:$DV$489,113,)*$C14/100,0),CHAR(32)) -> 0 | CH14: =IF($C14>0,IF(VLOOKUP($B14,'10_VSP_Fodermiddeltabel'!$A$4:$DV$489,110,)>0,VLOOKUP($B14,'10_VSP_Fodermiddeltabel'!$A$4:$DV$489,110,)*$C14/100,0),CHAR(32)) -> 0 | CI14: =IF($C14>0,IF(VLOOKUP($B14,'10_VSP_Fodermiddeltabel'!$A$4:$DV$489,111,)>0,VLOOKUP($B14,'10_VSP_Fodermiddeltabel'!$A$4:$DV$489,111,)*$C14/100,0),CHAR(32)) -> 0 | CJ14: 0.09872408 | CK14: 0.15161198 | CL14: 0.16924128 | CM14: 0.19039644 | CN14: 0.20097402 | CO14: =IF($B14>0,VLOOKUP($B14,'10_VSP_Fodermiddeltabel'!$A$4:$CP$489,10,),CHAR(32)) -> 93 | CP14: =IF($B14>0,VLOOKUP($B14,'10_VSP_Fodermiddeltabel'!$A$4:$CP$489,11,),CHAR(32)) -> 1 | CQ14: 90 | CS14: 0.1495753079 | CT14: 0.145912788 | CU14: 0.1321607051 | CV14: 0.07286574499 | CW14: 0.04576412571 | CX14: 0.03898981723 | CY14: 0.06084160492 | CZ14: 0.07589962633 | DA14: 0.03490166208 | DB14: 0.0620966383 | DC14: 0.08698271187 | DD14: 0.05128537877 | DE14: 0.08464009516 | DF14: 0.06597429382 | DG14: 0.07555478152 | DH14: 0.06904423885 | DI14: 0.07459646571 | DJ14: 0.07124109609 | DK14: 0.06720116503 | DL14: 0.007121993975 | DM14: 0.07039375673 | DN14: 0.007318055017 | DO14: 0 | DP14: =IF($C14>0,IF(CH$7>0,+CH14/CH$7,0),CHAR(32)) -> 0 | DQ14: 0 | DR14: 0.06685018642 | DS14: 0.07390145966 | DT14: 0.07454453592 | DU14: 0.07671874951 | DV14: 0.07695545202 | DX14: =IF($C14>0,IF(EM14>0,+$BN14*EM14/100,0),CHAR(32)) -> 0.3658034169 | DY14: =IF($C14>0,IF(EN14>0,+$BN14*EN14/100,0),CHAR(32)) -> 0.1853163522 | DZ14: =IF($C14>0,IF(EO14>0,+$BN14*EO14/100,0),CHAR(32)) -> 0.2790595487 | EA14: =IF($C14>0,IF(EP14>0,+$BN14*EP14/100,0),CHAR(32)) -> 0.3506259601 | EB14: =IF($C14>0,IF(EQ14>0,+$BN14*EQ14/100,0),CHAR(32)) -> 0.1635050137 | EC14: =IF($C14>0,IF(ER14>0,+$BN14*ER14/100,0),CHAR(32)) -> 0.3898510664 | ED14: =IF($C14>0,IF(ES14>0,+$BN14*ES14/100,0),CHAR(32)) -> 0.7860158457 | EE14: =IF($C14>0,IF(ET14>0,+$BN14*ET14/100,0),CHAR(32)) -> 0.2688717725 | EF14: =IF($C14>0,IF(EU14>0,+$BN14*EU14/100,0),CHAR(32)) -> 0.5063132838 | EG14: =IF($C14>0,IF(EV14>0,+$BN14*EV14/100,0),CHAR(32)) -> 0.3200132374 | EH14: =IF($C14>0,IF(EW14>0,+$BN14*EW14/100,0),CHAR(32)) -> 0.5066046395 | EL14: =IF($B14>0,VLOOKUP($B14,'10_VSP_Fodermiddeltabel'!$A$4:$CP$489,18,),CHAR(32)) -> 83.13102658 | EM14: =IF($B14>0,VLOOKUP($B14,'10_VSP_Fodermiddeltabel'!$A$4:$CP$489,39,),CHAR(32)) -> 3.136588824 | EN14: =IF($B14>0,VLOOKUP($B14,'10_VSP_Fodermiddeltabel'!$A$4:$CP$489,40,),CHAR(32)) -> 1.588998824 | EO14: =IF($B14>0,VLOOKUP($B14,'10_VSP_Fodermiddeltabel'!$A$4:$CP$489,41,),CHAR(32)) -> 2.392801765 | EP14: =IF($B14>0,VLOOKUP($B14,'10_VSP_Fodermiddeltabel'!$A$4:$CP$489,42,),CHAR(32)) -> 3.006449412 | EQ14: =IF($B14>0,VLOOKUP($B14,'10_VSP_Fodermiddeltabel'!$A$4:$CP$489,43,),CHAR(32)) -> 1.401977059 | ER14: =IF($B14>0,VLOOKUP($B14,'10_VSP_Fodermiddeltabel'!$A$4:$CP$489,44,),CHAR(32)) -> 3.342785882 | ES14: =IF($B14>0,VLOOKUP($B14,'10_VSP_Fodermiddeltabel'!$A$4:$CP$489,45,),CHAR(32)) -> 6.739708824 | ET14: =IF($B14>0,VLOOKUP($B14,'10_VSP_Fodermiddeltabel'!$A$4:$CP$489,46,),CHAR(32)) -> 2.305446471 | EU14: =IF($B14>0,VLOOKUP($B14,'10_VSP_Fodermiddeltabel'!$A$4:$CP$489,47,),CHAR(32)) -> 4.341393529 | EV14: =IF($B14>0,VLOOKUP($B14,'10_VSP_Fodermiddeltabel'!$A$4:$CP$489,48,),CHAR(32)) -> 2.74396 | EW14: =IF($B14>0,VLOOKUP($B14,'10_VSP_Fodermiddeltabel'!$A$4:$CP$489,49,),CHAR(32)) -> 4.343891765 | EX14: =IF($B14>0,VLOOKUP($B14,'10_VSP_Fodermiddeltabel'!$A$4:$CP$489,51,),CHAR(32)) -> 0.92 | EY14: =IF($B14>0,VLOOKUP($B14,'10_VSP_Fodermiddeltabel'!$A$4:$CP$489,52,),CHAR(32)) -> 1 | EZ14: =IF($B14>0,VLOOKUP($B14,'10_VSP_Fodermiddeltabel'!$A$4:$CP$489,53,),CHAR(32)) -> 0.98 | FA14: =IF($B14>0,VLOOKUP($B14,'10_VSP_Fodermiddeltabel'!$A$4:$CP$489,54,),CHAR(32)) -> 0.93 | FB14: =IF($B14>0,VLOOKUP($B14,'10_VSP_Fodermiddeltabel'!$A$4:$CP$489,55,),CHAR(32)) -> 0.99 | FC14: =IF($B14>0,VLOOKUP($B14,'10_VSP_Fodermiddeltabel'!$A$4:$CP$489,56,),CHAR(32)) -> 0.99 | FD14: =IF($B14>0,VLOOKUP($B14,'10_VSP_Fodermiddeltabel'!$A$4:$CP$489,57,),CHAR(32)) -> 1 | FE14: =IF($B14>0,VLOOKUP($B14,'10_VSP_Fodermiddeltabel'!$A$4:$CP$489,58,),CHAR(32)) -> 0.99 | FF14: =IF($B14>0,VLOOKUP($B14,'10_VSP_Fodermiddeltabel'!$A$4:$CP$489,59,),CHAR(32)) -> 1.02 | FG14: =IF($B14>0,VLOOKUP($B14,'10_VSP_Fodermiddeltabel'!$A$4:$CP$489,60,),CHAR(32)) -> 1 | FH14: =IF($B14>0,VLOOKUP($B14,'10_VSP_Fodermiddeltabel'!$A$4:$CP$489,61,),CHAR(32)) -> 0.96 | FI14: =IF($B14>0,VLOOKUP($B14,'10_VSP_Fodermiddeltabel'!$A$4:$CP$489,2,),CHAR(32)) -> 510 | FJ14: =IF($B14>0,VLOOKUP($B14,'10_VSP_Fodermiddeltabel'!$A$4:$CP$489,3,),CHAR(32)) -> 11 | FK14: =IF($B14>0,VLOOKUP($B14,'10_VSP_Fodermiddeltabel'!$A$4:$CP$489,63,),CHAR(32)) -> 10.11764706 | FL14: =IF($B14>0,VLOOKUP($B14,'10_VSP_Fodermiddeltabel'!$A$4:$CP$489,64,),CHAR(32)) -> 2.470588235 | FM14: =IF($B14>0,VLOOKUP($B14,'10_VSP_Fodermiddeltabel'!$A$4:$CP$489,65,),CHAR(32)) -> 1.764705882 | FN14: =IF($B14>0,VLOOKUP($B14,'10_VSP_Fodermiddeltabel'!$A$4:$CP$489,66,),CHAR(32)) -> 3.176470588 | FO14: =IF($B14>0,VLOOKUP($B14,'10_VSP_Fodermiddeltabel'!$A$4:$CP$489,68,),CHAR(32)) -> 105 | FP14: =IF($B14>0,VLOOKUP($B14,'10_VSP_Fodermiddeltabel'!$A$4:$CP$489,69,),CHAR(32)) -> 25.94117647 | FQ14: =IF($B14>0,VLOOKUP($B14,'10_VSP_Fodermiddeltabel'!$A$4:$CP$489,70,),CHAR(32)) -> 1.364917925 | FR14: =IF($B14>0,VLOOKUP($B14,'10_VSP_Fodermiddeltabel'!$A$4:$CP$489,71,),CHAR(32)) -> 1.341593334 | FS14: =IF($B14>0,VLOOKUP($B14,'10_VSP_Fodermiddeltabel'!$A$4:$CP$489,19,),CHAR(32)) -> 28 | FT14: =IF($B14>0,VLOOKUP($B14,'10_VSP_Fodermiddeltabel'!$A$4:$CP$489,20,),CHAR(32)) -> 43 | FU14: =IF($B14>0,VLOOKUP($B14,'10_VSP_Fodermiddeltabel'!$A$4:$CP$489,21,),CHAR(32)) -> 48 | FV14: =IF($B14>0,VLOOKUP($B14,'10_VSP_Fodermiddeltabel'!$A$4:$CP$489,22,),CHAR(32)) -> 54 | FW14: =IF($B14>0,VLOOKUP($B14,'10_VSP_Fodermiddeltabel'!$A$4:$CP$489,23,),CHAR(32)) -> 57 | FX14: =IF($B14>0,VLOOKUP($B14,'10_VSP_Fodermiddeltabel'!$A$4:$CP$489,25,),CHAR(32)) -> 0.4235294118 | FY14: =IF($B14>0,VLOOKUP($B14,'10_VSP_Fodermiddeltabel'!$A$4:$CP$489,26,),CHAR(32)) -> 3.058823529 | FZ14: =IF($B14>0,VLOOKUP($B14,'10_VSP_Fodermiddeltabel'!$A$4:$CP$489,27,),CHAR(32)) -> 0.1 | GA14: =IF($B14>0,VLOOKUP($B14,'10_VSP_Fodermiddeltabel'!$A$4:$CP$489,28,),CHAR(32)) -> 1 | GB14: =IF($B14>0,VLOOKUP($B14,'10_VSP_Fodermiddeltabel'!$A$4:$CP$489,29,),CHAR(32)) -> 5.8 | GC14: =IF($B14>0,VLOOKUP($B14,'10_VSP_Fodermiddeltabel'!$A$4:$CP$489,30,),CHAR(32)) -> 1.2 | GD14: =IF($B14>0,VLOOKUP($B14,'10_VSP_Fodermiddeltabel'!$A$4:$CP$489,31,),CHAR(32)) -> 1.3 | GE14: =IF($B14>0,VLOOKUP($B14,'10_VSP_Fodermiddeltabel'!$A$4:$CP$489,32,),CHAR(32)) -> 32 | GF14: =IF($B14>0,VLOOKUP($B14,'10_VSP_Fodermiddeltabel'!$A$4:$CP$489,33,),CHAR(32)) -> 3.2 | GG14: =IF($B14>0,VLOOKUP($B14,'10_VSP_Fodermiddeltabel'!$A$4:$CP$489,34,),CHAR(32)) -> 29 | GH14: =IF($B14>0,VLOOKUP($B14,'10_VSP_Fodermiddeltabel'!$A$4:$CP$489,35,),CHAR(32)) -> 40 | GI14: =IF($B14>0,VLOOKUP($B14,'10_VSP_Fodermiddeltabel'!$A$4:$CP$489,36,),CHAR(32)) -> 0 | GJ14: =IF($B14>0,VLOOKUP($B14,'10_VSP_Fodermiddeltabel'!$A$4:$CP$489,37,),CHAR(32)) -> 0.06 | GL14: =IF($B14>0,VLOOKUP($B14,'10_VSP_Fodermiddeltabel'!$A$4:$CP$489,74,),CHAR(32)) -> 722.0521008 | GM14: =IF($B14>0,VLOOKUP($B14,'10_VSP_Fodermiddeltabel'!$A$4:$CP$489,75,),CHAR(32)) -> 61.74798336 | GN14: =IF($B14>0,VLOOKUP($B14,'10_VSP_Fodermiddeltabel'!$A$4:$CP$489,76,),CHAR(32)) -> 670 | GO14: =IF($B14>0,VLOOKUP($B14,'10_VSP_Fodermiddeltabel'!$A$4:$CP$489,77,),CHAR(32)) -> 19 | GP14: =IF($B14>0,VLOOKUP($B14,'10_VSP_Fodermiddeltabel'!$A$4:$CP$489,78,),CHAR(32)) -> 25 | GQ14: =IF($B14>0,VLOOKUP($B14,'10_VSP_Fodermiddeltabel'!$A$4:$CP$489,79,),CHAR(32)) -> 113 | GR14: =IF($B14>0,VLOOKUP($B14,'10_VSP_Fodermiddeltabel'!$A$4:$CP$489,1,),CHAR(32)) -> 51011 | GU14: =+'10_VSP_Fodermiddeltabel'!D5 -> BIOLYSIN 65 % | GV14: =+'10_VSP_Fodermiddeltabel'!A5 -> 99565
A15: SOJASKRÅFODER, afskallet toastet | B15: 61200 | C15: 5.574 | D15: =IFERROR(IF($B15>0,VLOOKUP($B15,'10_VSP_Fodermiddeltabel'!$A$4:$CP$489,5,),CHAR(32)),"") -> 2014-01-09 | E15: =IFERROR(IF($B15>0,VLOOKUP($B15,'10_VSP_Fodermiddeltabel'!$A$4:$CP$489,12,),CHAR(32)),"") -> 87.8 | F15: 12.2 | G15: =IFERROR(IF($B15>0,VLOOKUP($B15,'10_VSP_Fodermiddeltabel'!$A$4:$CP$489,13,),CHAR(32)),"") -> 46.42114859 | H15: =IFERROR(IF($B15>0,VLOOKUP($B15,'10_VSP_Fodermiddeltabel'!$A$4:$CP$489,14,),CHAR(32)),"") -> 2.140975387 | I15: =IFERROR(IF($B15>0,VLOOKUP($B15,'10_VSP_Fodermiddeltabel'!$A$4:$CP$489,15,),CHAR(32)),"") -> 6.552985415 | J15: =IFERROR(IF($B15>0,VLOOKUP($B15,'10_VSP_Fodermiddeltabel'!$A$4:$CP$489,16,),CHAR(32)),"") -> 3.611645397 | K15: =IFERROR(IF($B15>0,VLOOKUP($B15,'10_VSP_Fodermiddeltabel'!$A$4:$CP$489,8,),CHAR(32)),"") -> 94.09 | L15: =IFERROR(IF($B15>0,VLOOKUP($B15,'10_VSP_Fodermiddeltabel'!$A$4:$CP$489,9,),CHAR(32)),"") -> 79.51000178 | M15: 0.9605259232 | N15: 0.9746650179 | Q15: 8 | R15: Methionin | S15: 2.358608791 | T15: =+S15*100/S$14 -> 30.94968103 | U15: =IF(U$14<8.8,IF(U$14<6.51,IF(U$14<6,+U$14*'11_Normprofiler'!D8/100,+U$14*'11_Normprofiler'!E8/100),+U$14*'11_Normprofiler'!C8/100),+U$14*'11_Normprofiler'!B8/100) -> 2.3 | V15: =+S15*100/U15 -> 102.5482083 | W15: 2.480897359 | X15: Met | Y15: =HLOOKUP($Q15,$DX$1:$EH$7,7) -> 2.885594812 | Z15: =+Y15/$W$40*1000 -> 3.30846888 | AA15: 0.8597525019 | AE15: 14.57999822 | AF15: 84.5042 | AG15: 812.4701459 | AI15: 96.05259232 | AJ15: 97.46650179 | AL15: 0 | AM15: 7.463536919 | AN15: 52.87146764 | AO15: 2.438468551 | AP15: 94.09 | AQ15: 79.51000178 | AR15: 27.1526798 | AS15: 92.53646308 | AT15: 17.31518711 | AU15: 19.27402096 | AV15: 20.25842385 | AW15: 109.3993079 | AX15: 0 | AY15: 111.0096831 | AZ15: 0 | BA15: 764.4531602 | BB15: 645.9950274 | BD15: 45.28708593 | BE15: 42.61061915 | BF15: 36.00776283 | BJ15: 0.05353971496 | BK15: 0.05353971496 | BL15: 0.0543278281 | BM15: 48.93972 | BN15: 25.87514822 | BO15: 1.193379681 | BP15: 3.65263407 | BQ15: 2.013131144 | BR15: 22.77013044 | BS15: 1.426047729 | BT15: 0.3203757352 | BU15: 0.3201024937 | BV15: 0.881408979 | BW15: 0.3196926313 | BX15: 1.021103729 | BY15: 1.770833044 | BZ15: 0.6168200634 | CA15: 1.161276652 | CB15: 0.8663123826 | CC15: 1.087797441 | CD15: 0.1784492981 | CE15: 0.3513220556 | CF15: 0.004893972 | CG15: =IF($C15>0,IF(VLOOKUP($B15,'10_VSP_Fodermiddeltabel'!$A$4:$DV$489,113,)>0,VLOOKUP($B15,'10_VSP_Fodermiddeltabel'!$A$4:$DV$489,113,)*$C15/100,0),CHAR(32)) -> 0 | CH15: =IF($C15>0,IF(VLOOKUP($B15,'10_VSP_Fodermiddeltabel'!$A$4:$DV$489,110,)>0,VLOOKUP($B15,'10_VSP_Fodermiddeltabel'!$A$4:$DV$489,110,)*$C15/100,0),CHAR(32)) -> 0 | CI15: =IF($C15>0,IF(VLOOKUP($B15,'10_VSP_Fodermiddeltabel'!$A$4:$DV$489,111,)>0,VLOOKUP($B15,'10_VSP_Fodermiddeltabel'!$A$4:$DV$489,111,)*$C15/100,0),CHAR(32)) -> 0 | CJ15: 0.1370156017 | CK15: 0.1791742484 | CL15: 0.1967403511 | CM15: 0.2107932334 | CN15: 0.221332895 | CO15: =IF($B15>0,VLOOKUP($B15,'10_VSP_Fodermiddeltabel'!$A$4:$CP$489,10,),CHAR(32)) -> 96 | CP15: =IF($B15>0,VLOOKUP($B15,'10_VSP_Fodermiddeltabel'!$A$4:$CP$489,11,),CHAR(32)) -> 1 | CQ15: 90 | CS15: 0.05090063154 | CT15: 0.05126116105 | CU15: 0.05611166887 | CV15: 0.1616650305 | CW15: 0.01917753563 | CX15: 0.07001230725 | CY15: 0.03345162727 | CZ15: 0.1782591558 | DA15: 0.1779022505 | DB15: 0.1291370375 | DC15: 0.1224717417 | DD15: 0.166755773 | DE15: 0.2010848524 | DF15: 0.2099653102 | DG15: 0.2047600027 | DH15: 0.1924608456 | DI15: 0.2017768366 | DJ15: 0.2319925442 | DK15: 0.180809521 | DL15: 0.02603288076 | DM15: 0.07014141036 | DN15: 0.003107037599 | DO15: 0 | DP15: 0 | DQ15: 0 | DR15: 0.0927789706 | DS15: 0.08733636014 | DT15: 0.08665686157 | DU15: 0.08493747713 | DV15: 0.0847511185 | DX15: 1.588734101 | DY15: 0.3467269862 | DZ15: 0.3674271048 | EA15: 1.011718295 | EB15: 0.349314501 | EC15: 1.148856581 | ED15: 1.992386413 | EE15: 0.6805163982 | EF15: 1.293757411 | EG15: 0.9651430287 | EH15: 1.223894511 | EL15: =IF($B15>0,VLOOKUP($B15,'10_VSP_Fodermiddeltabel'!$A$4:$CP$489,18,),CHAR(32)) -> 88 | EM15: =IF($B15>0,VLOOKUP($B15,'10_VSP_Fodermiddeltabel'!$A$4:$CP$489,39,),CHAR(32)) -> 6.14 | EN15: =IF($B15>0,VLOOKUP($B15,'10_VSP_Fodermiddeltabel'!$A$4:$CP$489,40,),CHAR(32)) -> 1.34 | EO15: =IF($B15>0,VLOOKUP($B15,'10_VSP_Fodermiddeltabel'!$A$4:$CP$489,41,),CHAR(32)) -> 1.42 | EP15: =IF($B15>0,VLOOKUP($B15,'10_VSP_Fodermiddeltabel'!$A$4:$CP$489,42,),CHAR(32)) -> 3.91 | EQ15: =IF($B15>0,VLOOKUP($B15,'10_VSP_Fodermiddeltabel'!$A$4:$CP$489,43,),CHAR(32)) -> 1.35 | ER15: =IF($B15>0,VLOOKUP($B15,'10_VSP_Fodermiddeltabel'!$A$4:$CP$489,44,),CHAR(32)) -> 4.44 | ES15: =IF($B15>0,VLOOKUP($B15,'10_VSP_Fodermiddeltabel'!$A$4:$CP$489,45,),CHAR(32)) -> 7.7 | ET15: =IF($B15>0,VLOOKUP($B15,'10_VSP_Fodermiddeltabel'!$A$4:$CP$489,46,),CHAR(32)) -> 2.63 | EU15: =IF($B15>0,VLOOKUP($B15,'10_VSP_Fodermiddeltabel'!$A$4:$CP$489,47,),CHAR(32)) -> 5 | EV15: =IF($B15>0,VLOOKUP($B15,'10_VSP_Fodermiddeltabel'!$A$4:$CP$489,48,),CHAR(32)) -> 3.73 | EW15: =IF($B15>0,VLOOKUP($B15,'10_VSP_Fodermiddeltabel'!$A$4:$CP$489,49,),CHAR(32)) -> 4.73 | EX15: =IF($B15>0,VLOOKUP($B15,'10_VSP_Fodermiddeltabel'!$A$4:$CP$489,51,),CHAR(32)) -> 1.02 | EY15: =IF($B15>0,VLOOKUP($B15,'10_VSP_Fodermiddeltabel'!$A$4:$CP$489,52,),CHAR(32)) -> 1.05 | EZ15: =IF($B15>0,VLOOKUP($B15,'10_VSP_Fodermiddeltabel'!$A$4:$CP$489,53,),CHAR(32)) -> 0.99 | FA15: =IF($B15>0,VLOOKUP($B15,'10_VSP_Fodermiddeltabel'!$A$4:$CP$489,54,),CHAR(32)) -> 0.99 | FB15: =IF($B15>0,VLOOKUP($B15,'10_VSP_Fodermiddeltabel'!$A$4:$CP$489,55,),CHAR(32)) -> 1.04 | FC15: =IF($B15>0,VLOOKUP($B15,'10_VSP_Fodermiddeltabel'!$A$4:$CP$489,56,),CHAR(32)) -> 1.01 | FD15: =IF($B15>0,VLOOKUP($B15,'10_VSP_Fodermiddeltabel'!$A$4:$CP$489,57,),CHAR(32)) -> 1.01 | FE15: =IF($B15>0,VLOOKUP($B15,'10_VSP_Fodermiddeltabel'!$A$4:$CP$489,58,),CHAR(32)) -> 1.03 | FF15: =IF($B15>0,VLOOKUP($B15,'10_VSP_Fodermiddeltabel'!$A$4:$CP$489,59,),CHAR(32)) -> 1.02 | FG15: =IF($B15>0,VLOOKUP($B15,'10_VSP_Fodermiddeltabel'!$A$4:$CP$489,60,),CHAR(32)) -> 1.02 | FH15: =IF($B15>0,VLOOKUP($B15,'10_VSP_Fodermiddeltabel'!$A$4:$CP$489,61,),CHAR(32)) -> 1.01 | FI15: =IF($B15>0,VLOOKUP($B15,'10_VSP_Fodermiddeltabel'!$A$4:$CP$489,2,),CHAR(32)) -> 612 | FJ15: =IF($B15>0,VLOOKUP($B15,'10_VSP_Fodermiddeltabel'!$A$4:$CP$489,3,),CHAR(32)) -> 0 | FK15: =IF($B15>0,VLOOKUP($B15,'10_VSP_Fodermiddeltabel'!$A$4:$CP$489,63,),CHAR(32)) -> 52.87146764 | FL15: =IF($B15>0,VLOOKUP($B15,'10_VSP_Fodermiddeltabel'!$A$4:$CP$489,64,),CHAR(32)) -> 2.438468551 | FM15: =IF($B15>0,VLOOKUP($B15,'10_VSP_Fodermiddeltabel'!$A$4:$CP$489,65,),CHAR(32)) -> 7.463536919 | FN15: =IF($B15>0,VLOOKUP($B15,'10_VSP_Fodermiddeltabel'!$A$4:$CP$489,66,),CHAR(32)) -> 4.11349134 | FO15: =IF($B15>0,VLOOKUP($B15,'10_VSP_Fodermiddeltabel'!$A$4:$CP$489,68,),CHAR(32)) -> 130 | FP15: =IF($B15>0,VLOOKUP($B15,'10_VSP_Fodermiddeltabel'!$A$4:$CP$489,69,),CHAR(32)) -> 31.70009116 | FQ15: =IF($B15>0,VLOOKUP($B15,'10_VSP_Fodermiddeltabel'!$A$4:$CP$489,70,),CHAR(32)) -> 1.09406472 | FR15: =IF($B15>0,VLOOKUP($B15,'10_VSP_Fodermiddeltabel'!$A$4:$CP$489,71,),CHAR(32)) -> 1.110165496 | FS15: =IF($B15>0,VLOOKUP($B15,'10_VSP_Fodermiddeltabel'!$A$4:$CP$489,19,),CHAR(32)) -> 39 | FT15: =IF($B15>0,VLOOKUP($B15,'10_VSP_Fodermiddeltabel'!$A$4:$CP$489,20,),CHAR(32)) -> 51 | FU15: =IF($B15>0,VLOOKUP($B15,'10_VSP_Fodermiddeltabel'!$A$4:$CP$489,21,),CHAR(32)) -> 56 | FV15: =IF($B15>0,VLOOKUP($B15,'10_VSP_Fodermiddeltabel'!$A$4:$CP$489,22,),CHAR(32)) -> 60 | FW15: =IF($B15>0,VLOOKUP($B15,'10_VSP_Fodermiddeltabel'!$A$4:$CP$489,23,),CHAR(32)) -> 63 | FX15: =IF($B15>0,VLOOKUP($B15,'10_VSP_Fodermiddeltabel'!$A$4:$CP$489,25,),CHAR(32)) -> 3.646308113 | FY15: =IF($B15>0,VLOOKUP($B15,'10_VSP_Fodermiddeltabel'!$A$4:$CP$489,26,),CHAR(32)) -> 7.178669098 | FZ15: =IF($B15>0,VLOOKUP($B15,'10_VSP_Fodermiddeltabel'!$A$4:$CP$489,27,),CHAR(32)) -> 0.1 | GA15: =IF($B15>0,VLOOKUP($B15,'10_VSP_Fodermiddeltabel'!$A$4:$CP$489,28,),CHAR(32)) -> 0 | GB15: =IF($B15>0,VLOOKUP($B15,'10_VSP_Fodermiddeltabel'!$A$4:$CP$489,29,),CHAR(32)) -> 24 | GC15: =IF($B15>0,VLOOKUP($B15,'10_VSP_Fodermiddeltabel'!$A$4:$CP$489,30,),CHAR(32)) -> 3.3 | GD15: =IF($B15>0,VLOOKUP($B15,'10_VSP_Fodermiddeltabel'!$A$4:$CP$489,31,),CHAR(32)) -> 3.8 | GE15: =IF($B15>0,VLOOKUP($B15,'10_VSP_Fodermiddeltabel'!$A$4:$CP$489,32,),CHAR(32)) -> 212 | GF15: =IF($B15>0,VLOOKUP($B15,'10_VSP_Fodermiddeltabel'!$A$4:$CP$489,33,),CHAR(32)) -> 14 | GG15: =IF($B15>0,VLOOKUP($B15,'10_VSP_Fodermiddeltabel'!$A$4:$CP$489,34,),CHAR(32)) -> 49 | GH15: =IF($B15>0,VLOOKUP($B15,'10_VSP_Fodermiddeltabel'!$A$4:$CP$489,35,),CHAR(32)) -> 51 | GI15: =IF($B15>0,VLOOKUP($B15,'10_VSP_Fodermiddeltabel'!$A$4:$CP$489,36,),CHAR(32)) -> 0 | GJ15: =IF($B15>0,VLOOKUP($B15,'10_VSP_Fodermiddeltabel'!$A$4:$CP$489,37,),CHAR(32)) -> 0.2 | GL15: =IF($B15>0,VLOOKUP($B15,'10_VSP_Fodermiddeltabel'!$A$4:$CP$489,74,),CHAR(32)) -> 173.1518711 | GM15: =IF($B15>0,VLOOKUP($B15,'10_VSP_Fodermiddeltabel'!$A$4:$CP$489,75,),CHAR(32)) -> 192.7402096 | GN15: =IF($B15>0,VLOOKUP($B15,'10_VSP_Fodermiddeltabel'!$A$4:$CP$489,76,),CHAR(32)) -> 64.77272727 | GO15: =IF($B15>0,VLOOKUP($B15,'10_VSP_Fodermiddeltabel'!$A$4:$CP$489,77,),CHAR(32)) -> 109.0909091 | GP15: =IF($B15>0,VLOOKUP($B15,'10_VSP_Fodermiddeltabel'!$A$4:$CP$489,78,),CHAR(32)) ->  | GQ15: =IF($B15>0,VLOOKUP($B15,'10_VSP_Fodermiddeltabel'!$A$4:$CP$489,79,),CHAR(32)) ->  | GR15: =IF($B15>0,VLOOKUP($B15,'10_VSP_Fodermiddeltabel'!$A$4:$CP$489,1,),CHAR(32)) -> 61200 | GU15: =+'10_VSP_Fodermiddeltabel'!D6 -> BIOLYSIN65% Vådf , FK=75% | GV15: =+'10_VSP_Fodermiddeltabel'!A6 -> 99566
A16: RAPSKAGEFODER, lavt glukosinolatindhold | B16: 58400 | C16: 10 | D16: =IFERROR(IF($B16>0,VLOOKUP($B16,'10_VSP_Fodermiddeltabel'!$A$4:$CP$489,5,),CHAR(32)),"") -> 2014-06-24 | E16: =IFERROR(IF($B16>0,VLOOKUP($B16,'10_VSP_Fodermiddeltabel'!$A$4:$CP$489,12,),CHAR(32)),"") -> 90.84 | F16: 9.16 | G16: =IFERROR(IF($B16>0,VLOOKUP($B16,'10_VSP_Fodermiddeltabel'!$A$4:$CP$489,13,),CHAR(32)),"") -> 31.27 | H16: =IFERROR(IF($B16>0,VLOOKUP($B16,'10_VSP_Fodermiddeltabel'!$A$4:$CP$489,14,),CHAR(32)),"") -> 9.87 | I16: =IFERROR(IF($B16>0,VLOOKUP($B16,'10_VSP_Fodermiddeltabel'!$A$4:$CP$489,15,),CHAR(32)),"") -> 6.31 | J16: =IFERROR(IF($B16>0,VLOOKUP($B16,'10_VSP_Fodermiddeltabel'!$A$4:$CP$489,16,),CHAR(32)),"") -> 12.42 | K16: =IFERROR(IF($B16>0,VLOOKUP($B16,'10_VSP_Fodermiddeltabel'!$A$4:$CP$489,8,),CHAR(32)),"") -> 78.04 | L16: =IFERROR(IF($B16>0,VLOOKUP($B16,'10_VSP_Fodermiddeltabel'!$A$4:$CP$489,9,),CHAR(32)),"") -> 60.73 | M16: 0.9135350993 | N16: 0.9689178477 | Q16: 9 | R16: Met. + Cystin | S16: 4.843459374 | T16: 63.55590773 | U16: =IF(U$14<8.8,IF(U$14<6.51,IF(U$14<6,+U$14*'11_Normprofiler'!D9/100,+U$14*'11_Normprofiler'!E9/100),+U$14*'11_Normprofiler'!C9/100),+U$14*'11_Normprofiler'!B9/100) -> 4.5 | V16: =+S16*100/U16 -> 107.6324305 | W16: 2.613684505 | X16: Cys | Y16: 3.238286006 | Z16: 3.712845764 | AA16: 0.8071197232 | AE16: 17.31 | AF16: 77.81906715 | AG16: 845.3 | AI16: 91.35350993 | AJ16: 96.89178477 | AL16: 0 | AM16: 6.946279172 | AN16: 34.4231616 | AO16: 10.8652576 | AP16: 78.04 | AQ16: 60.73 | AR16: 46.2899047 | AS16: 93.05372083 | AT16: 7.743890986 | AU16: 23.01085582 | AV16: 26.6890833 | AW16: 100.5652905 | AX16: 0 | AY16: 106.6620264 | AZ16: 0 | BA16: 659.67212 | BB16: 513.35069 | BD16: 84.53 | BE16: 65.967212 | BF16: 51.335069 | BJ16: 0.09135350993 | BK16: 0.09135350993 | BL16: 0.09689178477 | BM16: 90.84 | BN16: 31.27 | BO16: 9.87 | BP16: 6.31 | BQ16: 12.42 | BR16: 24.0779 | BS16: 1.337527345 | BT16: 0.54416054 | BU16: 0.6295166955 | BV16: 1.048833324 | BW16: 0.3149630099 | BX16: 0.967209243 | BY16: 1.829198063 | BZ16: 0.738950751 | CA16: 1.03053412 | CB16: 0.7489671574 | CC16: 1.24964301 | CD16: 0.74 | CE16: 0.95 | CF16: 0.009084 | CG16: =IF($C16>0,IF(VLOOKUP($B16,'10_VSP_Fodermiddeltabel'!$A$4:$DV$489,113,)>0,VLOOKUP($B16,'10_VSP_Fodermiddeltabel'!$A$4:$DV$489,113,)*$C16/100,0),CHAR(32)) -> 0 | CH16: =IF($C16>0,IF(VLOOKUP($B16,'10_VSP_Fodermiddeltabel'!$A$4:$DV$489,110,)>0,VLOOKUP($B16,'10_VSP_Fodermiddeltabel'!$A$4:$DV$489,110,)*$C16/100,0),CHAR(32)) -> 0 | CI16: =IF($C16>0,IF(VLOOKUP($B16,'10_VSP_Fodermiddeltabel'!$A$4:$DV$489,111,)>0,VLOOKUP($B16,'10_VSP_Fodermiddeltabel'!$A$4:$DV$489,111,)*$C16/100,0),CHAR(32)) -> 0 | CJ16: 0.2565 | CK16: 0.38 | CL16: 0.4275 | CM16: 0.475 | CN16: 0.5035 | CO16: =IF($B16>0,VLOOKUP($B16,'10_VSP_Fodermiddeltabel'!$A$4:$CP$489,10,),CHAR(32)) -> 86 | CP16: =IF($B16>0,VLOOKUP($B16,'10_VSP_Fodermiddeltabel'!$A$4:$CP$489,11,),CHAR(32)) -> 1 | CQ16: 90 | CS16: 0.08685050625 | CT16: 0.09142249114 | CU16: 0.1041522918 | CV16: 0.1953714607 | CW16: 0.1586102727 | CX16: 0.1209476915 | CY16: 0.2063796052 | CZ16: 0.188497213 | DA16: 0.166859159 | DB16: 0.2193402069 | DC16: 0.2408541254 | DD16: 0.1984311663 | DE16: 0.1981099473 | DF16: 0.1988832113 | DG16: 0.211508703 | DH16: 0.2305681913 | DI16: 0.1790597566 | DJ16: 0.2005682937 | DK16: 0.2077108711 | DL16: 0.107954091 | DM16: 0.1896673971 | DN16: 0.005767162042 | DO16: 0 | DP16: 0 | DQ16: 0 | DR16: 0.1736868332 | DS16: 0.1852264885 | DT16: 0.1882979679 | DU16: 0.1913975178 | DV16: 0.1927964127 | DX16: 1.71985 | DY16: 0.6254 | DZ16: 0.778623 | EA16: 1.37588 | EB16: 0.397129 | EC16: 1.21953 | ED16: 2.22017 | EE16: 0.872433 | EF16: 1.2508 | EG16: 0.944354 | EH16: 1.622913 | EL16: =IF($B16>0,VLOOKUP($B16,'10_VSP_Fodermiddeltabel'!$A$4:$CP$489,18,),CHAR(32)) -> 77 | EM16: =IF($B16>0,VLOOKUP($B16,'10_VSP_Fodermiddeltabel'!$A$4:$CP$489,39,),CHAR(32)) -> 5.5 | EN16: =IF($B16>0,VLOOKUP($B16,'10_VSP_Fodermiddeltabel'!$A$4:$CP$489,40,),CHAR(32)) -> 2 | EO16: =IF($B16>0,VLOOKUP($B16,'10_VSP_Fodermiddeltabel'!$A$4:$CP$489,41,),CHAR(32)) -> 2.49 | EP16: =IF($B16>0,VLOOKUP($B16,'10_VSP_Fodermiddeltabel'!$A$4:$CP$489,42,),CHAR(32)) -> 4.4 | EQ16: =IF($B16>0,VLOOKUP($B16,'10_VSP_Fodermiddeltabel'!$A$4:$CP$489,43,),CHAR(32)) -> 1.27 | ER16: =IF($B16>0,VLOOKUP($B16,'10_VSP_Fodermiddeltabel'!$A$4:$CP$489,44,),CHAR(32)) -> 3.9 | ES16: =IF($B16>0,VLOOKUP($B16,'10_VSP_Fodermiddeltabel'!$A$4:$CP$489,45,),CHAR(32)) -> 7.1 | ET16: =IF($B16>0,VLOOKUP($B16,'10_VSP_Fodermiddeltabel'!$A$4:$CP$489,46,),CHAR(32)) -> 2.79 | EU16: =IF($B16>0,VLOOKUP($B16,'10_VSP_Fodermiddeltabel'!$A$4:$CP$489,47,),CHAR(32)) -> 4 | EV16: =IF($B16>0,VLOOKUP($B16,'10_VSP_Fodermiddeltabel'!$A$4:$CP$489,48,),CHAR(32)) -> 3.02 | EW16: =IF($B16>0,VLOOKUP($B16,'10_VSP_Fodermiddeltabel'!$A$4:$CP$489,49,),CHAR(32)) -> 5.19 | EX16: =IF($B16>0,VLOOKUP($B16,'10_VSP_Fodermiddeltabel'!$A$4:$CP$489,51,),CHAR(32)) -> 1.01 | EY16: =IF($B16>0,VLOOKUP($B16,'10_VSP_Fodermiddeltabel'!$A$4:$CP$489,52,),CHAR(32)) -> 1.13 | EZ16: =IF($B16>0,VLOOKUP($B16,'10_VSP_Fodermiddeltabel'!$A$4:$CP$489,53,),CHAR(32)) -> 1.05 | FA16: =IF($B16>0,VLOOKUP($B16,'10_VSP_Fodermiddeltabel'!$A$4:$CP$489,54,),CHAR(32)) -> 0.99 | FB16: =IF($B16>0,VLOOKUP($B16,'10_VSP_Fodermiddeltabel'!$A$4:$CP$489,55,),CHAR(32)) -> 1.03 | FC16: =IF($B16>0,VLOOKUP($B16,'10_VSP_Fodermiddeltabel'!$A$4:$CP$489,56,),CHAR(32)) -> 1.03 | FD16: =IF($B16>0,VLOOKUP($B16,'10_VSP_Fodermiddeltabel'!$A$4:$CP$489,57,),CHAR(32)) -> 1.07 | FE16: =IF($B16>0,VLOOKUP($B16,'10_VSP_Fodermiddeltabel'!$A$4:$CP$489,58,),CHAR(32)) -> 1.1 | FF16: =IF($B16>0,VLOOKUP($B16,'10_VSP_Fodermiddeltabel'!$A$4:$CP$489,59,),CHAR(32)) -> 1.07 | FG16: =IF($B16>0,VLOOKUP($B16,'10_VSP_Fodermiddeltabel'!$A$4:$CP$489,60,),CHAR(32)) -> 1.03 | FH16: =IF($B16>0,VLOOKUP($B16,'10_VSP_Fodermiddeltabel'!$A$4:$CP$489,61,),CHAR(32)) -> 1 | FI16: =IF($B16>0,VLOOKUP($B16,'10_VSP_Fodermiddeltabel'!$A$4:$CP$489,2,),CHAR(32)) -> 584 | FJ16: =IF($B16>0,VLOOKUP($B16,'10_VSP_Fodermiddeltabel'!$A$4:$CP$489,3,),CHAR(32)) -> 0 | FK16: =IF($B16>0,VLOOKUP($B16,'10_VSP_Fodermiddeltabel'!$A$4:$CP$489,63,),CHAR(32)) -> 34.4231616 | FL16: =IF($B16>0,VLOOKUP($B16,'10_VSP_Fodermiddeltabel'!$A$4:$CP$489,64,),CHAR(32)) -> 10.8652576 | FM16: =IF($B16>0,VLOOKUP($B16,'10_VSP_Fodermiddeltabel'!$A$4:$CP$489,65,),CHAR(32)) -> 6.946279172 | FN16: =IF($B16>0,VLOOKUP($B16,'10_VSP_Fodermiddeltabel'!$A$4:$CP$489,66,),CHAR(32)) -> 13.67239102 | FO16: =IF($B16>0,VLOOKUP($B16,'10_VSP_Fodermiddeltabel'!$A$4:$CP$489,68,),CHAR(32)) -> 115 | FP16: =IF($B16>0,VLOOKUP($B16,'10_VSP_Fodermiddeltabel'!$A$4:$CP$489,69,),CHAR(32)) -> 124.9504624 | FQ16: =IF($B16>0,VLOOKUP($B16,'10_VSP_Fodermiddeltabel'!$A$4:$CP$489,70,),CHAR(32)) -> 1.005699549 | FR16: =IF($B16>0,VLOOKUP($B16,'10_VSP_Fodermiddeltabel'!$A$4:$CP$489,71,),CHAR(32)) -> 1.066664969 | FS16: =IF($B16>0,VLOOKUP($B16,'10_VSP_Fodermiddeltabel'!$A$4:$CP$489,19,),CHAR(32)) -> 27 | FT16: =IF($B16>0,VLOOKUP($B16,'10_VSP_Fodermiddeltabel'!$A$4:$CP$489,20,),CHAR(32)) -> 40 | FU16: =IF($B16>0,VLOOKUP($B16,'10_VSP_Fodermiddeltabel'!$A$4:$CP$489,21,),CHAR(32)) -> 45 | FV16: =IF($B16>0,VLOOKUP($B16,'10_VSP_Fodermiddeltabel'!$A$4:$CP$489,22,),CHAR(32)) -> 50 | FW16: =IF($B16>0,VLOOKUP($B16,'10_VSP_Fodermiddeltabel'!$A$4:$CP$489,23,),CHAR(32)) -> 53 | FX16: =IF($B16>0,VLOOKUP($B16,'10_VSP_Fodermiddeltabel'!$A$4:$CP$489,25,),CHAR(32)) -> 8.146191105 | FY16: =IF($B16>0,VLOOKUP($B16,'10_VSP_Fodermiddeltabel'!$A$4:$CP$489,26,),CHAR(32)) -> 10.45794804 | FZ16: =IF($B16>0,VLOOKUP($B16,'10_VSP_Fodermiddeltabel'!$A$4:$CP$489,27,),CHAR(32)) -> 0.1 | GA16: =IF($B16>0,VLOOKUP($B16,'10_VSP_Fodermiddeltabel'!$A$4:$CP$489,28,),CHAR(32)) -> 0.5 | GB16: =IF($B16>0,VLOOKUP($B16,'10_VSP_Fodermiddeltabel'!$A$4:$CP$489,29,),CHAR(32)) -> 13.5 | GC16: =IF($B16>0,VLOOKUP($B16,'10_VSP_Fodermiddeltabel'!$A$4:$CP$489,30,),CHAR(32)) -> 4.7 | GD16: =IF($B16>0,VLOOKUP($B16,'10_VSP_Fodermiddeltabel'!$A$4:$CP$489,31,),CHAR(32)) -> 6.7 | GE16: =IF($B16>0,VLOOKUP($B16,'10_VSP_Fodermiddeltabel'!$A$4:$CP$489,32,),CHAR(32)) -> 200 | GF16: =IF($B16>0,VLOOKUP($B16,'10_VSP_Fodermiddeltabel'!$A$4:$CP$489,33,),CHAR(32)) -> 7.3 | GG16: =IF($B16>0,VLOOKUP($B16,'10_VSP_Fodermiddeltabel'!$A$4:$CP$489,34,),CHAR(32)) -> 61 | GH16: =IF($B16>0,VLOOKUP($B16,'10_VSP_Fodermiddeltabel'!$A$4:$CP$489,35,),CHAR(32)) -> 55 | GI16: =IF($B16>0,VLOOKUP($B16,'10_VSP_Fodermiddeltabel'!$A$4:$CP$489,36,),CHAR(32)) -> 0 | GJ16: =IF($B16>0,VLOOKUP($B16,'10_VSP_Fodermiddeltabel'!$A$4:$CP$489,37,),CHAR(32)) -> 0.11 | GL16: =IF($B16>0,VLOOKUP($B16,'10_VSP_Fodermiddeltabel'!$A$4:$CP$489,74,),CHAR(32)) -> 77.43890986 | GM16: =IF($B16>0,VLOOKUP($B16,'10_VSP_Fodermiddeltabel'!$A$4:$CP$489,75,),CHAR(32)) -> 230.1085582 | GN16: =IF($B16>0,VLOOKUP($B16,'10_VSP_Fodermiddeltabel'!$A$4:$CP$489,76,),CHAR(32)) ->  | GO16: =IF($B16>0,VLOOKUP($B16,'10_VSP_Fodermiddeltabel'!$A$4:$CP$489,77,),CHAR(32)) ->  | GP16: =IF($B16>0,VLOOKUP($B16,'10_VSP_Fodermiddeltabel'!$A$4:$CP$489,78,),CHAR(32)) -> 56.77777778 | GQ16: =IF($B16>0,VLOOKUP($B16,'10_VSP_Fodermiddeltabel'!$A$4:$CP$489,79,),CHAR(32)) -> 317.3333333 | GR16: =IF($B16>0,VLOOKUP($B16,'10_VSP_Fodermiddeltabel'!$A$4:$CP$489,1,),CHAR(32)) -> 58400 | GU16: =+'10_VSP_Fodermiddeltabel'!D7 -> BLODPLASMA, Daka Sprayt 2500 | GV16: =+'10_VSP_Fodermiddeltabel'!A7 -> 80500
A17: SOLSIKKESKRÅFODER, afskallet | B17: 62200 | C17: 10 | D17: =IFERROR(IF($B17>0,VLOOKUP($B17,'10_VSP_Fodermiddeltabel'!$A$4:$CP$489,5,),CHAR(32)),"") -> 2013-08-13 | E17: =IFERROR(IF($B17>0,VLOOKUP($B17,'10_VSP_Fodermiddeltabel'!$A$4:$CP$489,12,),CHAR(32)),"") -> 90.28 | F17: 9.72 | G17: =IFERROR(IF($B17>0,VLOOKUP($B17,'10_VSP_Fodermiddeltabel'!$A$4:$CP$489,13,),CHAR(32)),"") -> 37.43 | H17: =IFERROR(IF($B17>0,VLOOKUP($B17,'10_VSP_Fodermiddeltabel'!$A$4:$CP$489,14,),CHAR(32)),"") -> 2.36 | I17: =IFERROR(IF($B17>0,VLOOKUP($B17,'10_VSP_Fodermiddeltabel'!$A$4:$CP$489,15,),CHAR(32)),"") -> 6.35 | J17: =IFERROR(IF($B17>0,VLOOKUP($B17,'10_VSP_Fodermiddeltabel'!$A$4:$CP$489,16,),CHAR(32)),"") -> 18.17 | K17: =IFERROR(IF($B17>0,VLOOKUP($B17,'10_VSP_Fodermiddeltabel'!$A$4:$CP$489,8,),CHAR(32)),"") -> 73.51 | L17: =IFERROR(IF($B17>0,VLOOKUP($B17,'10_VSP_Fodermiddeltabel'!$A$4:$CP$489,9,),CHAR(32)),"") -> 58.76999533 | M17: 0.67817404 | N17: 0.7426708117 | Q17: 10 | R17: Treonin | S17: 5.025088428 | T17: 65.93924545 | U17: =IF(U$14<8.8,IF(U$14<6.51,IF(U$14<6,+U$14*'11_Normprofiler'!D10/100,+U$14*'11_Normprofiler'!E10/100),+U$14*'11_Normprofiler'!C10/100),+U$14*'11_Normprofiler'!B10/100) -> 5.1 | V17: 98.53114565 | W17: 5.285627977 | X17: Tre | Y17: 6.827823114 | Z17: 7.828417279 | AA17: 0.7741307718 | AE17: 14.74000467 | AF17: 79.9483 | AG17: 839.3 | AI17: 67.817404 | AJ17: 74.26708117 | AL17: 0 | AM17: 7.033673017 | AN17: 41.45990253 | AO17: 2.614089499 | AP17: 73.51 | AQ17: 58.76999533 | AR17: 46.49592667 | AS17: 92.96632698 | AT17: 8.499310368 | AU17: 19.57605848 | AV17: 24.00887889 | AW17: 75.11896765 | AX17: 0 | AY17: 82.2630496 | AZ17: 0 | BA17: 616.96943 | BB17: 493.2565708 | BD17: 83.93 | BE17: 61.696943 | BF17: 49.32565708 | BJ17: 0.067817404 | BK17: 0.067817404 | BL17: 0.07426708117 | BM17: 90.28 | BN17: 37.43 | BO17: 2.36 | BP17: 6.35 | BQ17: 18.17 | BR17: 31.4412 | BS17: 1.05642432 | BT17: 0.733208784 | BU17: 0.571601016 | BV17: 1.140057912 | BW17: 0.3683650992 | BX17: 1.276198308 | BY17: 1.960987644 | BZ17: 0.762134688 | CA17: 1.42900254 | CB17: 0.7781697 | CC17: 1.5406188 | CD17: 0.4 | CE17: 1 | CF17: 0.018056 | CG17: =IF($C17>0,IF(VLOOKUP($B17,'10_VSP_Fodermiddeltabel'!$A$4:$DV$489,113,)>0,VLOOKUP($B17,'10_VSP_Fodermiddeltabel'!$A$4:$DV$489,113,)*$C17/100,0),CHAR(32)) -> 0 | CH17: =IF($C17>0,IF(VLOOKUP($B17,'10_VSP_Fodermiddeltabel'!$A$4:$DV$489,110,)>0,VLOOKUP($B17,'10_VSP_Fodermiddeltabel'!$A$4:$DV$489,110,)*$C17/100,0),CHAR(32)) -> 0 | CI17: =IF($C17>0,IF(VLOOKUP($B17,'10_VSP_Fodermiddeltabel'!$A$4:$DV$489,111,)>0,VLOOKUP($B17,'10_VSP_Fodermiddeltabel'!$A$4:$DV$489,111,)*$C17/100,0),CHAR(32)) -> 0 | CJ17: 0.15 | CK17: 0.25 | CL17: 0.29 | CM17: 0.33 | CN17: 0.35 | CO17: =IF($B17>0,VLOOKUP($B17,'10_VSP_Fodermiddeltabel'!$A$4:$CP$489,10,),CHAR(32)) -> 93 | CP17: =IF($B17>0,VLOOKUP($B17,'10_VSP_Fodermiddeltabel'!$A$4:$CP$489,11,),CHAR(32)) -> 1 | CQ17: 90 | CS17: 0.06447454372 | CT17: 0.07007489425 | CU17: 0.1035102258 | CV17: 0.2338584514 | CW17: 0.03792505001 | CX17: 0.1217143964 | CY17: 0.3019257187 | CZ17: 0.2461418385 | DA17: 0.1317910054 | DB17: 0.2955417648 | DC17: 0.2186954909 | DD17: 0.2156901539 | DE17: 0.2316995587 | DF17: 0.2624193467 | DG17: 0.2267474264 | DH17: 0.2378020678 | DI17: 0.2482953665 | DJ17: 0.2083885353 | DK17: 0.2560757516 | DL17: 0.05835356271 | DM17: 0.1996498917 | DN17: 0.01146321861 | DO17: 0 | DP17: 0 | DQ17: 0 | DR17: 0.1015712475 | DS17: 0.1218595319 | DT17: 0.127734294 | DU17: 0.1329709071 | DV17: 0.1340193534 | DX17: 1.31005 | DY17: 0.82346 | DZ17: 0.67374 | EA17: 1.38491 | EB17: 0.434188 | EC17: 1.53463 | ED17: 2.35809 | EE17: 0.89832 | EF17: 1.68435 | EG17: 0.93575 | EH17: 1.8715 | EL17: =IF($B17>0,VLOOKUP($B17,'10_VSP_Fodermiddeltabel'!$A$4:$CP$489,18,),CHAR(32)) -> 84 | EM17: =IF($B17>0,VLOOKUP($B17,'10_VSP_Fodermiddeltabel'!$A$4:$CP$489,39,),CHAR(32)) -> 3.5 | EN17: =IF($B17>0,VLOOKUP($B17,'10_VSP_Fodermiddeltabel'!$A$4:$CP$489,40,),CHAR(32)) -> 2.2 | EO17: =IF($B17>0,VLOOKUP($B17,'10_VSP_Fodermiddeltabel'!$A$4:$CP$489,41,),CHAR(32)) -> 1.8 | EP17: =IF($B17>0,VLOOKUP($B17,'10_VSP_Fodermiddeltabel'!$A$4:$CP$489,42,),CHAR(32)) -> 3.7 | EQ17: =IF($B17>0,VLOOKUP($B17,'10_VSP_Fodermiddeltabel'!$A$4:$CP$489,43,),CHAR(32)) -> 1.16 | ER17: =IF($B17>0,VLOOKUP($B17,'10_VSP_Fodermiddeltabel'!$A$4:$CP$489,44,),CHAR(32)) -> 4.1 | ES17: =IF($B17>0,VLOOKUP($B17,'10_VSP_Fodermiddeltabel'!$A$4:$CP$489,45,),CHAR(32)) -> 6.3 | ET17: =IF($B17>0,VLOOKUP($B17,'10_VSP_Fodermiddeltabel'!$A$4:$CP$489,46,),CHAR(32)) -> 2.4 | EU17: =IF($B17>0,VLOOKUP($B17,'10_VSP_Fodermiddeltabel'!$A$4:$CP$489,47,),CHAR(32)) -> 4.5 | EV17: =IF($B17>0,VLOOKUP($B17,'10_VSP_Fodermiddeltabel'!$A$4:$CP$489,48,),CHAR(32)) -> 2.5 | EW17: =IF($B17>0,VLOOKUP($B17,'10_VSP_Fodermiddeltabel'!$A$4:$CP$489,49,),CHAR(32)) -> 5 | EX17: =IF($B17>0,VLOOKUP($B17,'10_VSP_Fodermiddeltabel'!$A$4:$CP$489,51,),CHAR(32)) -> 0.96 | EY17: =IF($B17>0,VLOOKUP($B17,'10_VSP_Fodermiddeltabel'!$A$4:$CP$489,52,),CHAR(32)) -> 1.06 | EZ17: =IF($B17>0,VLOOKUP($B17,'10_VSP_Fodermiddeltabel'!$A$4:$CP$489,53,),CHAR(32)) -> 1.01 | FA17: =IF($B17>0,VLOOKUP($B17,'10_VSP_Fodermiddeltabel'!$A$4:$CP$489,54,),CHAR(32)) -> 0.98 | FB17: =IF($B17>0,VLOOKUP($B17,'10_VSP_Fodermiddeltabel'!$A$4:$CP$489,55,),CHAR(32)) -> 1.01 | FC17: =IF($B17>0,VLOOKUP($B17,'10_VSP_Fodermiddeltabel'!$A$4:$CP$489,56,),CHAR(32)) -> 0.99 | FD17: =IF($B17>0,VLOOKUP($B17,'10_VSP_Fodermiddeltabel'!$A$4:$CP$489,57,),CHAR(32)) -> 0.99 | FE17: =IF($B17>0,VLOOKUP($B17,'10_VSP_Fodermiddeltabel'!$A$4:$CP$489,58,),CHAR(32)) -> 1.01 | FF17: =IF($B17>0,VLOOKUP($B17,'10_VSP_Fodermiddeltabel'!$A$4:$CP$489,59,),CHAR(32)) -> 1.01 | FG17: =IF($B17>0,VLOOKUP($B17,'10_VSP_Fodermiddeltabel'!$A$4:$CP$489,60,),CHAR(32)) -> 0.99 | FH17: =IF($B17>0,VLOOKUP($B17,'10_VSP_Fodermiddeltabel'!$A$4:$CP$489,61,),CHAR(32)) -> 0.98 | FI17: =IF($B17>0,VLOOKUP($B17,'10_VSP_Fodermiddeltabel'!$A$4:$CP$489,2,),CHAR(32)) -> 622 | FJ17: =IF($B17>0,VLOOKUP($B17,'10_VSP_Fodermiddeltabel'!$A$4:$CP$489,3,),CHAR(32)) -> 0 | FK17: =IF($B17>0,VLOOKUP($B17,'10_VSP_Fodermiddeltabel'!$A$4:$CP$489,63,),CHAR(32)) -> 41.45990253 | FL17: =IF($B17>0,VLOOKUP($B17,'10_VSP_Fodermiddeltabel'!$A$4:$CP$489,64,),CHAR(32)) -> 2.614089499 | FM17: =IF($B17>0,VLOOKUP($B17,'10_VSP_Fodermiddeltabel'!$A$4:$CP$489,65,),CHAR(32)) -> 7.033673017 | FN17: =IF($B17>0,VLOOKUP($B17,'10_VSP_Fodermiddeltabel'!$A$4:$CP$489,66,),CHAR(32)) -> 20.12627381 | FO17: =IF($B17>0,VLOOKUP($B17,'10_VSP_Fodermiddeltabel'!$A$4:$CP$489,68,),CHAR(32)) -> 130 | FP17: =IF($B17>0,VLOOKUP($B17,'10_VSP_Fodermiddeltabel'!$A$4:$CP$489,69,),CHAR(32)) -> 33.98316349 | FQ17: =IF($B17>0,VLOOKUP($B17,'10_VSP_Fodermiddeltabel'!$A$4:$CP$489,70,),CHAR(32)) -> 0.7514399646 | FR17: =IF($B17>0,VLOOKUP($B17,'10_VSP_Fodermiddeltabel'!$A$4:$CP$489,71,),CHAR(32)) -> 0.8228843598 | FS17: =IF($B17>0,VLOOKUP($B17,'10_VSP_Fodermiddeltabel'!$A$4:$CP$489,19,),CHAR(32)) -> 15 | FT17: =IF($B17>0,VLOOKUP($B17,'10_VSP_Fodermiddeltabel'!$A$4:$CP$489,20,),CHAR(32)) -> 25 | FU17: =IF($B17>0,VLOOKUP($B17,'10_VSP_Fodermiddeltabel'!$A$4:$CP$489,21,),CHAR(32)) -> 29 | FV17: =IF($B17>0,VLOOKUP($B17,'10_VSP_Fodermiddeltabel'!$A$4:$CP$489,22,),CHAR(32)) -> 33 | FW17: =IF($B17>0,VLOOKUP($B17,'10_VSP_Fodermiddeltabel'!$A$4:$CP$489,23,),CHAR(32)) -> 35 | FX17: =IF($B17>0,VLOOKUP($B17,'10_VSP_Fodermiddeltabel'!$A$4:$CP$489,25,),CHAR(32)) -> 4.430660168 | FY17: =IF($B17>0,VLOOKUP($B17,'10_VSP_Fodermiddeltabel'!$A$4:$CP$489,26,),CHAR(32)) -> 11.07665042 | FZ17: =IF($B17>0,VLOOKUP($B17,'10_VSP_Fodermiddeltabel'!$A$4:$CP$489,27,),CHAR(32)) -> 0.2 | GA17: =IF($B17>0,VLOOKUP($B17,'10_VSP_Fodermiddeltabel'!$A$4:$CP$489,28,),CHAR(32)) -> 0 | GB17: =IF($B17>0,VLOOKUP($B17,'10_VSP_Fodermiddeltabel'!$A$4:$CP$489,29,),CHAR(32)) -> 17 | GC17: =IF($B17>0,VLOOKUP($B17,'10_VSP_Fodermiddeltabel'!$A$4:$CP$489,30,),CHAR(32)) -> 6.7 | GD17: =IF($B17>0,VLOOKUP($B17,'10_VSP_Fodermiddeltabel'!$A$4:$CP$489,31,),CHAR(32)) -> 4.8 | GE17: =IF($B17>0,VLOOKUP($B17,'10_VSP_Fodermiddeltabel'!$A$4:$CP$489,32,),CHAR(32)) -> 170 | GF17: =IF($B17>0,VLOOKUP($B17,'10_VSP_Fodermiddeltabel'!$A$4:$CP$489,33,),CHAR(32)) -> 36 | GG17: =IF($B17>0,VLOOKUP($B17,'10_VSP_Fodermiddeltabel'!$A$4:$CP$489,34,),CHAR(32)) -> 47 | GH17: =IF($B17>0,VLOOKUP($B17,'10_VSP_Fodermiddeltabel'!$A$4:$CP$489,35,),CHAR(32)) -> 110 | GI17: =IF($B17>0,VLOOKUP($B17,'10_VSP_Fodermiddeltabel'!$A$4:$CP$489,36,),CHAR(32)) -> 0 | GJ17: =IF($B17>0,VLOOKUP($B17,'10_VSP_Fodermiddeltabel'!$A$4:$CP$489,37,),CHAR(32)) -> 0.15 | GL17: =IF($B17>0,VLOOKUP($B17,'10_VSP_Fodermiddeltabel'!$A$4:$CP$489,74,),CHAR(32)) -> 84.99316571 | GM17: =IF($B17>0,VLOOKUP($B17,'10_VSP_Fodermiddeltabel'!$A$4:$CP$489,75,),CHAR(32)) -> 195.7605848 | GN17: =IF($B17>0,VLOOKUP($B17,'10_VSP_Fodermiddeltabel'!$A$4:$CP$489,76,),CHAR(32)) -> 16.75977654 | GO17: =IF($B17>0,VLOOKUP($B17,'10_VSP_Fodermiddeltabel'!$A$4:$CP$489,77,),CHAR(32)) -> 55.86592179 | GP17: =IF($B17>0,VLOOKUP($B17,'10_VSP_Fodermiddeltabel'!$A$4:$CP$489,78,),CHAR(32)) -> 56.98324022 | GQ17: =IF($B17>0,VLOOKUP($B17,'10_VSP_Fodermiddeltabel'!$A$4:$CP$489,79,),CHAR(32)) -> 354.1899441 | GR17: =IF($B17>0,VLOOKUP($B17,'10_VSP_Fodermiddeltabel'!$A$4:$CP$489,1,),CHAR(32)) -> 62200 | GU17: =+'10_VSP_Fodermiddeltabel'!D8 -> BLODPRODUKT (HÆMOGLOBINMEL, Daka) | GV17: =+'10_VSP_Fodermiddeltabel'!A8 -> 80600
A18: RUG, flerårigt gns, varmebehandlet + xylanase | B18: 52011 | C18: 10 | D18: =IFERROR(IF($B18>0,VLOOKUP($B18,'10_VSP_Fodermiddeltabel'!$A$4:$CP$489,5,),CHAR(32)),"") -> 2015-10-27 | E18: =IFERROR(IF($B18>0,VLOOKUP($B18,'10_VSP_Fodermiddeltabel'!$A$4:$CP$489,12,),CHAR(32)),"") -> 85 | F18: 15 | G18: =IFERROR(IF($B18>0,VLOOKUP($B18,'10_VSP_Fodermiddeltabel'!$A$4:$CP$489,13,),CHAR(32)),"") -> 7.3 | H18: =IFERROR(IF($B18>0,VLOOKUP($B18,'10_VSP_Fodermiddeltabel'!$A$4:$CP$489,14,),CHAR(32)),"") -> 1.7 | I18: =IFERROR(IF($B18>0,VLOOKUP($B18,'10_VSP_Fodermiddeltabel'!$A$4:$CP$489,15,),CHAR(32)),"") -> 1.5 | J18: =IFERROR(IF($B18>0,VLOOKUP($B18,'10_VSP_Fodermiddeltabel'!$A$4:$CP$489,16,),CHAR(32)),"") -> 2.3 | K18: =IFERROR(IF($B18>0,VLOOKUP($B18,'10_VSP_Fodermiddeltabel'!$A$4:$CP$489,8,),CHAR(32)),"") -> 89.7 | L18: =IFERROR(IF($B18>0,VLOOKUP($B18,'10_VSP_Fodermiddeltabel'!$A$4:$CP$489,9,),CHAR(32)),"") -> 83.1999792 | M18: 1.097219347 | N18: 1.08985439 | Q18: 11 | R18: Tryptofan | S18: 1.511472972 | T18: 19.8335589 | U18: =IF(U$14<8.8,IF(U$14<6.51,IF(U$14<6,+U$14*'11_Normprofiler'!D11/100,+U$14*'11_Normprofiler'!E11/100),+U$14*'11_Normprofiler'!C11/100),+U$14*'11_Normprofiler'!B11/100) -> 1.54 | V18: 98.1475956 | W18: 1.589839451 | X18: Try | Y18: 1.981043456 | Z18: 2.27135861 | AA18: 0.802526288 | AE18: 6.5000208 | AF18: 92.7536 | AG18: 835 | AI18: 109.7219347 | AJ18: 108.985439 | AL18: 0 | AM18: 1.764705882 | AN18: 8.588235294 | AO18: 2 | AP18: 89.7 | AQ18: 83.1999792 | AR18: 19.90952499 | AS18: 98.23529412 | AT18: 69.23988678 | AU18: 9.121877929 | AV18: 10.94316028 | AW18: 129.0846291 | AX18: 0 | AY18: 128.2181636 | AZ18: 0 | BA18: 748.995 | BB18: 694.7198263 | BD18: 83.5 | BE18: 74.8995 | BF18: 69.47198263 | BJ18: 0.1097219347 | BK18: 0.1097219347 | BL18: 0.108985439 | BM18: 85 | BN18: 7.3 | BO18: 1.7 | BP18: 1.5 | BQ18: 2.3 | BR18: 5.621 | BS18: 0.20173769 | BT18: 0.09937928 | BU18: 0.133414435 | BV18: 0.162739192 | BW18: 0.059543253 | BX18: 0.1956108 | BY18: 0.363588764 | BZ18: 0.132003564 | CA18: 0.267525874 | CB18: 0.151767 | CC18: 0.259875693 | CD18: 0.039 | CE18: 0.25 | CF18: 0.0085 | CG18: =IF($C18>0,IF(VLOOKUP($B18,'10_VSP_Fodermiddeltabel'!$A$4:$DV$489,113,)>0,VLOOKUP($B18,'10_VSP_Fodermiddeltabel'!$A$4:$DV$489,113,)*$C18/100,0),CHAR(32)) -> 0 | CH18: =IF($C18>0,IF(VLOOKUP($B18,'10_VSP_Fodermiddeltabel'!$A$4:$DV$489,110,)>0,VLOOKUP($B18,'10_VSP_Fodermiddeltabel'!$A$4:$DV$489,110,)*$C18/100,0),CHAR(32)) -> 0 | CI18: =IF($C18>0,IF(VLOOKUP($B18,'10_VSP_Fodermiddeltabel'!$A$4:$DV$489,111,)>0,VLOOKUP($B18,'10_VSP_Fodermiddeltabel'!$A$4:$DV$489,111,)*$C18/100,0),CHAR(32)) -> 0 | CJ18: 0.07 | CK18: 0.105 | CL18: 0.1175 | CM18: 0.13 | CN18: 0.1375 | CO18: =IF($B18>0,VLOOKUP($B18,'10_VSP_Fodermiddeltabel'!$A$4:$CP$489,10,),CHAR(32)) -> 90 | CP18: =IF($B18>0,VLOOKUP($B18,'10_VSP_Fodermiddeltabel'!$A$4:$CP$489,11,),CHAR(32)) -> 1 | CQ18: 90 | CS18: 0.1043135133 | CT18: 0.1028334895 | CU18: 0.09745645978 | CV18: 0.04560958309 | CW18: 0.02731889196 | CX18: 0.02875143221 | CY18: 0.03821844541 | CZ18: 0.0440047859 | DA18: 0.02516717241 | DB18: 0.04005779587 | DC18: 0.05104458275 | DD18: 0.03078899853 | DE18: 0.03745236851 | DF18: 0.0402226347 | DG18: 0.04204147677 | DH18: 0.04118789102 | DI18: 0.04648377667 | DJ18: 0.04064216692 | DK18: 0.04319554156 | DL18: 0.005689472364 | DM18: 0.04991247293 | DN18: 0.005396397771 | DO18: 0 | DP18: 0 | DQ18: 0 | DR18: 0.0473999155 | DS18: 0.0511810034 | DT18: 0.05175441222 | DU18: 0.05238247856 | DV18: 0.05265046026 | DX18: 0.2701 | DY18: 0.1241 | DZ18: 0.17155 | EA18: 0.24017 | EB18: 0.07811 | EC18: 0.25404 | ED18: 0.45844 | EE18: 0.16644 | EF18: 0.32777 | EG18: 0.1971 | EH18: 0.34091 | EL18: =IF($B18>0,VLOOKUP($B18,'10_VSP_Fodermiddeltabel'!$A$4:$CP$489,18,),CHAR(32)) -> 77 | EM18: =IF($B18>0,VLOOKUP($B18,'10_VSP_Fodermiddeltabel'!$A$4:$CP$489,39,),CHAR(32)) -> 3.7 | EN18: =IF($B18>0,VLOOKUP($B18,'10_VSP_Fodermiddeltabel'!$A$4:$CP$489,40,),CHAR(32)) -> 1.7 | EO18: =IF($B18>0,VLOOKUP($B18,'10_VSP_Fodermiddeltabel'!$A$4:$CP$489,41,),CHAR(32)) -> 2.35 | EP18: =IF($B18>0,VLOOKUP($B18,'10_VSP_Fodermiddeltabel'!$A$4:$CP$489,42,),CHAR(32)) -> 3.29 | EQ18: =IF($B18>0,VLOOKUP($B18,'10_VSP_Fodermiddeltabel'!$A$4:$CP$489,43,),CHAR(32)) -> 1.07 | ER18: =IF($B18>0,VLOOKUP($B18,'10_VSP_Fodermiddeltabel'!$A$4:$CP$489,44,),CHAR(32)) -> 3.48 | ES18: =IF($B18>0,VLOOKUP($B18,'10_VSP_Fodermiddeltabel'!$A$4:$CP$489,45,),CHAR(32)) -> 6.28 | ET18: =IF($B18>0,VLOOKUP($B18,'10_VSP_Fodermiddeltabel'!$A$4:$CP$489,46,),CHAR(32)) -> 2.28 | EU18: =IF($B18>0,VLOOKUP($B18,'10_VSP_Fodermiddeltabel'!$A$4:$CP$489,47,),CHAR(32)) -> 4.49 | EV18: =IF($B18>0,VLOOKUP($B18,'10_VSP_Fodermiddeltabel'!$A$4:$CP$489,48,),CHAR(32)) -> 2.7 | EW18: =IF($B18>0,VLOOKUP($B18,'10_VSP_Fodermiddeltabel'!$A$4:$CP$489,49,),CHAR(32)) -> 4.67 | EX18: =IF($B18>0,VLOOKUP($B18,'10_VSP_Fodermiddeltabel'!$A$4:$CP$489,51,),CHAR(32)) -> 0.97 | EY18: =IF($B18>0,VLOOKUP($B18,'10_VSP_Fodermiddeltabel'!$A$4:$CP$489,52,),CHAR(32)) -> 1.04 | EZ18: =IF($B18>0,VLOOKUP($B18,'10_VSP_Fodermiddeltabel'!$A$4:$CP$489,53,),CHAR(32)) -> 1.01 | FA18: =IF($B18>0,VLOOKUP($B18,'10_VSP_Fodermiddeltabel'!$A$4:$CP$489,54,),CHAR(32)) -> 0.88 | FB18: =IF($B18>0,VLOOKUP($B18,'10_VSP_Fodermiddeltabel'!$A$4:$CP$489,55,),CHAR(32)) -> 0.99 | FC18: =IF($B18>0,VLOOKUP($B18,'10_VSP_Fodermiddeltabel'!$A$4:$CP$489,56,),CHAR(32)) -> 1 | FD18: =IF($B18>0,VLOOKUP($B18,'10_VSP_Fodermiddeltabel'!$A$4:$CP$489,57,),CHAR(32)) -> 1.03 | FE18: =IF($B18>0,VLOOKUP($B18,'10_VSP_Fodermiddeltabel'!$A$4:$CP$489,58,),CHAR(32)) -> 1.03 | FF18: =IF($B18>0,VLOOKUP($B18,'10_VSP_Fodermiddeltabel'!$A$4:$CP$489,59,),CHAR(32)) -> 1.06 | FG18: =IF($B18>0,VLOOKUP($B18,'10_VSP_Fodermiddeltabel'!$A$4:$CP$489,60,),CHAR(32)) -> 1 | FH18: =IF($B18>0,VLOOKUP($B18,'10_VSP_Fodermiddeltabel'!$A$4:$CP$489,61,),CHAR(32)) -> 0.99 | FI18: =IF($B18>0,VLOOKUP($B18,'10_VSP_Fodermiddeltabel'!$A$4:$CP$489,2,),CHAR(32)) -> 520 | FJ18: =IF($B18>0,VLOOKUP($B18,'10_VSP_Fodermiddeltabel'!$A$4:$CP$489,3,),CHAR(32)) -> 11 | FK18: =IF($B18>0,VLOOKUP($B18,'10_VSP_Fodermiddeltabel'!$A$4:$CP$489,63,),CHAR(32)) -> 8.588235294 | FL18: =IF($B18>0,VLOOKUP($B18,'10_VSP_Fodermiddeltabel'!$A$4:$CP$489,64,),CHAR(32)) -> 2 | FM18: =IF($B18>0,VLOOKUP($B18,'10_VSP_Fodermiddeltabel'!$A$4:$CP$489,65,),CHAR(32)) -> 1.764705882 | FN18: =IF($B18>0,VLOOKUP($B18,'10_VSP_Fodermiddeltabel'!$A$4:$CP$489,66,),CHAR(32)) -> 2.705882353 | FO18: =IF($B18>0,VLOOKUP($B18,'10_VSP_Fodermiddeltabel'!$A$4:$CP$489,68,),CHAR(32)) -> 105 | FP18: =IF($B18>0,VLOOKUP($B18,'10_VSP_Fodermiddeltabel'!$A$4:$CP$489,69,),CHAR(32)) -> 21 | FQ18: =IF($B18>0,VLOOKUP($B18,'10_VSP_Fodermiddeltabel'!$A$4:$CP$489,70,),CHAR(32)) -> 1.290858225 | FR18: =IF($B18>0,VLOOKUP($B18,'10_VSP_Fodermiddeltabel'!$A$4:$CP$489,71,),CHAR(32)) -> 1.282192998 | FS18: =IF($B18>0,VLOOKUP($B18,'10_VSP_Fodermiddeltabel'!$A$4:$CP$489,19,),CHAR(32)) -> 28 | FT18: =IF($B18>0,VLOOKUP($B18,'10_VSP_Fodermiddeltabel'!$A$4:$CP$489,20,),CHAR(32)) -> 42 | FU18: =IF($B18>0,VLOOKUP($B18,'10_VSP_Fodermiddeltabel'!$A$4:$CP$489,21,),CHAR(32)) -> 47 | FV18: =IF($B18>0,VLOOKUP($B18,'10_VSP_Fodermiddeltabel'!$A$4:$CP$489,22,),CHAR(32)) -> 52 | FW18: =IF($B18>0,VLOOKUP($B18,'10_VSP_Fodermiddeltabel'!$A$4:$CP$489,23,),CHAR(32)) -> 55 | FX18: =IF($B18>0,VLOOKUP($B18,'10_VSP_Fodermiddeltabel'!$A$4:$CP$489,25,),CHAR(32)) -> 0.4588235294 | FY18: =IF($B18>0,VLOOKUP($B18,'10_VSP_Fodermiddeltabel'!$A$4:$CP$489,26,),CHAR(32)) -> 2.941176471 | FZ18: =IF($B18>0,VLOOKUP($B18,'10_VSP_Fodermiddeltabel'!$A$4:$CP$489,27,),CHAR(32)) -> 0.1 | GA18: =IF($B18>0,VLOOKUP($B18,'10_VSP_Fodermiddeltabel'!$A$4:$CP$489,28,),CHAR(32)) -> 0 | GB18: =IF($B18>0,VLOOKUP($B18,'10_VSP_Fodermiddeltabel'!$A$4:$CP$489,29,),CHAR(32)) -> 4.94118 | GC18: =IF($B18>0,VLOOKUP($B18,'10_VSP_Fodermiddeltabel'!$A$4:$CP$489,30,),CHAR(32)) -> 1.2 | GD18: =IF($B18>0,VLOOKUP($B18,'10_VSP_Fodermiddeltabel'!$A$4:$CP$489,31,),CHAR(32)) -> 0 | GE18: =IF($B18>0,VLOOKUP($B18,'10_VSP_Fodermiddeltabel'!$A$4:$CP$489,32,),CHAR(32)) -> 71 | GF18: =IF($B18>0,VLOOKUP($B18,'10_VSP_Fodermiddeltabel'!$A$4:$CP$489,33,),CHAR(32)) -> 5 | GG18: =IF($B18>0,VLOOKUP($B18,'10_VSP_Fodermiddeltabel'!$A$4:$CP$489,34,),CHAR(32)) -> 30 | GH18: =IF($B18>0,VLOOKUP($B18,'10_VSP_Fodermiddeltabel'!$A$4:$CP$489,35,),CHAR(32)) -> 31 | GI18: =IF($B18>0,VLOOKUP($B18,'10_VSP_Fodermiddeltabel'!$A$4:$CP$489,36,),CHAR(32)) -> 0 | GJ18: =IF($B18>0,VLOOKUP($B18,'10_VSP_Fodermiddeltabel'!$A$4:$CP$489,37,),CHAR(32)) -> 0.03 | GL18: =IF($B18>0,VLOOKUP($B18,'10_VSP_Fodermiddeltabel'!$A$4:$CP$489,74,),CHAR(32)) -> 692.3991597 | GM18: =IF($B18>0,VLOOKUP($B18,'10_VSP_Fodermiddeltabel'!$A$4:$CP$489,75,),CHAR(32)) -> 91.21877929 | GN18: =IF($B18>0,VLOOKUP($B18,'10_VSP_Fodermiddeltabel'!$A$4:$CP$489,76,),CHAR(32)) -> 613 | GO18: =IF($B18>0,VLOOKUP($B18,'10_VSP_Fodermiddeltabel'!$A$4:$CP$489,77,),CHAR(32)) -> 32 | GP18: =IF($B18>0,VLOOKUP($B18,'10_VSP_Fodermiddeltabel'!$A$4:$CP$489,78,),CHAR(32)) -> 39 | GQ18: =IF($B18>0,VLOOKUP($B18,'10_VSP_Fodermiddeltabel'!$A$4:$CP$489,79,),CHAR(32)) -> 129 | GR18: =IF($B18>0,VLOOKUP($B18,'10_VSP_Fodermiddeltabel'!$A$4:$CP$489,1,),CHAR(32)) -> 52011 | GU18: =+'10_VSP_Fodermiddeltabel'!D9 -> BOLIFOR 18 (MCP 21/18) | GV18: =+'10_VSP_Fodermiddeltabel'!A9 -> 46202
A19: TRITICALE, flerårigt gns, varmebehandlet + xylanase | B19: 56011 | C19: 10 | D19: =IFERROR(IF($B19>0,VLOOKUP($B19,'10_VSP_Fodermiddeltabel'!$A$4:$CP$489,5,),CHAR(32)),"") -> 2015-10-27 | E19: =IFERROR(IF($B19>0,VLOOKUP($B19,'10_VSP_Fodermiddeltabel'!$A$4:$CP$489,12,),CHAR(32)),"") -> 85 | F19: 15 | G19: =IFERROR(IF($B19>0,VLOOKUP($B19,'10_VSP_Fodermiddeltabel'!$A$4:$CP$489,13,),CHAR(32)),"") -> 8.9 | H19: =IFERROR(IF($B19>0,VLOOKUP($B19,'10_VSP_Fodermiddeltabel'!$A$4:$CP$489,14,),CHAR(32)),"") -> 1.9 | I19: =IFERROR(IF($B19>0,VLOOKUP($B19,'10_VSP_Fodermiddeltabel'!$A$4:$CP$489,15,),CHAR(32)),"") -> 1.7 | J19: =IFERROR(IF($B19>0,VLOOKUP($B19,'10_VSP_Fodermiddeltabel'!$A$4:$CP$489,16,),CHAR(32)),"") -> 2.6 | K19: =IFERROR(IF($B19>0,VLOOKUP($B19,'10_VSP_Fodermiddeltabel'!$A$4:$CP$489,8,),CHAR(32)),"") -> 90.4 | L19: =IFERROR(IF($B19>0,VLOOKUP($B19,'10_VSP_Fodermiddeltabel'!$A$4:$CP$489,9,),CHAR(32)),"") -> 85.6000312 | M19: 1.127482356 | N19: 1.11228665 | Q19: 12 | R19: Isoleucin | S19: 4.623484761 | T19: 60.66939932 | U19: =IF(U$14<8.8,IF(U$14<6.51,IF(U$14<6,+U$14*'11_Normprofiler'!D12/100,+U$14*'11_Normprofiler'!E12/100),+U$14*'11_Normprofiler'!C12/100),+U$14*'11_Normprofiler'!B12/100) -> 4.3 | V19: 107.5229014 | W19: 4.863202061 | X19: Iso | Y19: 6.007760706 | Z19: 6.888177525 | AA19: 0.8094866455 | AE19: 4.7999688 | AF19: 94.6903 | AG19: 833 | AI19: 112.7482356 | AJ19: 111.228665 | AL19: 0 | AM19: 2 | AN19: 10.47058824 | AO19: 2.235294118 | AP19: 90.4 | AQ19: 85.6000312 | AR19: 16.88442691 | AS19: 98 | AT19: 70.17557309 | AU19: 6.71995632 | AV19: 8.41339632 | AW19: 132.644983 | AX19: 0 | AY19: 130.8572529 | AZ19: 0 | BA19: 753.032 | BB19: 713.0482599 | BD19: 83.3 | BE19: 75.3032 | BF19: 71.30482599 | BJ19: 0.1127482356 | BK19: 0.1127482356 | BL19: 0.111228665 | BM19: 85 | BN19: 8.9 | BO19: 1.9 | BP19: 1.7 | BQ19: 2.6 | BR19: 7.3302432 | BS19: 0.2327498821 | BT19: 0.1300751656 | BU19: 0.167613341 | BV19: 0.2193575278 | BW19: 0.08227464968 | BX19: 0.2487591332 | BY19: 0.4753076296 | BZ19: 0.167613341 | CA19: 0.3387745197 | CB19: 0.2052468096 | CC19: 0.3247004528 | CD19: 0.04 | CE19: 0.3 | CF19: 0.0085 | CG19: =IF($C19>0,IF(VLOOKUP($B19,'10_VSP_Fodermiddeltabel'!$A$4:$DV$489,113,)>0,VLOOKUP($B19,'10_VSP_Fodermiddeltabel'!$A$4:$DV$489,113,)*$C19/100,0),CHAR(32)) -> 0 | CH19: =IF($C19>0,IF(VLOOKUP($B19,'10_VSP_Fodermiddeltabel'!$A$4:$DV$489,110,)>0,VLOOKUP($B19,'10_VSP_Fodermiddeltabel'!$A$4:$DV$489,110,)*$C19/100,0),CHAR(32)) -> 0 | CI19: =IF($C19>0,IF(VLOOKUP($B19,'10_VSP_Fodermiddeltabel'!$A$4:$DV$489,111,)>0,VLOOKUP($B19,'10_VSP_Fodermiddeltabel'!$A$4:$DV$489,111,)*$C19/100,0),CHAR(32)) -> 0 | CJ19: 0.084 | CK19: 0.126 | CL19: 0.144 | CM19: 0.159 | CN19: 0.168 | CO19: =IF($B19>0,VLOOKUP($B19,'10_VSP_Fodermiddeltabel'!$A$4:$CP$489,10,),CHAR(32)) -> 93 | CP19: =IF($B19>0,VLOOKUP($B19,'10_VSP_Fodermiddeltabel'!$A$4:$CP$489,11,),CHAR(32)) -> 1 | CQ19: 90 | CS19: 0.1071906415 | CT19: 0.1049500911 | CU19: 0.09745645978 | CV19: 0.05560620404 | CW19: 0.03053287925 | CX19: 0.03258495651 | CY19: 0.04320346003 | CZ19: 0.05738583572 | DA19: 0.02903600418 | DB19: 0.0524306921 | DC19: 0.06412914056 | DD19: 0.04150075047 | DE19: 0.05175028813 | DF19: 0.05115130527 | DG19: 0.05495943948 | DH19: 0.05229889113 | DI19: 0.05886353675 | DJ19: 0.05496369498 | DK19: 0.05397046465 | DL19: 0.005835356271 | DM19: 0.05989496752 | DN19: 0.005396397771 | DO19: 0 | DP19: 0 | DQ19: 0 | DR19: 0.0568798986 | DS19: 0.06141720408 | DT19: 0.06342668392 | DU19: 0.0640678007 | DV19: 0.06432928962 | DX19: 0.28836 | DY19: 0.15041 | DZ19: 0.19758 | EA19: 0.28035 | EB19: 0.10858 | EC19: 0.29904 | ED19: 0.57138 | EE19: 0.19758 | EF19: 0.38804 | EG19: 0.2492 | EH19: 0.40228 | EL19: =IF($B19>0,VLOOKUP($B19,'10_VSP_Fodermiddeltabel'!$A$4:$CP$489,18,),CHAR(32)) -> 82.36228315 | EM19: =IF($B19>0,VLOOKUP($B19,'10_VSP_Fodermiddeltabel'!$A$4:$CP$489,39,),CHAR(32)) -> 3.24 | EN19: =IF($B19>0,VLOOKUP($B19,'10_VSP_Fodermiddeltabel'!$A$4:$CP$489,40,),CHAR(32)) -> 1.69 | EO19: =IF($B19>0,VLOOKUP($B19,'10_VSP_Fodermiddeltabel'!$A$4:$CP$489,41,),CHAR(32)) -> 2.22 | EP19: =IF($B19>0,VLOOKUP($B19,'10_VSP_Fodermiddeltabel'!$A$4:$CP$489,42,),CHAR(32)) -> 3.15 | EQ19: =IF($B19>0,VLOOKUP($B19,'10_VSP_Fodermiddeltabel'!$A$4:$CP$489,43,),CHAR(32)) -> 1.22 | ER19: =IF($B19>0,VLOOKUP($B19,'10_VSP_Fodermiddeltabel'!$A$4:$CP$489,44,),CHAR(32)) -> 3.36 | ES19: =IF($B19>0,VLOOKUP($B19,'10_VSP_Fodermiddeltabel'!$A$4:$CP$489,45,),CHAR(32)) -> 6.42 | ET19: =IF($B19>0,VLOOKUP($B19,'10_VSP_Fodermiddeltabel'!$A$4:$CP$489,46,),CHAR(32)) -> 2.22 | EU19: =IF($B19>0,VLOOKUP($B19,'10_VSP_Fodermiddeltabel'!$A$4:$CP$489,47,),CHAR(32)) -> 4.36 | EV19: =IF($B19>0,VLOOKUP($B19,'10_VSP_Fodermiddeltabel'!$A$4:$CP$489,48,),CHAR(32)) -> 2.8 | EW19: =IF($B19>0,VLOOKUP($B19,'10_VSP_Fodermiddeltabel'!$A$4:$CP$489,49,),CHAR(32)) -> 4.52 | EX19: =IF($B19>0,VLOOKUP($B19,'10_VSP_Fodermiddeltabel'!$A$4:$CP$489,51,),CHAR(32)) -> 0.98 | EY19: =IF($B19>0,VLOOKUP($B19,'10_VSP_Fodermiddeltabel'!$A$4:$CP$489,52,),CHAR(32)) -> 1.05 | EZ19: =IF($B19>0,VLOOKUP($B19,'10_VSP_Fodermiddeltabel'!$A$4:$CP$489,53,),CHAR(32)) -> 1.03 | FA19: =IF($B19>0,VLOOKUP($B19,'10_VSP_Fodermiddeltabel'!$A$4:$CP$489,54,),CHAR(32)) -> 0.95 | FB19: =IF($B19>0,VLOOKUP($B19,'10_VSP_Fodermiddeltabel'!$A$4:$CP$489,55,),CHAR(32)) -> 0.92 | FC19: =IF($B19>0,VLOOKUP($B19,'10_VSP_Fodermiddeltabel'!$A$4:$CP$489,56,),CHAR(32)) -> 1.01 | FD19: =IF($B19>0,VLOOKUP($B19,'10_VSP_Fodermiddeltabel'!$A$4:$CP$489,57,),CHAR(32)) -> 1.01 | FE19: =IF($B19>0,VLOOKUP($B19,'10_VSP_Fodermiddeltabel'!$A$4:$CP$489,58,),CHAR(32)) -> 1.03 | FF19: =IF($B19>0,VLOOKUP($B19,'10_VSP_Fodermiddeltabel'!$A$4:$CP$489,59,),CHAR(32)) -> 1.06 | FG19: =IF($B19>0,VLOOKUP($B19,'10_VSP_Fodermiddeltabel'!$A$4:$CP$489,60,),CHAR(32)) -> 1 | FH19: =IF($B19>0,VLOOKUP($B19,'10_VSP_Fodermiddeltabel'!$A$4:$CP$489,61,),CHAR(32)) -> 0.98 | FI19: =IF($B19>0,VLOOKUP($B19,'10_VSP_Fodermiddeltabel'!$A$4:$CP$489,2,),CHAR(32)) -> 560 | FJ19: =IF($B19>0,VLOOKUP($B19,'10_VSP_Fodermiddeltabel'!$A$4:$CP$489,3,),CHAR(32)) -> 11 | FK19: =IF($B19>0,VLOOKUP($B19,'10_VSP_Fodermiddeltabel'!$A$4:$CP$489,63,),CHAR(32)) -> 10.47058824 | FL19: =IF($B19>0,VLOOKUP($B19,'10_VSP_Fodermiddeltabel'!$A$4:$CP$489,64,),CHAR(32)) -> 2.235294118 | FM19: =IF($B19>0,VLOOKUP($B19,'10_VSP_Fodermiddeltabel'!$A$4:$CP$489,65,),CHAR(32)) -> 2 | FN19: =IF($B19>0,VLOOKUP($B19,'10_VSP_Fodermiddeltabel'!$A$4:$CP$489,66,),CHAR(32)) -> 3.058823529 | FO19: =IF($B19>0,VLOOKUP($B19,'10_VSP_Fodermiddeltabel'!$A$4:$CP$489,68,),CHAR(32)) -> 105 | FP19: =IF($B19>0,VLOOKUP($B19,'10_VSP_Fodermiddeltabel'!$A$4:$CP$489,69,),CHAR(32)) -> 23.47058824 | FQ19: =IF($B19>0,VLOOKUP($B19,'10_VSP_Fodermiddeltabel'!$A$4:$CP$489,70,),CHAR(32)) -> 1.326464018 | FR19: =IF($B19>0,VLOOKUP($B19,'10_VSP_Fodermiddeltabel'!$A$4:$CP$489,71,),CHAR(32)) -> 1.308586127 | FS19: =IF($B19>0,VLOOKUP($B19,'10_VSP_Fodermiddeltabel'!$A$4:$CP$489,19,),CHAR(32)) -> 28 | FT19: =IF($B19>0,VLOOKUP($B19,'10_VSP_Fodermiddeltabel'!$A$4:$CP$489,20,),CHAR(32)) -> 42 | FU19: =IF($B19>0,VLOOKUP($B19,'10_VSP_Fodermiddeltabel'!$A$4:$CP$489,21,),CHAR(32)) -> 48 | FV19: =IF($B19>0,VLOOKUP($B19,'10_VSP_Fodermiddeltabel'!$A$4:$CP$489,22,),CHAR(32)) -> 53 | FW19: =IF($B19>0,VLOOKUP($B19,'10_VSP_Fodermiddeltabel'!$A$4:$CP$489,23,),CHAR(32)) -> 56 | FX19: =IF($B19>0,VLOOKUP($B19,'10_VSP_Fodermiddeltabel'!$A$4:$CP$489,25,),CHAR(32)) -> 0.4705882353 | FY19: =IF($B19>0,VLOOKUP($B19,'10_VSP_Fodermiddeltabel'!$A$4:$CP$489,26,),CHAR(32)) -> 3.529411765 | FZ19: =IF($B19>0,VLOOKUP($B19,'10_VSP_Fodermiddeltabel'!$A$4:$CP$489,27,),CHAR(32)) -> 0.1 | GA19: =IF($B19>0,VLOOKUP($B19,'10_VSP_Fodermiddeltabel'!$A$4:$CP$489,28,),CHAR(32)) -> 0 | GB19: =IF($B19>0,VLOOKUP($B19,'10_VSP_Fodermiddeltabel'!$A$4:$CP$489,29,),CHAR(32)) -> 6.2 | GC19: =IF($B19>0,VLOOKUP($B19,'10_VSP_Fodermiddeltabel'!$A$4:$CP$489,30,),CHAR(32)) -> 1.2 | GD19: =IF($B19>0,VLOOKUP($B19,'10_VSP_Fodermiddeltabel'!$A$4:$CP$489,31,),CHAR(32)) -> 1.2 | GE19: =IF($B19>0,VLOOKUP($B19,'10_VSP_Fodermiddeltabel'!$A$4:$CP$489,32,),CHAR(32)) -> 24 | GF19: =IF($B19>0,VLOOKUP($B19,'10_VSP_Fodermiddeltabel'!$A$4:$CP$489,33,),CHAR(32)) -> 4 | GG19: =IF($B19>0,VLOOKUP($B19,'10_VSP_Fodermiddeltabel'!$A$4:$CP$489,34,),CHAR(32)) -> 28 | GH19: =IF($B19>0,VLOOKUP($B19,'10_VSP_Fodermiddeltabel'!$A$4:$CP$489,35,),CHAR(32)) -> 37 | GI19: =IF($B19>0,VLOOKUP($B19,'10_VSP_Fodermiddeltabel'!$A$4:$CP$489,36,),CHAR(32)) -> 0 | GJ19: =IF($B19>0,VLOOKUP($B19,'10_VSP_Fodermiddeltabel'!$A$4:$CP$489,37,),CHAR(32)) -> 0 | GL19: =IF($B19>0,VLOOKUP($B19,'10_VSP_Fodermiddeltabel'!$A$4:$CP$489,74,),CHAR(32)) -> 701.7557309 | GM19: =IF($B19>0,VLOOKUP($B19,'10_VSP_Fodermiddeltabel'!$A$4:$CP$489,75,),CHAR(32)) -> 67.1995632 | GN19: =IF($B19>0,VLOOKUP($B19,'10_VSP_Fodermiddeltabel'!$A$4:$CP$489,76,),CHAR(32)) -> 641 | GO19: =IF($B19>0,VLOOKUP($B19,'10_VSP_Fodermiddeltabel'!$A$4:$CP$489,77,),CHAR(32)) -> 33 | GP19: =IF($B19>0,VLOOKUP($B19,'10_VSP_Fodermiddeltabel'!$A$4:$CP$489,78,),CHAR(32)) ->  | GQ19: =IF($B19>0,VLOOKUP($B19,'10_VSP_Fodermiddeltabel'!$A$4:$CP$489,79,),CHAR(32)) ->  | GR19: =IF($B19>0,VLOOKUP($B19,'10_VSP_Fodermiddeltabel'!$A$4:$CP$489,1,),CHAR(32)) -> 56011 | GU19: =+'10_VSP_Fodermiddeltabel'!D10 -> BOLIFOR MCP-F (16/22,7) | GV19: =+'10_VSP_Fodermiddeltabel'!A10 -> 46203
A20: HVEDEKLID +xylanase | B20: 51801 | C20: 5 | D20: =IFERROR(IF($B20>0,VLOOKUP($B20,'10_VSP_Fodermiddeltabel'!$A$4:$CP$489,5,),CHAR(32)),"") -> 2014-06-24 | E20: =IFERROR(IF($B20>0,VLOOKUP($B20,'10_VSP_Fodermiddeltabel'!$A$4:$CP$489,12,),CHAR(32)),"") -> 87.28 | F20: 12.72 | G20: =IFERROR(IF($B20>0,VLOOKUP($B20,'10_VSP_Fodermiddeltabel'!$A$4:$CP$489,13,),CHAR(32)),"") -> 14.84 | H20: =IFERROR(IF($B20>0,VLOOKUP($B20,'10_VSP_Fodermiddeltabel'!$A$4:$CP$489,14,),CHAR(32)),"") -> 5.3 | I20: =IFERROR(IF($B20>0,VLOOKUP($B20,'10_VSP_Fodermiddeltabel'!$A$4:$CP$489,15,),CHAR(32)),"") -> 5.98 | J20: =IFERROR(IF($B20>0,VLOOKUP($B20,'10_VSP_Fodermiddeltabel'!$A$4:$CP$489,16,),CHAR(32)),"") -> 10.43 | K20: =IFERROR(IF($B20>0,VLOOKUP($B20,'10_VSP_Fodermiddeltabel'!$A$4:$CP$489,8,),CHAR(32)),"") -> 58.32 | L20: =IFERROR(IF($B20>0,VLOOKUP($B20,'10_VSP_Fodermiddeltabel'!$A$4:$CP$489,9,),CHAR(32)),"") -> 51 | M20: 0.6189597174 | N20: 0.6866112292 | Q20: 13 | R20: Leucin | S20: 8.222040409 | T20: 107.8896717 | U20: =IF(U$14<8.8,IF(U$14<6.51,IF(U$14<6,+U$14*'11_Normprofiler'!D13/100,+U$14*'11_Normprofiler'!E13/100),+U$14*'11_Normprofiler'!C13/100),+U$14*'11_Normprofiler'!B13/100) -> 7.9 | V20: 104.0764609 | W20: 8.648334737 | X20: Leu | Y20: 10.58784144 | Z20: 12.13945345 | AA20: 0.8168175534 | AE20: 7.32 | AF20: 87.44855967 | AG20: 813 | AI20: 61.89597174 | AJ20: 68.66112292 | AL20: 0 | AM20: 6.851512374 | AN20: 17.00274977 | AO20: 6.072410632 | AP20: 58.32 | AQ20: 51 | AR20: 51.04548252 | AS20: 93.14848763 | AT20: 23.22078696 | AU20: 9.74067042 | AV20: 16.72904256 | AW20: 70.9165579 | AX20: 0 | AY20: 78.66764771 | AZ20: 0 | BA20: 474.1416 | BB20: 414.63 | BD20: 40.65 | BE20: 23.70708 | BF20: 20.7315 | BJ20: 0.03094798587 | BK20: 0.03094798587 | BL20: 0.03433056146 | BM20: 43.64 | BN20: 7.42 | BO20: 2.65 | BP20: 2.99 | BQ20: 5.215 | BR20: 4.688367594 | BS20: 0.1828463362 | BT20: 0.08251526966 | BU20: 0.09751804596 | BV20: 0.1588747127 | BW20: 0.06826263217 | BX20: 0.1650446044 | BY20: 0.3134267504 | BZ20: 0.1396430288 | CA20: 0.2060865743 | CB20: 0.1501871675 | CC20: 0.2335557201 | CD20: 0.0706968 | CE20: 0.44 | CF20: 0.004364 | CG20: =IF($C20>0,IF(VLOOKUP($B20,'10_VSP_Fodermiddeltabel'!$A$4:$DV$489,113,)>0,VLOOKUP($B20,'10_VSP_Fodermiddeltabel'!$A$4:$DV$489,113,)*$C20/100,0),CHAR(32)) -> 0 | CH20: =IF($C20>0,IF(VLOOKUP($B20,'10_VSP_Fodermiddeltabel'!$A$4:$DV$489,110,)>0,VLOOKUP($B20,'10_VSP_Fodermiddeltabel'!$A$4:$DV$489,110,)*$C20/100,0),CHAR(32)) -> 0 | CI20: =IF($C20>0,IF(VLOOKUP($B20,'10_VSP_Fodermiddeltabel'!$A$4:$DV$489,111,)>0,VLOOKUP($B20,'10_VSP_Fodermiddeltabel'!$A$4:$DV$489,111,)*$C20/100,0),CHAR(32)) -> 0 | CJ20: 0.088 | CK20: 0.1628 | CL20: 0.1936 | CM20: 0.22 | CN20: 0.2376 | CO20: =IF($B20>0,VLOOKUP($B20,'10_VSP_Fodermiddeltabel'!$A$4:$CP$489,10,),CHAR(32)) -> 83 | CP20: =IF($B20>0,VLOOKUP($B20,'10_VSP_Fodermiddeltabel'!$A$4:$CP$489,11,),CHAR(32)) -> 1 | CQ20: 90 | CS20: 0.02942249556 | CT20: 0.03239268901 | CU20: 0.050035293 | CV20: 0.04635932966 | CW20: 0.04258533158 | CX20: 0.05731118821 | CY20: 0.08665617079 | CZ20: 0.03670354246 | DA20: 0.02281043897 | DB20: 0.03326025131 | DC20: 0.03731056513 | DD20: 0.03005786888 | DE20: 0.04293680857 | DF20: 0.03393743512 | DG20: 0.03624128343 | DH20: 0.04357156487 | DI20: 0.03580843286 | DJ20: 0.04021909857 | DK20: 0.03882073655 | DL20: 0.01031352538 | DM20: 0.08784595236 | DN20: 0.002770574103 | DO20: 0 | DP20: 0 | DQ20: 0 | DR20: 0.0595884652 | DS20: 0.07935492718 | DT20: 0.08527365282 | DU20: 0.08864727141 | DV20: 0.09097999533 | DX20: 0.28938 | DY20: 0.11872 | DZ20: 0.1484 | EA20: 0.244118 | EB20: 0.10388 | EC20: 0.244118 | ED20: 0.459298 | EE20: 0.192178 | EF20: 0.288638 | EG20: 0.208502 | EH20: 0.355418 | EL20: =IF($B20>0,VLOOKUP($B20,'10_VSP_Fodermiddeltabel'!$A$4:$CP$489,18,),CHAR(32)) -> 63.18554709 | EM20: =IF($B20>0,VLOOKUP($B20,'10_VSP_Fodermiddeltabel'!$A$4:$CP$489,39,),CHAR(32)) -> 3.9 | EN20: =IF($B20>0,VLOOKUP($B20,'10_VSP_Fodermiddeltabel'!$A$4:$CP$489,40,),CHAR(32)) -> 1.6 | EO20: =IF($B20>0,VLOOKUP($B20,'10_VSP_Fodermiddeltabel'!$A$4:$CP$489,41,),CHAR(32)) -> 2 | EP20: =IF($B20>0,VLOOKUP($B20,'10_VSP_Fodermiddeltabel'!$A$4:$CP$489,42,),CHAR(32)) -> 3.29 | EQ20: =IF($B20>0,VLOOKUP($B20,'10_VSP_Fodermiddeltabel'!$A$4:$CP$489,43,),CHAR(32)) -> 1.4 | ER20: =IF($B20>0,VLOOKUP($B20,'10_VSP_Fodermiddeltabel'!$A$4:$CP$489,44,),CHAR(32)) -> 3.29 | ES20: =IF($B20>0,VLOOKUP($B20,'10_VSP_Fodermiddeltabel'!$A$4:$CP$489,45,),CHAR(32)) -> 6.19 | ET20: =IF($B20>0,VLOOKUP($B20,'10_VSP_Fodermiddeltabel'!$A$4:$CP$489,46,),CHAR(32)) -> 2.59 | EU20: =IF($B20>0,VLOOKUP($B20,'10_VSP_Fodermiddeltabel'!$A$4:$CP$489,47,),CHAR(32)) -> 3.89 | EV20: =IF($B20>0,VLOOKUP($B20,'10_VSP_Fodermiddeltabel'!$A$4:$CP$489,48,),CHAR(32)) -> 2.81 | EW20: =IF($B20>0,VLOOKUP($B20,'10_VSP_Fodermiddeltabel'!$A$4:$CP$489,49,),CHAR(32)) -> 4.79 | EX20: =IF($B20>0,VLOOKUP($B20,'10_VSP_Fodermiddeltabel'!$A$4:$CP$489,51,),CHAR(32)) -> 1 | EY20: =IF($B20>0,VLOOKUP($B20,'10_VSP_Fodermiddeltabel'!$A$4:$CP$489,52,),CHAR(32)) -> 1.1 | EZ20: =IF($B20>0,VLOOKUP($B20,'10_VSP_Fodermiddeltabel'!$A$4:$CP$489,53,),CHAR(32)) -> 1.04 | FA20: =IF($B20>0,VLOOKUP($B20,'10_VSP_Fodermiddeltabel'!$A$4:$CP$489,54,),CHAR(32)) -> 1.03 | FB20: =IF($B20>0,VLOOKUP($B20,'10_VSP_Fodermiddeltabel'!$A$4:$CP$489,55,),CHAR(32)) -> 1.04 | FC20: =IF($B20>0,VLOOKUP($B20,'10_VSP_Fodermiddeltabel'!$A$4:$CP$489,56,),CHAR(32)) -> 1.07 | FD20: =IF($B20>0,VLOOKUP($B20,'10_VSP_Fodermiddeltabel'!$A$4:$CP$489,57,),CHAR(32)) -> 1.08 | FE20: =IF($B20>0,VLOOKUP($B20,'10_VSP_Fodermiddeltabel'!$A$4:$CP$489,58,),CHAR(32)) -> 1.15 | FF20: =IF($B20>0,VLOOKUP($B20,'10_VSP_Fodermiddeltabel'!$A$4:$CP$489,59,),CHAR(32)) -> 1.13 | FG20: =IF($B20>0,VLOOKUP($B20,'10_VSP_Fodermiddeltabel'!$A$4:$CP$489,60,),CHAR(32)) -> 1.14 | FH20: =IF($B20>0,VLOOKUP($B20,'10_VSP_Fodermiddeltabel'!$A$4:$CP$489,61,),CHAR(32)) -> 1.04 | FI20: =IF($B20>0,VLOOKUP($B20,'10_VSP_Fodermiddeltabel'!$A$4:$CP$489,2,),CHAR(32)) -> 518 | FJ20: =IF($B20>0,VLOOKUP($B20,'10_VSP_Fodermiddeltabel'!$A$4:$CP$489,3,),CHAR(32)) -> 1 | FK20: =IF($B20>0,VLOOKUP($B20,'10_VSP_Fodermiddeltabel'!$A$4:$CP$489,63,),CHAR(32)) -> 17.00274977 | FL20: =IF($B20>0,VLOOKUP($B20,'10_VSP_Fodermiddeltabel'!$A$4:$CP$489,64,),CHAR(32)) -> 6.072410632 | FM20: =IF($B20>0,VLOOKUP($B20,'10_VSP_Fodermiddeltabel'!$A$4:$CP$489,65,),CHAR(32)) -> 6.851512374 | FN20: =IF($B20>0,VLOOKUP($B20,'10_VSP_Fodermiddeltabel'!$A$4:$CP$489,66,),CHAR(32)) -> 11.95004583 | FO20: =IF($B20>0,VLOOKUP($B20,'10_VSP_Fodermiddeltabel'!$A$4:$CP$489,68,),CHAR(32)) -> 105 | FP20: =IF($B20>0,VLOOKUP($B20,'10_VSP_Fodermiddeltabel'!$A$4:$CP$489,69,),CHAR(32)) -> 63.76031164 | FQ20: =IF($B20>0,VLOOKUP($B20,'10_VSP_Fodermiddeltabel'!$A$4:$CP$489,70,),CHAR(32)) -> 0.709188618 | FR20: =IF($B20>0,VLOOKUP($B20,'10_VSP_Fodermiddeltabel'!$A$4:$CP$489,71,),CHAR(32)) -> 0.7866985586 | FS20: =IF($B20>0,VLOOKUP($B20,'10_VSP_Fodermiddeltabel'!$A$4:$CP$489,19,),CHAR(32)) -> 20 | FT20: =IF($B20>0,VLOOKUP($B20,'10_VSP_Fodermiddeltabel'!$A$4:$CP$489,20,),CHAR(32)) -> 37 | FU20: =IF($B20>0,VLOOKUP($B20,'10_VSP_Fodermiddeltabel'!$A$4:$CP$489,21,),CHAR(32)) -> 44 | FV20: =IF($B20>0,VLOOKUP($B20,'10_VSP_Fodermiddeltabel'!$A$4:$CP$489,22,),CHAR(32)) -> 50 | FW20: =IF($B20>0,VLOOKUP($B20,'10_VSP_Fodermiddeltabel'!$A$4:$CP$489,23,),CHAR(32)) -> 54 | FX20: =IF($B20>0,VLOOKUP($B20,'10_VSP_Fodermiddeltabel'!$A$4:$CP$489,25,),CHAR(32)) -> 1.62 | FY20: =IF($B20>0,VLOOKUP($B20,'10_VSP_Fodermiddeltabel'!$A$4:$CP$489,26,),CHAR(32)) -> 10.08249313 | FZ20: =IF($B20>0,VLOOKUP($B20,'10_VSP_Fodermiddeltabel'!$A$4:$CP$489,27,),CHAR(32)) -> 0.1 | GA20: =IF($B20>0,VLOOKUP($B20,'10_VSP_Fodermiddeltabel'!$A$4:$CP$489,28,),CHAR(32)) -> 0 | GB20: =IF($B20>0,VLOOKUP($B20,'10_VSP_Fodermiddeltabel'!$A$4:$CP$489,29,),CHAR(32)) -> 15 | GC20: =IF($B20>0,VLOOKUP($B20,'10_VSP_Fodermiddeltabel'!$A$4:$CP$489,30,),CHAR(32)) -> 4.5 | GD20: =IF($B20>0,VLOOKUP($B20,'10_VSP_Fodermiddeltabel'!$A$4:$CP$489,31,),CHAR(32)) -> 1.9 | GE20: =IF($B20>0,VLOOKUP($B20,'10_VSP_Fodermiddeltabel'!$A$4:$CP$489,32,),CHAR(32)) -> 185 | GF20: =IF($B20>0,VLOOKUP($B20,'10_VSP_Fodermiddeltabel'!$A$4:$CP$489,33,),CHAR(32)) -> 12 | GG20: =IF($B20>0,VLOOKUP($B20,'10_VSP_Fodermiddeltabel'!$A$4:$CP$489,34,),CHAR(32)) -> 111 | GH20: =IF($B20>0,VLOOKUP($B20,'10_VSP_Fodermiddeltabel'!$A$4:$CP$489,35,),CHAR(32)) -> 89 | GI20: =IF($B20>0,VLOOKUP($B20,'10_VSP_Fodermiddeltabel'!$A$4:$CP$489,36,),CHAR(32)) -> 0 | GJ20: =IF($B20>0,VLOOKUP($B20,'10_VSP_Fodermiddeltabel'!$A$4:$CP$489,37,),CHAR(32)) -> 0.05 | GL20: =IF($B20>0,VLOOKUP($B20,'10_VSP_Fodermiddeltabel'!$A$4:$CP$489,74,),CHAR(32)) -> 232.2078696 | GM20: =IF($B20>0,VLOOKUP($B20,'10_VSP_Fodermiddeltabel'!$A$4:$CP$489,75,),CHAR(32)) -> 97.4067042 | GN20: =IF($B20>0,VLOOKUP($B20,'10_VSP_Fodermiddeltabel'!$A$4:$CP$489,76,),CHAR(32)) ->  | GO20: =IF($B20>0,VLOOKUP($B20,'10_VSP_Fodermiddeltabel'!$A$4:$CP$489,77,),CHAR(32)) ->  | GP20: =IF($B20>0,VLOOKUP($B20,'10_VSP_Fodermiddeltabel'!$A$4:$CP$489,78,),CHAR(32)) -> 29 | GQ20: =IF($B20>0,VLOOKUP($B20,'10_VSP_Fodermiddeltabel'!$A$4:$CP$489,79,),CHAR(32)) -> 420 | GR20: =IF($B20>0,VLOOKUP($B20,'10_VSP_Fodermiddeltabel'!$A$4:$CP$489,1,),CHAR(32)) -> 51801 | GU20: =+'10_VSP_Fodermiddeltabel'!D11 -> BYG, vinter, 2015 | GV20: =+'10_VSP_Fodermiddeltabel'!A11 -> 50300
A21: VEGETABILSK OLIE OG FEDTSTOF, Palme | B21: 88600 | C21: 3.176 | D21: =IFERROR(IF($B21>0,VLOOKUP($B21,'10_VSP_Fodermiddeltabel'!$A$4:$CP$489,5,),CHAR(32)),"") -> 2010-05-12 | E21: =IFERROR(IF($B21>0,VLOOKUP($B21,'10_VSP_Fodermiddeltabel'!$A$4:$CP$489,12,),CHAR(32)),"") -> 99.5 | F21: 0.5 | G21: =IFERROR(IF($B21>0,VLOOKUP($B21,'10_VSP_Fodermiddeltabel'!$A$4:$CP$489,13,),CHAR(32)),"") -> 0.0001005050505 | H21: =IFERROR(IF($B21>0,VLOOKUP($B21,'10_VSP_Fodermiddeltabel'!$A$4:$CP$489,14,),CHAR(32)),"") -> 99.5 | I21: =IFERROR(IF($B21>0,VLOOKUP($B21,'10_VSP_Fodermiddeltabel'!$A$4:$CP$489,15,),CHAR(32)),"") -> 0 | J21: =IFERROR(IF($B21>0,VLOOKUP($B21,'10_VSP_Fodermiddeltabel'!$A$4:$CP$489,16,),CHAR(32)),"") -> 0 | K21: =IFERROR(IF($B21>0,VLOOKUP($B21,'10_VSP_Fodermiddeltabel'!$A$4:$CP$489,8,),CHAR(32)),"") -> 97 | L21: =IFERROR(IF($B21>0,VLOOKUP($B21,'10_VSP_Fodermiddeltabel'!$A$4:$CP$489,9,),CHAR(32)),"") -> 97 | M21: 3.80877349 | N21: 3.656766929 | Q21: 14 | R21: Histidin | S21: 3.0469352 | T21: 39.98190497 | U21: =IF(U$14<8.8,IF(U$14<6.51,IF(U$14<6,+U$14*'11_Normprofiler'!D14/100,+U$14*'11_Normprofiler'!E14/100),+U$14*'11_Normprofiler'!C14/100),+U$14*'11_Normprofiler'!B14/100) -> 2.8 | V21: 108.8191143 | W21: 3.204911947 | X21: His | Y21: 3.861838935 | Z21: 4.427778246 | AA21: 0.8298927015 | AE21: 0 | AF21: 100 | AG21: 995 | AI21: 380.877349 | AJ21: 365.6766929 | AL21: 0 | AM21: 0 | AN21: 0.000101010101 | AO21: 100 | AP21: 97 | AQ21: 97 | AR21: 10 | AS21: 100 | AT21: -9.191919192e-05 | AU21: 0 | AV21: 0.54 | AW21: 382.7913055 | AX21: 0 | AY21: 367.5142642 | AZ21: 0 | BA21: 965.15 | BB21: 965.15 | BD21: 31.6012 | BE21: 30.653164 | BF21: 30.653164 | BJ21: 0.120966646 | BK21: 0.120966646 | BL21: 0.1161389177 | BM21: 31.6012 | BN21: 3.192040404e-05 | BO21: 31.6012 | BP21: 0 | BQ21: 0 | BR21: 0 | BS21: 0 | BT21: 0 | BU21: 0 | BV21: 0 | BW21: 0 | BX21: 0 | BY21: 0 | BZ21: 0 | CA21: 0 | CB21: 0 | CC21: 0 | CD21: 0 | CE21: 0 | CF21: 0 | CG21: =IF($C21>0,IF(VLOOKUP($B21,'10_VSP_Fodermiddeltabel'!$A$4:$DV$489,113,)>0,VLOOKUP($B21,'10_VSP_Fodermiddeltabel'!$A$4:$DV$489,113,)*$C21/100,0),CHAR(32)) -> 0 | CH21: =IF($C21>0,IF(VLOOKUP($B21,'10_VSP_Fodermiddeltabel'!$A$4:$DV$489,110,)>0,VLOOKUP($B21,'10_VSP_Fodermiddeltabel'!$A$4:$DV$489,110,)*$C21/100,0),CHAR(32)) -> 0 | CI21: =IF($C21>0,IF(VLOOKUP($B21,'10_VSP_Fodermiddeltabel'!$A$4:$DV$489,111,)>0,VLOOKUP($B21,'10_VSP_Fodermiddeltabel'!$A$4:$DV$489,111,)*$C21/100,0),CHAR(32)) -> 0 | CJ21: 0 | CK21: 0 | CL21: 0 | CM21: 0 | CN21: 0 | CO21: =IF($B21>0,VLOOKUP($B21,'10_VSP_Fodermiddeltabel'!$A$4:$CP$489,10,),CHAR(32)) -> 90 | CP21: =IF($B21>0,VLOOKUP($B21,'10_VSP_Fodermiddeltabel'!$A$4:$CP$489,11,),CHAR(32)) -> 1 | CQ21: 90 | CS21: 0.1150039495 | CT21: 0.1095831726 | CU21: 0.03623224796 | CV21: 1.994351124e-07 | CW21: 0.5078292756 | CX21: 0 | CY21: 0 | CZ21: 0 | DA21: 0 | DB21: 0 | DC21: 0 | DD21: 0 | DE21: 0 | DF21: 0 | DG21: 0 | DH21: 0 | DI21: 0 | DJ21: 0 | DK21: 0 | DL21: 0 | DM21: 0 | DN21: 0 | DO21: 0 | DP21: 0 | DQ21: 0 | DR21: 0 | DS21: 0 | DT21: 0 | DU21: 0 | DV21: 0 | DX21: 0 | DY21: 0 | DZ21: 0 | EA21: 0 | EB21: 0 | EC21: 0 | ED21: 0 | EE21: 0 | EF21: 0 | EG21: 0 | EH21: 0 | EL21: =IF($B21>0,VLOOKUP($B21,'10_VSP_Fodermiddeltabel'!$A$4:$CP$489,18,),CHAR(32)) -> 0 | EM21: =IF($B21>0,VLOOKUP($B21,'10_VSP_Fodermiddeltabel'!$A$4:$CP$489,39,),CHAR(32)) -> 0 | EN21: =IF($B21>0,VLOOKUP($B21,'10_VSP_Fodermiddeltabel'!$A$4:$CP$489,40,),CHAR(32)) -> 0 | EO21: =IF($B21>0,VLOOKUP($B21,'10_VSP_Fodermiddeltabel'!$A$4:$CP$489,41,),CHAR(32)) -> 0 | EP21: =IF($B21>0,VLOOKUP($B21,'10_VSP_Fodermiddeltabel'!$A$4:$CP$489,42,),CHAR(32)) -> 0 | EQ21: =IF($B21>0,VLOOKUP($B21,'10_VSP_Fodermiddeltabel'!$A$4:$CP$489,43,),CHAR(32)) -> 0 | ER21: =IF($B21>0,VLOOKUP($B21,'10_VSP_Fodermiddeltabel'!$A$4:$CP$489,44,),CHAR(32)) -> 0 | ES21: =IF($B21>0,VLOOKUP($B21,'10_VSP_Fodermiddeltabel'!$A$4:$CP$489,45,),CHAR(32)) -> 0 | ET21: =IF($B21>0,VLOOKUP($B21,'10_VSP_Fodermiddeltabel'!$A$4:$CP$489,46,),CHAR(32)) -> 0 | EU21: =IF($B21>0,VLOOKUP($B21,'10_VSP_Fodermiddeltabel'!$A$4:$CP$489,47,),CHAR(32)) -> 0 | EV21: =IF($B21>0,VLOOKUP($B21,'10_VSP_Fodermiddeltabel'!$A$4:$CP$489,48,),CHAR(32)) -> 0 | EW21: =IF($B21>0,VLOOKUP($B21,'10_VSP_Fodermiddeltabel'!$A$4:$CP$489,49,),CHAR(32)) -> 0 | EX21: =IF($B21>0,VLOOKUP($B21,'10_VSP_Fodermiddeltabel'!$A$4:$CP$489,51,),CHAR(32)) -> 1 | EY21: =IF($B21>0,VLOOKUP($B21,'10_VSP_Fodermiddeltabel'!$A$4:$CP$489,52,),CHAR(32)) -> 1 | EZ21: =IF($B21>0,VLOOKUP($B21,'10_VSP_Fodermiddeltabel'!$A$4:$CP$489,53,),CHAR(32)) -> 1 | FA21: =IF($B21>0,VLOOKUP($B21,'10_VSP_Fodermiddeltabel'!$A$4:$CP$489,54,),CHAR(32)) -> 1 | FB21: =IF($B21>0,VLOOKUP($B21,'10_VSP_Fodermiddeltabel'!$A$4:$CP$489,55,),CHAR(32)) -> 1 | FC21: =IF($B21>0,VLOOKUP($B21,'10_VSP_Fodermiddeltabel'!$A$4:$CP$489,56,),CHAR(32)) -> 1 | FD21: =IF($B21>0,VLOOKUP($B21,'10_VSP_Fodermiddeltabel'!$A$4:$CP$489,57,),CHAR(32)) -> 1 | FE21: =IF($B21>0,VLOOKUP($B21,'10_VSP_Fodermiddeltabel'!$A$4:$CP$489,58,),CHAR(32)) -> 1 | FF21: =IF($B21>0,VLOOKUP($B21,'10_VSP_Fodermiddeltabel'!$A$4:$CP$489,59,),CHAR(32)) -> 1 | FG21: =IF($B21>0,VLOOKUP($B21,'10_VSP_Fodermiddeltabel'!$A$4:$CP$489,60,),CHAR(32)) -> 1 | FH21: =IF($B21>0,VLOOKUP($B21,'10_VSP_Fodermiddeltabel'!$A$4:$CP$489,61,),CHAR(32)) -> 1 | FI21: =IF($B21>0,VLOOKUP($B21,'10_VSP_Fodermiddeltabel'!$A$4:$CP$489,2,),CHAR(32)) -> 886 | FJ21: =IF($B21>0,VLOOKUP($B21,'10_VSP_Fodermiddeltabel'!$A$4:$CP$489,3,),CHAR(32)) -> 0 | FK21: =IF($B21>0,VLOOKUP($B21,'10_VSP_Fodermiddeltabel'!$A$4:$CP$489,63,),CHAR(32)) -> 0.000101010101 | FL21: =IF($B21>0,VLOOKUP($B21,'10_VSP_Fodermiddeltabel'!$A$4:$CP$489,64,),CHAR(32)) -> 100 | FM21: =IF($B21>0,VLOOKUP($B21,'10_VSP_Fodermiddeltabel'!$A$4:$CP$489,65,),CHAR(32)) -> 0 | FN21: =IF($B21>0,VLOOKUP($B21,'10_VSP_Fodermiddeltabel'!$A$4:$CP$489,66,),CHAR(32)) -> 0 | FO21: =IF($B21>0,VLOOKUP($B21,'10_VSP_Fodermiddeltabel'!$A$4:$CP$489,68,),CHAR(32)) -> 55 | FP21: =IF($B21>0,VLOOKUP($B21,'10_VSP_Fodermiddeltabel'!$A$4:$CP$489,69,),CHAR(32)) -> 550 | FQ21: =IF($B21>0,VLOOKUP($B21,'10_VSP_Fodermiddeltabel'!$A$4:$CP$489,70,),CHAR(32)) -> 3.827913055 | FR21: =IF($B21>0,VLOOKUP($B21,'10_VSP_Fodermiddeltabel'!$A$4:$CP$489,71,),CHAR(32)) -> 3.675142642 | FS21: =IF($B21>0,VLOOKUP($B21,'10_VSP_Fodermiddeltabel'!$A$4:$CP$489,19,),CHAR(32)) -> 0 | FT21: =IF($B21>0,VLOOKUP($B21,'10_VSP_Fodermiddeltabel'!$A$4:$CP$489,20,),CHAR(32)) -> 0 | FU21: =IF($B21>0,VLOOKUP($B21,'10_VSP_Fodermiddeltabel'!$A$4:$CP$489,21,),CHAR(32)) -> 0 | FV21: =IF($B21>0,VLOOKUP($B21,'10_VSP_Fodermiddeltabel'!$A$4:$CP$489,22,),CHAR(32)) -> 0 | FW21: =IF($B21>0,VLOOKUP($B21,'10_VSP_Fodermiddeltabel'!$A$4:$CP$489,23,),CHAR(32)) -> 0 | FX21: =IF($B21>0,VLOOKUP($B21,'10_VSP_Fodermiddeltabel'!$A$4:$CP$489,25,),CHAR(32)) -> 0 | FY21: =IF($B21>0,VLOOKUP($B21,'10_VSP_Fodermiddeltabel'!$A$4:$CP$489,26,),CHAR(32)) -> 0 | FZ21: =IF($B21>0,VLOOKUP($B21,'10_VSP_Fodermiddeltabel'!$A$4:$CP$489,27,),CHAR(32)) -> 0 | GA21: =IF($B21>0,VLOOKUP($B21,'10_VSP_Fodermiddeltabel'!$A$4:$CP$489,28,),CHAR(32)) -> 0 | GB21: =IF($B21>0,VLOOKUP($B21,'10_VSP_Fodermiddeltabel'!$A$4:$CP$489,29,),CHAR(32)) -> 0 | GC21: =IF($B21>0,VLOOKUP($B21,'10_VSP_Fodermiddeltabel'!$A$4:$CP$489,30,),CHAR(32)) -> 0 | GD21: =IF($B21>0,VLOOKUP($B21,'10_VSP_Fodermiddeltabel'!$A$4:$CP$489,31,),CHAR(32)) -> 0 | GE21: =IF($B21>0,VLOOKUP($B21,'10_VSP_Fodermiddeltabel'!$A$4:$CP$489,32,),CHAR(32)) -> 0 | GF21: =IF($B21>0,VLOOKUP($B21,'10_VSP_Fodermiddeltabel'!$A$4:$CP$489,33,),CHAR(32)) -> 0 | GG21: =IF($B21>0,VLOOKUP($B21,'10_VSP_Fodermiddeltabel'!$A$4:$CP$489,34,),CHAR(32)) -> 0 | GH21: =IF($B21>0,VLOOKUP($B21,'10_VSP_Fodermiddeltabel'!$A$4:$CP$489,35,),CHAR(32)) -> 0 | GI21: =IF($B21>0,VLOOKUP($B21,'10_VSP_Fodermiddeltabel'!$A$4:$CP$489,36,),CHAR(32)) -> 0 | GJ21: =IF($B21>0,VLOOKUP($B21,'10_VSP_Fodermiddeltabel'!$A$4:$CP$489,37,),CHAR(32)) -> 0 | GL21: =IF($B21>0,VLOOKUP($B21,'10_VSP_Fodermiddeltabel'!$A$4:$CP$489,74,),CHAR(32)) -> -0.0009191919191 | GM21: =IF($B21>0,VLOOKUP($B21,'10_VSP_Fodermiddeltabel'!$A$4:$CP$489,75,),CHAR(32)) -> 0 | GN21: =IF($B21>0,VLOOKUP($B21,'10_VSP_Fodermiddeltabel'!$A$4:$CP$489,76,),CHAR(32)) -> 0 | GO21: =IF($B21>0,VLOOKUP($B21,'10_VSP_Fodermiddeltabel'!$A$4:$CP$489,77,),CHAR(32)) -> 0 | GP21: =IF($B21>0,VLOOKUP($B21,'10_VSP_Fodermiddeltabel'!$A$4:$CP$489,78,),CHAR(32)) -> 0 | GQ21: =IF($B21>0,VLOOKUP($B21,'10_VSP_Fodermiddeltabel'!$A$4:$CP$489,79,),CHAR(32)) -> 0 | GR21: =IF($B21>0,VLOOKUP($B21,'10_VSP_Fodermiddeltabel'!$A$4:$CP$489,1,),CHAR(32)) -> 88600 | GU21: =+'10_VSP_Fodermiddeltabel'!D12 -> BYG, vinter, 2015 + xylanase | GV21: =+'10_VSP_Fodermiddeltabel'!A12 -> 50301
A22: FODERKRIDT, 36 % calcium | B22: 46000 | C22: 1.335 | D22: =IFERROR(IF($B22>0,VLOOKUP($B22,'10_VSP_Fodermiddeltabel'!$A$4:$CP$489,5,),CHAR(32)),"") -> 2013-11-04 | E22: =IFERROR(IF($B22>0,VLOOKUP($B22,'10_VSP_Fodermiddeltabel'!$A$4:$CP$489,12,),CHAR(32)),"") -> 99 | F22: 1 | G22: =IFERROR(IF($B22>0,VLOOKUP($B22,'10_VSP_Fodermiddeltabel'!$A$4:$CP$489,13,),CHAR(32)),"") -> 0 | H22: =IFERROR(IF($B22>0,VLOOKUP($B22,'10_VSP_Fodermiddeltabel'!$A$4:$CP$489,14,),CHAR(32)),"") -> 0 | I22: =IFERROR(IF($B22>0,VLOOKUP($B22,'10_VSP_Fodermiddeltabel'!$A$4:$CP$489,15,),CHAR(32)),"") -> 99 | J22: =IFERROR(IF($B22>0,VLOOKUP($B22,'10_VSP_Fodermiddeltabel'!$A$4:$CP$489,16,),CHAR(32)),"") -> 0 | K22: =IFERROR(IF($B22>0,VLOOKUP($B22,'10_VSP_Fodermiddeltabel'!$A$4:$CP$489,8,),CHAR(32)),"") -> 70 | L22: =IFERROR(IF($B22>0,VLOOKUP($B22,'10_VSP_Fodermiddeltabel'!$A$4:$CP$489,9,),CHAR(32)),"") -> 70 | M22: -0.1126829268 | N22: -0.108 | Q22: 15 | R22: Fenylalanin | S22: 5.471564229 | T22: 71.79790402 | U22: =IF(U$14<8.8,IF(U$14<6.51,IF(U$14<6,+U$14*'11_Normprofiler'!D15/100,+U$14*'11_Normprofiler'!E15/100),+U$14*'11_Normprofiler'!C15/100),+U$14*'11_Normprofiler'!B15/100) -> 4.2 | V22: 130.2753388 | W22: 5.755252545 | X22: Fen | Y22: 6.91816893 | Z22: 7.932002966 | AA22: 0.8319040202 | AE22: 0 | AF22: 100 | AG22: 0 | AI22: -11.26829268 | AJ22: -10.8 | AL22: 0 | AM22: 100 | AN22: 0 | AO22: 0 | AP22: 70 | AQ22: 70 | AR22: 30 | AS22: 0 | AT22: 0 | AU22: 0 | AV22: 0 | AW22: -11.38211382 | AX22: 0 | AY22: -10.90909091 | AZ22: 0 | BA22: 0 | BB22: 0 | BD22: 0 | BE22: 0 | BF22: 0 | BJ22: -0.001504317073 | BK22: -0.001504317073 | BL22: -0.0014418 | BM22: 13.2165 | BN22: 0 | BO22: 0 | BP22: 13.2165 | BQ22: 0 | BR22: 0 | BS22: 0 | BT22: 0 | BU22: 0 | BV22: 0 | BW22: 0 | BX22: 0 | BY22: 0 | BZ22: 0 | CA22: 0 | CB22: 0 | CC22: 0 | CD22: 4.806 | CE22: 0 | CF22: 0 | CG22: =IF($C22>0,IF(VLOOKUP($B22,'10_VSP_Fodermiddeltabel'!$A$4:$DV$489,113,)>0,VLOOKUP($B22,'10_VSP_Fodermiddeltabel'!$A$4:$DV$489,113,)*$C22/100,0),CHAR(32)) -> 0 | CH22: =IF($C22>0,IF(VLOOKUP($B22,'10_VSP_Fodermiddeltabel'!$A$4:$DV$489,110,)>0,VLOOKUP($B22,'10_VSP_Fodermiddeltabel'!$A$4:$DV$489,110,)*$C22/100,0),CHAR(32)) -> 0 | CI22: =IF($C22>0,IF(VLOOKUP($B22,'10_VSP_Fodermiddeltabel'!$A$4:$DV$489,111,)>0,VLOOKUP($B22,'10_VSP_Fodermiddeltabel'!$A$4:$DV$489,111,)*$C22/100,0),CHAR(32)) -> 0 | CJ22: 0 | CK22: 0 | CL22: 0 | CM22: 0 | CN22: 0 | CO22: =IF($B22>0,VLOOKUP($B22,'10_VSP_Fodermiddeltabel'!$A$4:$CP$489,10,),CHAR(32)) -> 0 | CP22: =IF($B22>0,VLOOKUP($B22,'10_VSP_Fodermiddeltabel'!$A$4:$CP$489,11,),CHAR(32)) -> 1 | CQ22: 90 | CS22: -0.001430166169 | CT22: -0.001360414075 | CU22: 0.01515333295 | CV22: 0 | CW22: 0 | CX22: 0.2533288692 | CY22: 0 | CZ22: 0 | DA22: 0 | DB22: 0 | DC22: 0 | DD22: 0 | DE22: 0 | DF22: 0 | DG22: 0 | DH22: 0 | DI22: 0 | DJ22: 0 | DK22: 0 | DL22: 0.7011180559 | DM22: 0 | DN22: 0 | DO22: 0 | DP22: 0 | DQ22: 0 | DR22: 0 | DS22: 0 | DT22: 0 | DU22: 0 | DV22: 0 | DX22: 0 | DY22: 0 | DZ22: 0 | EA22: 0 | EB22: 0 | EC22: 0 | ED22: 0 | EE22: 0 | EF22: 0 | EG22: 0 | EH22: 0 | EL22: =IF($B22>0,VLOOKUP($B22,'10_VSP_Fodermiddeltabel'!$A$4:$CP$489,18,),CHAR(32)) -> 0 | EM22: =IF($B22>0,VLOOKUP($B22,'10_VSP_Fodermiddeltabel'!$A$4:$CP$489,39,),CHAR(32)) -> 0 | EN22: =IF($B22>0,VLOOKUP($B22,'10_VSP_Fodermiddeltabel'!$A$4:$CP$489,40,),CHAR(32)) -> 0 | EO22: =IF($B22>0,VLOOKUP($B22,'10_VSP_Fodermiddeltabel'!$A$4:$CP$489,41,),CHAR(32)) -> 0 | EP22: =IF($B22>0,VLOOKUP($B22,'10_VSP_Fodermiddeltabel'!$A$4:$CP$489,42,),CHAR(32)) -> 0 | EQ22: =IF($B22>0,VLOOKUP($B22,'10_VSP_Fodermiddeltabel'!$A$4:$CP$489,43,),CHAR(32)) -> 0 | ER22: =IF($B22>0,VLOOKUP($B22,'10_VSP_Fodermiddeltabel'!$A$4:$CP$489,44,),CHAR(32)) -> 0 | ES22: =IF($B22>0,VLOOKUP($B22,'10_VSP_Fodermiddeltabel'!$A$4:$CP$489,45,),CHAR(32)) -> 0 | ET22: =IF($B22>0,VLOOKUP($B22,'10_VSP_Fodermiddeltabel'!$A$4:$CP$489,46,),CHAR(32)) -> 0 | EU22: =IF($B22>0,VLOOKUP($B22,'10_VSP_Fodermiddeltabel'!$A$4:$CP$489,47,),CHAR(32)) -> 0 | EV22: =IF($B22>0,VLOOKUP($B22,'10_VSP_Fodermiddeltabel'!$A$4:$CP$489,48,),CHAR(32)) -> 0 | EW22: =IF($B22>0,VLOOKUP($B22,'10_VSP_Fodermiddeltabel'!$A$4:$CP$489,49,),CHAR(32)) -> 0 | EX22: =IF($B22>0,VLOOKUP($B22,'10_VSP_Fodermiddeltabel'!$A$4:$CP$489,51,),CHAR(32)) ->  | EY22: =IF($B22>0,VLOOKUP($B22,'10_VSP_Fodermiddeltabel'!$A$4:$CP$489,52,),CHAR(32)) ->  | EZ22: =IF($B22>0,VLOOKUP($B22,'10_VSP_Fodermiddeltabel'!$A$4:$CP$489,53,),CHAR(32)) ->  | FA22: =IF($B22>0,VLOOKUP($B22,'10_VSP_Fodermiddeltabel'!$A$4:$CP$489,54,),CHAR(32)) ->  | FB22: =IF($B22>0,VLOOKUP($B22,'10_VSP_Fodermiddeltabel'!$A$4:$CP$489,55,),CHAR(32)) ->  | FC22: =IF($B22>0,VLOOKUP($B22,'10_VSP_Fodermiddeltabel'!$A$4:$CP$489,56,),CHAR(32)) ->  | FD22: =IF($B22>0,VLOOKUP($B22,'10_VSP_Fodermiddeltabel'!$A$4:$CP$489,57,),CHAR(32)) ->  | FE22: =IF($B22>0,VLOOKUP($B22,'10_VSP_Fodermiddeltabel'!$A$4:$CP$489,58,),CHAR(32)) ->  | FF22: =IF($B22>0,VLOOKUP($B22,'10_VSP_Fodermiddeltabel'!$A$4:$CP$489,59,),CHAR(32)) ->  | FG22: =IF($B22>0,VLOOKUP($B22,'10_VSP_Fodermiddeltabel'!$A$4:$CP$489,60,),CHAR(32)) ->  | FH22: =IF($B22>0,VLOOKUP($B22,'10_VSP_Fodermiddeltabel'!$A$4:$CP$489,61,),CHAR(32)) ->  | FI22: =IF($B22>0,VLOOKUP($B22,'10_VSP_Fodermiddeltabel'!$A$4:$CP$489,2,),CHAR(32)) -> 460 | FJ22: =IF($B22>0,VLOOKUP($B22,'10_VSP_Fodermiddeltabel'!$A$4:$CP$489,3,),CHAR(32)) -> 0 | FK22: =IF($B22>0,VLOOKUP($B22,'10_VSP_Fodermiddeltabel'!$A$4:$CP$489,63,),CHAR(32)) -> 0 | FL22: =IF($B22>0,VLOOKUP($B22,'10_VSP_Fodermiddeltabel'!$A$4:$CP$489,64,),CHAR(32)) -> 0 | FM22: =IF($B22>0,VLOOKUP($B22,'10_VSP_Fodermiddeltabel'!$A$4:$CP$489,65,),CHAR(32)) -> 100 | FN22: =IF($B22>0,VLOOKUP($B22,'10_VSP_Fodermiddeltabel'!$A$4:$CP$489,66,),CHAR(32)) -> 0 | FO22: =IF($B22>0,VLOOKUP($B22,'10_VSP_Fodermiddeltabel'!$A$4:$CP$489,68,),CHAR(32)) -> 0 | FP22: =IF($B22>0,VLOOKUP($B22,'10_VSP_Fodermiddeltabel'!$A$4:$CP$489,69,),CHAR(32)) -> 0 | FQ22: =IF($B22>0,VLOOKUP($B22,'10_VSP_Fodermiddeltabel'!$A$4:$CP$489,70,),CHAR(32)) -> -0.1138211382 | FR22: =IF($B22>0,VLOOKUP($B22,'10_VSP_Fodermiddeltabel'!$A$4:$CP$489,71,),CHAR(32)) -> -0.1090909091 | FS22: =IF($B22>0,VLOOKUP($B22,'10_VSP_Fodermiddeltabel'!$A$4:$CP$489,19,),CHAR(32)) -> 0 | FT22: =IF($B22>0,VLOOKUP($B22,'10_VSP_Fodermiddeltabel'!$A$4:$CP$489,20,),CHAR(32)) -> 0 | FU22: =IF($B22>0,VLOOKUP($B22,'10_VSP_Fodermiddeltabel'!$A$4:$CP$489,21,),CHAR(32)) -> 0 | FV22: =IF($B22>0,VLOOKUP($B22,'10_VSP_Fodermiddeltabel'!$A$4:$CP$489,22,),CHAR(32)) -> 0 | FW22: =IF($B22>0,VLOOKUP($B22,'10_VSP_Fodermiddeltabel'!$A$4:$CP$489,23,),CHAR(32)) -> 0 | FX22: =IF($B22>0,VLOOKUP($B22,'10_VSP_Fodermiddeltabel'!$A$4:$CP$489,25,),CHAR(32)) -> 363.6363636 | FY22: =IF($B22>0,VLOOKUP($B22,'10_VSP_Fodermiddeltabel'!$A$4:$CP$489,26,),CHAR(32)) -> 0 | FZ22: =IF($B22>0,VLOOKUP($B22,'10_VSP_Fodermiddeltabel'!$A$4:$CP$489,27,),CHAR(32)) -> 0 | GA22: =IF($B22>0,VLOOKUP($B22,'10_VSP_Fodermiddeltabel'!$A$4:$CP$489,28,),CHAR(32)) -> 0 | GB22: =IF($B22>0,VLOOKUP($B22,'10_VSP_Fodermiddeltabel'!$A$4:$CP$489,29,),CHAR(32)) -> 0 | GC22: =IF($B22>0,VLOOKUP($B22,'10_VSP_Fodermiddeltabel'!$A$4:$CP$489,30,),CHAR(32)) -> 0 | GD22: =IF($B22>0,VLOOKUP($B22,'10_VSP_Fodermiddeltabel'!$A$4:$CP$489,31,),CHAR(32)) -> 0 | GE22: =IF($B22>0,VLOOKUP($B22,'10_VSP_Fodermiddeltabel'!$A$4:$CP$489,32,),CHAR(32)) -> 0 | GF22: =IF($B22>0,VLOOKUP($B22,'10_VSP_Fodermiddeltabel'!$A$4:$CP$489,33,),CHAR(32)) -> 0 | GG22: =IF($B22>0,VLOOKUP($B22,'10_VSP_Fodermiddeltabel'!$A$4:$CP$489,34,),CHAR(32)) -> 0 | GH22: =IF($B22>0,VLOOKUP($B22,'10_VSP_Fodermiddeltabel'!$A$4:$CP$489,35,),CHAR(32)) -> 0 | GI22: =IF($B22>0,VLOOKUP($B22,'10_VSP_Fodermiddeltabel'!$A$4:$CP$489,36,),CHAR(32)) -> 0 | GJ22: =IF($B22>0,VLOOKUP($B22,'10_VSP_Fodermiddeltabel'!$A$4:$CP$489,37,),CHAR(32)) -> 0 | GL22: =IF($B22>0,VLOOKUP($B22,'10_VSP_Fodermiddeltabel'!$A$4:$CP$489,74,),CHAR(32)) -> 0 | GM22: =IF($B22>0,VLOOKUP($B22,'10_VSP_Fodermiddeltabel'!$A$4:$CP$489,75,),CHAR(32)) -> 0 | GN22: =IF($B22>0,VLOOKUP($B22,'10_VSP_Fodermiddeltabel'!$A$4:$CP$489,76,),CHAR(32)) ->  | GO22: =IF($B22>0,VLOOKUP($B22,'10_VSP_Fodermiddeltabel'!$A$4:$CP$489,77,),CHAR(32)) ->  | GP22: =IF($B22>0,VLOOKUP($B22,'10_VSP_Fodermiddeltabel'!$A$4:$CP$489,78,),CHAR(32)) ->  | GQ22: =IF($B22>0,VLOOKUP($B22,'10_VSP_Fodermiddeltabel'!$A$4:$CP$489,79,),CHAR(32)) ->  | GR22: =IF($B22>0,VLOOKUP($B22,'10_VSP_Fodermiddeltabel'!$A$4:$CP$489,1,),CHAR(32)) -> 46000 | GU22: =+'10_VSP_Fodermiddeltabel'!D13 -> BYG, vinter, 2015, varmebehandlet | GV22: =+'10_VSP_Fodermiddeltabel'!A13 -> 50310
A23: MONOCALCIUMFOS (16/22,7) | B23: 46200 | C23: 0.218 | D23: =IFERROR(IF($B23>0,VLOOKUP($B23,'10_VSP_Fodermiddeltabel'!$A$4:$CP$489,5,),CHAR(32)),"") -> 2010-05-12 | E23: =IFERROR(IF($B23>0,VLOOKUP($B23,'10_VSP_Fodermiddeltabel'!$A$4:$CP$489,12,),CHAR(32)),"") -> 99 | F23: 1 | G23: =IFERROR(IF($B23>0,VLOOKUP($B23,'10_VSP_Fodermiddeltabel'!$A$4:$CP$489,13,),CHAR(32)),"") -> 0 | H23: =IFERROR(IF($B23>0,VLOOKUP($B23,'10_VSP_Fodermiddeltabel'!$A$4:$CP$489,14,),CHAR(32)),"") -> 0 | I23: =IFERROR(IF($B23>0,VLOOKUP($B23,'10_VSP_Fodermiddeltabel'!$A$4:$CP$489,15,),CHAR(32)),"") -> 99 | J23: =IFERROR(IF($B23>0,VLOOKUP($B23,'10_VSP_Fodermiddeltabel'!$A$4:$CP$489,16,),CHAR(32)),"") -> 0 | K23: =IFERROR(IF($B23>0,VLOOKUP($B23,'10_VSP_Fodermiddeltabel'!$A$4:$CP$489,8,),CHAR(32)),"") -> 70 | L23: =IFERROR(IF($B23>0,VLOOKUP($B23,'10_VSP_Fodermiddeltabel'!$A$4:$CP$489,9,),CHAR(32)),"") -> 70 | M23: -0.1126829268 | N23: -0.108 | Q23: 16 | R23: Fen. + Tyrosin | S23: 9.021721645 | T23: 118.3830944 | U23: =IF(U$14<8.8,IF(U$14<6.51,IF(U$14<6,+U$14*'11_Normprofiler'!D16/100,+U$14*'11_Normprofiler'!E16/100),+U$14*'11_Normprofiler'!C16/100),+U$14*'11_Normprofiler'!B16/100) -> 7.7 | V23: 117.1652162 | W23: 3.734225104 | X23: Tyr | Y23: 4.623349325 | Z23: 5.300885383 | AA23: 0.8076882886 | AE23: 0 | AF23: 100 | AG23: 0 | AI23: -11.26829268 | AJ23: -10.8 | AL23: 0 | AM23: 100 | AN23: 0 | AO23: 0 | AP23: 70 | AQ23: 70 | AR23: 30 | AS23: 0 | AT23: 0 | AU23: 0 | AV23: 0 | AW23: -11.38211382 | AX23: 0 | AY23: -10.90909091 | AZ23: 0 | BA23: 0 | BB23: 0 | BD23: 0 | BE23: 0 | BF23: 0 | BJ23: -0.0002456487805 | BK23: -0.0002456487805 | BL23: -0.00023544 | BM23: 2.1582 | BN23: 0 | BO23: 0 | BP23: 2.1582 | BQ23: 0 | BR23: 0 | BS23: 0 | BT23: 0 | BU23: 0 | BV23: 0 | BW23: 0 | BX23: 0 | BY23: 0 | BZ23: 0 | CA23: 0 | CB23: 0 | CC23: 0 | CD23: 0.3488 | CE23: 0.49486 | CF23: 0 | CG23: =IF($C23>0,IF(VLOOKUP($B23,'10_VSP_Fodermiddeltabel'!$A$4:$DV$489,113,)>0,VLOOKUP($B23,'10_VSP_Fodermiddeltabel'!$A$4:$DV$489,113,)*$C23/100,0),CHAR(32)) -> 0 | CH23: =IF($C23>0,IF(VLOOKUP($B23,'10_VSP_Fodermiddeltabel'!$A$4:$DV$489,110,)>0,VLOOKUP($B23,'10_VSP_Fodermiddeltabel'!$A$4:$DV$489,110,)*$C23/100,0),CHAR(32)) -> 0 | CI23: =IF($C23>0,IF(VLOOKUP($B23,'10_VSP_Fodermiddeltabel'!$A$4:$DV$489,111,)>0,VLOOKUP($B23,'10_VSP_Fodermiddeltabel'!$A$4:$DV$489,111,)*$C23/100,0),CHAR(32)) -> 0 | CJ23: 0.3315562 | CK23: 0.3315562 | CL23: 0.3315562 | CM23: 0.3315562 | CN23: 0.3315562 | CO23: =IF($B23>0,VLOOKUP($B23,'10_VSP_Fodermiddeltabel'!$A$4:$CP$489,10,),CHAR(32)) -> 0 | CP23: =IF($B23>0,VLOOKUP($B23,'10_VSP_Fodermiddeltabel'!$A$4:$CP$489,11,),CHAR(32)) -> 1 | CQ23: 90 | CS23: -0.0002335402434 | CT23: -0.0002221500137 | CU23: 0.002474476841 | CV23: 0 | CW23: 0 | CX23: 0.04136756067 | CY23: 0 | CZ23: 0 | DA23: 0 | DB23: 0 | DC23: 0 | DD23: 0 | DE23: 0 | DF23: 0 | DG23: 0 | DH23: 0 | DI23: 0 | DJ23: 0 | DK23: 0 | DL23: 0.05088430668 | DM23: 0.09879874542 | DN23: 0 | DO23: 0 | DP23: 0 | DQ23: 0 | DR23: 0.2245105123 | DS23: 0.1616131333 | DT23: 0.146038266 | DU23: 0.1335979657 | DV23: 0.126956993 | DX23: 0 | DY23: 0 | DZ23: 0 | EA23: 0 | EB23: 0 | EC23: 0 | ED23: 0 | EE23: 0 | EF23: 0 | EG23: 0 | EH23: 0 | EL23: =IF($B23>0,VLOOKUP($B23,'10_VSP_Fodermiddeltabel'!$A$4:$CP$489,18,),CHAR(32)) -> 0 | EM23: =IF($B23>0,VLOOKUP($B23,'10_VSP_Fodermiddeltabel'!$A$4:$CP$489,39,),CHAR(32)) -> 0 | EN23: =IF($B23>0,VLOOKUP($B23,'10_VSP_Fodermiddeltabel'!$A$4:$CP$489,40,),CHAR(32)) -> 0 | EO23: =IF($B23>0,VLOOKUP($B23,'10_VSP_Fodermiddeltabel'!$A$4:$CP$489,41,),CHAR(32)) -> 0 | EP23: =IF($B23>0,VLOOKUP($B23,'10_VSP_Fodermiddeltabel'!$A$4:$CP$489,42,),CHAR(32)) -> 0 | EQ23: =IF($B23>0,VLOOKUP($B23,'10_VSP_Fodermiddeltabel'!$A$4:$CP$489,43,),CHAR(32)) -> 0 | ER23: =IF($B23>0,VLOOKUP($B23,'10_VSP_Fodermiddeltabel'!$A$4:$CP$489,44,),CHAR(32)) -> 0 | ES23: =IF($B23>0,VLOOKUP($B23,'10_VSP_Fodermiddeltabel'!$A$4:$CP$489,45,),CHAR(32)) -> 0 | ET23: =IF($B23>0,VLOOKUP($B23,'10_VSP_Fodermiddeltabel'!$A$4:$CP$489,46,),CHAR(32)) -> 0 | EU23: =IF($B23>0,VLOOKUP($B23,'10_VSP_Fodermiddeltabel'!$A$4:$CP$489,47,),CHAR(32)) -> 0 | EV23: =IF($B23>0,VLOOKUP($B23,'10_VSP_Fodermiddeltabel'!$A$4:$CP$489,48,),CHAR(32)) -> 0 | EW23: =IF($B23>0,VLOOKUP($B23,'10_VSP_Fodermiddeltabel'!$A$4:$CP$489,49,),CHAR(32)) -> 0 | EX23: =IF($B23>0,VLOOKUP($B23,'10_VSP_Fodermiddeltabel'!$A$4:$CP$489,51,),CHAR(32)) ->  | EY23: =IF($B23>0,VLOOKUP($B23,'10_VSP_Fodermiddeltabel'!$A$4:$CP$489,52,),CHAR(32)) ->  | EZ23: =IF($B23>0,VLOOKUP($B23,'10_VSP_Fodermiddeltabel'!$A$4:$CP$489,53,),CHAR(32)) ->  | FA23: =IF($B23>0,VLOOKUP($B23,'10_VSP_Fodermiddeltabel'!$A$4:$CP$489,54,),CHAR(32)) ->  | FB23: =IF($B23>0,VLOOKUP($B23,'10_VSP_Fodermiddeltabel'!$A$4:$CP$489,55,),CHAR(32)) ->  | FC23: =IF($B23>0,VLOOKUP($B23,'10_VSP_Fodermiddeltabel'!$A$4:$CP$489,56,),CHAR(32)) ->  | FD23: =IF($B23>0,VLOOKUP($B23,'10_VSP_Fodermiddeltabel'!$A$4:$CP$489,57,),CHAR(32)) ->  | FE23: =IF($B23>0,VLOOKUP($B23,'10_VSP_Fodermiddeltabel'!$A$4:$CP$489,58,),CHAR(32)) ->  | FF23: =IF($B23>0,VLOOKUP($B23,'10_VSP_Fodermiddeltabel'!$A$4:$CP$489,59,),CHAR(32)) ->  | FG23: =IF($B23>0,VLOOKUP($B23,'10_VSP_Fodermiddeltabel'!$A$4:$CP$489,60,),CHAR(32)) ->  | FH23: =IF($B23>0,VLOOKUP($B23,'10_VSP_Fodermiddeltabel'!$A$4:$CP$489,61,),CHAR(32)) ->  | FI23: =IF($B23>0,VLOOKUP($B23,'10_VSP_Fodermiddeltabel'!$A$4:$CP$489,2,),CHAR(32)) -> 462 | FJ23: =IF($B23>0,VLOOKUP($B23,'10_VSP_Fodermiddeltabel'!$A$4:$CP$489,3,),CHAR(32)) -> 0 | FK23: =IF($B23>0,VLOOKUP($B23,'10_VSP_Fodermiddeltabel'!$A$4:$CP$489,63,),CHAR(32)) -> 0 | FL23: =IF($B23>0,VLOOKUP($B23,'10_VSP_Fodermiddeltabel'!$A$4:$CP$489,64,),CHAR(32)) -> 0 | FM23: =IF($B23>0,VLOOKUP($B23,'10_VSP_Fodermiddeltabel'!$A$4:$CP$489,65,),CHAR(32)) -> 100 | FN23: =IF($B23>0,VLOOKUP($B23,'10_VSP_Fodermiddeltabel'!$A$4:$CP$489,66,),CHAR(32)) -> 0 | FO23: =IF($B23>0,VLOOKUP($B23,'10_VSP_Fodermiddeltabel'!$A$4:$CP$489,68,),CHAR(32)) -> 0 | FP23: =IF($B23>0,VLOOKUP($B23,'10_VSP_Fodermiddeltabel'!$A$4:$CP$489,69,),CHAR(32)) -> 0 | FQ23: =IF($B23>0,VLOOKUP($B23,'10_VSP_Fodermiddeltabel'!$A$4:$CP$489,70,),CHAR(32)) -> -0.1138211382 | FR23: =IF($B23>0,VLOOKUP($B23,'10_VSP_Fodermiddeltabel'!$A$4:$CP$489,71,),CHAR(32)) -> -0.1090909091 | FS23: =IF($B23>0,VLOOKUP($B23,'10_VSP_Fodermiddeltabel'!$A$4:$CP$489,19,),CHAR(32)) -> 67 | FT23: =IF($B23>0,VLOOKUP($B23,'10_VSP_Fodermiddeltabel'!$A$4:$CP$489,20,),CHAR(32)) -> 67 | FU23: =IF($B23>0,VLOOKUP($B23,'10_VSP_Fodermiddeltabel'!$A$4:$CP$489,21,),CHAR(32)) -> 67 | FV23: =IF($B23>0,VLOOKUP($B23,'10_VSP_Fodermiddeltabel'!$A$4:$CP$489,22,),CHAR(32)) -> 67 | FW23: =IF($B23>0,VLOOKUP($B23,'10_VSP_Fodermiddeltabel'!$A$4:$CP$489,23,),CHAR(32)) -> 67 | FX23: =IF($B23>0,VLOOKUP($B23,'10_VSP_Fodermiddeltabel'!$A$4:$CP$489,25,),CHAR(32)) -> 161.6161616 | FY23: =IF($B23>0,VLOOKUP($B23,'10_VSP_Fodermiddeltabel'!$A$4:$CP$489,26,),CHAR(32)) -> 229.2929293 | FZ23: =IF($B23>0,VLOOKUP($B23,'10_VSP_Fodermiddeltabel'!$A$4:$CP$489,27,),CHAR(32)) -> 0 | GA23: =IF($B23>0,VLOOKUP($B23,'10_VSP_Fodermiddeltabel'!$A$4:$CP$489,28,),CHAR(32)) -> 0 | GB23: =IF($B23>0,VLOOKUP($B23,'10_VSP_Fodermiddeltabel'!$A$4:$CP$489,29,),CHAR(32)) -> 0 | GC23: =IF($B23>0,VLOOKUP($B23,'10_VSP_Fodermiddeltabel'!$A$4:$CP$489,30,),CHAR(32)) -> 0 | GD23: =IF($B23>0,VLOOKUP($B23,'10_VSP_Fodermiddeltabel'!$A$4:$CP$489,31,),CHAR(32)) -> 0 | GE23: =IF($B23>0,VLOOKUP($B23,'10_VSP_Fodermiddeltabel'!$A$4:$CP$489,32,),CHAR(32)) -> 0 | GF23: =IF($B23>0,VLOOKUP($B23,'10_VSP_Fodermiddeltabel'!$A$4:$CP$489,33,),CHAR(32)) -> 0 | GG23: =IF($B23>0,VLOOKUP($B23,'10_VSP_Fodermiddeltabel'!$A$4:$CP$489,34,),CHAR(32)) -> 0 | GH23: =IF($B23>0,VLOOKUP($B23,'10_VSP_Fodermiddeltabel'!$A$4:$CP$489,35,),CHAR(32)) -> 0 | GI23: =IF($B23>0,VLOOKUP($B23,'10_VSP_Fodermiddeltabel'!$A$4:$CP$489,36,),CHAR(32)) -> 0 | GJ23: =IF($B23>0,VLOOKUP($B23,'10_VSP_Fodermiddeltabel'!$A$4:$CP$489,37,),CHAR(32)) -> 0 | GL23: =IF($B23>0,VLOOKUP($B23,'10_VSP_Fodermiddeltabel'!$A$4:$CP$489,74,),CHAR(32)) -> 0 | GM23: =IF($B23>0,VLOOKUP($B23,'10_VSP_Fodermiddeltabel'!$A$4:$CP$489,75,),CHAR(32)) -> 0 | GN23: =IF($B23>0,VLOOKUP($B23,'10_VSP_Fodermiddeltabel'!$A$4:$CP$489,76,),CHAR(32)) ->  | GO23: =IF($B23>0,VLOOKUP($B23,'10_VSP_Fodermiddeltabel'!$A$4:$CP$489,77,),CHAR(32)) ->  | GP23: =IF($B23>0,VLOOKUP($B23,'10_VSP_Fodermiddeltabel'!$A$4:$CP$489,78,),CHAR(32)) ->  | GQ23: =IF($B23>0,VLOOKUP($B23,'10_VSP_Fodermiddeltabel'!$A$4:$CP$489,79,),CHAR(32)) ->  | GR23: =IF($B23>0,VLOOKUP($B23,'10_VSP_Fodermiddeltabel'!$A$4:$CP$489,1,),CHAR(32)) -> 46200 | GU23: =+'10_VSP_Fodermiddeltabel'!D14 -> BYG, vinter, 2015, varmebehandlet + xylanase | GV23: =+'10_VSP_Fodermiddeltabel'!A14 -> 50311
A24: NATRIUMCLORID | B24: 46500 | C24: 0.384 | D24: =IFERROR(IF($B24>0,VLOOKUP($B24,'10_VSP_Fodermiddeltabel'!$A$4:$CP$489,5,),CHAR(32)),"") -> 2010-05-12 | E24: =IFERROR(IF($B24>0,VLOOKUP($B24,'10_VSP_Fodermiddeltabel'!$A$4:$CP$489,12,),CHAR(32)),"") -> 99 | F24: 1 | G24: =IFERROR(IF($B24>0,VLOOKUP($B24,'10_VSP_Fodermiddeltabel'!$A$4:$CP$489,13,),CHAR(32)),"") -> 0 | H24: =IFERROR(IF($B24>0,VLOOKUP($B24,'10_VSP_Fodermiddeltabel'!$A$4:$CP$489,14,),CHAR(32)),"") -> 0 | I24: =IFERROR(IF($B24>0,VLOOKUP($B24,'10_VSP_Fodermiddeltabel'!$A$4:$CP$489,15,),CHAR(32)),"") -> 99 | J24: =IFERROR(IF($B24>0,VLOOKUP($B24,'10_VSP_Fodermiddeltabel'!$A$4:$CP$489,16,),CHAR(32)),"") -> 0 | K24: =IFERROR(IF($B24>0,VLOOKUP($B24,'10_VSP_Fodermiddeltabel'!$A$4:$CP$489,8,),CHAR(32)),"") -> 70 | L24: =IFERROR(IF($B24>0,VLOOKUP($B24,'10_VSP_Fodermiddeltabel'!$A$4:$CP$489,9,),CHAR(32)),"") -> 70 | M24: -0.1126829268 | N24: -0.108 | Q24: 17 | R24: Valin | S24: 5.719707938 | T24: 75.0540475 | U24: =IF(U$14<8.8,IF(U$14<6.51,IF(U$14<6,+U$14*'11_Normprofiler'!D17/100,+U$14*'11_Normprofiler'!E17/100),+U$14*'11_Normprofiler'!C17/100),+U$14*'11_Normprofiler'!B17/100) -> 5.159 | V24: 110.8685392 | W24: 6.016261948 | X24: Val | Y24: 7.633178974 | Z24: 8.75179529 | AA24: 0.7881725253 | AE24: 0 | AF24: 100 | AG24: 0 | AI24: -11.26829268 | AJ24: -10.8 | AL24: 0 | AM24: 100 | AN24: 0 | AO24: 0 | AP24: 70 | AQ24: 70 | AR24: 30 | AS24: 0 | AT24: 0 | AU24: 0 | AV24: 0 | AW24: -11.38211382 | AX24: 0 | AY24: -10.90909091 | AZ24: 0 | BA24: 0 | BB24: 0 | BD24: 0 | BE24: 0 | BF24: 0 | BJ24: -0.000432702439 | BK24: -0.000432702439 | BL24: -0.00041472 | BM24: 3.8016 | BN24: 0 | BO24: 0 | BP24: 3.8016 | BQ24: 0 | BR24: 0 | BS24: 0 | BT24: 0 | BU24: 0 | BV24: 0 | BW24: 0 | BX24: 0 | BY24: 0 | BZ24: 0 | CA24: 0 | CB24: 0 | CC24: 0 | CD24: 0 | CE24: 0 | CF24: 1.459199985 | CG24: =IF($C24>0,IF(VLOOKUP($B24,'10_VSP_Fodermiddeltabel'!$A$4:$DV$489,113,)>0,VLOOKUP($B24,'10_VSP_Fodermiddeltabel'!$A$4:$DV$489,113,)*$C24/100,0),CHAR(32)) -> 0 | CH24: =IF($C24>0,IF(VLOOKUP($B24,'10_VSP_Fodermiddeltabel'!$A$4:$DV$489,110,)>0,VLOOKUP($B24,'10_VSP_Fodermiddeltabel'!$A$4:$DV$489,110,)*$C24/100,0),CHAR(32)) -> 0 | CI24: =IF($C24>0,IF(VLOOKUP($B24,'10_VSP_Fodermiddeltabel'!$A$4:$DV$489,111,)>0,VLOOKUP($B24,'10_VSP_Fodermiddeltabel'!$A$4:$DV$489,111,)*$C24/100,0),CHAR(32)) -> 0 | CJ24: 0 | CK24: 0 | CL24: 0 | CM24: 0 | CN24: 0 | CO24: =IF($B24>0,VLOOKUP($B24,'10_VSP_Fodermiddeltabel'!$A$4:$CP$489,10,),CHAR(32)) -> 0 | CP24: =IF($B24>0,VLOOKUP($B24,'10_VSP_Fodermiddeltabel'!$A$4:$CP$489,11,),CHAR(32)) -> 1 | CQ24: 90 | CS24: -0.0004113736397 | CT24: -0.0003913101159 | CU24: 0.0043587115 | CV24: 0 | CW24: 0 | CX24: 0.0728676298 | CY24: 0 | CZ24: 0 | DA24: 0 | DB24: 0 | DC24: 0 | DD24: 0 | DE24: 0 | DF24: 0 | DG24: 0 | DH24: 0 | DI24: 0 | DJ24: 0 | DK24: 0 | DL24: 0 | DM24: 0 | DN24: 0.9264027705 | DO24: 0 | DP24: 0 | DQ24: 0 | DR24: 0 | DS24: 0 | DT24: 0 | DU24: 0 | DV24: 0 | DX24: 0 | DY24: 0 | DZ24: 0 | EA24: 0 | EB24: 0 | EC24: 0 | ED24: 0 | EE24: 0 | EF24: 0 | EG24: 0 | EH24: 0 | EL24: =IF($B24>0,VLOOKUP($B24,'10_VSP_Fodermiddeltabel'!$A$4:$CP$489,18,),CHAR(32)) -> 0 | EM24: =IF($B24>0,VLOOKUP($B24,'10_VSP_Fodermiddeltabel'!$A$4:$CP$489,39,),CHAR(32)) -> 0 | EN24: =IF($B24>0,VLOOKUP($B24,'10_VSP_Fodermiddeltabel'!$A$4:$CP$489,40,),CHAR(32)) -> 0 | EO24: =IF($B24>0,VLOOKUP($B24,'10_VSP_Fodermiddeltabel'!$A$4:$CP$489,41,),CHAR(32)) -> 0 | EP24: =IF($B24>0,VLOOKUP($B24,'10_VSP_Fodermiddeltabel'!$A$4:$CP$489,42,),CHAR(32)) -> 0 | EQ24: =IF($B24>0,VLOOKUP($B24,'10_VSP_Fodermiddeltabel'!$A$4:$CP$489,43,),CHAR(32)) -> 0 | ER24: =IF($B24>0,VLOOKUP($B24,'10_VSP_Fodermiddeltabel'!$A$4:$CP$489,44,),CHAR(32)) -> 0 | ES24: =IF($B24>0,VLOOKUP($B24,'10_VSP_Fodermiddeltabel'!$A$4:$CP$489,45,),CHAR(32)) -> 0 | ET24: =IF($B24>0,VLOOKUP($B24,'10_VSP_Fodermiddeltabel'!$A$4:$CP$489,46,),CHAR(32)) -> 0 | EU24: =IF($B24>0,VLOOKUP($B24,'10_VSP_Fodermiddeltabel'!$A$4:$CP$489,47,),CHAR(32)) -> 0 | EV24: =IF($B24>0,VLOOKUP($B24,'10_VSP_Fodermiddeltabel'!$A$4:$CP$489,48,),CHAR(32)) -> 0 | EW24: =IF($B24>0,VLOOKUP($B24,'10_VSP_Fodermiddeltabel'!$A$4:$CP$489,49,),CHAR(32)) -> 0 | EX24: =IF($B24>0,VLOOKUP($B24,'10_VSP_Fodermiddeltabel'!$A$4:$CP$489,51,),CHAR(32)) ->  | EY24: =IF($B24>0,VLOOKUP($B24,'10_VSP_Fodermiddeltabel'!$A$4:$CP$489,52,),CHAR(32)) ->  | EZ24: =IF($B24>0,VLOOKUP($B24,'10_VSP_Fodermiddeltabel'!$A$4:$CP$489,53,),CHAR(32)) ->  | FA24: =IF($B24>0,VLOOKUP($B24,'10_VSP_Fodermiddeltabel'!$A$4:$CP$489,54,),CHAR(32)) ->  | FB24: =IF($B24>0,VLOOKUP($B24,'10_VSP_Fodermiddeltabel'!$A$4:$CP$489,55,),CHAR(32)) ->  | FC24: =IF($B24>0,VLOOKUP($B24,'10_VSP_Fodermiddeltabel'!$A$4:$CP$489,56,),CHAR(32)) ->  | FD24: =IF($B24>0,VLOOKUP($B24,'10_VSP_Fodermiddeltabel'!$A$4:$CP$489,57,),CHAR(32)) ->  | FE24: =IF($B24>0,VLOOKUP($B24,'10_VSP_Fodermiddeltabel'!$A$4:$CP$489,58,),CHAR(32)) ->  | FF24: =IF($B24>0,VLOOKUP($B24,'10_VSP_Fodermiddeltabel'!$A$4:$CP$489,59,),CHAR(32)) ->  | FG24: =IF($B24>0,VLOOKUP($B24,'10_VSP_Fodermiddeltabel'!$A$4:$CP$489,60,),CHAR(32)) ->  | FH24: =IF($B24>0,VLOOKUP($B24,'10_VSP_Fodermiddeltabel'!$A$4:$CP$489,61,),CHAR(32)) ->  | FI24: =IF($B24>0,VLOOKUP($B24,'10_VSP_Fodermiddeltabel'!$A$4:$CP$489,2,),CHAR(32)) -> 465 | FJ24: =IF($B24>0,VLOOKUP($B24,'10_VSP_Fodermiddeltabel'!$A$4:$CP$489,3,),CHAR(32)) -> 0 | FK24: =IF($B24>0,VLOOKUP($B24,'10_VSP_Fodermiddeltabel'!$A$4:$CP$489,63,),CHAR(32)) -> 0 | FL24: =IF($B24>0,VLOOKUP($B24,'10_VSP_Fodermiddeltabel'!$A$4:$CP$489,64,),CHAR(32)) -> 0 | FM24: =IF($B24>0,VLOOKUP($B24,'10_VSP_Fodermiddeltabel'!$A$4:$CP$489,65,),CHAR(32)) -> 100 | FN24: =IF($B24>0,VLOOKUP($B24,'10_VSP_Fodermiddeltabel'!$A$4:$CP$489,66,),CHAR(32)) -> 0 | FO24: =IF($B24>0,VLOOKUP($B24,'10_VSP_Fodermiddeltabel'!$A$4:$CP$489,68,),CHAR(32)) -> 0 | FP24: =IF($B24>0,VLOOKUP($B24,'10_VSP_Fodermiddeltabel'!$A$4:$CP$489,69,),CHAR(32)) -> 0 | FQ24: =IF($B24>0,VLOOKUP($B24,'10_VSP_Fodermiddeltabel'!$A$4:$CP$489,70,),CHAR(32)) -> -0.1138211382 | FR24: =IF($B24>0,VLOOKUP($B24,'10_VSP_Fodermiddeltabel'!$A$4:$CP$489,71,),CHAR(32)) -> -0.1090909091 | FS24: =IF($B24>0,VLOOKUP($B24,'10_VSP_Fodermiddeltabel'!$A$4:$CP$489,19,),CHAR(32)) -> 0 | FT24: =IF($B24>0,VLOOKUP($B24,'10_VSP_Fodermiddeltabel'!$A$4:$CP$489,20,),CHAR(32)) -> 0 | FU24: =IF($B24>0,VLOOKUP($B24,'10_VSP_Fodermiddeltabel'!$A$4:$CP$489,21,),CHAR(32)) -> 0 | FV24: =IF($B24>0,VLOOKUP($B24,'10_VSP_Fodermiddeltabel'!$A$4:$CP$489,22,),CHAR(32)) -> 0 | FW24: =IF($B24>0,VLOOKUP($B24,'10_VSP_Fodermiddeltabel'!$A$4:$CP$489,23,),CHAR(32)) -> 0 | FX24: =IF($B24>0,VLOOKUP($B24,'10_VSP_Fodermiddeltabel'!$A$4:$CP$489,25,),CHAR(32)) -> 0 | FY24: =IF($B24>0,VLOOKUP($B24,'10_VSP_Fodermiddeltabel'!$A$4:$CP$489,26,),CHAR(32)) -> 0 | FZ24: =IF($B24>0,VLOOKUP($B24,'10_VSP_Fodermiddeltabel'!$A$4:$CP$489,27,),CHAR(32)) -> 383.83838 | GA24: =IF($B24>0,VLOOKUP($B24,'10_VSP_Fodermiddeltabel'!$A$4:$CP$489,28,),CHAR(32)) -> 626.26263 | GB24: =IF($B24>0,VLOOKUP($B24,'10_VSP_Fodermiddeltabel'!$A$4:$CP$489,29,),CHAR(32)) -> 0 | GC24: =IF($B24>0,VLOOKUP($B24,'10_VSP_Fodermiddeltabel'!$A$4:$CP$489,30,),CHAR(32)) -> 0 | GD24: =IF($B24>0,VLOOKUP($B24,'10_VSP_Fodermiddeltabel'!$A$4:$CP$489,31,),CHAR(32)) -> 0 | GE24: =IF($B24>0,VLOOKUP($B24,'10_VSP_Fodermiddeltabel'!$A$4:$CP$489,32,),CHAR(32)) -> 0 | GF24: =IF($B24>0,VLOOKUP($B24,'10_VSP_Fodermiddeltabel'!$A$4:$CP$489,33,),CHAR(32)) -> 0 | GG24: =IF($B24>0,VLOOKUP($B24,'10_VSP_Fodermiddeltabel'!$A$4:$CP$489,34,),CHAR(32)) -> 0 | GH24: =IF($B24>0,VLOOKUP($B24,'10_VSP_Fodermiddeltabel'!$A$4:$CP$489,35,),CHAR(32)) -> 0 | GI24: =IF($B24>0,VLOOKUP($B24,'10_VSP_Fodermiddeltabel'!$A$4:$CP$489,36,),CHAR(32)) -> 0 | GJ24: =IF($B24>0,VLOOKUP($B24,'10_VSP_Fodermiddeltabel'!$A$4:$CP$489,37,),CHAR(32)) -> 0 | GL24: =IF($B24>0,VLOOKUP($B24,'10_VSP_Fodermiddeltabel'!$A$4:$CP$489,74,),CHAR(32)) -> 0 | GM24: =IF($B24>0,VLOOKUP($B24,'10_VSP_Fodermiddeltabel'!$A$4:$CP$489,75,),CHAR(32)) -> 0 | GN24: =IF($B24>0,VLOOKUP($B24,'10_VSP_Fodermiddeltabel'!$A$4:$CP$489,76,),CHAR(32)) ->  | GO24: =IF($B24>0,VLOOKUP($B24,'10_VSP_Fodermiddeltabel'!$A$4:$CP$489,77,),CHAR(32)) ->  | GP24: =IF($B24>0,VLOOKUP($B24,'10_VSP_Fodermiddeltabel'!$A$4:$CP$489,78,),CHAR(32)) ->  | GQ24: =IF($B24>0,VLOOKUP($B24,'10_VSP_Fodermiddeltabel'!$A$4:$CP$489,79,),CHAR(32)) ->  | GR24: =IF($B24>0,VLOOKUP($B24,'10_VSP_Fodermiddeltabel'!$A$4:$CP$489,1,),CHAR(32)) -> 46500 | GU24: =+'10_VSP_Fodermiddeltabel'!D15 -> BYG, vinter, gns. 2013-2015 | GV24: =+'10_VSP_Fodermiddeltabel'!A15 -> 50500
A25: Std. 0,2 % Vitamin- og mineralforblanding, SL.SVIN | B25: 45500 | C25: 0.191 | D25: =IFERROR(IF($B25>0,VLOOKUP($B25,'10_VSP_Fodermiddeltabel'!$A$4:$CP$489,5,),CHAR(32)),"") -> 2014-06-24 | E25: =IFERROR(IF($B25>0,VLOOKUP($B25,'10_VSP_Fodermiddeltabel'!$A$4:$CP$489,12,),CHAR(32)),"") -> 99 | F25: 1 | G25: =IFERROR(IF($B25>0,VLOOKUP($B25,'10_VSP_Fodermiddeltabel'!$A$4:$CP$489,13,),CHAR(32)),"") -> 0.1 | H25: =IFERROR(IF($B25>0,VLOOKUP($B25,'10_VSP_Fodermiddeltabel'!$A$4:$CP$489,14,),CHAR(32)),"") -> 0.1 | I25: =IFERROR(IF($B25>0,VLOOKUP($B25,'10_VSP_Fodermiddeltabel'!$A$4:$CP$489,15,),CHAR(32)),"") -> 96.7 | J25: =IFERROR(IF($B25>0,VLOOKUP($B25,'10_VSP_Fodermiddeltabel'!$A$4:$CP$489,16,),CHAR(32)),"") -> 0.04 | K25: =IFERROR(IF($B25>0,VLOOKUP($B25,'10_VSP_Fodermiddeltabel'!$A$4:$CP$489,8,),CHAR(32)),"") -> 70 | L25: =IFERROR(IF($B25>0,VLOOKUP($B25,'10_VSP_Fodermiddeltabel'!$A$4:$CP$489,9,),CHAR(32)),"") -> 60 | M25: -0.08841813782 | N25: -0.08243849722 | S25: Totalindhold | AE25: 10 | AF25: 85.71428571 | AG25: 23 | AI25: -8.841813782 | AJ25: -8.243849722 | AL25: 0 | AM25: 97.67676768 | AN25: 0.101010101 | AO25: 0.101010101 | AP25: 70 | AQ25: 60 | AR25: 30.33896104 | AS25: 2.323232323 | AT25: 1.104473304 | AU25: 0.3318903319 | AV25: 0.4573448773 | AW25: -8.931125033 | AX25: 0 | AY25: -8.327120931 | AZ25: 0 | BA25: 16.1 | BB25: 13.8 | BD25: 0.04393 | BE25: 0.030751 | BF25: 0.026358 | BJ25: -0.0001688786432 | BK25: -0.0001688786432 | BL25: -0.0001574575297 | BM25: 1.8909 | BN25: 0.00191 | BO25: 0.00191 | BP25: 1.84697 | BQ25: 0.000764 | BR25: 0.001337 | BS25: 0 | BT25: 0 | BU25: 0 | BV25: 0 | BW25: 0 | BX25: 0 | BY25: 0 | BZ25: 0 | CA25: 0 | CB25: 0 | CC25: 0 | CD25: 0 | CE25: 0 | CF25: 0 | CG25: =IF($C25>0,IF(VLOOKUP($B25,'10_VSP_Fodermiddeltabel'!$A$4:$DV$489,113,)>0,VLOOKUP($B25,'10_VSP_Fodermiddeltabel'!$A$4:$DV$489,113,)*$C25/100,0),CHAR(32)) -> 4.202 | CH25: =IF($C25>0,IF(VLOOKUP($B25,'10_VSP_Fodermiddeltabel'!$A$4:$DV$489,110,)>0,VLOOKUP($B25,'10_VSP_Fodermiddeltabel'!$A$4:$DV$489,110,)*$C25/100,0),CHAR(32)) -> 0 | CI25: =IF($C25>0,IF(VLOOKUP($B25,'10_VSP_Fodermiddeltabel'!$A$4:$DV$489,111,)>0,VLOOKUP($B25,'10_VSP_Fodermiddeltabel'!$A$4:$DV$489,111,)*$C25/100,0),CHAR(32)) -> 0 | CJ25: 0 | CK25: 0 | CL25: 0 | CM25: 0 | CN25: 0 | CO25: =IF($B25>0,VLOOKUP($B25,'10_VSP_Fodermiddeltabel'!$A$4:$CP$489,10,),CHAR(32)) -> 90 | CP25: =IF($B25>0,VLOOKUP($B25,'10_VSP_Fodermiddeltabel'!$A$4:$CP$489,11,),CHAR(32)) -> 1 | CQ25: 90 | CS25: -0.0001605542652 | CT25: -0.0001485694545 | CU25: 0.002168004939 | CV25: 1.193346626e-05 | CW25: 3.069357861e-05 | CX25: 0.03540202184 | CY25: 1.269517056e-05 | CZ25: 1.046689179e-05 | DA25: 0 | DB25: 0 | DC25: 0 | DD25: 0 | DE25: 0 | DF25: 0 | DG25: 0 | DH25: 0 | DI25: 0 | DJ25: 0 | DK25: 0 | DL25: 0 | DM25: 0 | DN25: 0 | DO25: 1 | DP25: 0 | DQ25: 0 | DR25: 0 | DS25: 0 | DT25: 0 | DU25: 0 | DV25: 0 | DX25: 0 | DY25: 0 | DZ25: 0 | EA25: 0 | EB25: 0 | EC25: 0 | ED25: 0 | EE25: 0 | EF25: 0 | EG25: 0 | EH25: 0 | EL25: =IF($B25>0,VLOOKUP($B25,'10_VSP_Fodermiddeltabel'!$A$4:$CP$489,18,),CHAR(32)) -> 70 | EM25: =IF($B25>0,VLOOKUP($B25,'10_VSP_Fodermiddeltabel'!$A$4:$CP$489,39,),CHAR(32)) -> 0 | EN25: =IF($B25>0,VLOOKUP($B25,'10_VSP_Fodermiddeltabel'!$A$4:$CP$489,40,),CHAR(32)) -> 0 | EO25: =IF($B25>0,VLOOKUP($B25,'10_VSP_Fodermiddeltabel'!$A$4:$CP$489,41,),CHAR(32)) -> 0 | EP25: =IF($B25>0,VLOOKUP($B25,'10_VSP_Fodermiddeltabel'!$A$4:$CP$489,42,),CHAR(32)) -> 0 | EQ25: =IF($B25>0,VLOOKUP($B25,'10_VSP_Fodermiddeltabel'!$A$4:$CP$489,43,),CHAR(32)) -> 0 | ER25: =IF($B25>0,VLOOKUP($B25,'10_VSP_Fodermiddeltabel'!$A$4:$CP$489,44,),CHAR(32)) -> 0 | ES25: =IF($B25>0,VLOOKUP($B25,'10_VSP_Fodermiddeltabel'!$A$4:$CP$489,45,),CHAR(32)) -> 0 | ET25: =IF($B25>0,VLOOKUP($B25,'10_VSP_Fodermiddeltabel'!$A$4:$CP$489,46,),CHAR(32)) -> 0 | EU25: =IF($B25>0,VLOOKUP($B25,'10_VSP_Fodermiddeltabel'!$A$4:$CP$489,47,),CHAR(32)) -> 0 | EV25: =IF($B25>0,VLOOKUP($B25,'10_VSP_Fodermiddeltabel'!$A$4:$CP$489,48,),CHAR(32)) -> 0 | EW25: =IF($B25>0,VLOOKUP($B25,'10_VSP_Fodermiddeltabel'!$A$4:$CP$489,49,),CHAR(32)) -> 0 | EX25: =IF($B25>0,VLOOKUP($B25,'10_VSP_Fodermiddeltabel'!$A$4:$CP$489,51,),CHAR(32)) -> 1 | EY25: =IF($B25>0,VLOOKUP($B25,'10_VSP_Fodermiddeltabel'!$A$4:$CP$489,52,),CHAR(32)) -> 1 | EZ25: =IF($B25>0,VLOOKUP($B25,'10_VSP_Fodermiddeltabel'!$A$4:$CP$489,53,),CHAR(32)) -> 0 | FA25: =IF($B25>0,VLOOKUP($B25,'10_VSP_Fodermiddeltabel'!$A$4:$CP$489,54,),CHAR(32)) -> 0 | FB25: =IF($B25>0,VLOOKUP($B25,'10_VSP_Fodermiddeltabel'!$A$4:$CP$489,55,),CHAR(32)) -> 0 | FC25: =IF($B25>0,VLOOKUP($B25,'10_VSP_Fodermiddeltabel'!$A$4:$CP$489,56,),CHAR(32)) -> 0 | FD25: =IF($B25>0,VLOOKUP($B25,'10_VSP_Fodermiddeltabel'!$A$4:$CP$489,57,),CHAR(32)) -> 0 | FE25: =IF($B25>0,VLOOKUP($B25,'10_VSP_Fodermiddeltabel'!$A$4:$CP$489,58,),CHAR(32)) -> 0 | FF25: =IF($B25>0,VLOOKUP($B25,'10_VSP_Fodermiddeltabel'!$A$4:$CP$489,59,),CHAR(32)) -> 0 | FG25: =IF($B25>0,VLOOKUP($B25,'10_VSP_Fodermiddeltabel'!$A$4:$CP$489,60,),CHAR(32)) -> 0 | FH25: =IF($B25>0,VLOOKUP($B25,'10_VSP_Fodermiddeltabel'!$A$4:$CP$489,61,),CHAR(32)) -> 0 | FI25: =IF($B25>0,VLOOKUP($B25,'10_VSP_Fodermiddeltabel'!$A$4:$CP$489,2,),CHAR(32)) -> 455 | FJ25: =IF($B25>0,VLOOKUP($B25,'10_VSP_Fodermiddeltabel'!$A$4:$CP$489,3,),CHAR(32)) -> 0 | FK25: =IF($B25>0,VLOOKUP($B25,'10_VSP_Fodermiddeltabel'!$A$4:$CP$489,63,),CHAR(32)) -> 0.101010101 | FL25: =IF($B25>0,VLOOKUP($B25,'10_VSP_Fodermiddeltabel'!$A$4:$CP$489,64,),CHAR(32)) -> 0.101010101 | FM25: =IF($B25>0,VLOOKUP($B25,'10_VSP_Fodermiddeltabel'!$A$4:$CP$489,65,),CHAR(32)) -> 97.67676768 | FN25: =IF($B25>0,VLOOKUP($B25,'10_VSP_Fodermiddeltabel'!$A$4:$CP$489,66,),CHAR(32)) -> 0.0404040404 | FO25: =IF($B25>0,VLOOKUP($B25,'10_VSP_Fodermiddeltabel'!$A$4:$CP$489,68,),CHAR(32)) -> 0 | FP25: =IF($B25>0,VLOOKUP($B25,'10_VSP_Fodermiddeltabel'!$A$4:$CP$489,69,),CHAR(32)) -> 0 | FQ25: =IF($B25>0,VLOOKUP($B25,'10_VSP_Fodermiddeltabel'!$A$4:$CP$489,70,),CHAR(32)) -> -0.08931111346 | FR25: =IF($B25>0,VLOOKUP($B25,'10_VSP_Fodermiddeltabel'!$A$4:$CP$489,71,),CHAR(32)) -> -0.08327107813 | FS25: =IF($B25>0,VLOOKUP($B25,'10_VSP_Fodermiddeltabel'!$A$4:$CP$489,19,),CHAR(32)) -> 63 | FT25: =IF($B25>0,VLOOKUP($B25,'10_VSP_Fodermiddeltabel'!$A$4:$CP$489,20,),CHAR(32)) -> 63 | FU25: =IF($B25>0,VLOOKUP($B25,'10_VSP_Fodermiddeltabel'!$A$4:$CP$489,21,),CHAR(32)) -> 63 | FV25: =IF($B25>0,VLOOKUP($B25,'10_VSP_Fodermiddeltabel'!$A$4:$CP$489,22,),CHAR(32)) -> 63 | FW25: =IF($B25>0,VLOOKUP($B25,'10_VSP_Fodermiddeltabel'!$A$4:$CP$489,23,),CHAR(32)) -> 63 | FX25: =IF($B25>0,VLOOKUP($B25,'10_VSP_Fodermiddeltabel'!$A$4:$CP$489,25,),CHAR(32)) -> 0 | FY25: =IF($B25>0,VLOOKUP($B25,'10_VSP_Fodermiddeltabel'!$A$4:$CP$489,26,),CHAR(32)) -> 0 | FZ25: =IF($B25>0,VLOOKUP($B25,'10_VSP_Fodermiddeltabel'!$A$4:$CP$489,27,),CHAR(32)) -> 0 | GA25: =IF($B25>0,VLOOKUP($B25,'10_VSP_Fodermiddeltabel'!$A$4:$CP$489,28,),CHAR(32)) -> 0 | GB25: =IF($B25>0,VLOOKUP($B25,'10_VSP_Fodermiddeltabel'!$A$4:$CP$489,29,),CHAR(32)) -> 0 | GC25: =IF($B25>0,VLOOKUP($B25,'10_VSP_Fodermiddeltabel'!$A$4:$CP$489,30,),CHAR(32)) -> 0 | GD25: =IF($B25>0,VLOOKUP($B25,'10_VSP_Fodermiddeltabel'!$A$4:$CP$489,31,),CHAR(32)) -> 0 | GE25: =IF($B25>0,VLOOKUP($B25,'10_VSP_Fodermiddeltabel'!$A$4:$CP$489,32,),CHAR(32)) -> 16666.66667 | GF25: =IF($B25>0,VLOOKUP($B25,'10_VSP_Fodermiddeltabel'!$A$4:$CP$489,33,),CHAR(32)) -> 11111.11111 | GG25: =IF($B25>0,VLOOKUP($B25,'10_VSP_Fodermiddeltabel'!$A$4:$CP$489,34,),CHAR(32)) -> 22222.22222 | GH25: =IF($B25>0,VLOOKUP($B25,'10_VSP_Fodermiddeltabel'!$A$4:$CP$489,35,),CHAR(32)) -> 55555.55556 | GI25: =IF($B25>0,VLOOKUP($B25,'10_VSP_Fodermiddeltabel'!$A$4:$CP$489,36,),CHAR(32)) -> 111.1111111 | GJ25: =IF($B25>0,VLOOKUP($B25,'10_VSP_Fodermiddeltabel'!$A$4:$CP$489,37,),CHAR(32)) -> 111.1111111 | GL25: =IF($B25>0,VLOOKUP($B25,'10_VSP_Fodermiddeltabel'!$A$4:$CP$489,74,),CHAR(32)) -> 11.04473304 | GM25: =IF($B25>0,VLOOKUP($B25,'10_VSP_Fodermiddeltabel'!$A$4:$CP$489,75,),CHAR(32)) -> 3.318903319 | GN25: =IF($B25>0,VLOOKUP($B25,'10_VSP_Fodermiddeltabel'!$A$4:$CP$489,76,),CHAR(32)) ->  | GO25: =IF($B25>0,VLOOKUP($B25,'10_VSP_Fodermiddeltabel'!$A$4:$CP$489,77,),CHAR(32)) ->  | GP25: =IF($B25>0,VLOOKUP($B25,'10_VSP_Fodermiddeltabel'!$A$4:$CP$489,78,),CHAR(32)) -> 0 | GQ25: =IF($B25>0,VLOOKUP($B25,'10_VSP_Fodermiddeltabel'!$A$4:$CP$489,79,),CHAR(32)) -> 0 | GR25: =IF($B25>0,VLOOKUP($B25,'10_VSP_Fodermiddeltabel'!$A$4:$CP$489,1,),CHAR(32)) -> 45500 | GU25: =+'10_VSP_Fodermiddeltabel'!D16 -> BYG, vinter, gns. 2013-2015 + xylanase | GV25: =+'10_VSP_Fodermiddeltabel'!A16 -> 50501
A26: LYSIN,L Vådfoder FK=75% | B26: 99501 | C26: 0.443 | D26: =IFERROR(IF($B26>0,VLOOKUP($B26,'10_VSP_Fodermiddeltabel'!$A$4:$CP$489,5,),CHAR(32)),"") -> 2013-08-20 | E26: =IFERROR(IF($B26>0,VLOOKUP($B26,'10_VSP_Fodermiddeltabel'!$A$4:$CP$489,12,),CHAR(32)),"") -> 98.5 | F26: 1.5 | G26: =IFERROR(IF($B26>0,VLOOKUP($B26,'10_VSP_Fodermiddeltabel'!$A$4:$CP$489,13,),CHAR(32)),"") -> 94.4 | H26: =IFERROR(IF($B26>0,VLOOKUP($B26,'10_VSP_Fodermiddeltabel'!$A$4:$CP$489,14,),CHAR(32)),"") -> 0 | I26: =IFERROR(IF($B26>0,VLOOKUP($B26,'10_VSP_Fodermiddeltabel'!$A$4:$CP$489,15,),CHAR(32)),"") -> 19.7 | J26: =IFERROR(IF($B26>0,VLOOKUP($B26,'10_VSP_Fodermiddeltabel'!$A$4:$CP$489,16,),CHAR(32)),"") -> 0 | K26: =IFERROR(IF($B26>0,VLOOKUP($B26,'10_VSP_Fodermiddeltabel'!$A$4:$CP$489,8,),CHAR(32)),"") -> 100 | L26: =IFERROR(IF($B26>0,VLOOKUP($B26,'10_VSP_Fodermiddeltabel'!$A$4:$CP$489,9,),CHAR(32)),"") -> 100 | M26: 1.017323577 | N26: 0.9750451948 | Q26: 18 | R26: Calcium | S26: =HLOOKUP($Q26,$BM$1:$CN$7,4) -> 6.516880102 | U26: =IF(U$14<8.8,IF(U$14<6.51,IF(U$14<6,+U$14*'11_Normprofiler'!D19/100,+U$14*'11_Normprofiler'!E19/100),+U$14*'11_Normprofiler'!C19/100),+U$14*'11_Normprofiler'!B19/100) -> 6.5 | V26: =+S26*100/U26 -> 100.2596939 | W26: =HLOOKUP($Q26,$BM$1:$CN$7,7) -> 6.854765698 | Y26: =+W26 -> 6.854765698 | Z26: =+Y26/$W$40*1000 -> 7.859308206 | AE26: 0 | AF26: 100 | AG26: 788 | AI26: 101.7323577 | AJ26: 97.50451948 | AL26: 0 | AM26: 20 | AN26: 95.83756345 | AO26: 0 | AP26: 100 | AQ26: 100 | AR26: 6 | AS26: 80 | AT26: -7.212182741 | AU26: 0 | AV26: 0 | AW26: 103.2815814 | AX26: 0 | AY26: 98.98935988 | AZ26: 0 | BA26: 788 | BB26: 788 | BD26: 3.49084 | BE26: 3.49084 | BF26: 3.49084 | BJ26: 0.004506743447 | BK26: 0.004506743447 | BL26: 0.004319450213 | BM26: 4.36355 | BN26: 4.18192 | BO26: 0 | BP26: 0.87271 | BQ26: 0 | BR26: 3.13644 | BS26: 2.61813 | BT26: 0 | BU26: 0 | BV26: 0 | BW26: 0 | BX26: 0 | BY26: 0 | BZ26: 0 | CA26: 0 | CB26: 0 | CC26: 0 | CD26: 0 | CE26: 0 | CF26: 0 | CG26: =IF($C26>0,IF(VLOOKUP($B26,'10_VSP_Fodermiddeltabel'!$A$4:$DV$489,113,)>0,VLOOKUP($B26,'10_VSP_Fodermiddeltabel'!$A$4:$DV$489,113,)*$C26/100,0),CHAR(32)) -> 0 | CH26: =IF($C26>0,IF(VLOOKUP($B26,'10_VSP_Fodermiddeltabel'!$A$4:$DV$489,110,)>0,VLOOKUP($B26,'10_VSP_Fodermiddeltabel'!$A$4:$DV$489,110,)*$C26/100,0),CHAR(32)) -> 0 | CI26: =IF($C26>0,IF(VLOOKUP($B26,'10_VSP_Fodermiddeltabel'!$A$4:$DV$489,111,)>0,VLOOKUP($B26,'10_VSP_Fodermiddeltabel'!$A$4:$DV$489,111,)*$C26/100,0),CHAR(32)) -> 0 | CJ26: 0 | CK26: 0 | CL26: 0 | CM26: 0 | CN26: 0 | CO26: =IF($B26>0,VLOOKUP($B26,'10_VSP_Fodermiddeltabel'!$A$4:$CP$489,10,),CHAR(32)) -> 100 | CP26: =IF($B26>0,VLOOKUP($B26,'10_VSP_Fodermiddeltabel'!$A$4:$CP$489,11,),CHAR(32)) -> 1 | CQ26: 90 | CS26: 0.00428459673 | CT26: 0.004075628288 | CU26: 0.005003013354 | CV26: 0.02612816818 | CW26: 0 | CX26: 0.01672777494 | CY26: 0 | CZ26: 0.0245540599 | DA26: 0.3266168513 | DB26: 0 | DC26: 0 | DD26: 0 | DE26: 0 | DF26: 0 | DG26: 0 | DH26: 0 | DI26: 0 | DJ26: 0 | DK26: 0 | DL26: 0 | DM26: 0 | DN26: 0 | DO26: 0 | DP26: 0 | DQ26: 0 | DR26: 0 | DS26: 0 | DT26: 0 | DU26: 0 | DV26: 0 | DX26: 3.49084 | DY26: 0 | DZ26: 0 | EA26: 0 | EB26: 0 | EC26: 0 | ED26: 0 | EE26: 0 | EF26: 0 | EG26: 0 | EH26: 0 | EL26: =IF($B26>0,VLOOKUP($B26,'10_VSP_Fodermiddeltabel'!$A$4:$CP$489,18,),CHAR(32)) -> 75 | EM26: =IF($B26>0,VLOOKUP($B26,'10_VSP_Fodermiddeltabel'!$A$4:$CP$489,39,),CHAR(32)) -> 83.47457627 | EN26: =IF($B26>0,VLOOKUP($B26,'10_VSP_Fodermiddeltabel'!$A$4:$CP$489,40,),CHAR(32)) -> 0 | EO26: =IF($B26>0,VLOOKUP($B26,'10_VSP_Fodermiddeltabel'!$A$4:$CP$489,41,),CHAR(32)) -> 0 | EP26: =IF($B26>0,VLOOKUP($B26,'10_VSP_Fodermiddeltabel'!$A$4:$CP$489,42,),CHAR(32)) -> 0 | EQ26: =IF($B26>0,VLOOKUP($B26,'10_VSP_Fodermiddeltabel'!$A$4:$CP$489,43,),CHAR(32)) -> 0 | ER26: =IF($B26>0,VLOOKUP($B26,'10_VSP_Fodermiddeltabel'!$A$4:$CP$489,44,),CHAR(32)) -> 0 | ES26: =IF($B26>0,VLOOKUP($B26,'10_VSP_Fodermiddeltabel'!$A$4:$CP$489,45,),CHAR(32)) -> 0 | ET26: =IF($B26>0,VLOOKUP($B26,'10_VSP_Fodermiddeltabel'!$A$4:$CP$489,46,),CHAR(32)) -> 0 | EU26: =IF($B26>0,VLOOKUP($B26,'10_VSP_Fodermiddeltabel'!$A$4:$CP$489,47,),CHAR(32)) -> 0 | EV26: =IF($B26>0,VLOOKUP($B26,'10_VSP_Fodermiddeltabel'!$A$4:$CP$489,48,),CHAR(32)) -> 0 | EW26: =IF($B26>0,VLOOKUP($B26,'10_VSP_Fodermiddeltabel'!$A$4:$CP$489,49,),CHAR(32)) -> 0 | EX26: =IF($B26>0,VLOOKUP($B26,'10_VSP_Fodermiddeltabel'!$A$4:$CP$489,51,),CHAR(32)) -> 1 | EY26: =IF($B26>0,VLOOKUP($B26,'10_VSP_Fodermiddeltabel'!$A$4:$CP$489,52,),CHAR(32)) -> 1 | EZ26: =IF($B26>0,VLOOKUP($B26,'10_VSP_Fodermiddeltabel'!$A$4:$CP$489,53,),CHAR(32)) -> 1 | FA26: =IF($B26>0,VLOOKUP($B26,'10_VSP_Fodermiddeltabel'!$A$4:$CP$489,54,),CHAR(32)) -> 1 | FB26: =IF($B26>0,VLOOKUP($B26,'10_VSP_Fodermiddeltabel'!$A$4:$CP$489,55,),CHAR(32)) -> 1 | FC26: =IF($B26>0,VLOOKUP($B26,'10_VSP_Fodermiddeltabel'!$A$4:$CP$489,56,),CHAR(32)) -> 1 | FD26: =IF($B26>0,VLOOKUP($B26,'10_VSP_Fodermiddeltabel'!$A$4:$CP$489,57,),CHAR(32)) -> 1 | FE26: =IF($B26>0,VLOOKUP($B26,'10_VSP_Fodermiddeltabel'!$A$4:$CP$489,58,),CHAR(32)) -> 1 | FF26: =IF($B26>0,VLOOKUP($B26,'10_VSP_Fodermiddeltabel'!$A$4:$CP$489,59,),CHAR(32)) -> 1 | FG26: =IF($B26>0,VLOOKUP($B26,'10_VSP_Fodermiddeltabel'!$A$4:$CP$489,60,),CHAR(32)) -> 1 | FH26: =IF($B26>0,VLOOKUP($B26,'10_VSP_Fodermiddeltabel'!$A$4:$CP$489,61,),CHAR(32)) -> 1 | FI26: =IF($B26>0,VLOOKUP($B26,'10_VSP_Fodermiddeltabel'!$A$4:$CP$489,2,),CHAR(32)) -> 995 | FJ26: =IF($B26>0,VLOOKUP($B26,'10_VSP_Fodermiddeltabel'!$A$4:$CP$489,3,),CHAR(32)) -> 1 | FK26: =IF($B26>0,VLOOKUP($B26,'10_VSP_Fodermiddeltabel'!$A$4:$CP$489,63,),CHAR(32)) -> 95.83756345 | FL26: =IF($B26>0,VLOOKUP($B26,'10_VSP_Fodermiddeltabel'!$A$4:$CP$489,64,),CHAR(32)) -> 0 | FM26: =IF($B26>0,VLOOKUP($B26,'10_VSP_Fodermiddeltabel'!$A$4:$CP$489,65,),CHAR(32)) -> 20 | FN26: =IF($B26>0,VLOOKUP($B26,'10_VSP_Fodermiddeltabel'!$A$4:$CP$489,66,),CHAR(32)) -> 0 | FO26: =IF($B26>0,VLOOKUP($B26,'10_VSP_Fodermiddeltabel'!$A$4:$CP$489,68,),CHAR(32)) -> 0 | FP26: =IF($B26>0,VLOOKUP($B26,'10_VSP_Fodermiddeltabel'!$A$4:$CP$489,69,),CHAR(32)) -> 0 | FQ26: =IF($B26>0,VLOOKUP($B26,'10_VSP_Fodermiddeltabel'!$A$4:$CP$489,70,),CHAR(32)) -> 1.032945676 | FR26: =IF($B26>0,VLOOKUP($B26,'10_VSP_Fodermiddeltabel'!$A$4:$CP$489,71,),CHAR(32)) -> 0.9900180632 | FS26: =IF($B26>0,VLOOKUP($B26,'10_VSP_Fodermiddeltabel'!$A$4:$CP$489,19,),CHAR(32)) -> 0 | FT26: =IF($B26>0,VLOOKUP($B26,'10_VSP_Fodermiddeltabel'!$A$4:$CP$489,20,),CHAR(32)) -> 0 | FU26: =IF($B26>0,VLOOKUP($B26,'10_VSP_Fodermiddeltabel'!$A$4:$CP$489,21,),CHAR(32)) -> 0 | FV26: =IF($B26>0,VLOOKUP($B26,'10_VSP_Fodermiddeltabel'!$A$4:$CP$489,22,),CHAR(32)) -> 0 | FW26: =IF($B26>0,VLOOKUP($B26,'10_VSP_Fodermiddeltabel'!$A$4:$CP$489,23,),CHAR(32)) -> 0 | FX26: =IF($B26>0,VLOOKUP($B26,'10_VSP_Fodermiddeltabel'!$A$4:$CP$489,25,),CHAR(32)) -> 0 | FY26: =IF($B26>0,VLOOKUP($B26,'10_VSP_Fodermiddeltabel'!$A$4:$CP$489,26,),CHAR(32)) -> 0 | FZ26: =IF($B26>0,VLOOKUP($B26,'10_VSP_Fodermiddeltabel'!$A$4:$CP$489,27,),CHAR(32)) -> 0 | GA26: =IF($B26>0,VLOOKUP($B26,'10_VSP_Fodermiddeltabel'!$A$4:$CP$489,28,),CHAR(32)) -> 192 | GB26: =IF($B26>0,VLOOKUP($B26,'10_VSP_Fodermiddeltabel'!$A$4:$CP$489,29,),CHAR(32)) -> 0 | GC26: =IF($B26>0,VLOOKUP($B26,'10_VSP_Fodermiddeltabel'!$A$4:$CP$489,30,),CHAR(32)) -> 0 | GD26: =IF($B26>0,VLOOKUP($B26,'10_VSP_Fodermiddeltabel'!$A$4:$CP$489,31,),CHAR(32)) -> 0 | GE26: =IF($B26>0,VLOOKUP($B26,'10_VSP_Fodermiddeltabel'!$A$4:$CP$489,32,),CHAR(32)) -> 0 | GF26: =IF($B26>0,VLOOKUP($B26,'10_VSP_Fodermiddeltabel'!$A$4:$CP$489,33,),CHAR(32)) -> 0 | GG26: =IF($B26>0,VLOOKUP($B26,'10_VSP_Fodermiddeltabel'!$A$4:$CP$489,34,),CHAR(32)) -> 0 | GH26: =IF($B26>0,VLOOKUP($B26,'10_VSP_Fodermiddeltabel'!$A$4:$CP$489,35,),CHAR(32)) -> 0 | GI26: =IF($B26>0,VLOOKUP($B26,'10_VSP_Fodermiddeltabel'!$A$4:$CP$489,36,),CHAR(32)) -> 0 | GJ26: =IF($B26>0,VLOOKUP($B26,'10_VSP_Fodermiddeltabel'!$A$4:$CP$489,37,),CHAR(32)) -> 0 | GL26: =IF($B26>0,VLOOKUP($B26,'10_VSP_Fodermiddeltabel'!$A$4:$CP$489,74,),CHAR(32)) -> -72.12182741 | GM26: =IF($B26>0,VLOOKUP($B26,'10_VSP_Fodermiddeltabel'!$A$4:$CP$489,75,),CHAR(32)) -> 0 | GN26: =IF($B26>0,VLOOKUP($B26,'10_VSP_Fodermiddeltabel'!$A$4:$CP$489,76,),CHAR(32)) ->  | GO26: =IF($B26>0,VLOOKUP($B26,'10_VSP_Fodermiddeltabel'!$A$4:$CP$489,77,),CHAR(32)) ->  | GP26: =IF($B26>0,VLOOKUP($B26,'10_VSP_Fodermiddeltabel'!$A$4:$CP$489,78,),CHAR(32)) ->  | GQ26: =IF($B26>0,VLOOKUP($B26,'10_VSP_Fodermiddeltabel'!$A$4:$CP$489,79,),CHAR(32)) ->  | GR26: =IF($B26>0,VLOOKUP($B26,'10_VSP_Fodermiddeltabel'!$A$4:$CP$489,1,),CHAR(32)) -> 99501 | GU26: =+'10_VSP_Fodermiddeltabel'!D17 -> BYG, vinter, gns. 2013-2015, varmebehandlet | GV26: =+'10_VSP_Fodermiddeltabel'!A17 -> 50510
A27: METHIONIN,DL 99 | B27: 99400 | C27: 0.007 | D27: =IFERROR(IF($B27>0,VLOOKUP($B27,'10_VSP_Fodermiddeltabel'!$A$4:$CP$489,5,),CHAR(32)),"") -> 2010-05-12 | E27: =IFERROR(IF($B27>0,VLOOKUP($B27,'10_VSP_Fodermiddeltabel'!$A$4:$CP$489,12,),CHAR(32)),"") -> 99.7 | F27: 0.3 | G27: =IFERROR(IF($B27>0,VLOOKUP($B27,'10_VSP_Fodermiddeltabel'!$A$4:$CP$489,13,),CHAR(32)),"") -> 58.7233 | H27: =IFERROR(IF($B27>0,VLOOKUP($B27,'10_VSP_Fodermiddeltabel'!$A$4:$CP$489,14,),CHAR(32)),"") -> 0 | I27: =IFERROR(IF($B27>0,VLOOKUP($B27,'10_VSP_Fodermiddeltabel'!$A$4:$CP$489,15,),CHAR(32)),"") -> 0 | J27: =IFERROR(IF($B27>0,VLOOKUP($B27,'10_VSP_Fodermiddeltabel'!$A$4:$CP$489,16,),CHAR(32)),"") -> 0 | K27: =IFERROR(IF($B27>0,VLOOKUP($B27,'10_VSP_Fodermiddeltabel'!$A$4:$CP$489,8,),CHAR(32)),"") -> 100 | L27: =IFERROR(IF($B27>0,VLOOKUP($B27,'10_VSP_Fodermiddeltabel'!$A$4:$CP$489,9,),CHAR(32)),"") -> 100 | M27: 1.450272676 | N27: 1.390001603 | Q27: 19 | R27: Fosfor | S27: 4.761875506 | W27: 5.008768056 | Y27: 5.008768056 | Z27: 5.742785912 | AE27: 0 | AF27: 100 | AG27: 997 | AI27: 145.0272676 | AJ27: 139.0001603 | AL27: 0 | AM27: 0 | AN27: 58.9 | AO27: 0 | AP27: 100 | AQ27: 100 | AR27: 0 | AS27: 100 | AT27: 46.401 | AU27: 0 | AV27: 0 | AW27: 145.4636585 | AX27: 0 | AY27: 139.4184156 | AZ27: 0 | BA27: 997 | BB27: 997 | BD27: 0.06979 | BE27: 0.06979 | BF27: 0.06979 | BJ27: 0.0001015190873 | BK27: 0.0001015190873 | BL27: 9.730011224e-05 | BM27: 0.06979 | BN27: 0.04110631 | BO27: 0 | BP27: 0 | BQ27: 0 | BR27: 0.04110631 | BS27: 0 | BT27: 0.06930523866 | BU27: 0 | BV27: 0 | BW27: 0 | BX27: 0 | BY27: 0 | BZ27: 0 | CA27: 0 | CB27: 0 | CC27: 0 | CD27: 0 | CE27: 0 | CF27: 0 | CG27: =IF($C27>0,IF(VLOOKUP($B27,'10_VSP_Fodermiddeltabel'!$A$4:$DV$489,113,)>0,VLOOKUP($B27,'10_VSP_Fodermiddeltabel'!$A$4:$DV$489,113,)*$C27/100,0),CHAR(32)) -> 0 | CH27: =IF($C27>0,IF(VLOOKUP($B27,'10_VSP_Fodermiddeltabel'!$A$4:$DV$489,110,)>0,VLOOKUP($B27,'10_VSP_Fodermiddeltabel'!$A$4:$DV$489,110,)*$C27/100,0),CHAR(32)) -> 0 | CI27: =IF($C27>0,IF(VLOOKUP($B27,'10_VSP_Fodermiddeltabel'!$A$4:$DV$489,111,)>0,VLOOKUP($B27,'10_VSP_Fodermiddeltabel'!$A$4:$DV$489,111,)*$C27/100,0),CHAR(32)) -> 0 | CJ27: 0 | CK27: 0 | CL27: 0 | CM27: 0 | CN27: 0 | CO27: =IF($B27>0,VLOOKUP($B27,'10_VSP_Fodermiddeltabel'!$A$4:$CP$489,10,),CHAR(32)) -> 100 | CP27: =IF($B27>0,VLOOKUP($B27,'10_VSP_Fodermiddeltabel'!$A$4:$CP$489,11,),CHAR(32)) -> 1 | CQ27: 90 | CS27: 9.651500125e-05 | CT27: 9.180776957e-05 | CU27: 8.001748621e-05 | CV27: 0.0002568276249 | CW27: 0 | CX27: 0 | CY27: 0 | CZ27: 0.0003218065061 | DA27: 0 | DB27: 0.02793555259 | DC27: 0 | DD27: 0 | DE27: 0 | DF27: 0 | DG27: 0 | DH27: 0 | DI27: 0 | DJ27: 0 | DK27: 0 | DL27: 0 | DM27: 0 | DN27: 0 | DO27: 0 | DP27: 0 | DQ27: 0 | DR27: 0 | DS27: 0 | DT27: 0 | DU27: 0 | DV27: 0 | DX27: 0 | DY27: 0.06930523866 | DZ27: 0 | EA27: 0 | EB27: 0 | EC27: 0 | ED27: 0 | EE27: 0 | EF27: 0 | EG27: 0 | EH27: 0 | EL27: =IF($B27>0,VLOOKUP($B27,'10_VSP_Fodermiddeltabel'!$A$4:$CP$489,18,),CHAR(32)) -> 100 | EM27: =IF($B27>0,VLOOKUP($B27,'10_VSP_Fodermiddeltabel'!$A$4:$CP$489,39,),CHAR(32)) -> 0 | EN27: =IF($B27>0,VLOOKUP($B27,'10_VSP_Fodermiddeltabel'!$A$4:$CP$489,40,),CHAR(32)) -> 168.6 | EO27: =IF($B27>0,VLOOKUP($B27,'10_VSP_Fodermiddeltabel'!$A$4:$CP$489,41,),CHAR(32)) -> 0 | EP27: =IF($B27>0,VLOOKUP($B27,'10_VSP_Fodermiddeltabel'!$A$4:$CP$489,42,),CHAR(32)) -> 0 | EQ27: =IF($B27>0,VLOOKUP($B27,'10_VSP_Fodermiddeltabel'!$A$4:$CP$489,43,),CHAR(32)) -> 0 | ER27: =IF($B27>0,VLOOKUP($B27,'10_VSP_Fodermiddeltabel'!$A$4:$CP$489,44,),CHAR(32)) -> 0 | ES27: =IF($B27>0,VLOOKUP($B27,'10_VSP_Fodermiddeltabel'!$A$4:$CP$489,45,),CHAR(32)) -> 0 | ET27: =IF($B27>0,VLOOKUP($B27,'10_VSP_Fodermiddeltabel'!$A$4:$CP$489,46,),CHAR(32)) -> 0 | EU27: =IF($B27>0,VLOOKUP($B27,'10_VSP_Fodermiddeltabel'!$A$4:$CP$489,47,),CHAR(32)) -> 0 | EV27: =IF($B27>0,VLOOKUP($B27,'10_VSP_Fodermiddeltabel'!$A$4:$CP$489,48,),CHAR(32)) -> 0 | EW27: =IF($B27>0,VLOOKUP($B27,'10_VSP_Fodermiddeltabel'!$A$4:$CP$489,49,),CHAR(32)) -> 0 | EX27: =IF($B27>0,VLOOKUP($B27,'10_VSP_Fodermiddeltabel'!$A$4:$CP$489,51,),CHAR(32)) -> 1 | EY27: =IF($B27>0,VLOOKUP($B27,'10_VSP_Fodermiddeltabel'!$A$4:$CP$489,52,),CHAR(32)) -> 1 | EZ27: =IF($B27>0,VLOOKUP($B27,'10_VSP_Fodermiddeltabel'!$A$4:$CP$489,53,),CHAR(32)) -> 1 | FA27: =IF($B27>0,VLOOKUP($B27,'10_VSP_Fodermiddeltabel'!$A$4:$CP$489,54,),CHAR(32)) -> 1 | FB27: =IF($B27>0,VLOOKUP($B27,'10_VSP_Fodermiddeltabel'!$A$4:$CP$489,55,),CHAR(32)) -> 1 | FC27: =IF($B27>0,VLOOKUP($B27,'10_VSP_Fodermiddeltabel'!$A$4:$CP$489,56,),CHAR(32)) -> 1 | FD27: =IF($B27>0,VLOOKUP($B27,'10_VSP_Fodermiddeltabel'!$A$4:$CP$489,57,),CHAR(32)) -> 1 | FE27: =IF($B27>0,VLOOKUP($B27,'10_VSP_Fodermiddeltabel'!$A$4:$CP$489,58,),CHAR(32)) -> 1 | FF27: =IF($B27>0,VLOOKUP($B27,'10_VSP_Fodermiddeltabel'!$A$4:$CP$489,59,),CHAR(32)) -> 1 | FG27: =IF($B27>0,VLOOKUP($B27,'10_VSP_Fodermiddeltabel'!$A$4:$CP$489,60,),CHAR(32)) -> 1 | FH27: =IF($B27>0,VLOOKUP($B27,'10_VSP_Fodermiddeltabel'!$A$4:$CP$489,61,),CHAR(32)) -> 1 | FI27: =IF($B27>0,VLOOKUP($B27,'10_VSP_Fodermiddeltabel'!$A$4:$CP$489,2,),CHAR(32)) -> 994 | FJ27: =IF($B27>0,VLOOKUP($B27,'10_VSP_Fodermiddeltabel'!$A$4:$CP$489,3,),CHAR(32)) -> 0 | FK27: =IF($B27>0,VLOOKUP($B27,'10_VSP_Fodermiddeltabel'!$A$4:$CP$489,63,),CHAR(32)) -> 58.9 | FL27: =IF($B27>0,VLOOKUP($B27,'10_VSP_Fodermiddeltabel'!$A$4:$CP$489,64,),CHAR(32)) -> 0 | FM27: =IF($B27>0,VLOOKUP($B27,'10_VSP_Fodermiddeltabel'!$A$4:$CP$489,65,),CHAR(32)) -> 0 | FN27: =IF($B27>0,VLOOKUP($B27,'10_VSP_Fodermiddeltabel'!$A$4:$CP$489,66,),CHAR(32)) -> 0 | FO27: =IF($B27>0,VLOOKUP($B27,'10_VSP_Fodermiddeltabel'!$A$4:$CP$489,68,),CHAR(32)) -> 0 | FP27: =IF($B27>0,VLOOKUP($B27,'10_VSP_Fodermiddeltabel'!$A$4:$CP$489,69,),CHAR(32)) -> 0 | FQ27: =IF($B27>0,VLOOKUP($B27,'10_VSP_Fodermiddeltabel'!$A$4:$CP$489,70,),CHAR(32)) -> 1.454716396 | FR27: =IF($B27>0,VLOOKUP($B27,'10_VSP_Fodermiddeltabel'!$A$4:$CP$489,71,),CHAR(32)) -> 1.394260649 | FS27: =IF($B27>0,VLOOKUP($B27,'10_VSP_Fodermiddeltabel'!$A$4:$CP$489,19,),CHAR(32)) -> 0 | FT27: =IF($B27>0,VLOOKUP($B27,'10_VSP_Fodermiddeltabel'!$A$4:$CP$489,20,),CHAR(32)) -> 0 | FU27: =IF($B27>0,VLOOKUP($B27,'10_VSP_Fodermiddeltabel'!$A$4:$CP$489,21,),CHAR(32)) -> 0 | FV27: =IF($B27>0,VLOOKUP($B27,'10_VSP_Fodermiddeltabel'!$A$4:$CP$489,22,),CHAR(32)) -> 0 | FW27: =IF($B27>0,VLOOKUP($B27,'10_VSP_Fodermiddeltabel'!$A$4:$CP$489,23,),CHAR(32)) -> 0 | FX27: =IF($B27>0,VLOOKUP($B27,'10_VSP_Fodermiddeltabel'!$A$4:$CP$489,25,),CHAR(32)) -> 0 | FY27: =IF($B27>0,VLOOKUP($B27,'10_VSP_Fodermiddeltabel'!$A$4:$CP$489,26,),CHAR(32)) -> 0 | FZ27: =IF($B27>0,VLOOKUP($B27,'10_VSP_Fodermiddeltabel'!$A$4:$CP$489,27,),CHAR(32)) -> 0 | GA27: =IF($B27>0,VLOOKUP($B27,'10_VSP_Fodermiddeltabel'!$A$4:$CP$489,28,),CHAR(32)) -> 0 | GB27: =IF($B27>0,VLOOKUP($B27,'10_VSP_Fodermiddeltabel'!$A$4:$CP$489,29,),CHAR(32)) -> 0 | GC27: =IF($B27>0,VLOOKUP($B27,'10_VSP_Fodermiddeltabel'!$A$4:$CP$489,30,),CHAR(32)) -> 0 | GD27: =IF($B27>0,VLOOKUP($B27,'10_VSP_Fodermiddeltabel'!$A$4:$CP$489,31,),CHAR(32)) -> 0 | GE27: =IF($B27>0,VLOOKUP($B27,'10_VSP_Fodermiddeltabel'!$A$4:$CP$489,32,),CHAR(32)) -> 0 | GF27: =IF($B27>0,VLOOKUP($B27,'10_VSP_Fodermiddeltabel'!$A$4:$CP$489,33,),CHAR(32)) -> 0 | GG27: =IF($B27>0,VLOOKUP($B27,'10_VSP_Fodermiddeltabel'!$A$4:$CP$489,34,),CHAR(32)) -> 0 | GH27: =IF($B27>0,VLOOKUP($B27,'10_VSP_Fodermiddeltabel'!$A$4:$CP$489,35,),CHAR(32)) -> 0 | GI27: =IF($B27>0,VLOOKUP($B27,'10_VSP_Fodermiddeltabel'!$A$4:$CP$489,36,),CHAR(32)) -> 0 | GJ27: =IF($B27>0,VLOOKUP($B27,'10_VSP_Fodermiddeltabel'!$A$4:$CP$489,37,),CHAR(32)) -> 0 | GL27: =IF($B27>0,VLOOKUP($B27,'10_VSP_Fodermiddeltabel'!$A$4:$CP$489,74,),CHAR(32)) -> 464.01 | GM27: =IF($B27>0,VLOOKUP($B27,'10_VSP_Fodermiddeltabel'!$A$4:$CP$489,75,),CHAR(32)) -> 0 | GN27: =IF($B27>0,VLOOKUP($B27,'10_VSP_Fodermiddeltabel'!$A$4:$CP$489,76,),CHAR(32)) ->  | GO27: =IF($B27>0,VLOOKUP($B27,'10_VSP_Fodermiddeltabel'!$A$4:$CP$489,77,),CHAR(32)) ->  | GP27: =IF($B27>0,VLOOKUP($B27,'10_VSP_Fodermiddeltabel'!$A$4:$CP$489,78,),CHAR(32)) ->  | GQ27: =IF($B27>0,VLOOKUP($B27,'10_VSP_Fodermiddeltabel'!$A$4:$CP$489,79,),CHAR(32)) ->  | GR27: =IF($B27>0,VLOOKUP($B27,'10_VSP_Fodermiddeltabel'!$A$4:$CP$489,1,),CHAR(32)) -> 99400 | GU27: =+'10_VSP_Fodermiddeltabel'!D18 -> BYG, vinter, gns. 2013-2015, varmebehandlet + xylanas | GV27: =+'10_VSP_Fodermiddeltabel'!A18 -> 50511
A28: TREONIN,L Vådfoder FK=75% | B28: 99601 | C28: 0.107 | D28: =IFERROR(IF($B28>0,VLOOKUP($B28,'10_VSP_Fodermiddeltabel'!$A$4:$CP$489,5,),CHAR(32)),"") -> 2010-05-12 | E28: =IFERROR(IF($B28>0,VLOOKUP($B28,'10_VSP_Fodermiddeltabel'!$A$4:$CP$489,12,),CHAR(32)),"") -> 99.5 | F28: 0.5 | G28: =IFERROR(IF($B28>0,VLOOKUP($B28,'10_VSP_Fodermiddeltabel'!$A$4:$CP$489,13,),CHAR(32)),"") -> 72.038 | H28: =IFERROR(IF($B28>0,VLOOKUP($B28,'10_VSP_Fodermiddeltabel'!$A$4:$CP$489,14,),CHAR(32)),"") -> 0 | I28: =IFERROR(IF($B28>0,VLOOKUP($B28,'10_VSP_Fodermiddeltabel'!$A$4:$CP$489,15,),CHAR(32)),"") -> 0 | J28: =IFERROR(IF($B28>0,VLOOKUP($B28,'10_VSP_Fodermiddeltabel'!$A$4:$CP$489,16,),CHAR(32)),"") -> 0 | K28: =IFERROR(IF($B28>0,VLOOKUP($B28,'10_VSP_Fodermiddeltabel'!$A$4:$CP$489,8,),CHAR(32)),"") -> 100 | L28: =IFERROR(IF($B28>0,VLOOKUP($B28,'10_VSP_Fodermiddeltabel'!$A$4:$CP$489,9,),CHAR(32)),"") -> 100 | M28: 1.417549805 | N28: 1.358638644 | Q28: 20 | R28: Natrium | S28: 1.497483644 | W28: 1.575124807 | Y28: 1.575124807 | Z28: 1.80595397 | AE28: 0 | AF28: 100 | AG28: 995 | AI28: 141.7549805 | AJ28: 135.8638644 | AL28: 0 | AM28: 0 | AN28: 72.4 | AO28: 0 | AP28: 100 | AQ28: 100 | AR28: 0 | AS28: 100 | AT28: 34.116 | AU28: 0 | AV28: 0 | AW28: 142.4673171 | AX28: 0 | AY28: 136.5465974 | AZ28: 0 | BA28: 995 | BB28: 995 | BD28: 1.06465 | BE28: 1.06465 | BF28: 1.06465 | BJ28: 0.001516778291 | BK28: 0.001516778291 | BL28: 0.001453743349 | BM28: 1.06465 | BN28: 0.7708066 | BO28: 0 | BP28: 0 | BQ28: 0 | BR28: 0.57810495 | BS28: 0 | BT28: 0 | BU28: 0 | BV28: 0.786222732 | BW28: 0 | BX28: 0 | BY28: 0 | BZ28: 0 | CA28: 0 | CB28: 0 | CC28: 0 | CD28: 0 | CE28: 0 | CF28: 0 | CG28: =IF($C28>0,IF(VLOOKUP($B28,'10_VSP_Fodermiddeltabel'!$A$4:$DV$489,113,)>0,VLOOKUP($B28,'10_VSP_Fodermiddeltabel'!$A$4:$DV$489,113,)*$C28/100,0),CHAR(32)) -> 0 | CH28: =IF($C28>0,IF(VLOOKUP($B28,'10_VSP_Fodermiddeltabel'!$A$4:$DV$489,110,)>0,VLOOKUP($B28,'10_VSP_Fodermiddeltabel'!$A$4:$DV$489,110,)*$C28/100,0),CHAR(32)) -> 0 | CI28: =IF($C28>0,IF(VLOOKUP($B28,'10_VSP_Fodermiddeltabel'!$A$4:$DV$489,111,)>0,VLOOKUP($B28,'10_VSP_Fodermiddeltabel'!$A$4:$DV$489,111,)*$C28/100,0),CHAR(32)) -> 0 | CJ28: 0 | CK28: 0 | CL28: 0 | CM28: 0 | CN28: 0 | CO28: =IF($B28>0,VLOOKUP($B28,'10_VSP_Fodermiddeltabel'!$A$4:$CP$489,10,),CHAR(32)) -> 100 | CP28: =IF($B28>0,VLOOKUP($B28,'10_VSP_Fodermiddeltabel'!$A$4:$CP$489,11,),CHAR(32)) -> 1 | CQ28: 90 | CS28: 0.001442013148 | CT28: 0.001371683252 | CU28: 0.001220670822 | CV28: 0.004815913379 | CW28: 0 | CX28: 0 | CY28: 0 | CZ28: 0.004525775583 | DA28: 0 | DB28: 0 | DC28: 0 | DD28: 0.14874727 | DE28: 0 | DF28: 0 | DG28: 0 | DH28: 0 | DI28: 0 | DJ28: 0 | DK28: 0 | DL28: 0 | DM28: 0 | DN28: 0 | DO28: 0 | DP28: 0 | DQ28: 0 | DR28: 0 | DS28: 0 | DT28: 0 | DU28: 0 | DV28: 0 | DX28: 0 | DY28: 0 | DZ28: 0 | EA28: 1.048296976 | EB28: 0 | EC28: 0 | ED28: 0 | EE28: 0 | EF28: 0 | EG28: 0 | EH28: 0 | EL28: =IF($B28>0,VLOOKUP($B28,'10_VSP_Fodermiddeltabel'!$A$4:$CP$489,18,),CHAR(32)) -> 75 | EM28: =IF($B28>0,VLOOKUP($B28,'10_VSP_Fodermiddeltabel'!$A$4:$CP$489,39,),CHAR(32)) -> 0 | EN28: =IF($B28>0,VLOOKUP($B28,'10_VSP_Fodermiddeltabel'!$A$4:$CP$489,40,),CHAR(32)) -> 0 | EO28: =IF($B28>0,VLOOKUP($B28,'10_VSP_Fodermiddeltabel'!$A$4:$CP$489,41,),CHAR(32)) -> 0 | EP28: =IF($B28>0,VLOOKUP($B28,'10_VSP_Fodermiddeltabel'!$A$4:$CP$489,42,),CHAR(32)) -> 136 | EQ28: =IF($B28>0,VLOOKUP($B28,'10_VSP_Fodermiddeltabel'!$A$4:$CP$489,43,),CHAR(32)) -> 0 | ER28: =IF($B28>0,VLOOKUP($B28,'10_VSP_Fodermiddeltabel'!$A$4:$CP$489,44,),CHAR(32)) -> 0 | ES28: =IF($B28>0,VLOOKUP($B28,'10_VSP_Fodermiddeltabel'!$A$4:$CP$489,45,),CHAR(32)) -> 0 | ET28: =IF($B28>0,VLOOKUP($B28,'10_VSP_Fodermiddeltabel'!$A$4:$CP$489,46,),CHAR(32)) -> 0 | EU28: =IF($B28>0,VLOOKUP($B28,'10_VSP_Fodermiddeltabel'!$A$4:$CP$489,47,),CHAR(32)) -> 0 | EV28: =IF($B28>0,VLOOKUP($B28,'10_VSP_Fodermiddeltabel'!$A$4:$CP$489,48,),CHAR(32)) -> 0 | EW28: =IF($B28>0,VLOOKUP($B28,'10_VSP_Fodermiddeltabel'!$A$4:$CP$489,49,),CHAR(32)) -> 0 | EX28: =IF($B28>0,VLOOKUP($B28,'10_VSP_Fodermiddeltabel'!$A$4:$CP$489,51,),CHAR(32)) -> 1 | EY28: =IF($B28>0,VLOOKUP($B28,'10_VSP_Fodermiddeltabel'!$A$4:$CP$489,52,),CHAR(32)) -> 1 | EZ28: =IF($B28>0,VLOOKUP($B28,'10_VSP_Fodermiddeltabel'!$A$4:$CP$489,53,),CHAR(32)) -> 1 | FA28: =IF($B28>0,VLOOKUP($B28,'10_VSP_Fodermiddeltabel'!$A$4:$CP$489,54,),CHAR(32)) -> 1 | FB28: =IF($B28>0,VLOOKUP($B28,'10_VSP_Fodermiddeltabel'!$A$4:$CP$489,55,),CHAR(32)) -> 1 | FC28: =IF($B28>0,VLOOKUP($B28,'10_VSP_Fodermiddeltabel'!$A$4:$CP$489,56,),CHAR(32)) -> 1 | FD28: =IF($B28>0,VLOOKUP($B28,'10_VSP_Fodermiddeltabel'!$A$4:$CP$489,57,),CHAR(32)) -> 1 | FE28: =IF($B28>0,VLOOKUP($B28,'10_VSP_Fodermiddeltabel'!$A$4:$CP$489,58,),CHAR(32)) -> 1 | FF28: =IF($B28>0,VLOOKUP($B28,'10_VSP_Fodermiddeltabel'!$A$4:$CP$489,59,),CHAR(32)) -> 1 | FG28: =IF($B28>0,VLOOKUP($B28,'10_VSP_Fodermiddeltabel'!$A$4:$CP$489,60,),CHAR(32)) -> 1 | FH28: =IF($B28>0,VLOOKUP($B28,'10_VSP_Fodermiddeltabel'!$A$4:$CP$489,61,),CHAR(32)) -> 1 | FI28: =IF($B28>0,VLOOKUP($B28,'10_VSP_Fodermiddeltabel'!$A$4:$CP$489,2,),CHAR(32)) -> 996 | FJ28: =IF($B28>0,VLOOKUP($B28,'10_VSP_Fodermiddeltabel'!$A$4:$CP$489,3,),CHAR(32)) -> 1 | FK28: =IF($B28>0,VLOOKUP($B28,'10_VSP_Fodermiddeltabel'!$A$4:$CP$489,63,),CHAR(32)) -> 72.4 | FL28: =IF($B28>0,VLOOKUP($B28,'10_VSP_Fodermiddeltabel'!$A$4:$CP$489,64,),CHAR(32)) -> 0 | FM28: =IF($B28>0,VLOOKUP($B28,'10_VSP_Fodermiddeltabel'!$A$4:$CP$489,65,),CHAR(32)) -> 0 | FN28: =IF($B28>0,VLOOKUP($B28,'10_VSP_Fodermiddeltabel'!$A$4:$CP$489,66,),CHAR(32)) -> 0 | FO28: =IF($B28>0,VLOOKUP($B28,'10_VSP_Fodermiddeltabel'!$A$4:$CP$489,68,),CHAR(32)) -> 0 | FP28: =IF($B28>0,VLOOKUP($B28,'10_VSP_Fodermiddeltabel'!$A$4:$CP$489,69,),CHAR(32)) -> 0 | FQ28: =IF($B28>0,VLOOKUP($B28,'10_VSP_Fodermiddeltabel'!$A$4:$CP$489,70,),CHAR(32)) -> 1.424771274 | FR28: =IF($B28>0,VLOOKUP($B28,'10_VSP_Fodermiddeltabel'!$A$4:$CP$489,71,),CHAR(32)) -> 1.36556 | FS28: =IF($B28>0,VLOOKUP($B28,'10_VSP_Fodermiddeltabel'!$A$4:$CP$489,19,),CHAR(32)) -> 0 | FT28: =IF($B28>0,VLOOKUP($B28,'10_VSP_Fodermiddeltabel'!$A$4:$CP$489,20,),CHAR(32)) -> 0 | FU28: =IF($B28>0,VLOOKUP($B28,'10_VSP_Fodermiddeltabel'!$A$4:$CP$489,21,),CHAR(32)) -> 0 | FV28: =IF($B28>0,VLOOKUP($B28,'10_VSP_Fodermiddeltabel'!$A$4:$CP$489,22,),CHAR(32)) -> 0 | FW28: =IF($B28>0,VLOOKUP($B28,'10_VSP_Fodermiddeltabel'!$A$4:$CP$489,23,),CHAR(32)) -> 0 | FX28: =IF($B28>0,VLOOKUP($B28,'10_VSP_Fodermiddeltabel'!$A$4:$CP$489,25,),CHAR(32)) -> 0 | FY28: =IF($B28>0,VLOOKUP($B28,'10_VSP_Fodermiddeltabel'!$A$4:$CP$489,26,),CHAR(32)) -> 0 | FZ28: =IF($B28>0,VLOOKUP($B28,'10_VSP_Fodermiddeltabel'!$A$4:$CP$489,27,),CHAR(32)) -> 0 | GA28: =IF($B28>0,VLOOKUP($B28,'10_VSP_Fodermiddeltabel'!$A$4:$CP$489,28,),CHAR(32)) -> 0 | GB28: =IF($B28>0,VLOOKUP($B28,'10_VSP_Fodermiddeltabel'!$A$4:$CP$489,29,),CHAR(32)) -> 0 | GC28: =IF($B28>0,VLOOKUP($B28,'10_VSP_Fodermiddeltabel'!$A$4:$CP$489,30,),CHAR(32)) -> 0 | GD28: =IF($B28>0,VLOOKUP($B28,'10_VSP_Fodermiddeltabel'!$A$4:$CP$489,31,),CHAR(32)) -> 0 | GE28: =IF($B28>0,VLOOKUP($B28,'10_VSP_Fodermiddeltabel'!$A$4:$CP$489,32,),CHAR(32)) -> 0 | GF28: =IF($B28>0,VLOOKUP($B28,'10_VSP_Fodermiddeltabel'!$A$4:$CP$489,33,),CHAR(32)) -> 0 | GG28: =IF($B28>0,VLOOKUP($B28,'10_VSP_Fodermiddeltabel'!$A$4:$CP$489,34,),CHAR(32)) -> 0 | GH28: =IF($B28>0,VLOOKUP($B28,'10_VSP_Fodermiddeltabel'!$A$4:$CP$489,35,),CHAR(32)) -> 0 | GI28: =IF($B28>0,VLOOKUP($B28,'10_VSP_Fodermiddeltabel'!$A$4:$CP$489,36,),CHAR(32)) -> 0 | GJ28: =IF($B28>0,VLOOKUP($B28,'10_VSP_Fodermiddeltabel'!$A$4:$CP$489,37,),CHAR(32)) -> 0 | GL28: =IF($B28>0,VLOOKUP($B28,'10_VSP_Fodermiddeltabel'!$A$4:$CP$489,74,),CHAR(32)) -> 341.16 | GM28: =IF($B28>0,VLOOKUP($B28,'10_VSP_Fodermiddeltabel'!$A$4:$CP$489,75,),CHAR(32)) -> 0 | GN28: =IF($B28>0,VLOOKUP($B28,'10_VSP_Fodermiddeltabel'!$A$4:$CP$489,76,),CHAR(32)) ->  | GO28: =IF($B28>0,VLOOKUP($B28,'10_VSP_Fodermiddeltabel'!$A$4:$CP$489,77,),CHAR(32)) ->  | GP28: =IF($B28>0,VLOOKUP($B28,'10_VSP_Fodermiddeltabel'!$A$4:$CP$489,78,),CHAR(32)) ->  | GQ28: =IF($B28>0,VLOOKUP($B28,'10_VSP_Fodermiddeltabel'!$A$4:$CP$489,79,),CHAR(32)) ->  | GR28: =IF($B28>0,VLOOKUP($B28,'10_VSP_Fodermiddeltabel'!$A$4:$CP$489,1,),CHAR(32)) -> 99601 | GU28: =+'10_VSP_Fodermiddeltabel'!D19 -> BYG, vinter, 2014 | GV28: =+'10_VSP_Fodermiddeltabel'!A19 -> 50400
A29: Ronozyme HiPhos GT tør, Std. dosis: 500 FYT, dog min. 1000 FYT til søer | B29: 95400 | C29: 0.005 | D29: =IFERROR(IF($B29>0,VLOOKUP($B29,'10_VSP_Fodermiddeltabel'!$A$4:$CP$489,5,),CHAR(32)),"") -> 2014-04-24 | E29: =IFERROR(IF($B29>0,VLOOKUP($B29,'10_VSP_Fodermiddeltabel'!$A$4:$CP$489,12,),CHAR(32)),"") -> 99.5 | F29: 0.5 | G29: =IFERROR(IF($B29>0,VLOOKUP($B29,'10_VSP_Fodermiddeltabel'!$A$4:$CP$489,13,),CHAR(32)),"") -> 1.4 | H29: =IFERROR(IF($B29>0,VLOOKUP($B29,'10_VSP_Fodermiddeltabel'!$A$4:$CP$489,14,),CHAR(32)),"") -> 7.4 | I29: =IFERROR(IF($B29>0,VLOOKUP($B29,'10_VSP_Fodermiddeltabel'!$A$4:$CP$489,15,),CHAR(32)),"") -> 77.1 | J29: =IFERROR(IF($B29>0,VLOOKUP($B29,'10_VSP_Fodermiddeltabel'!$A$4:$CP$489,16,),CHAR(32)),"") -> 0 | K29: =IFERROR(IF($B29>0,VLOOKUP($B29,'10_VSP_Fodermiddeltabel'!$A$4:$CP$489,8,),CHAR(32)),"") -> 100 | L29: =IFERROR(IF($B29>0,VLOOKUP($B29,'10_VSP_Fodermiddeltabel'!$A$4:$CP$489,9,),CHAR(32)),"") -> 100 | M29: 0.4345688347 | N29: 0.4165088312 | Q29: 21 | R29: Vit. A, 1000 IE. | S29: 3.994874718 | W29: 4.202 | Y29: 4.202 | Z29: 4.817788753 | AE29: 0 | AF29: 100 | AG29: 224 | AI29: 43.45688347 | AJ29: 41.65088312 | AL29: 0 | AM29: 77.48743719 | AN29: 1.407035176 | AO29: 7.43718593 | AP29: 100 | AQ29: 100 | AR29: 23.76683417 | AS29: 22.51256281 | AT29: 14.01809045 | AU29: 0 | AV29: 0 | AW29: 43.67525977 | AX29: 0 | AY29: 41.86018404 | AZ29: 0 | BA29: 224 | BB29: 224 | BD29: 0.0112 | BE29: 0.0112 | BF29: 0.0112 | BJ29: 2.172844173e-05 | BK29: 2.172844173e-05 | BL29: 2.082544156e-05 | BM29: 0.04975 | BN29: 0.0007 | BO29: 0.0037 | BP29: 0.03855 | BQ29: 0 | BR29: 0 | BS29: 0 | BT29: 0 | BU29: 0 | BV29: 0 | BW29: 0 | BX29: 0 | BY29: 0 | BZ29: 0 | CA29: 0 | CB29: 0 | CC29: 0 | CD29: 0 | CE29: 0 | CF29: 0 | CG29: =IF($C29>0,IF(VLOOKUP($B29,'10_VSP_Fodermiddeltabel'!$A$4:$DV$489,113,)>0,VLOOKUP($B29,'10_VSP_Fodermiddeltabel'!$A$4:$DV$489,113,)*$C29/100,0),CHAR(32)) -> 0 | CH29: =IF($C29>0,IF(VLOOKUP($B29,'10_VSP_Fodermiddeltabel'!$A$4:$DV$489,110,)>0,VLOOKUP($B29,'10_VSP_Fodermiddeltabel'!$A$4:$DV$489,110,)*$C29/100,0),CHAR(32)) -> 500 | CI29: =IF($C29>0,IF(VLOOKUP($B29,'10_VSP_Fodermiddeltabel'!$A$4:$DV$489,111,)>0,VLOOKUP($B29,'10_VSP_Fodermiddeltabel'!$A$4:$DV$489,111,)*$C29/100,0),CHAR(32)) -> 0 | CJ29: 0 | CK29: 0 | CL29: 0 | CM29: 0 | CN29: 0 | CO29: =IF($B29>0,VLOOKUP($B29,'10_VSP_Fodermiddeltabel'!$A$4:$CP$489,10,),CHAR(32)) -> 100 | CP29: =IF($B29>0,VLOOKUP($B29,'10_VSP_Fodermiddeltabel'!$A$4:$CP$489,11,),CHAR(32)) -> 1 | CQ29: 90 | CS29: 2.065740185e-05 | CT29: 1.964989861e-05 | CU29: 5.704069264e-05 | CV29: 4.373521666e-06 | CW29: 5.945876485e-05 | CX29: 0.0007389118079 | CY29: 0 | CZ29: 0 | DA29: 0 | DB29: 0 | DC29: 0 | DD29: 0 | DE29: 0 | DF29: 0 | DG29: 0 | DH29: 0 | DI29: 0 | DJ29: 0 | DK29: 0 | DL29: 0 | DM29: 0 | DN29: 0 | DO29: 0 | DP29: 1 | DQ29: 0 | DR29: 0 | DS29: 0 | DT29: 0 | DU29: 0 | DV29: 0 | DX29: 0 | DY29: =IF($C29>0,IF(EN29>0,+$BN29*EN29/100,0),CHAR(32)) -> 0 | DZ29: =IF($C29>0,IF(EO29>0,+$BN29*EO29/100,0),CHAR(32)) -> 0 | EA29: =IF($C29>0,IF(EP29>0,+$BN29*EP29/100,0),CHAR(32)) -> 0 | EB29: =IF($C29>0,IF(EQ29>0,+$BN29*EQ29/100,0),CHAR(32)) -> 0 | EC29: =IF($C29>0,IF(ER29>0,+$BN29*ER29/100,0),CHAR(32)) -> 0 | ED29: =IF($C29>0,IF(ES29>0,+$BN29*ES29/100,0),CHAR(32)) -> 0 | EE29: =IF($C29>0,IF(ET29>0,+$BN29*ET29/100,0),CHAR(32)) -> 0 | EF29: =IF($C29>0,IF(EU29>0,+$BN29*EU29/100,0),CHAR(32)) -> 0 | EG29: =IF($C29>0,IF(EV29>0,+$BN29*EV29/100,0),CHAR(32)) -> 0 | EH29: =IF($C29>0,IF(EW29>0,+$BN29*EW29/100,0),CHAR(32)) -> 0 | EL29: =IF($B29>0,VLOOKUP($B29,'10_VSP_Fodermiddeltabel'!$A$4:$CP$489,18,),CHAR(32)) -> 0 | EM29: =IF($B29>0,VLOOKUP($B29,'10_VSP_Fodermiddeltabel'!$A$4:$CP$489,39,),CHAR(32)) -> 0 | EN29: =IF($B29>0,VLOOKUP($B29,'10_VSP_Fodermiddeltabel'!$A$4:$CP$489,40,),CHAR(32)) -> 0 | EO29: =IF($B29>0,VLOOKUP($B29,'10_VSP_Fodermiddeltabel'!$A$4:$CP$489,41,),CHAR(32)) -> 0 | EP29: =IF($B29>0,VLOOKUP($B29,'10_VSP_Fodermiddeltabel'!$A$4:$CP$489,42,),CHAR(32)) -> 0 | EQ29: =IF($B29>0,VLOOKUP($B29,'10_VSP_Fodermiddeltabel'!$A$4:$CP$489,43,),CHAR(32)) -> 0 | ER29: =IF($B29>0,VLOOKUP($B29,'10_VSP_Fodermiddeltabel'!$A$4:$CP$489,44,),CHAR(32)) -> 0 | ES29: =IF($B29>0,VLOOKUP($B29,'10_VSP_Fodermiddeltabel'!$A$4:$CP$489,45,),CHAR(32)) -> 0 | ET29: =IF($B29>0,VLOOKUP($B29,'10_VSP_Fodermiddeltabel'!$A$4:$CP$489,46,),CHAR(32)) -> 0 | EU29: =IF($B29>0,VLOOKUP($B29,'10_VSP_Fodermiddeltabel'!$A$4:$CP$489,47,),CHAR(32)) -> 0 | EV29: =IF($B29>0,VLOOKUP($B29,'10_VSP_Fodermiddeltabel'!$A$4:$CP$489,48,),CHAR(32)) -> 0 | EW29: =IF($B29>0,VLOOKUP($B29,'10_VSP_Fodermiddeltabel'!$A$4:$CP$489,49,),CHAR(32)) -> 0 | EX29: =IF($B29>0,VLOOKUP($B29,'10_VSP_Fodermiddeltabel'!$A$4:$CP$489,51,),CHAR(32)) -> 1 | EY29: =IF($B29>0,VLOOKUP($B29,'10_VSP_Fodermiddeltabel'!$A$4:$CP$489,52,),CHAR(32)) -> 1 | EZ29: =IF($B29>0,VLOOKUP($B29,'10_VSP_Fodermiddeltabel'!$A$4:$CP$489,53,),CHAR(32)) -> 1 | FA29: =IF($B29>0,VLOOKUP($B29,'10_VSP_Fodermiddeltabel'!$A$4:$CP$489,54,),CHAR(32)) -> 1 | FB29: =IF($B29>0,VLOOKUP($B29,'10_VSP_Fodermiddeltabel'!$A$4:$CP$489,55,),CHAR(32)) -> 1 | FC29: =IF($B29>0,VLOOKUP($B29,'10_VSP_Fodermiddeltabel'!$A$4:$CP$489,56,),CHAR(32)) -> 1 | FD29: =IF($B29>0,VLOOKUP($B29,'10_VSP_Fodermiddeltabel'!$A$4:$CP$489,57,),CHAR(32)) -> 1 | FE29: =IF($B29>0,VLOOKUP($B29,'10_VSP_Fodermiddeltabel'!$A$4:$CP$489,58,),CHAR(32)) -> 1 | FF29: =IF($B29>0,VLOOKUP($B29,'10_VSP_Fodermiddeltabel'!$A$4:$CP$489,59,),CHAR(32)) -> 1 | FG29: =IF($B29>0,VLOOKUP($B29,'10_VSP_Fodermiddeltabel'!$A$4:$CP$489,60,),CHAR(32)) -> 1 | FH29: =IF($B29>0,VLOOKUP($B29,'10_VSP_Fodermiddeltabel'!$A$4:$CP$489,61,),CHAR(32)) -> 1 | FI29: =IF($B29>0,VLOOKUP($B29,'10_VSP_Fodermiddeltabel'!$A$4:$CP$489,2,),CHAR(32)) -> 954 | FJ29: =IF($B29>0,VLOOKUP($B29,'10_VSP_Fodermiddeltabel'!$A$4:$CP$489,3,),CHAR(32)) -> 0 | FK29: =IF($B29>0,VLOOKUP($B29,'10_VSP_Fodermiddeltabel'!$A$4:$CP$489,63,),CHAR(32)) -> 1.407035176 | FL29: =IF($B29>0,VLOOKUP($B29,'10_VSP_Fodermiddeltabel'!$A$4:$CP$489,64,),CHAR(32)) -> 7.43718593 | FM29: =IF($B29>0,VLOOKUP($B29,'10_VSP_Fodermiddeltabel'!$A$4:$CP$489,65,),CHAR(32)) -> 77.48743719 | FN29: =IF($B29>0,VLOOKUP($B29,'10_VSP_Fodermiddeltabel'!$A$4:$CP$489,66,),CHAR(32)) -> 0 | FO29: =IF($B29>0,VLOOKUP($B29,'10_VSP_Fodermiddeltabel'!$A$4:$CP$489,68,),CHAR(32)) -> 0 | FP29: =IF($B29>0,VLOOKUP($B29,'10_VSP_Fodermiddeltabel'!$A$4:$CP$489,69,),CHAR(32)) -> 0 | FQ29: =IF($B29>0,VLOOKUP($B29,'10_VSP_Fodermiddeltabel'!$A$4:$CP$489,70,),CHAR(32)) -> 0.4367545042 | FR29: =IF($B29>0,VLOOKUP($B29,'10_VSP_Fodermiddeltabel'!$A$4:$CP$489,71,),CHAR(32)) -> 0.4186036677 | FS29: =IF($B29>0,VLOOKUP($B29,'10_VSP_Fodermiddeltabel'!$A$4:$CP$489,19,),CHAR(32)) -> 0 | FT29: =IF($B29>0,VLOOKUP($B29,'10_VSP_Fodermiddeltabel'!$A$4:$CP$489,20,),CHAR(32)) -> 0 | FU29: =IF($B29>0,VLOOKUP($B29,'10_VSP_Fodermiddeltabel'!$A$4:$CP$489,21,),CHAR(32)) -> 0 | FV29: =IF($B29>0,VLOOKUP($B29,'10_VSP_Fodermiddeltabel'!$A$4:$CP$489,22,),CHAR(32)) -> 0 | FW29: =IF($B29>0,VLOOKUP($B29,'10_VSP_Fodermiddeltabel'!$A$4:$CP$489,23,),CHAR(32)) -> 0 | FX29: =IF($B29>0,VLOOKUP($B29,'10_VSP_Fodermiddeltabel'!$A$4:$CP$489,25,),CHAR(32)) -> 0 | FY29: =IF($B29>0,VLOOKUP($B29,'10_VSP_Fodermiddeltabel'!$A$4:$CP$489,26,),CHAR(32)) -> 0 | FZ29: =IF($B29>0,VLOOKUP($B29,'10_VSP_Fodermiddeltabel'!$A$4:$CP$489,27,),CHAR(32)) -> 0 | GA29: =IF($B29>0,VLOOKUP($B29,'10_VSP_Fodermiddeltabel'!$A$4:$CP$489,28,),CHAR(32)) -> 0 | GB29: =IF($B29>0,VLOOKUP($B29,'10_VSP_Fodermiddeltabel'!$A$4:$CP$489,29,),CHAR(32)) -> 0 | GC29: =IF($B29>0,VLOOKUP($B29,'10_VSP_Fodermiddeltabel'!$A$4:$CP$489,30,),CHAR(32)) -> 0 | GD29: =IF($B29>0,VLOOKUP($B29,'10_VSP_Fodermiddeltabel'!$A$4:$CP$489,31,),CHAR(32)) -> 0 | GE29: =IF($B29>0,VLOOKUP($B29,'10_VSP_Fodermiddeltabel'!$A$4:$CP$489,32,),CHAR(32)) -> 0 | GF29: =IF($B29>0,VLOOKUP($B29,'10_VSP_Fodermiddeltabel'!$A$4:$CP$489,33,),CHAR(32)) -> 0 | GG29: =IF($B29>0,VLOOKUP($B29,'10_VSP_Fodermiddeltabel'!$A$4:$CP$489,34,),CHAR(32)) -> 0 | GH29: =IF($B29>0,VLOOKUP($B29,'10_VSP_Fodermiddeltabel'!$A$4:$CP$489,35,),CHAR(32)) -> 0 | GI29: =IF($B29>0,VLOOKUP($B29,'10_VSP_Fodermiddeltabel'!$A$4:$CP$489,36,),CHAR(32)) -> 0 | GJ29: =IF($B29>0,VLOOKUP($B29,'10_VSP_Fodermiddeltabel'!$A$4:$CP$489,37,),CHAR(32)) -> 0 | GL29: =IF($B29>0,VLOOKUP($B29,'10_VSP_Fodermiddeltabel'!$A$4:$CP$489,74,),CHAR(32)) -> 140.1809045 | GM29: =IF($B29>0,VLOOKUP($B29,'10_VSP_Fodermiddeltabel'!$A$4:$CP$489,75,),CHAR(32)) -> 0 | GN29: =IF($B29>0,VLOOKUP($B29,'10_VSP_Fodermiddeltabel'!$A$4:$CP$489,76,),CHAR(32)) ->  | GO29: =IF($B29>0,VLOOKUP($B29,'10_VSP_Fodermiddeltabel'!$A$4:$CP$489,77,),CHAR(32)) ->  | GP29: =IF($B29>0,VLOOKUP($B29,'10_VSP_Fodermiddeltabel'!$A$4:$CP$489,78,),CHAR(32)) ->  | GQ29: =IF($B29>0,VLOOKUP($B29,'10_VSP_Fodermiddeltabel'!$A$4:$CP$489,79,),CHAR(32)) ->  | GR29: =IF($B29>0,VLOOKUP($B29,'10_VSP_Fodermiddeltabel'!$A$4:$CP$489,1,),CHAR(32)) -> 95400 | GU29: =+'10_VSP_Fodermiddeltabel'!D20 -> BYG, vinter, 2014 + xylanase | GV29: =+'10_VSP_Fodermiddeltabel'!A20 -> 50401
D30: =IFERROR(IF($B30>0,VLOOKUP($B30,'10_VSP_Fodermiddeltabel'!$A$4:$CP$489,5,),CHAR(32)),"") ->  | E30: =IFERROR(IF($B30>0,VLOOKUP($B30,'10_VSP_Fodermiddeltabel'!$A$4:$CP$489,12,),CHAR(32)),"") ->  | F30: =IFERROR(IF(B30>0,100-E30,CHAR(32)),"") ->  | G30: =IFERROR(IF($B30>0,VLOOKUP($B30,'10_VSP_Fodermiddeltabel'!$A$4:$CP$489,13,),CHAR(32)),"") ->  | H30: =IFERROR(IF($B30>0,VLOOKUP($B30,'10_VSP_Fodermiddeltabel'!$A$4:$CP$489,14,),CHAR(32)),"") ->  | I30: =IFERROR(IF($B30>0,VLOOKUP($B30,'10_VSP_Fodermiddeltabel'!$A$4:$CP$489,15,),CHAR(32)),"") ->  | J30: =IFERROR(IF($B30>0,VLOOKUP($B30,'10_VSP_Fodermiddeltabel'!$A$4:$CP$489,16,),CHAR(32)),"") ->  | K30: =IFERROR(IF($B30>0,VLOOKUP($B30,'10_VSP_Fodermiddeltabel'!$A$4:$CP$489,8,),CHAR(32)),"") ->  | L30: =IFERROR(IF($B30>0,VLOOKUP($B30,'10_VSP_Fodermiddeltabel'!$A$4:$CP$489,9,),CHAR(32)),"") ->  | M30: =IFERROR(IF(B30>0,+AI30*$CP30/100,CHAR(32)),"") ->  | N30: =IFERROR(IF(B30>0,+AJ30*$CP30/100,CHAR(32)),"") ->  | Q30: 22 | R30: Fytaseakt. FYT/kg | S30: 475.3539646 | W30: 500 | Y30: 500 | Z30: 573.2732928 | AE30: =IF($C30>0,+K30-L30,CHAR(32)) ->  | AF30: =IF($C30>0,+L30*100/K30,CHAR(32)) ->  | AG30: =IFERROR(+(E30-I30)*10,"") ->  | AI30: =+AW30/100*(100-F30) ->  | AJ30: =+AY30/100*(100-F30) ->  | AL30: =+AJ30*BI30 ->  | AM30: =+I30*100/(100-$F30) ->  | AN30: =+G30*100/(100-$F30) ->  | AO30: =+H30*100/(100-$F30) ->  | AP30: =+K30 ->  | AQ30: =+L30 ->  | AR30: =AS30*(100-AP30)/100+AU30+AM30*0.3+0.07*AO30 ->  | AS30: =100 - AM30 ->  | AT30: =AS30*AP30/100-AN30*0.91-AO30*0.97-AU30 ->  | AU30: =AS30*(AP30-AQ30)/70 ->  | AV30: =AU30+0.18*AS30*(100-AP30)/100 ->  | AW30: =(AN30*0.91*9.9+AO30*0.9*31.7+AT30*11.7+AU30*7-AR30*2.8)/7.38 ->  | AX30: =AW30*BI30 ->  | AY30: =(AN30*0.91*9.9+AO30*0.9*31.7+AT30*11.7+AV30*9-AR30*2.8)/7.7 ->  | AZ30: =AY30*BI30 ->  | BA30: =IF($C30,+AG30*K30/100,CHAR(32)) ->  | BB30: =IF($C30,+AG30*L30/100,CHAR(32)) ->  | CG30: =IF($C30>0,IF(VLOOKUP($B30,'10_VSP_Fodermiddeltabel'!$A$4:$DV$489,113,)>0,VLOOKUP($B30,'10_VSP_Fodermiddeltabel'!$A$4:$DV$489,113,)*$C30/100,0),CHAR(32)) ->  | CH30: =IF($C30>0,IF(VLOOKUP($B30,'10_VSP_Fodermiddeltabel'!$A$4:$DV$489,110,)>0,VLOOKUP($B30,'10_VSP_Fodermiddeltabel'!$A$4:$DV$489,110,)*$C30/100,0),CHAR(32)) ->  | CI30: =IF($C30>0,IF(VLOOKUP($B30,'10_VSP_Fodermiddeltabel'!$A$4:$DV$489,111,)>0,VLOOKUP($B30,'10_VSP_Fodermiddeltabel'!$A$4:$DV$489,111,)*$C30/100,0),CHAR(32)) ->  | CO30: =IF($B30>0,VLOOKUP($B30,'10_VSP_Fodermiddeltabel'!$A$4:$CP$489,10,),CHAR(32)) ->  | CP30: =IF($B30>0,VLOOKUP($B30,'10_VSP_Fodermiddeltabel'!$A$4:$CP$489,11,),CHAR(32)) ->  | CQ30: 90 | EL30: =IF($B30>0,VLOOKUP($B30,'10_VSP_Fodermiddeltabel'!$A$4:$CP$489,18,),CHAR(32)) ->  | EM30: =IF($B30>0,VLOOKUP($B30,'10_VSP_Fodermiddeltabel'!$A$4:$CP$489,39,),CHAR(32)) ->  | EN30: =IF($B30>0,VLOOKUP($B30,'10_VSP_Fodermiddeltabel'!$A$4:$CP$489,40,),CHAR(32)) ->  | EO30: =IF($B30>0,VLOOKUP($B30,'10_VSP_Fodermiddeltabel'!$A$4:$CP$489,41,),CHAR(32)) ->  | EP30: =IF($B30>0,VLOOKUP($B30,'10_VSP_Fodermiddeltabel'!$A$4:$CP$489,42,),CHAR(32)) ->  | EQ30: =IF($B30>0,VLOOKUP($B30,'10_VSP_Fodermiddeltabel'!$A$4:$CP$489,43,),CHAR(32)) ->  | ER30: =IF($B30>0,VLOOKUP($B30,'10_VSP_Fodermiddeltabel'!$A$4:$CP$489,44,),CHAR(32)) ->  | ES30: =IF($B30>0,VLOOKUP($B30,'10_VSP_Fodermiddeltabel'!$A$4:$CP$489,45,),CHAR(32)) ->  | ET30: =IF($B30>0,VLOOKUP($B30,'10_VSP_Fodermiddeltabel'!$A$4:$CP$489,46,),CHAR(32)) ->  | EU30: =IF($B30>0,VLOOKUP($B30,'10_VSP_Fodermiddeltabel'!$A$4:$CP$489,47,),CHAR(32)) ->  | EV30: =IF($B30>0,VLOOKUP($B30,'10_VSP_Fodermiddeltabel'!$A$4:$CP$489,48,),CHAR(32)) ->  | EW30: =IF($B30>0,VLOOKUP($B30,'10_VSP_Fodermiddeltabel'!$A$4:$CP$489,49,),CHAR(32)) ->  | EX30: =IF($B30>0,VLOOKUP($B30,'10_VSP_Fodermiddeltabel'!$A$4:$CP$489,51,),CHAR(32)) ->  | EY30: =IF($B30>0,VLOOKUP($B30,'10_VSP_Fodermiddeltabel'!$A$4:$CP$489,52,),CHAR(32)) ->  | EZ30: =IF($B30>0,VLOOKUP($B30,'10_VSP_Fodermiddeltabel'!$A$4:$CP$489,53,),CHAR(32)) ->  | FA30: =IF($B30>0,VLOOKUP($B30,'10_VSP_Fodermiddeltabel'!$A$4:$CP$489,54,),CHAR(32)) ->  | FB30: =IF($B30>0,VLOOKUP($B30,'10_VSP_Fodermiddeltabel'!$A$4:$CP$489,55,),CHAR(32)) ->  | FC30: =IF($B30>0,VLOOKUP($B30,'10_VSP_Fodermiddeltabel'!$A$4:$CP$489,56,),CHAR(32)) ->  | FD30: =IF($B30>0,VLOOKUP($B30,'10_VSP_Fodermiddeltabel'!$A$4:$CP$489,57,),CHAR(32)) ->  | FE30: =IF($B30>0,VLOOKUP($B30,'10_VSP_Fodermiddeltabel'!$A$4:$CP$489,58,),CHAR(32)) ->  | FF30: =IF($B30>0,VLOOKUP($B30,'10_VSP_Fodermiddeltabel'!$A$4:$CP$489,59,),CHAR(32)) ->  | FG30: =IF($B30>0,VLOOKUP($B30,'10_VSP_Fodermiddeltabel'!$A$4:$CP$489,60,),CHAR(32)) ->  | FH30: =IF($B30>0,VLOOKUP($B30,'10_VSP_Fodermiddeltabel'!$A$4:$CP$489,61,),CHAR(32)) ->  | FI30: =IF($B30>0,VLOOKUP($B30,'10_VSP_Fodermiddeltabel'!$A$4:$CP$489,2,),CHAR(32)) ->  | FJ30: =IF($B30>0,VLOOKUP($B30,'10_VSP_Fodermiddeltabel'!$A$4:$CP$489,3,),CHAR(32)) ->  | FK30: =IF($B30>0,VLOOKUP($B30,'10_VSP_Fodermiddeltabel'!$A$4:$CP$489,63,),CHAR(32)) ->  | FL30: =IF($B30>0,VLOOKUP($B30,'10_VSP_Fodermiddeltabel'!$A$4:$CP$489,64,),CHAR(32)) ->  | FM30: =IF($B30>0,VLOOKUP($B30,'10_VSP_Fodermiddeltabel'!$A$4:$CP$489,65,),CHAR(32)) ->  | FN30: =IF($B30>0,VLOOKUP($B30,'10_VSP_Fodermiddeltabel'!$A$4:$CP$489,66,),CHAR(32)) ->  | FO30: =IF($B30>0,VLOOKUP($B30,'10_VSP_Fodermiddeltabel'!$A$4:$CP$489,68,),CHAR(32)) ->  | FP30: =IF($B30>0,VLOOKUP($B30,'10_VSP_Fodermiddeltabel'!$A$4:$CP$489,69,),CHAR(32)) ->  | FQ30: =IF($B30>0,VLOOKUP($B30,'10_VSP_Fodermiddeltabel'!$A$4:$CP$489,70,),CHAR(32)) ->  | FR30: =IF($B30>0,VLOOKUP($B30,'10_VSP_Fodermiddeltabel'!$A$4:$CP$489,71,),CHAR(32)) ->  | FS30: =IF($B30>0,VLOOKUP($B30,'10_VSP_Fodermiddeltabel'!$A$4:$CP$489,19,),CHAR(32)) ->  | FT30: =IF($B30>0,VLOOKUP($B30,'10_VSP_Fodermiddeltabel'!$A$4:$CP$489,20,),CHAR(32)) ->  | FU30: =IF($B30>0,VLOOKUP($B30,'10_VSP_Fodermiddeltabel'!$A$4:$CP$489,21,),CHAR(32)) ->  | FV30: =IF($B30>0,VLOOKUP($B30,'10_VSP_Fodermiddeltabel'!$A$4:$CP$489,22,),CHAR(32)) ->  | FW30: =IF($B30>0,VLOOKUP($B30,'10_VSP_Fodermiddeltabel'!$A$4:$CP$489,23,),CHAR(32)) ->  | FX30: =IF($B30>0,VLOOKUP($B30,'10_VSP_Fodermiddeltabel'!$A$4:$CP$489,25,),CHAR(32)) ->  | FY30: =IF($B30>0,VLOOKUP($B30,'10_VSP_Fodermiddeltabel'!$A$4:$CP$489,26,),CHAR(32)) ->  | FZ30: =IF($B30>0,VLOOKUP($B30,'10_VSP_Fodermiddeltabel'!$A$4:$CP$489,27,),CHAR(32)) ->  | GA30: =IF($B30>0,VLOOKUP($B30,'10_VSP_Fodermiddeltabel'!$A$4:$CP$489,28,),CHAR(32)) ->  | GB30: =IF($B30>0,VLOOKUP($B30,'10_VSP_Fodermiddeltabel'!$A$4:$CP$489,29,),CHAR(32)) ->  | GC30: =IF($B30>0,VLOOKUP($B30,'10_VSP_Fodermiddeltabel'!$A$4:$CP$489,30,),CHAR(32)) ->  | GD30: =IF($B30>0,VLOOKUP($B30,'10_VSP_Fodermiddeltabel'!$A$4:$CP$489,31,),CHAR(32)) ->  | GE30: =IF($B30>0,VLOOKUP($B30,'10_VSP_Fodermiddeltabel'!$A$4:$CP$489,32,),CHAR(32)) ->  | GF30: =IF($B30>0,VLOOKUP($B30,'10_VSP_Fodermiddeltabel'!$A$4:$CP$489,33,),CHAR(32)) ->  | GG30: =IF($B30>0,VLOOKUP($B30,'10_VSP_Fodermiddeltabel'!$A$4:$CP$489,34,),CHAR(32)) ->  | GH30: =IF($B30>0,VLOOKUP($B30,'10_VSP_Fodermiddeltabel'!$A$4:$CP$489,35,),CHAR(32)) ->  | GI30: =IF($B30>0,VLOOKUP($B30,'10_VSP_Fodermiddeltabel'!$A$4:$CP$489,36,),CHAR(32)) ->  | GJ30: =IF($B30>0,VLOOKUP($B30,'10_VSP_Fodermiddeltabel'!$A$4:$CP$489,37,),CHAR(32)) ->  | GL30: =IF($B30>0,VLOOKUP($B30,'10_VSP_Fodermiddeltabel'!$A$4:$CP$489,74,),CHAR(32)) ->  | GM30: =IF($B30>0,VLOOKUP($B30,'10_VSP_Fodermiddeltabel'!$A$4:$CP$489,75,),CHAR(32)) ->  | GN30: =IF($B30>0,VLOOKUP($B30,'10_VSP_Fodermiddeltabel'!$A$4:$CP$489,76,),CHAR(32)) ->  | GO30: =IF($B30>0,VLOOKUP($B30,'10_VSP_Fodermiddeltabel'!$A$4:$CP$489,77,),CHAR(32)) ->  | GP30: =IF($B30>0,VLOOKUP($B30,'10_VSP_Fodermiddeltabel'!$A$4:$CP$489,78,),CHAR(32)) ->  | GQ30: =IF($B30>0,VLOOKUP($B30,'10_VSP_Fodermiddeltabel'!$A$4:$CP$489,79,),CHAR(32)) ->  | GR30: =IF($B30>0,VLOOKUP($B30,'10_VSP_Fodermiddeltabel'!$A$4:$CP$489,1,),CHAR(32)) ->  | GU30: =+'10_VSP_Fodermiddeltabel'!D21 -> BYG, vinter, 2014, varmebehandlet | GV30: =+'10_VSP_Fodermiddeltabel'!A21 -> 50410
D31: =IFERROR(IF($B31>0,VLOOKUP($B31,'10_VSP_Fodermiddeltabel'!$A$4:$CP$489,5,),CHAR(32)),"") ->  | E31: =IFERROR(IF($B31>0,VLOOKUP($B31,'10_VSP_Fodermiddeltabel'!$A$4:$CP$489,12,),CHAR(32)),"") ->  | F31: =IFERROR(IF(B31>0,100-E31,CHAR(32)),"") ->  | G31: =IFERROR(IF($B31>0,VLOOKUP($B31,'10_VSP_Fodermiddeltabel'!$A$4:$CP$489,13,),CHAR(32)),"") ->  | H31: =IFERROR(IF($B31>0,VLOOKUP($B31,'10_VSP_Fodermiddeltabel'!$A$4:$CP$489,14,),CHAR(32)),"") ->  | I31: =IFERROR(IF($B31>0,VLOOKUP($B31,'10_VSP_Fodermiddeltabel'!$A$4:$CP$489,15,),CHAR(32)),"") ->  | J31: =IFERROR(IF($B31>0,VLOOKUP($B31,'10_VSP_Fodermiddeltabel'!$A$4:$CP$489,16,),CHAR(32)),"") ->  | K31: =IFERROR(IF($B31>0,VLOOKUP($B31,'10_VSP_Fodermiddeltabel'!$A$4:$CP$489,8,),CHAR(32)),"") ->  | L31: =IFERROR(IF($B31>0,VLOOKUP($B31,'10_VSP_Fodermiddeltabel'!$A$4:$CP$489,9,),CHAR(32)),"") ->  | M31: =IFERROR(IF(B31>0,+AI31*$CP31/100,CHAR(32)),"") ->  | N31: =IFERROR(IF(B31>0,+AJ31*$CP31/100,CHAR(32)),"") ->  | Q31: 23 | R31: Fytaseakt. FTU/kg | S31: 0 | W31: 0 | Y31: 0 | Z31: 0 | AE31: =IF($C31>0,+K31-L31,CHAR(32)) ->  | AF31: =IF($C31>0,+L31*100/K31,CHAR(32)) ->  | AG31: =IFERROR(+(E31-I31)*10,"") ->  | AI31: =+AW31/100*(100-F31) ->  | AJ31: =+AY31/100*(100-F31) ->  | AL31: =+AJ31*BI31 ->  | AM31: =+I31*100/(100-$F31) ->  | AN31: =+G31*100/(100-$F31) ->  | AO31: =+H31*100/(100-$F31) ->  | AP31: =+K31 ->  | AQ31: =+L31 ->  | AR31: =AS31*(100-AP31)/100+AU31+AM31*0.3+0.07*AO31 ->  | AS31: =100 - AM31 ->  | AT31: =AS31*AP31/100-AN31*0.91-AO31*0.97-AU31 ->  | AU31: =AS31*(AP31-AQ31)/70 ->  | AV31: =AU31+0.18*AS31*(100-AP31)/100 ->  | AW31: =(AN31*0.91*9.9+AO31*0.9*31.7+AT31*11.7+AU31*7-AR31*2.8)/7.38 ->  | AX31: =AW31*BI31 ->  | AY31: =(AN31*0.91*9.9+AO31*0.9*31.7+AT31*11.7+AV31*9-AR31*2.8)/7.7 ->  | AZ31: =AY31*BI31 ->  | BA31: =IF($C31,+AG31*K31/100,CHAR(32)) ->  | BB31: =IF($C31,+AG31*L31/100,CHAR(32)) ->  | CG31: =IF($C31>0,IF(VLOOKUP($B31,'10_VSP_Fodermiddeltabel'!$A$4:$DV$489,113,)>0,VLOOKUP($B31,'10_VSP_Fodermiddeltabel'!$A$4:$DV$489,113,)*$C31/100,0),CHAR(32)) ->  | CH31: =IF($C31>0,IF(VLOOKUP($B31,'10_VSP_Fodermiddeltabel'!$A$4:$DV$489,110,)>0,VLOOKUP($B31,'10_VSP_Fodermiddeltabel'!$A$4:$DV$489,110,)*$C31/100,0),CHAR(32)) ->  | CI31: =IF($C31>0,IF(VLOOKUP($B31,'10_VSP_Fodermiddeltabel'!$A$4:$DV$489,111,)>0,VLOOKUP($B31,'10_VSP_Fodermiddeltabel'!$A$4:$DV$489,111,)*$C31/100,0),CHAR(32)) ->  | CO31: =IF($B31>0,VLOOKUP($B31,'10_VSP_Fodermiddeltabel'!$A$4:$CP$489,10,),CHAR(32)) ->  | CP31: =IF($B31>0,VLOOKUP($B31,'10_VSP_Fodermiddeltabel'!$A$4:$CP$489,11,),CHAR(32)) ->  | CQ31: 90 | EL31: =IF($B31>0,VLOOKUP($B31,'10_VSP_Fodermiddeltabel'!$A$4:$CP$489,18,),CHAR(32)) ->  | EM31: =IF($B31>0,VLOOKUP($B31,'10_VSP_Fodermiddeltabel'!$A$4:$CP$489,39,),CHAR(32)) ->  | EN31: =IF($B31>0,VLOOKUP($B31,'10_VSP_Fodermiddeltabel'!$A$4:$CP$489,40,),CHAR(32)) ->  | EO31: =IF($B31>0,VLOOKUP($B31,'10_VSP_Fodermiddeltabel'!$A$4:$CP$489,41,),CHAR(32)) ->  | EP31: =IF($B31>0,VLOOKUP($B31,'10_VSP_Fodermiddeltabel'!$A$4:$CP$489,42,),CHAR(32)) ->  | EQ31: =IF($B31>0,VLOOKUP($B31,'10_VSP_Fodermiddeltabel'!$A$4:$CP$489,43,),CHAR(32)) ->  | ER31: =IF($B31>0,VLOOKUP($B31,'10_VSP_Fodermiddeltabel'!$A$4:$CP$489,44,),CHAR(32)) ->  | ES31: =IF($B31>0,VLOOKUP($B31,'10_VSP_Fodermiddeltabel'!$A$4:$CP$489,45,),CHAR(32)) ->  | ET31: =IF($B31>0,VLOOKUP($B31,'10_VSP_Fodermiddeltabel'!$A$4:$CP$489,46,),CHAR(32)) ->  | EU31: =IF($B31>0,VLOOKUP($B31,'10_VSP_Fodermiddeltabel'!$A$4:$CP$489,47,),CHAR(32)) ->  | EV31: =IF($B31>0,VLOOKUP($B31,'10_VSP_Fodermiddeltabel'!$A$4:$CP$489,48,),CHAR(32)) ->  | EW31: =IF($B31>0,VLOOKUP($B31,'10_VSP_Fodermiddeltabel'!$A$4:$CP$489,49,),CHAR(32)) ->  | EX31: =IF($B31>0,VLOOKUP($B31,'10_VSP_Fodermiddeltabel'!$A$4:$CP$489,51,),CHAR(32)) ->  | EY31: =IF($B31>0,VLOOKUP($B31,'10_VSP_Fodermiddeltabel'!$A$4:$CP$489,52,),CHAR(32)) ->  | EZ31: =IF($B31>0,VLOOKUP($B31,'10_VSP_Fodermiddeltabel'!$A$4:$CP$489,53,),CHAR(32)) ->  | FA31: =IF($B31>0,VLOOKUP($B31,'10_VSP_Fodermiddeltabel'!$A$4:$CP$489,54,),CHAR(32)) ->  | FB31: =IF($B31>0,VLOOKUP($B31,'10_VSP_Fodermiddeltabel'!$A$4:$CP$489,55,),CHAR(32)) ->  | FC31: =IF($B31>0,VLOOKUP($B31,'10_VSP_Fodermiddeltabel'!$A$4:$CP$489,56,),CHAR(32)) ->  | FD31: =IF($B31>0,VLOOKUP($B31,'10_VSP_Fodermiddeltabel'!$A$4:$CP$489,57,),CHAR(32)) ->  | FE31: =IF($B31>0,VLOOKUP($B31,'10_VSP_Fodermiddeltabel'!$A$4:$CP$489,58,),CHAR(32)) ->  | FF31: =IF($B31>0,VLOOKUP($B31,'10_VSP_Fodermiddeltabel'!$A$4:$CP$489,59,),CHAR(32)) ->  | FG31: =IF($B31>0,VLOOKUP($B31,'10_VSP_Fodermiddeltabel'!$A$4:$CP$489,60,),CHAR(32)) ->  | FH31: =IF($B31>0,VLOOKUP($B31,'10_VSP_Fodermiddeltabel'!$A$4:$CP$489,61,),CHAR(32)) ->  | FI31: =IF($B31>0,VLOOKUP($B31,'10_VSP_Fodermiddeltabel'!$A$4:$CP$489,2,),CHAR(32)) ->  | FJ31: =IF($B31>0,VLOOKUP($B31,'10_VSP_Fodermiddeltabel'!$A$4:$CP$489,3,),CHAR(32)) ->  | FK31: =IF($B31>0,VLOOKUP($B31,'10_VSP_Fodermiddeltabel'!$A$4:$CP$489,63,),CHAR(32)) ->  | FL31: =IF($B31>0,VLOOKUP($B31,'10_VSP_Fodermiddeltabel'!$A$4:$CP$489,64,),CHAR(32)) ->  | FM31: =IF($B31>0,VLOOKUP($B31,'10_VSP_Fodermiddeltabel'!$A$4:$CP$489,65,),CHAR(32)) ->  | FN31: =IF($B31>0,VLOOKUP($B31,'10_VSP_Fodermiddeltabel'!$A$4:$CP$489,66,),CHAR(32)) ->  | FO31: =IF($B31>0,VLOOKUP($B31,'10_VSP_Fodermiddeltabel'!$A$4:$CP$489,68,),CHAR(32)) ->  | FP31: =IF($B31>0,VLOOKUP($B31,'10_VSP_Fodermiddeltabel'!$A$4:$CP$489,69,),CHAR(32)) ->  | FQ31: =IF($B31>0,VLOOKUP($B31,'10_VSP_Fodermiddeltabel'!$A$4:$CP$489,70,),CHAR(32)) ->  | FR31: =IF($B31>0,VLOOKUP($B31,'10_VSP_Fodermiddeltabel'!$A$4:$CP$489,71,),CHAR(32)) ->  | FS31: =IF($B31>0,VLOOKUP($B31,'10_VSP_Fodermiddeltabel'!$A$4:$CP$489,19,),CHAR(32)) ->  | FT31: =IF($B31>0,VLOOKUP($B31,'10_VSP_Fodermiddeltabel'!$A$4:$CP$489,20,),CHAR(32)) ->  | FU31: =IF($B31>0,VLOOKUP($B31,'10_VSP_Fodermiddeltabel'!$A$4:$CP$489,21,),CHAR(32)) ->  | FV31: =IF($B31>0,VLOOKUP($B31,'10_VSP_Fodermiddeltabel'!$A$4:$CP$489,22,),CHAR(32)) ->  | FW31: =IF($B31>0,VLOOKUP($B31,'10_VSP_Fodermiddeltabel'!$A$4:$CP$489,23,),CHAR(32)) ->  | FX31: =IF($B31>0,VLOOKUP($B31,'10_VSP_Fodermiddeltabel'!$A$4:$CP$489,25,),CHAR(32)) ->  | FY31: =IF($B31>0,VLOOKUP($B31,'10_VSP_Fodermiddeltabel'!$A$4:$CP$489,26,),CHAR(32)) ->  | FZ31: =IF($B31>0,VLOOKUP($B31,'10_VSP_Fodermiddeltabel'!$A$4:$CP$489,27,),CHAR(32)) ->  | GA31: =IF($B31>0,VLOOKUP($B31,'10_VSP_Fodermiddeltabel'!$A$4:$CP$489,28,),CHAR(32)) ->  | GB31: =IF($B31>0,VLOOKUP($B31,'10_VSP_Fodermiddeltabel'!$A$4:$CP$489,29,),CHAR(32)) ->  | GC31: =IF($B31>0,VLOOKUP($B31,'10_VSP_Fodermiddeltabel'!$A$4:$CP$489,30,),CHAR(32)) ->  | GD31: =IF($B31>0,VLOOKUP($B31,'10_VSP_Fodermiddeltabel'!$A$4:$CP$489,31,),CHAR(32)) ->  | GE31: =IF($B31>0,VLOOKUP($B31,'10_VSP_Fodermiddeltabel'!$A$4:$CP$489,32,),CHAR(32)) ->  | GF31: =IF($B31>0,VLOOKUP($B31,'10_VSP_Fodermiddeltabel'!$A$4:$CP$489,33,),CHAR(32)) ->  | GG31: =IF($B31>0,VLOOKUP($B31,'10_VSP_Fodermiddeltabel'!$A$4:$CP$489,34,),CHAR(32)) ->  | GH31: =IF($B31>0,VLOOKUP($B31,'10_VSP_Fodermiddeltabel'!$A$4:$CP$489,35,),CHAR(32)) ->  | GI31: =IF($B31>0,VLOOKUP($B31,'10_VSP_Fodermiddeltabel'!$A$4:$CP$489,36,),CHAR(32)) ->  | GJ31: =IF($B31>0,VLOOKUP($B31,'10_VSP_Fodermiddeltabel'!$A$4:$CP$489,37,),CHAR(32)) ->  | GL31: =IF($B31>0,VLOOKUP($B31,'10_VSP_Fodermiddeltabel'!$A$4:$CP$489,74,),CHAR(32)) ->  | GM31: =IF($B31>0,VLOOKUP($B31,'10_VSP_Fodermiddeltabel'!$A$4:$CP$489,75,),CHAR(32)) ->  | GN31: =IF($B31>0,VLOOKUP($B31,'10_VSP_Fodermiddeltabel'!$A$4:$CP$489,76,),CHAR(32)) ->  | GO31: =IF($B31>0,VLOOKUP($B31,'10_VSP_Fodermiddeltabel'!$A$4:$CP$489,77,),CHAR(32)) ->  | GP31: =IF($B31>0,VLOOKUP($B31,'10_VSP_Fodermiddeltabel'!$A$4:$CP$489,78,),CHAR(32)) ->  | GQ31: =IF($B31>0,VLOOKUP($B31,'10_VSP_Fodermiddeltabel'!$A$4:$CP$489,79,),CHAR(32)) ->  | GR31: =IF($B31>0,VLOOKUP($B31,'10_VSP_Fodermiddeltabel'!$A$4:$CP$489,1,),CHAR(32)) ->  | GU31: =+'10_VSP_Fodermiddeltabel'!D22 -> BYG, vinter, 2014, varmebehandlet + xylanase | GV31: =+'10_VSP_Fodermiddeltabel'!A22 -> 50411
D32: =IFERROR(IF($B32>0,VLOOKUP($B32,'10_VSP_Fodermiddeltabel'!$A$4:$CP$489,5,),CHAR(32)),"") ->  | E32: =IFERROR(IF($B32>0,VLOOKUP($B32,'10_VSP_Fodermiddeltabel'!$A$4:$CP$489,12,),CHAR(32)),"") ->  | G32: =IFERROR(IF($B32>0,VLOOKUP($B32,'10_VSP_Fodermiddeltabel'!$A$4:$CP$489,13,),CHAR(32)),"") ->  | H32: =IFERROR(IF($B32>0,VLOOKUP($B32,'10_VSP_Fodermiddeltabel'!$A$4:$CP$489,14,),CHAR(32)),"") ->  | I32: =IFERROR(IF($B32>0,VLOOKUP($B32,'10_VSP_Fodermiddeltabel'!$A$4:$CP$489,15,),CHAR(32)),"") ->  | J32: =IFERROR(IF($B32>0,VLOOKUP($B32,'10_VSP_Fodermiddeltabel'!$A$4:$CP$489,16,),CHAR(32)),"") ->  | K32: =IFERROR(IF($B32>0,VLOOKUP($B32,'10_VSP_Fodermiddeltabel'!$A$4:$CP$489,8,),CHAR(32)),"") ->  | L32: =IFERROR(IF($B32>0,VLOOKUP($B32,'10_VSP_Fodermiddeltabel'!$A$4:$CP$489,9,),CHAR(32)),"") ->  | S32: Fordøjeligt indhold | CG32: =IF($C32>0,IF(VLOOKUP($B32,'10_VSP_Fodermiddeltabel'!$A$4:$DV$489,113,)>0,VLOOKUP($B32,'10_VSP_Fodermiddeltabel'!$A$4:$DV$489,113,)*$C32/100,0),CHAR(32)) ->  | CH32: =IF($C32>0,IF(VLOOKUP($B32,'10_VSP_Fodermiddeltabel'!$A$4:$DV$489,110,)>0,VLOOKUP($B32,'10_VSP_Fodermiddeltabel'!$A$4:$DV$489,110,)*$C32/100,0),CHAR(32)) ->  | CI32: =IF($C32>0,IF(VLOOKUP($B32,'10_VSP_Fodermiddeltabel'!$A$4:$DV$489,111,)>0,VLOOKUP($B32,'10_VSP_Fodermiddeltabel'!$A$4:$DV$489,111,)*$C32/100,0),CHAR(32)) ->  | CO32: =IF($B32>0,VLOOKUP($B32,'10_VSP_Fodermiddeltabel'!$A$4:$CP$489,10,),CHAR(32)) ->  | CP32: =IF($B32>0,VLOOKUP($B32,'10_VSP_Fodermiddeltabel'!$A$4:$CP$489,11,),CHAR(32)) ->  | CQ32: 90 | EL32: =IF($B32>0,VLOOKUP($B32,'10_VSP_Fodermiddeltabel'!$A$4:$CP$489,18,),CHAR(32)) ->  | EM32: =IF($B32>0,VLOOKUP($B32,'10_VSP_Fodermiddeltabel'!$A$4:$CP$489,39,),CHAR(32)) ->  | EN32: =IF($B32>0,VLOOKUP($B32,'10_VSP_Fodermiddeltabel'!$A$4:$CP$489,40,),CHAR(32)) ->  | EO32: =IF($B32>0,VLOOKUP($B32,'10_VSP_Fodermiddeltabel'!$A$4:$CP$489,41,),CHAR(32)) ->  | EP32: =IF($B32>0,VLOOKUP($B32,'10_VSP_Fodermiddeltabel'!$A$4:$CP$489,42,),CHAR(32)) ->  | EQ32: =IF($B32>0,VLOOKUP($B32,'10_VSP_Fodermiddeltabel'!$A$4:$CP$489,43,),CHAR(32)) ->  | ER32: =IF($B32>0,VLOOKUP($B32,'10_VSP_Fodermiddeltabel'!$A$4:$CP$489,44,),CHAR(32)) ->  | ES32: =IF($B32>0,VLOOKUP($B32,'10_VSP_Fodermiddeltabel'!$A$4:$CP$489,45,),CHAR(32)) ->  | ET32: =IF($B32>0,VLOOKUP($B32,'10_VSP_Fodermiddeltabel'!$A$4:$CP$489,46,),CHAR(32)) ->  | EU32: =IF($B32>0,VLOOKUP($B32,'10_VSP_Fodermiddeltabel'!$A$4:$CP$489,47,),CHAR(32)) ->  | EV32: =IF($B32>0,VLOOKUP($B32,'10_VSP_Fodermiddeltabel'!$A$4:$CP$489,48,),CHAR(32)) ->  | EW32: =IF($B32>0,VLOOKUP($B32,'10_VSP_Fodermiddeltabel'!$A$4:$CP$489,49,),CHAR(32)) ->  | EX32: =IF($B32>0,VLOOKUP($B32,'10_VSP_Fodermiddeltabel'!$A$4:$CP$489,51,),CHAR(32)) ->  | EY32: =IF($B32>0,VLOOKUP($B32,'10_VSP_Fodermiddeltabel'!$A$4:$CP$489,52,),CHAR(32)) ->  | EZ32: =IF($B32>0,VLOOKUP($B32,'10_VSP_Fodermiddeltabel'!$A$4:$CP$489,53,),CHAR(32)) ->  | FA32: =IF($B32>0,VLOOKUP($B32,'10_VSP_Fodermiddeltabel'!$A$4:$CP$489,54,),CHAR(32)) ->  | FB32: =IF($B32>0,VLOOKUP($B32,'10_VSP_Fodermiddeltabel'!$A$4:$CP$489,55,),CHAR(32)) ->  | FC32: =IF($B32>0,VLOOKUP($B32,'10_VSP_Fodermiddeltabel'!$A$4:$CP$489,56,),CHAR(32)) ->  | FD32: =IF($B32>0,VLOOKUP($B32,'10_VSP_Fodermiddeltabel'!$A$4:$CP$489,57,),CHAR(32)) ->  | FE32: =IF($B32>0,VLOOKUP($B32,'10_VSP_Fodermiddeltabel'!$A$4:$CP$489,58,),CHAR(32)) ->  | FF32: =IF($B32>0,VLOOKUP($B32,'10_VSP_Fodermiddeltabel'!$A$4:$CP$489,59,),CHAR(32)) ->  | FG32: =IF($B32>0,VLOOKUP($B32,'10_VSP_Fodermiddeltabel'!$A$4:$CP$489,60,),CHAR(32)) ->  | FH32: =IF($B32>0,VLOOKUP($B32,'10_VSP_Fodermiddeltabel'!$A$4:$CP$489,61,),CHAR(32)) ->  | FI32: =IF($B32>0,VLOOKUP($B32,'10_VSP_Fodermiddeltabel'!$A$4:$CP$489,2,),CHAR(32)) ->  | FJ32: =IF($B32>0,VLOOKUP($B32,'10_VSP_Fodermiddeltabel'!$A$4:$CP$489,3,),CHAR(32)) ->  | FK32: =IF($B32>0,VLOOKUP($B32,'10_VSP_Fodermiddeltabel'!$A$4:$CP$489,63,),CHAR(32)) ->  | FL32: =IF($B32>0,VLOOKUP($B32,'10_VSP_Fodermiddeltabel'!$A$4:$CP$489,64,),CHAR(32)) ->  | FM32: =IF($B32>0,VLOOKUP($B32,'10_VSP_Fodermiddeltabel'!$A$4:$CP$489,65,),CHAR(32)) ->  | FN32: =IF($B32>0,VLOOKUP($B32,'10_VSP_Fodermiddeltabel'!$A$4:$CP$489,66,),CHAR(32)) ->  | FO32: =IF($B32>0,VLOOKUP($B32,'10_VSP_Fodermiddeltabel'!$A$4:$CP$489,68,),CHAR(32)) ->  | FP32: =IF($B32>0,VLOOKUP($B32,'10_VSP_Fodermiddeltabel'!$A$4:$CP$489,69,),CHAR(32)) ->  | FQ32: =IF($B32>0,VLOOKUP($B32,'10_VSP_Fodermiddeltabel'!$A$4:$CP$489,70,),CHAR(32)) ->  | FR32: =IF($B32>0,VLOOKUP($B32,'10_VSP_Fodermiddeltabel'!$A$4:$CP$489,71,),CHAR(32)) ->  | FS32: =IF($B32>0,VLOOKUP($B32,'10_VSP_Fodermiddeltabel'!$A$4:$CP$489,19,),CHAR(32)) ->  | FT32: =IF($B32>0,VLOOKUP($B32,'10_VSP_Fodermiddeltabel'!$A$4:$CP$489,20,),CHAR(32)) ->  | FU32: =IF($B32>0,VLOOKUP($B32,'10_VSP_Fodermiddeltabel'!$A$4:$CP$489,21,),CHAR(32)) ->  | FV32: =IF($B32>0,VLOOKUP($B32,'10_VSP_Fodermiddeltabel'!$A$4:$CP$489,22,),CHAR(32)) ->  | FW32: =IF($B32>0,VLOOKUP($B32,'10_VSP_Fodermiddeltabel'!$A$4:$CP$489,23,),CHAR(32)) ->  | FX32: =IF($B32>0,VLOOKUP($B32,'10_VSP_Fodermiddeltabel'!$A$4:$CP$489,25,),CHAR(32)) ->  | FY32: =IF($B32>0,VLOOKUP($B32,'10_VSP_Fodermiddeltabel'!$A$4:$CP$489,26,),CHAR(32)) ->  | FZ32: =IF($B32>0,VLOOKUP($B32,'10_VSP_Fodermiddeltabel'!$A$4:$CP$489,27,),CHAR(32)) ->  | GA32: =IF($B32>0,VLOOKUP($B32,'10_VSP_Fodermiddeltabel'!$A$4:$CP$489,28,),CHAR(32)) ->  | GB32: =IF($B32>0,VLOOKUP($B32,'10_VSP_Fodermiddeltabel'!$A$4:$CP$489,29,),CHAR(32)) ->  | GC32: =IF($B32>0,VLOOKUP($B32,'10_VSP_Fodermiddeltabel'!$A$4:$CP$489,30,),CHAR(32)) ->  | GD32: =IF($B32>0,VLOOKUP($B32,'10_VSP_Fodermiddeltabel'!$A$4:$CP$489,31,),CHAR(32)) ->  | GE32: =IF($B32>0,VLOOKUP($B32,'10_VSP_Fodermiddeltabel'!$A$4:$CP$489,32,),CHAR(32)) ->  | GF32: =IF($B32>0,VLOOKUP($B32,'10_VSP_Fodermiddeltabel'!$A$4:$CP$489,33,),CHAR(32)) ->  | GG32: =IF($B32>0,VLOOKUP($B32,'10_VSP_Fodermiddeltabel'!$A$4:$CP$489,34,),CHAR(32)) ->  | GH32: =IF($B32>0,VLOOKUP($B32,'10_VSP_Fodermiddeltabel'!$A$4:$CP$489,35,),CHAR(32)) ->  | GI32: =IF($B32>0,VLOOKUP($B32,'10_VSP_Fodermiddeltabel'!$A$4:$CP$489,36,),CHAR(32)) ->  | GJ32: =IF($B32>0,VLOOKUP($B32,'10_VSP_Fodermiddeltabel'!$A$4:$CP$489,37,),CHAR(32)) ->  | GL32: =IF($B32>0,VLOOKUP($B32,'10_VSP_Fodermiddeltabel'!$A$4:$CP$489,74,),CHAR(32)) ->  | GM32: =IF($B32>0,VLOOKUP($B32,'10_VSP_Fodermiddeltabel'!$A$4:$CP$489,75,),CHAR(32)) ->  | GN32: =IF($B32>0,VLOOKUP($B32,'10_VSP_Fodermiddeltabel'!$A$4:$CP$489,76,),CHAR(32)) ->  | GO32: =IF($B32>0,VLOOKUP($B32,'10_VSP_Fodermiddeltabel'!$A$4:$CP$489,77,),CHAR(32)) ->  | GP32: =IF($B32>0,VLOOKUP($B32,'10_VSP_Fodermiddeltabel'!$A$4:$CP$489,78,),CHAR(32)) ->  | GQ32: =IF($B32>0,VLOOKUP($B32,'10_VSP_Fodermiddeltabel'!$A$4:$CP$489,79,),CHAR(32)) ->  | GR32: =IF($B32>0,VLOOKUP($B32,'10_VSP_Fodermiddeltabel'!$A$4:$CP$489,1,),CHAR(32)) ->  | GU32: =+'10_VSP_Fodermiddeltabel'!D23 -> BYG, vår, 2015 | GV32: =+'10_VSP_Fodermiddeltabel'!A23 -> 50000
D33: =IFERROR(IF($B33>0,VLOOKUP($B33,'10_VSP_Fodermiddeltabel'!$A$4:$CP$489,5,),CHAR(32)),"") ->  | E33: =IFERROR(IF($B33>0,VLOOKUP($B33,'10_VSP_Fodermiddeltabel'!$A$4:$CP$489,12,),CHAR(32)),"") ->  | G33: =IFERROR(IF($B33>0,VLOOKUP($B33,'10_VSP_Fodermiddeltabel'!$A$4:$CP$489,13,),CHAR(32)),"") ->  | H33: =IFERROR(IF($B33>0,VLOOKUP($B33,'10_VSP_Fodermiddeltabel'!$A$4:$CP$489,14,),CHAR(32)),"") ->  | I33: =IFERROR(IF($B33>0,VLOOKUP($B33,'10_VSP_Fodermiddeltabel'!$A$4:$CP$489,15,),CHAR(32)),"") ->  | J33: =IFERROR(IF($B33>0,VLOOKUP($B33,'10_VSP_Fodermiddeltabel'!$A$4:$CP$489,16,),CHAR(32)),"") ->  | K33: =IFERROR(IF($B33>0,VLOOKUP($B33,'10_VSP_Fodermiddeltabel'!$A$4:$CP$489,8,),CHAR(32)),"") ->  | L33: =IFERROR(IF($B33>0,VLOOKUP($B33,'10_VSP_Fodermiddeltabel'!$A$4:$CP$489,9,),CHAR(32)),"") ->  | Q33: 24 | R33: Fosfor, 0% fytase | S33: =HLOOKUP($Q33,$BM$1:$CN$7,4) -> 1.404001554 | U33: =IF(U$14<8.8,IF(U$14<6.51,IF(U$14<6,+U$14*'11_Normprofiler'!D20/100,+U$14*'11_Normprofiler'!E20/100),+U$14*'11_Normprofiler'!C20/100),+U$14*'11_Normprofiler'!B20/100) -> 2.5 | V33: =+S33*100/U33 -> 56.16006218 | W33: =HLOOKUP($Q33,$BM$1:$CN$7,7) -> 1.476795882 | AA33: =IF($Y$27>0,+W33/$Y$27,"") -> 0.2948421379 | CG33: =IF($C33>0,IF(VLOOKUP($B33,'10_VSP_Fodermiddeltabel'!$A$4:$DV$489,113,)>0,VLOOKUP($B33,'10_VSP_Fodermiddeltabel'!$A$4:$DV$489,113,)*$C33/100,0),CHAR(32)) ->  | CH33: =IF($C33>0,IF(VLOOKUP($B33,'10_VSP_Fodermiddeltabel'!$A$4:$DV$489,110,)>0,VLOOKUP($B33,'10_VSP_Fodermiddeltabel'!$A$4:$DV$489,110,)*$C33/100,0),CHAR(32)) ->  | CI33: =IF($C33>0,IF(VLOOKUP($B33,'10_VSP_Fodermiddeltabel'!$A$4:$DV$489,111,)>0,VLOOKUP($B33,'10_VSP_Fodermiddeltabel'!$A$4:$DV$489,111,)*$C33/100,0),CHAR(32)) ->  | CO33: =IF($B33>0,VLOOKUP($B33,'10_VSP_Fodermiddeltabel'!$A$4:$CP$489,10,),CHAR(32)) ->  | CP33: =IF($B33>0,VLOOKUP($B33,'10_VSP_Fodermiddeltabel'!$A$4:$CP$489,11,),CHAR(32)) ->  | CQ33: 90 | EL33: =IF($B33>0,VLOOKUP($B33,'10_VSP_Fodermiddeltabel'!$A$4:$CP$489,18,),CHAR(32)) ->  | EM33: =IF($B33>0,VLOOKUP($B33,'10_VSP_Fodermiddeltabel'!$A$4:$CP$489,39,),CHAR(32)) ->  | EN33: =IF($B33>0,VLOOKUP($B33,'10_VSP_Fodermiddeltabel'!$A$4:$CP$489,40,),CHAR(32)) ->  | EO33: =IF($B33>0,VLOOKUP($B33,'10_VSP_Fodermiddeltabel'!$A$4:$CP$489,41,),CHAR(32)) ->  | EP33: =IF($B33>0,VLOOKUP($B33,'10_VSP_Fodermiddeltabel'!$A$4:$CP$489,42,),CHAR(32)) ->  | EQ33: =IF($B33>0,VLOOKUP($B33,'10_VSP_Fodermiddeltabel'!$A$4:$CP$489,43,),CHAR(32)) ->  | ER33: =IF($B33>0,VLOOKUP($B33,'10_VSP_Fodermiddeltabel'!$A$4:$CP$489,44,),CHAR(32)) ->  | ES33: =IF($B33>0,VLOOKUP($B33,'10_VSP_Fodermiddeltabel'!$A$4:$CP$489,45,),CHAR(32)) ->  | ET33: =IF($B33>0,VLOOKUP($B33,'10_VSP_Fodermiddeltabel'!$A$4:$CP$489,46,),CHAR(32)) ->  | EU33: =IF($B33>0,VLOOKUP($B33,'10_VSP_Fodermiddeltabel'!$A$4:$CP$489,47,),CHAR(32)) ->  | EV33: =IF($B33>0,VLOOKUP($B33,'10_VSP_Fodermiddeltabel'!$A$4:$CP$489,48,),CHAR(32)) ->  | EW33: =IF($B33>0,VLOOKUP($B33,'10_VSP_Fodermiddeltabel'!$A$4:$CP$489,49,),CHAR(32)) ->  | EX33: =IF($B33>0,VLOOKUP($B33,'10_VSP_Fodermiddeltabel'!$A$4:$CP$489,51,),CHAR(32)) ->  | EY33: =IF($B33>0,VLOOKUP($B33,'10_VSP_Fodermiddeltabel'!$A$4:$CP$489,52,),CHAR(32)) ->  | EZ33: =IF($B33>0,VLOOKUP($B33,'10_VSP_Fodermiddeltabel'!$A$4:$CP$489,53,),CHAR(32)) ->  | FA33: =IF($B33>0,VLOOKUP($B33,'10_VSP_Fodermiddeltabel'!$A$4:$CP$489,54,),CHAR(32)) ->  | FB33: =IF($B33>0,VLOOKUP($B33,'10_VSP_Fodermiddeltabel'!$A$4:$CP$489,55,),CHAR(32)) ->  | FC33: =IF($B33>0,VLOOKUP($B33,'10_VSP_Fodermiddeltabel'!$A$4:$CP$489,56,),CHAR(32)) ->  | FD33: =IF($B33>0,VLOOKUP($B33,'10_VSP_Fodermiddeltabel'!$A$4:$CP$489,57,),CHAR(32)) ->  | FE33: =IF($B33>0,VLOOKUP($B33,'10_VSP_Fodermiddeltabel'!$A$4:$CP$489,58,),CHAR(32)) ->  | FF33: =IF($B33>0,VLOOKUP($B33,'10_VSP_Fodermiddeltabel'!$A$4:$CP$489,59,),CHAR(32)) ->  | FG33: =IF($B33>0,VLOOKUP($B33,'10_VSP_Fodermiddeltabel'!$A$4:$CP$489,60,),CHAR(32)) ->  | FH33: =IF($B33>0,VLOOKUP($B33,'10_VSP_Fodermiddeltabel'!$A$4:$CP$489,61,),CHAR(32)) ->  | FI33: =IF($B33>0,VLOOKUP($B33,'10_VSP_Fodermiddeltabel'!$A$4:$CP$489,2,),CHAR(32)) ->  | FJ33: =IF($B33>0,VLOOKUP($B33,'10_VSP_Fodermiddeltabel'!$A$4:$CP$489,3,),CHAR(32)) ->  | FK33: =IF($B33>0,VLOOKUP($B33,'10_VSP_Fodermiddeltabel'!$A$4:$CP$489,63,),CHAR(32)) ->  | FL33: =IF($B33>0,VLOOKUP($B33,'10_VSP_Fodermiddeltabel'!$A$4:$CP$489,64,),CHAR(32)) ->  | FM33: =IF($B33>0,VLOOKUP($B33,'10_VSP_Fodermiddeltabel'!$A$4:$CP$489,65,),CHAR(32)) ->  | FN33: =IF($B33>0,VLOOKUP($B33,'10_VSP_Fodermiddeltabel'!$A$4:$CP$489,66,),CHAR(32)) ->  | FO33: =IF($B33>0,VLOOKUP($B33,'10_VSP_Fodermiddeltabel'!$A$4:$CP$489,68,),CHAR(32)) ->  | FP33: =IF($B33>0,VLOOKUP($B33,'10_VSP_Fodermiddeltabel'!$A$4:$CP$489,69,),CHAR(32)) ->  | FQ33: =IF($B33>0,VLOOKUP($B33,'10_VSP_Fodermiddeltabel'!$A$4:$CP$489,70,),CHAR(32)) ->  | FR33: =IF($B33>0,VLOOKUP($B33,'10_VSP_Fodermiddeltabel'!$A$4:$CP$489,71,),CHAR(32)) ->  | FS33: =IF($B33>0,VLOOKUP($B33,'10_VSP_Fodermiddeltabel'!$A$4:$CP$489,19,),CHAR(32)) ->  | FT33: =IF($B33>0,VLOOKUP($B33,'10_VSP_Fodermiddeltabel'!$A$4:$CP$489,20,),CHAR(32)) ->  | FU33: =IF($B33>0,VLOOKUP($B33,'10_VSP_Fodermiddeltabel'!$A$4:$CP$489,21,),CHAR(32)) ->  | FV33: =IF($B33>0,VLOOKUP($B33,'10_VSP_Fodermiddeltabel'!$A$4:$CP$489,22,),CHAR(32)) ->  | FW33: =IF($B33>0,VLOOKUP($B33,'10_VSP_Fodermiddeltabel'!$A$4:$CP$489,23,),CHAR(32)) ->  | FX33: =IF($B33>0,VLOOKUP($B33,'10_VSP_Fodermiddeltabel'!$A$4:$CP$489,25,),CHAR(32)) ->  | FY33: =IF($B33>0,VLOOKUP($B33,'10_VSP_Fodermiddeltabel'!$A$4:$CP$489,26,),CHAR(32)) ->  | FZ33: =IF($B33>0,VLOOKUP($B33,'10_VSP_Fodermiddeltabel'!$A$4:$CP$489,27,),CHAR(32)) ->  | GA33: =IF($B33>0,VLOOKUP($B33,'10_VSP_Fodermiddeltabel'!$A$4:$CP$489,28,),CHAR(32)) ->  | GB33: =IF($B33>0,VLOOKUP($B33,'10_VSP_Fodermiddeltabel'!$A$4:$CP$489,29,),CHAR(32)) ->  | GC33: =IF($B33>0,VLOOKUP($B33,'10_VSP_Fodermiddeltabel'!$A$4:$CP$489,30,),CHAR(32)) ->  | GD33: =IF($B33>0,VLOOKUP($B33,'10_VSP_Fodermiddeltabel'!$A$4:$CP$489,31,),CHAR(32)) ->  | GE33: =IF($B33>0,VLOOKUP($B33,'10_VSP_Fodermiddeltabel'!$A$4:$CP$489,32,),CHAR(32)) ->  | GF33: =IF($B33>0,VLOOKUP($B33,'10_VSP_Fodermiddeltabel'!$A$4:$CP$489,33,),CHAR(32)) ->  | GG33: =IF($B33>0,VLOOKUP($B33,'10_VSP_Fodermiddeltabel'!$A$4:$CP$489,34,),CHAR(32)) ->  | GH33: =IF($B33>0,VLOOKUP($B33,'10_VSP_Fodermiddeltabel'!$A$4:$CP$489,35,),CHAR(32)) ->  | GI33: =IF($B33>0,VLOOKUP($B33,'10_VSP_Fodermiddeltabel'!$A$4:$CP$489,36,),CHAR(32)) ->  | GJ33: =IF($B33>0,VLOOKUP($B33,'10_VSP_Fodermiddeltabel'!$A$4:$CP$489,37,),CHAR(32)) ->  | GL33: =IF($B33>0,VLOOKUP($B33,'10_VSP_Fodermiddeltabel'!$A$4:$CP$489,74,),CHAR(32)) ->  | GM33: =IF($B33>0,VLOOKUP($B33,'10_VSP_Fodermiddeltabel'!$A$4:$CP$489,75,),CHAR(32)) ->  | GN33: =IF($B33>0,VLOOKUP($B33,'10_VSP_Fodermiddeltabel'!$A$4:$CP$489,76,),CHAR(32)) ->  | GO33: =IF($B33>0,VLOOKUP($B33,'10_VSP_Fodermiddeltabel'!$A$4:$CP$489,77,),CHAR(32)) ->  | GP33: =IF($B33>0,VLOOKUP($B33,'10_VSP_Fodermiddeltabel'!$A$4:$CP$489,78,),CHAR(32)) ->  | GQ33: =IF($B33>0,VLOOKUP($B33,'10_VSP_Fodermiddeltabel'!$A$4:$CP$489,79,),CHAR(32)) ->  | GR33: =IF($B33>0,VLOOKUP($B33,'10_VSP_Fodermiddeltabel'!$A$4:$CP$489,1,),CHAR(32)) ->  | GU33: =+'10_VSP_Fodermiddeltabel'!D24 -> BYG, vår, 2015 + xylanase | GV33: =+'10_VSP_Fodermiddeltabel'!A24 -> 50001
D34: =IFERROR(IF($B34>0,VLOOKUP($B34,'10_VSP_Fodermiddeltabel'!$A$4:$CP$489,5,),CHAR(32)),"") ->  | E34: =IFERROR(IF($B34>0,VLOOKUP($B34,'10_VSP_Fodermiddeltabel'!$A$4:$CP$489,12,),CHAR(32)),"") ->  | G34: =IFERROR(IF($B34>0,VLOOKUP($B34,'10_VSP_Fodermiddeltabel'!$A$4:$CP$489,13,),CHAR(32)),"") ->  | H34: =IFERROR(IF($B34>0,VLOOKUP($B34,'10_VSP_Fodermiddeltabel'!$A$4:$CP$489,14,),CHAR(32)),"") ->  | I34: =IFERROR(IF($B34>0,VLOOKUP($B34,'10_VSP_Fodermiddeltabel'!$A$4:$CP$489,15,),CHAR(32)),"") ->  | J34: =IFERROR(IF($B34>0,VLOOKUP($B34,'10_VSP_Fodermiddeltabel'!$A$4:$CP$489,16,),CHAR(32)),"") ->  | K34: =IFERROR(IF($B34>0,VLOOKUP($B34,'10_VSP_Fodermiddeltabel'!$A$4:$CP$489,8,),CHAR(32)),"") ->  | L34: =IFERROR(IF($B34>0,VLOOKUP($B34,'10_VSP_Fodermiddeltabel'!$A$4:$CP$489,9,),CHAR(32)),"") ->  | Q34: 25 | R34: Fosfor, 60% fytase | S34: =HLOOKUP($Q34,$BM$1:$CN$7,4) -> 1.950417654 | U34: =IF(U$14<8.8,IF(U$14<6.51,IF(U$14<6,+U$14*'11_Normprofiler'!D20/100,+U$14*'11_Normprofiler'!E20/100),+U$14*'11_Normprofiler'!C20/100),+U$14*'11_Normprofiler'!B20/100) -> 2.5 | V34: =+S34*100/U34 -> 78.01670615 | W34: =HLOOKUP($Q34,$BM$1:$CN$7,7) -> 2.051542428 | AA34: =IF($Y$27>0,+W34/$Y$27,"") -> 0.4095902237 | CG34: =IF($C34>0,IF(VLOOKUP($B34,'10_VSP_Fodermiddeltabel'!$A$4:$DV$489,113,)>0,VLOOKUP($B34,'10_VSP_Fodermiddeltabel'!$A$4:$DV$489,113,)*$C34/100,0),CHAR(32)) ->  | CH34: =IF($C34>0,IF(VLOOKUP($B34,'10_VSP_Fodermiddeltabel'!$A$4:$DV$489,110,)>0,VLOOKUP($B34,'10_VSP_Fodermiddeltabel'!$A$4:$DV$489,110,)*$C34/100,0),CHAR(32)) ->  | CI34: =IF($C34>0,IF(VLOOKUP($B34,'10_VSP_Fodermiddeltabel'!$A$4:$DV$489,111,)>0,VLOOKUP($B34,'10_VSP_Fodermiddeltabel'!$A$4:$DV$489,111,)*$C34/100,0),CHAR(32)) ->  | CO34: =IF($B34>0,VLOOKUP($B34,'10_VSP_Fodermiddeltabel'!$A$4:$CP$489,10,),CHAR(32)) ->  | CP34: =IF($B34>0,VLOOKUP($B34,'10_VSP_Fodermiddeltabel'!$A$4:$CP$489,11,),CHAR(32)) ->  | CQ34: 90 | EL34: =IF($B34>0,VLOOKUP($B34,'10_VSP_Fodermiddeltabel'!$A$4:$CP$489,18,),CHAR(32)) ->  | EM34: =IF($B34>0,VLOOKUP($B34,'10_VSP_Fodermiddeltabel'!$A$4:$CP$489,39,),CHAR(32)) ->  | EN34: =IF($B34>0,VLOOKUP($B34,'10_VSP_Fodermiddeltabel'!$A$4:$CP$489,40,),CHAR(32)) ->  | EO34: =IF($B34>0,VLOOKUP($B34,'10_VSP_Fodermiddeltabel'!$A$4:$CP$489,41,),CHAR(32)) ->  | EP34: =IF($B34>0,VLOOKUP($B34,'10_VSP_Fodermiddeltabel'!$A$4:$CP$489,42,),CHAR(32)) ->  | EQ34: =IF($B34>0,VLOOKUP($B34,'10_VSP_Fodermiddeltabel'!$A$4:$CP$489,43,),CHAR(32)) ->  | ER34: =IF($B34>0,VLOOKUP($B34,'10_VSP_Fodermiddeltabel'!$A$4:$CP$489,44,),CHAR(32)) ->  | ES34: =IF($B34>0,VLOOKUP($B34,'10_VSP_Fodermiddeltabel'!$A$4:$CP$489,45,),CHAR(32)) ->  | ET34: =IF($B34>0,VLOOKUP($B34,'10_VSP_Fodermiddeltabel'!$A$4:$CP$489,46,),CHAR(32)) ->  | EU34: =IF($B34>0,VLOOKUP($B34,'10_VSP_Fodermiddeltabel'!$A$4:$CP$489,47,),CHAR(32)) ->  | EV34: =IF($B34>0,VLOOKUP($B34,'10_VSP_Fodermiddeltabel'!$A$4:$CP$489,48,),CHAR(32)) ->  | EW34: =IF($B34>0,VLOOKUP($B34,'10_VSP_Fodermiddeltabel'!$A$4:$CP$489,49,),CHAR(32)) ->  | EX34: =IF($B34>0,VLOOKUP($B34,'10_VSP_Fodermiddeltabel'!$A$4:$CP$489,51,),CHAR(32)) ->  | EY34: =IF($B34>0,VLOOKUP($B34,'10_VSP_Fodermiddeltabel'!$A$4:$CP$489,52,),CHAR(32)) ->  | EZ34: =IF($B34>0,VLOOKUP($B34,'10_VSP_Fodermiddeltabel'!$A$4:$CP$489,53,),CHAR(32)) ->  | FA34: =IF($B34>0,VLOOKUP($B34,'10_VSP_Fodermiddeltabel'!$A$4:$CP$489,54,),CHAR(32)) ->  | FB34: =IF($B34>0,VLOOKUP($B34,'10_VSP_Fodermiddeltabel'!$A$4:$CP$489,55,),CHAR(32)) ->  | FC34: =IF($B34>0,VLOOKUP($B34,'10_VSP_Fodermiddeltabel'!$A$4:$CP$489,56,),CHAR(32)) ->  | FD34: =IF($B34>0,VLOOKUP($B34,'10_VSP_Fodermiddeltabel'!$A$4:$CP$489,57,),CHAR(32)) ->  | FE34: =IF($B34>0,VLOOKUP($B34,'10_VSP_Fodermiddeltabel'!$A$4:$CP$489,58,),CHAR(32)) ->  | FF34: =IF($B34>0,VLOOKUP($B34,'10_VSP_Fodermiddeltabel'!$A$4:$CP$489,59,),CHAR(32)) ->  | FG34: =IF($B34>0,VLOOKUP($B34,'10_VSP_Fodermiddeltabel'!$A$4:$CP$489,60,),CHAR(32)) ->  | FH34: =IF($B34>0,VLOOKUP($B34,'10_VSP_Fodermiddeltabel'!$A$4:$CP$489,61,),CHAR(32)) ->  | FI34: =IF($B34>0,VLOOKUP($B34,'10_VSP_Fodermiddeltabel'!$A$4:$CP$489,2,),CHAR(32)) ->  | FJ34: =IF($B34>0,VLOOKUP($B34,'10_VSP_Fodermiddeltabel'!$A$4:$CP$489,3,),CHAR(32)) ->  | FK34: =IF($B34>0,VLOOKUP($B34,'10_VSP_Fodermiddeltabel'!$A$4:$CP$489,63,),CHAR(32)) ->  | FL34: =IF($B34>0,VLOOKUP($B34,'10_VSP_Fodermiddeltabel'!$A$4:$CP$489,64,),CHAR(32)) ->  | FM34: =IF($B34>0,VLOOKUP($B34,'10_VSP_Fodermiddeltabel'!$A$4:$CP$489,65,),CHAR(32)) ->  | FN34: =IF($B34>0,VLOOKUP($B34,'10_VSP_Fodermiddeltabel'!$A$4:$CP$489,66,),CHAR(32)) ->  | FO34: =IF($B34>0,VLOOKUP($B34,'10_VSP_Fodermiddeltabel'!$A$4:$CP$489,68,),CHAR(32)) ->  | FP34: =IF($B34>0,VLOOKUP($B34,'10_VSP_Fodermiddeltabel'!$A$4:$CP$489,69,),CHAR(32)) ->  | FQ34: =IF($B34>0,VLOOKUP($B34,'10_VSP_Fodermiddeltabel'!$A$4:$CP$489,70,),CHAR(32)) ->  | FR34: =IF($B34>0,VLOOKUP($B34,'10_VSP_Fodermiddeltabel'!$A$4:$CP$489,71,),CHAR(32)) ->  | FS34: =IF($B34>0,VLOOKUP($B34,'10_VSP_Fodermiddeltabel'!$A$4:$CP$489,19,),CHAR(32)) ->  | FT34: =IF($B34>0,VLOOKUP($B34,'10_VSP_Fodermiddeltabel'!$A$4:$CP$489,20,),CHAR(32)) ->  | FU34: =IF($B34>0,VLOOKUP($B34,'10_VSP_Fodermiddeltabel'!$A$4:$CP$489,21,),CHAR(32)) ->  | FV34: =IF($B34>0,VLOOKUP($B34,'10_VSP_Fodermiddeltabel'!$A$4:$CP$489,22,),CHAR(32)) ->  | FW34: =IF($B34>0,VLOOKUP($B34,'10_VSP_Fodermiddeltabel'!$A$4:$CP$489,23,),CHAR(32)) ->  | FX34: =IF($B34>0,VLOOKUP($B34,'10_VSP_Fodermiddeltabel'!$A$4:$CP$489,25,),CHAR(32)) ->  | FY34: =IF($B34>0,VLOOKUP($B34,'10_VSP_Fodermiddeltabel'!$A$4:$CP$489,26,),CHAR(32)) ->  | FZ34: =IF($B34>0,VLOOKUP($B34,'10_VSP_Fodermiddeltabel'!$A$4:$CP$489,27,),CHAR(32)) ->  | GA34: =IF($B34>0,VLOOKUP($B34,'10_VSP_Fodermiddeltabel'!$A$4:$CP$489,28,),CHAR(32)) ->  | GB34: =IF($B34>0,VLOOKUP($B34,'10_VSP_Fodermiddeltabel'!$A$4:$CP$489,29,),CHAR(32)) ->  | GC34: =IF($B34>0,VLOOKUP($B34,'10_VSP_Fodermiddeltabel'!$A$4:$CP$489,30,),CHAR(32)) ->  | GD34: =IF($B34>0,VLOOKUP($B34,'10_VSP_Fodermiddeltabel'!$A$4:$CP$489,31,),CHAR(32)) ->  | GE34: =IF($B34>0,VLOOKUP($B34,'10_VSP_Fodermiddeltabel'!$A$4:$CP$489,32,),CHAR(32)) ->  | GF34: =IF($B34>0,VLOOKUP($B34,'10_VSP_Fodermiddeltabel'!$A$4:$CP$489,33,),CHAR(32)) ->  | GG34: =IF($B34>0,VLOOKUP($B34,'10_VSP_Fodermiddeltabel'!$A$4:$CP$489,34,),CHAR(32)) ->  | GH34: =IF($B34>0,VLOOKUP($B34,'10_VSP_Fodermiddeltabel'!$A$4:$CP$489,35,),CHAR(32)) ->  | GI34: =IF($B34>0,VLOOKUP($B34,'10_VSP_Fodermiddeltabel'!$A$4:$CP$489,36,),CHAR(32)) ->  | GJ34: =IF($B34>0,VLOOKUP($B34,'10_VSP_Fodermiddeltabel'!$A$4:$CP$489,37,),CHAR(32)) ->  | GL34: =IF($B34>0,VLOOKUP($B34,'10_VSP_Fodermiddeltabel'!$A$4:$CP$489,74,),CHAR(32)) ->  | GM34: =IF($B34>0,VLOOKUP($B34,'10_VSP_Fodermiddeltabel'!$A$4:$CP$489,75,),CHAR(32)) ->  | GN34: =IF($B34>0,VLOOKUP($B34,'10_VSP_Fodermiddeltabel'!$A$4:$CP$489,76,),CHAR(32)) ->  | GO34: =IF($B34>0,VLOOKUP($B34,'10_VSP_Fodermiddeltabel'!$A$4:$CP$489,77,),CHAR(32)) ->  | GP34: =IF($B34>0,VLOOKUP($B34,'10_VSP_Fodermiddeltabel'!$A$4:$CP$489,78,),CHAR(32)) ->  | GQ34: =IF($B34>0,VLOOKUP($B34,'10_VSP_Fodermiddeltabel'!$A$4:$CP$489,79,),CHAR(32)) ->  | GR34: =IF($B34>0,VLOOKUP($B34,'10_VSP_Fodermiddeltabel'!$A$4:$CP$489,1,),CHAR(32)) ->  | GU34: =+'10_VSP_Fodermiddeltabel'!D25 -> BYG, vår, 2015, varmebehandlet | GV34: =+'10_VSP_Fodermiddeltabel'!A25 -> 50010
D35: =IFERROR(IF($B35>0,VLOOKUP($B35,'10_VSP_Fodermiddeltabel'!$A$4:$CP$489,5,),CHAR(32)),"") ->  | E35: =IFERROR(IF($B35>0,VLOOKUP($B35,'10_VSP_Fodermiddeltabel'!$A$4:$CP$489,12,),CHAR(32)),"") ->  | G35: =IFERROR(IF($B35>0,VLOOKUP($B35,'10_VSP_Fodermiddeltabel'!$A$4:$CP$489,13,),CHAR(32)),"") ->  | H35: =IFERROR(IF($B35>0,VLOOKUP($B35,'10_VSP_Fodermiddeltabel'!$A$4:$CP$489,14,),CHAR(32)),"") ->  | I35: =IFERROR(IF($B35>0,VLOOKUP($B35,'10_VSP_Fodermiddeltabel'!$A$4:$CP$489,15,),CHAR(32)),"") ->  | J35: =IFERROR(IF($B35>0,VLOOKUP($B35,'10_VSP_Fodermiddeltabel'!$A$4:$CP$489,16,),CHAR(32)),"") ->  | K35: =IFERROR(IF($B35>0,VLOOKUP($B35,'10_VSP_Fodermiddeltabel'!$A$4:$CP$489,8,),CHAR(32)),"") ->  | L35: =IFERROR(IF($B35>0,VLOOKUP($B35,'10_VSP_Fodermiddeltabel'!$A$4:$CP$489,9,),CHAR(32)),"") ->  | Q35: 26 | R35: Fosfor, 100% fytase | S35: =HLOOKUP($Q35,$BM$1:$CN$7,4) -> 2.158428178 | U35: =IF(U$14<8.8,IF(U$14<6.51,IF(U$14<6,+U$14*'11_Normprofiler'!D20/100,+U$14*'11_Normprofiler'!E20/100),+U$14*'11_Normprofiler'!C20/100),+U$14*'11_Normprofiler'!B20/100) -> 2.5 | V35: =+S35*100/U35 -> 86.33712712 | W35: =HLOOKUP($Q35,$BM$1:$CN$7,7) -> 2.270337831 | AA35: 0.4532727022 | CG35: =IF($C35>0,IF(VLOOKUP($B35,'10_VSP_Fodermiddeltabel'!$A$4:$DV$489,113,)>0,VLOOKUP($B35,'10_VSP_Fodermiddeltabel'!$A$4:$DV$489,113,)*$C35/100,0),CHAR(32)) ->  | CH35: =IF($C35>0,IF(VLOOKUP($B35,'10_VSP_Fodermiddeltabel'!$A$4:$DV$489,110,)>0,VLOOKUP($B35,'10_VSP_Fodermiddeltabel'!$A$4:$DV$489,110,)*$C35/100,0),CHAR(32)) ->  | CI35: =IF($C35>0,IF(VLOOKUP($B35,'10_VSP_Fodermiddeltabel'!$A$4:$DV$489,111,)>0,VLOOKUP($B35,'10_VSP_Fodermiddeltabel'!$A$4:$DV$489,111,)*$C35/100,0),CHAR(32)) ->  | CO35: =IF($B35>0,VLOOKUP($B35,'10_VSP_Fodermiddeltabel'!$A$4:$CP$489,10,),CHAR(32)) ->  | CP35: =IF($B35>0,VLOOKUP($B35,'10_VSP_Fodermiddeltabel'!$A$4:$CP$489,11,),CHAR(32)) ->  | CQ35: 90 | EL35: =IF($B35>0,VLOOKUP($B35,'10_VSP_Fodermiddeltabel'!$A$4:$CP$489,18,),CHAR(32)) ->  | EM35: =IF($B35>0,VLOOKUP($B35,'10_VSP_Fodermiddeltabel'!$A$4:$CP$489,39,),CHAR(32)) ->  | EN35: =IF($B35>0,VLOOKUP($B35,'10_VSP_Fodermiddeltabel'!$A$4:$CP$489,40,),CHAR(32)) ->  | EO35: =IF($B35>0,VLOOKUP($B35,'10_VSP_Fodermiddeltabel'!$A$4:$CP$489,41,),CHAR(32)) ->  | EP35: =IF($B35>0,VLOOKUP($B35,'10_VSP_Fodermiddeltabel'!$A$4:$CP$489,42,),CHAR(32)) ->  | EQ35: =IF($B35>0,VLOOKUP($B35,'10_VSP_Fodermiddeltabel'!$A$4:$CP$489,43,),CHAR(32)) ->  | ER35: =IF($B35>0,VLOOKUP($B35,'10_VSP_Fodermiddeltabel'!$A$4:$CP$489,44,),CHAR(32)) ->  | ES35: =IF($B35>0,VLOOKUP($B35,'10_VSP_Fodermiddeltabel'!$A$4:$CP$489,45,),CHAR(32)) ->  | ET35: =IF($B35>0,VLOOKUP($B35,'10_VSP_Fodermiddeltabel'!$A$4:$CP$489,46,),CHAR(32)) ->  | EU35: =IF($B35>0,VLOOKUP($B35,'10_VSP_Fodermiddeltabel'!$A$4:$CP$489,47,),CHAR(32)) ->  | EV35: =IF($B35>0,VLOOKUP($B35,'10_VSP_Fodermiddeltabel'!$A$4:$CP$489,48,),CHAR(32)) ->  | EW35: =IF($B35>0,VLOOKUP($B35,'10_VSP_Fodermiddeltabel'!$A$4:$CP$489,49,),CHAR(32)) ->  | EX35: =IF($B35>0,VLOOKUP($B35,'10_VSP_Fodermiddeltabel'!$A$4:$CP$489,51,),CHAR(32)) ->  | EY35: =IF($B35>0,VLOOKUP($B35,'10_VSP_Fodermiddeltabel'!$A$4:$CP$489,52,),CHAR(32)) ->  | EZ35: =IF($B35>0,VLOOKUP($B35,'10_VSP_Fodermiddeltabel'!$A$4:$CP$489,53,),CHAR(32)) ->  | FA35: =IF($B35>0,VLOOKUP($B35,'10_VSP_Fodermiddeltabel'!$A$4:$CP$489,54,),CHAR(32)) ->  | FB35: =IF($B35>0,VLOOKUP($B35,'10_VSP_Fodermiddeltabel'!$A$4:$CP$489,55,),CHAR(32)) ->  | FC35: =IF($B35>0,VLOOKUP($B35,'10_VSP_Fodermiddeltabel'!$A$4:$CP$489,56,),CHAR(32)) ->  | FD35: =IF($B35>0,VLOOKUP($B35,'10_VSP_Fodermiddeltabel'!$A$4:$CP$489,57,),CHAR(32)) ->  | FE35: =IF($B35>0,VLOOKUP($B35,'10_VSP_Fodermiddeltabel'!$A$4:$CP$489,58,),CHAR(32)) ->  | FF35: =IF($B35>0,VLOOKUP($B35,'10_VSP_Fodermiddeltabel'!$A$4:$CP$489,59,),CHAR(32)) ->  | FG35: =IF($B35>0,VLOOKUP($B35,'10_VSP_Fodermiddeltabel'!$A$4:$CP$489,60,),CHAR(32)) ->  | FH35: =IF($B35>0,VLOOKUP($B35,'10_VSP_Fodermiddeltabel'!$A$4:$CP$489,61,),CHAR(32)) ->  | FI35: =IF($B35>0,VLOOKUP($B35,'10_VSP_Fodermiddeltabel'!$A$4:$CP$489,2,),CHAR(32)) ->  | FJ35: =IF($B35>0,VLOOKUP($B35,'10_VSP_Fodermiddeltabel'!$A$4:$CP$489,3,),CHAR(32)) ->  | FK35: =IF($B35>0,VLOOKUP($B35,'10_VSP_Fodermiddeltabel'!$A$4:$CP$489,63,),CHAR(32)) ->  | FL35: =IF($B35>0,VLOOKUP($B35,'10_VSP_Fodermiddeltabel'!$A$4:$CP$489,64,),CHAR(32)) ->  | FM35: =IF($B35>0,VLOOKUP($B35,'10_VSP_Fodermiddeltabel'!$A$4:$CP$489,65,),CHAR(32)) ->  | FN35: =IF($B35>0,VLOOKUP($B35,'10_VSP_Fodermiddeltabel'!$A$4:$CP$489,66,),CHAR(32)) ->  | FO35: =IF($B35>0,VLOOKUP($B35,'10_VSP_Fodermiddeltabel'!$A$4:$CP$489,68,),CHAR(32)) ->  | FP35: =IF($B35>0,VLOOKUP($B35,'10_VSP_Fodermiddeltabel'!$A$4:$CP$489,69,),CHAR(32)) ->  | FQ35: =IF($B35>0,VLOOKUP($B35,'10_VSP_Fodermiddeltabel'!$A$4:$CP$489,70,),CHAR(32)) ->  | FR35: =IF($B35>0,VLOOKUP($B35,'10_VSP_Fodermiddeltabel'!$A$4:$CP$489,71,),CHAR(32)) ->  | FS35: =IF($B35>0,VLOOKUP($B35,'10_VSP_Fodermiddeltabel'!$A$4:$CP$489,19,),CHAR(32)) ->  | FT35: =IF($B35>0,VLOOKUP($B35,'10_VSP_Fodermiddeltabel'!$A$4:$CP$489,20,),CHAR(32)) ->  | FU35: =IF($B35>0,VLOOKUP($B35,'10_VSP_Fodermiddeltabel'!$A$4:$CP$489,21,),CHAR(32)) ->  | FV35: =IF($B35>0,VLOOKUP($B35,'10_VSP_Fodermiddeltabel'!$A$4:$CP$489,22,),CHAR(32)) ->  | FW35: =IF($B35>0,VLOOKUP($B35,'10_VSP_Fodermiddeltabel'!$A$4:$CP$489,23,),CHAR(32)) ->  | FX35: =IF($B35>0,VLOOKUP($B35,'10_VSP_Fodermiddeltabel'!$A$4:$CP$489,25,),CHAR(32)) ->  | FY35: =IF($B35>0,VLOOKUP($B35,'10_VSP_Fodermiddeltabel'!$A$4:$CP$489,26,),CHAR(32)) ->  | FZ35: =IF($B35>0,VLOOKUP($B35,'10_VSP_Fodermiddeltabel'!$A$4:$CP$489,27,),CHAR(32)) ->  | GA35: =IF($B35>0,VLOOKUP($B35,'10_VSP_Fodermiddeltabel'!$A$4:$CP$489,28,),CHAR(32)) ->  | GB35: =IF($B35>0,VLOOKUP($B35,'10_VSP_Fodermiddeltabel'!$A$4:$CP$489,29,),CHAR(32)) ->  | GC35: =IF($B35>0,VLOOKUP($B35,'10_VSP_Fodermiddeltabel'!$A$4:$CP$489,30,),CHAR(32)) ->  | GD35: =IF($B35>0,VLOOKUP($B35,'10_VSP_Fodermiddeltabel'!$A$4:$CP$489,31,),CHAR(32)) ->  | GE35: =IF($B35>0,VLOOKUP($B35,'10_VSP_Fodermiddeltabel'!$A$4:$CP$489,32,),CHAR(32)) ->  | GF35: =IF($B35>0,VLOOKUP($B35,'10_VSP_Fodermiddeltabel'!$A$4:$CP$489,33,),CHAR(32)) ->  | GG35: =IF($B35>0,VLOOKUP($B35,'10_VSP_Fodermiddeltabel'!$A$4:$CP$489,34,),CHAR(32)) ->  | GH35: =IF($B35>0,VLOOKUP($B35,'10_VSP_Fodermiddeltabel'!$A$4:$CP$489,35,),CHAR(32)) ->  | GI35: =IF($B35>0,VLOOKUP($B35,'10_VSP_Fodermiddeltabel'!$A$4:$CP$489,36,),CHAR(32)) ->  | GJ35: =IF($B35>0,VLOOKUP($B35,'10_VSP_Fodermiddeltabel'!$A$4:$CP$489,37,),CHAR(32)) ->  | GL35: =IF($B35>0,VLOOKUP($B35,'10_VSP_Fodermiddeltabel'!$A$4:$CP$489,74,),CHAR(32)) ->  | GM35: =IF($B35>0,VLOOKUP($B35,'10_VSP_Fodermiddeltabel'!$A$4:$CP$489,75,),CHAR(32)) ->  | GN35: =IF($B35>0,VLOOKUP($B35,'10_VSP_Fodermiddeltabel'!$A$4:$CP$489,76,),CHAR(32)) ->  | GO35: =IF($B35>0,VLOOKUP($B35,'10_VSP_Fodermiddeltabel'!$A$4:$CP$489,77,),CHAR(32)) ->  | GP35: =IF($B35>0,VLOOKUP($B35,'10_VSP_Fodermiddeltabel'!$A$4:$CP$489,78,),CHAR(32)) ->  | GQ35: =IF($B35>0,VLOOKUP($B35,'10_VSP_Fodermiddeltabel'!$A$4:$CP$489,79,),CHAR(32)) ->  | GR35: =IF($B35>0,VLOOKUP($B35,'10_VSP_Fodermiddeltabel'!$A$4:$CP$489,1,),CHAR(32)) ->  | GU35: =+'10_VSP_Fodermiddeltabel'!D26 -> BYG, vår, 2015, varmebehandlet + xylanase | GV35: =+'10_VSP_Fodermiddeltabel'!A26 -> 50011
D36: =IFERROR(IF($B36>0,VLOOKUP($B36,'10_VSP_Fodermiddeltabel'!$A$4:$CP$489,5,),CHAR(32)),"") ->  | E36: =IFERROR(IF($B36>0,VLOOKUP($B36,'10_VSP_Fodermiddeltabel'!$A$4:$CP$489,12,),CHAR(32)),"") ->  | G36: =IFERROR(IF($B36>0,VLOOKUP($B36,'10_VSP_Fodermiddeltabel'!$A$4:$CP$489,13,),CHAR(32)),"") ->  | H36: =IFERROR(IF($B36>0,VLOOKUP($B36,'10_VSP_Fodermiddeltabel'!$A$4:$CP$489,14,),CHAR(32)),"") ->  | I36: =IFERROR(IF($B36>0,VLOOKUP($B36,'10_VSP_Fodermiddeltabel'!$A$4:$CP$489,15,),CHAR(32)),"") ->  | J36: =IFERROR(IF($B36>0,VLOOKUP($B36,'10_VSP_Fodermiddeltabel'!$A$4:$CP$489,16,),CHAR(32)),"") ->  | K36: =IFERROR(IF($B36>0,VLOOKUP($B36,'10_VSP_Fodermiddeltabel'!$A$4:$CP$489,8,),CHAR(32)),"") ->  | L36: =IFERROR(IF($B36>0,VLOOKUP($B36,'10_VSP_Fodermiddeltabel'!$A$4:$CP$489,9,),CHAR(32)),"") ->  | Q36: 27 | R36: Fosfor, 150% fytase | S36: =HLOOKUP($Q36,$BM$1:$CN$7,4) -> 2.35941548 | U36: =IF(U$14<8.8,IF(U$14<6.51,IF(U$14<6,+U$14*'11_Normprofiler'!D20/100,+U$14*'11_Normprofiler'!E20/100),+U$14*'11_Normprofiler'!C20/100),+U$14*'11_Normprofiler'!B20/100) -> 2.5 | V36: =+S36*100/U36 -> 94.3766192 | W36: =HLOOKUP($Q36,$BM$1:$CN$7,7) -> 2.481745873 | AA36: 0.4954802949 | CG36: =IF($C36>0,IF(VLOOKUP($B36,'10_VSP_Fodermiddeltabel'!$A$4:$DV$489,113,)>0,VLOOKUP($B36,'10_VSP_Fodermiddeltabel'!$A$4:$DV$489,113,)*$C36/100,0),CHAR(32)) ->  | CH36: =IF($C36>0,IF(VLOOKUP($B36,'10_VSP_Fodermiddeltabel'!$A$4:$DV$489,110,)>0,VLOOKUP($B36,'10_VSP_Fodermiddeltabel'!$A$4:$DV$489,110,)*$C36/100,0),CHAR(32)) ->  | CI36: =IF($C36>0,IF(VLOOKUP($B36,'10_VSP_Fodermiddeltabel'!$A$4:$DV$489,111,)>0,VLOOKUP($B36,'10_VSP_Fodermiddeltabel'!$A$4:$DV$489,111,)*$C36/100,0),CHAR(32)) ->  | CO36: =IF($B36>0,VLOOKUP($B36,'10_VSP_Fodermiddeltabel'!$A$4:$CP$489,10,),CHAR(32)) ->  | CP36: =IF($B36>0,VLOOKUP($B36,'10_VSP_Fodermiddeltabel'!$A$4:$CP$489,11,),CHAR(32)) ->  | CQ36: 90 | EL36: =IF($B36>0,VLOOKUP($B36,'10_VSP_Fodermiddeltabel'!$A$4:$CP$489,18,),CHAR(32)) ->  | EM36: =IF($B36>0,VLOOKUP($B36,'10_VSP_Fodermiddeltabel'!$A$4:$CP$489,39,),CHAR(32)) ->  | EN36: =IF($B36>0,VLOOKUP($B36,'10_VSP_Fodermiddeltabel'!$A$4:$CP$489,40,),CHAR(32)) ->  | EO36: =IF($B36>0,VLOOKUP($B36,'10_VSP_Fodermiddeltabel'!$A$4:$CP$489,41,),CHAR(32)) ->  | EP36: =IF($B36>0,VLOOKUP($B36,'10_VSP_Fodermiddeltabel'!$A$4:$CP$489,42,),CHAR(32)) ->  | EQ36: =IF($B36>0,VLOOKUP($B36,'10_VSP_Fodermiddeltabel'!$A$4:$CP$489,43,),CHAR(32)) ->  | ER36: =IF($B36>0,VLOOKUP($B36,'10_VSP_Fodermiddeltabel'!$A$4:$CP$489,44,),CHAR(32)) ->  | ES36: =IF($B36>0,VLOOKUP($B36,'10_VSP_Fodermiddeltabel'!$A$4:$CP$489,45,),CHAR(32)) ->  | ET36: =IF($B36>0,VLOOKUP($B36,'10_VSP_Fodermiddeltabel'!$A$4:$CP$489,46,),CHAR(32)) ->  | EU36: =IF($B36>0,VLOOKUP($B36,'10_VSP_Fodermiddeltabel'!$A$4:$CP$489,47,),CHAR(32)) ->  | EV36: =IF($B36>0,VLOOKUP($B36,'10_VSP_Fodermiddeltabel'!$A$4:$CP$489,48,),CHAR(32)) ->  | EW36: =IF($B36>0,VLOOKUP($B36,'10_VSP_Fodermiddeltabel'!$A$4:$CP$489,49,),CHAR(32)) ->  | EX36: =IF($B36>0,VLOOKUP($B36,'10_VSP_Fodermiddeltabel'!$A$4:$CP$489,51,),CHAR(32)) ->  | EY36: =IF($B36>0,VLOOKUP($B36,'10_VSP_Fodermiddeltabel'!$A$4:$CP$489,52,),CHAR(32)) ->  | EZ36: =IF($B36>0,VLOOKUP($B36,'10_VSP_Fodermiddeltabel'!$A$4:$CP$489,53,),CHAR(32)) ->  | FA36: =IF($B36>0,VLOOKUP($B36,'10_VSP_Fodermiddeltabel'!$A$4:$CP$489,54,),CHAR(32)) ->  | FB36: =IF($B36>0,VLOOKUP($B36,'10_VSP_Fodermiddeltabel'!$A$4:$CP$489,55,),CHAR(32)) ->  | FC36: =IF($B36>0,VLOOKUP($B36,'10_VSP_Fodermiddeltabel'!$A$4:$CP$489,56,),CHAR(32)) ->  | FD36: =IF($B36>0,VLOOKUP($B36,'10_VSP_Fodermiddeltabel'!$A$4:$CP$489,57,),CHAR(32)) ->  | FE36: =IF($B36>0,VLOOKUP($B36,'10_VSP_Fodermiddeltabel'!$A$4:$CP$489,58,),CHAR(32)) ->  | FF36: =IF($B36>0,VLOOKUP($B36,'10_VSP_Fodermiddeltabel'!$A$4:$CP$489,59,),CHAR(32)) ->  | FG36: =IF($B36>0,VLOOKUP($B36,'10_VSP_Fodermiddeltabel'!$A$4:$CP$489,60,),CHAR(32)) ->  | FH36: =IF($B36>0,VLOOKUP($B36,'10_VSP_Fodermiddeltabel'!$A$4:$CP$489,61,),CHAR(32)) ->  | FI36: =IF($B36>0,VLOOKUP($B36,'10_VSP_Fodermiddeltabel'!$A$4:$CP$489,2,),CHAR(32)) ->  | FJ36: =IF($B36>0,VLOOKUP($B36,'10_VSP_Fodermiddeltabel'!$A$4:$CP$489,3,),CHAR(32)) ->  | FK36: =IF($B36>0,VLOOKUP($B36,'10_VSP_Fodermiddeltabel'!$A$4:$CP$489,63,),CHAR(32)) ->  | FL36: =IF($B36>0,VLOOKUP($B36,'10_VSP_Fodermiddeltabel'!$A$4:$CP$489,64,),CHAR(32)) ->  | FM36: =IF($B36>0,VLOOKUP($B36,'10_VSP_Fodermiddeltabel'!$A$4:$CP$489,65,),CHAR(32)) ->  | FN36: =IF($B36>0,VLOOKUP($B36,'10_VSP_Fodermiddeltabel'!$A$4:$CP$489,66,),CHAR(32)) ->  | FO36: =IF($B36>0,VLOOKUP($B36,'10_VSP_Fodermiddeltabel'!$A$4:$CP$489,68,),CHAR(32)) ->  | FP36: =IF($B36>0,VLOOKUP($B36,'10_VSP_Fodermiddeltabel'!$A$4:$CP$489,69,),CHAR(32)) ->  | FQ36: =IF($B36>0,VLOOKUP($B36,'10_VSP_Fodermiddeltabel'!$A$4:$CP$489,70,),CHAR(32)) ->  | FR36: =IF($B36>0,VLOOKUP($B36,'10_VSP_Fodermiddeltabel'!$A$4:$CP$489,71,),CHAR(32)) ->  | FS36: =IF($B36>0,VLOOKUP($B36,'10_VSP_Fodermiddeltabel'!$A$4:$CP$489,19,),CHAR(32)) ->  | FT36: =IF($B36>0,VLOOKUP($B36,'10_VSP_Fodermiddeltabel'!$A$4:$CP$489,20,),CHAR(32)) ->  | FU36: =IF($B36>0,VLOOKUP($B36,'10_VSP_Fodermiddeltabel'!$A$4:$CP$489,21,),CHAR(32)) ->  | FV36: =IF($B36>0,VLOOKUP($B36,'10_VSP_Fodermiddeltabel'!$A$4:$CP$489,22,),CHAR(32)) ->  | FW36: =IF($B36>0,VLOOKUP($B36,'10_VSP_Fodermiddeltabel'!$A$4:$CP$489,23,),CHAR(32)) ->  | FX36: =IF($B36>0,VLOOKUP($B36,'10_VSP_Fodermiddeltabel'!$A$4:$CP$489,25,),CHAR(32)) ->  | FY36: =IF($B36>0,VLOOKUP($B36,'10_VSP_Fodermiddeltabel'!$A$4:$CP$489,26,),CHAR(32)) ->  | FZ36: =IF($B36>0,VLOOKUP($B36,'10_VSP_Fodermiddeltabel'!$A$4:$CP$489,27,),CHAR(32)) ->  | GA36: =IF($B36>0,VLOOKUP($B36,'10_VSP_Fodermiddeltabel'!$A$4:$CP$489,28,),CHAR(32)) ->  | GB36: =IF($B36>0,VLOOKUP($B36,'10_VSP_Fodermiddeltabel'!$A$4:$CP$489,29,),CHAR(32)) ->  | GC36: =IF($B36>0,VLOOKUP($B36,'10_VSP_Fodermiddeltabel'!$A$4:$CP$489,30,),CHAR(32)) ->  | GD36: =IF($B36>0,VLOOKUP($B36,'10_VSP_Fodermiddeltabel'!$A$4:$CP$489,31,),CHAR(32)) ->  | GE36: =IF($B36>0,VLOOKUP($B36,'10_VSP_Fodermiddeltabel'!$A$4:$CP$489,32,),CHAR(32)) ->  | GF36: =IF($B36>0,VLOOKUP($B36,'10_VSP_Fodermiddeltabel'!$A$4:$CP$489,33,),CHAR(32)) ->  | GG36: =IF($B36>0,VLOOKUP($B36,'10_VSP_Fodermiddeltabel'!$A$4:$CP$489,34,),CHAR(32)) ->  | GH36: =IF($B36>0,VLOOKUP($B36,'10_VSP_Fodermiddeltabel'!$A$4:$CP$489,35,),CHAR(32)) ->  | GI36: =IF($B36>0,VLOOKUP($B36,'10_VSP_Fodermiddeltabel'!$A$4:$CP$489,36,),CHAR(32)) ->  | GJ36: =IF($B36>0,VLOOKUP($B36,'10_VSP_Fodermiddeltabel'!$A$4:$CP$489,37,),CHAR(32)) ->  | GL36: =IF($B36>0,VLOOKUP($B36,'10_VSP_Fodermiddeltabel'!$A$4:$CP$489,74,),CHAR(32)) ->  | GM36: =IF($B36>0,VLOOKUP($B36,'10_VSP_Fodermiddeltabel'!$A$4:$CP$489,75,),CHAR(32)) ->  | GN36: =IF($B36>0,VLOOKUP($B36,'10_VSP_Fodermiddeltabel'!$A$4:$CP$489,76,),CHAR(32)) ->  | GO36: =IF($B36>0,VLOOKUP($B36,'10_VSP_Fodermiddeltabel'!$A$4:$CP$489,77,),CHAR(32)) ->  | GP36: =IF($B36>0,VLOOKUP($B36,'10_VSP_Fodermiddeltabel'!$A$4:$CP$489,78,),CHAR(32)) ->  | GQ36: =IF($B36>0,VLOOKUP($B36,'10_VSP_Fodermiddeltabel'!$A$4:$CP$489,79,),CHAR(32)) ->  | GR36: =IF($B36>0,VLOOKUP($B36,'10_VSP_Fodermiddeltabel'!$A$4:$CP$489,1,),CHAR(32)) ->  | GU36: =+'10_VSP_Fodermiddeltabel'!D27 -> BYG, vår, gns. 2013-2015 | GV36: =+'10_VSP_Fodermiddeltabel'!A27 -> 50200
